Workbook

Sheet Assumptions (hidden)
A1: Assumptions and Factors — Title II Part A 2021-22 Final
B2: Caution: Yellow Cells below are inputs into the calculations in this model
B3: Section 2121 | C3: Final | D3: Preliminary | E3: Final | F3: Preliminary | G3: Final | H3: Preliminary | I3: Final | J3: Preliminary | K3: 2nd Revised Final | L3: Revised Final | M3: Final | N3: Preliminary | O3: 2nd Revised Final | P3: Revised Final | Q3: Final | R3: Preliminary | S3: Final | T3: Preliminary | U3: Final | V3: Preliminary | W3: Final | X3: Final | Y3: Re-Revised 012312 | Z3: Revised | AA3: Final
B4: Funding | C4: 2021-22 | D4: 2021-22 | E4: 2020-21 | F4: 2020-21 | G4: 2019-20 | H4: 2019-20 | I4: 2018-19 | J4: 2018-19 | K4: 2017-18 | L4: 2017-18 | M4: 2017-18 | N4: 2017-18 | O4: 2016-17 | P4: 2016-17 | Q4: 2016-17 | R4: 2016-17 | S4: 2015-16 | T4: 2015-16 | U4: 2014-15 | V4: 2014-15 | W4: 2013-14 | X4: 2012-13 | Y4: 2011-12 | Z4: 2011-12 | AA4: 2011-12 | AB4: 2010-11 | AC4: 2009-10 | AD4: 2008-09 | AE4: 2007-08 | AF4: 2006-07
B5: Total State Allocation | C5: 34561891 | D5: 34516008 | E5: 33915395 | F5: 33876016 | G5: 34072983 | H5: 34010371 | I5: 33288630 | J5: 33249165 | K5: 33521152 | L5: 33328186 | M5: 33521152 | N5: 33504996 | O5: 36716833 | P5: 36578861 | Q5: 36716833 | R5: 36710950 | S5: 37458839 | T5: 36365865 | U5: 37535132 | V5: 37524189 | W5: 37529639 | X5: 39717936 | Y5: 39836692 | Z5: 39465046 | AA5: 39890148 | AB5: 47747805 | AC5: 48045249 | AD5: 48000430 | AE5: 47422445 | AF5: 47044832
B6: State Admin - Higher Ed | C6: 0 | D6: 0 | E6: 0 | F6: 0 | G6: 0 | H6: 0 | I6: 0 | J6: 0 | K6: 0 | L6: 0 | M6: 0 | N6: 0 | O6: -57834 | P6: -57834 | Q6: -57834 | R6: -57834 | S6: -57834 | T6: -57834 | U6: -57834 | W6: -57834 | X6: =U50 -> -57834 | Y6: =V50 -> -57834 | Z6: -57834 | AA6: -57834 | AB6: =ROUNDDOWN(AB8*Y53*-1,0) -> -59087 | AC6: =ROUNDDOWN(AC8*Z53*-1,0) -> -59456
B7: State Admin - OSPI | C7: 0 | D7: 0 | E7: 0 | F7: 0 | G7: 0 | H7: 0 | I7: 0 | J7: 0 | K7: 0 | L7: 0 | M7: 0 | N7: 0 | O7: -309334 | P7: -307954 | Q7: -309334 | R7: =R8-R6 -> -309276 | S7: =S8-S6 -> -316754 | T7: -317373 | U7: -317517 | W7: -317462 | X7: =U51 -> -339345 | Y7: -340532 | Z7: -336816 | AA7: -341067 | AB7: =ROUNDUP(AB8*Y54*-1,0) -> -418391 | AC7: =ROUNDUP(AC8*Z54*-1,0) -> -420996
A8: Note below | B8: Total reserve for State Admin 1% | C8: =ROUND(-C5*0.01,0) -> -345619 | D8: -345160 | E8: =ROUND(-E5*0.01,0) -> -339154 | F8: -338760 | G8: =ROUND(-G5*0.01,0) -> -340730 | H8: -340104 | I8: =ROUND(-I5*0.01,0) -> -332886 | J8: -332492 | K8: -335212 | L8: -333282 | M8: -335212 | N8: -335050 | O8: =ROUND(-O5*0.01,0) -> -367168 | P8: -365789 | Q8: -367168 | R8: -367110 | S8: -374588 | T8: =ROUND(-T5*0.01,0) -> -363659 | U8: -375351 | V8: -375242 | W8: -375296 | X8: -397179 | Y8: =ROUND(-Y5*0.01,0)+1 -> -398366 | Z8: =ROUND(-Z5*0.01,0) -> -394650 | AA8: =ROUND(-AA5*0.01,0) -> -398901 | AB8: =ROUND(-AB5*0.01,0) -> -477478 | AC8: =ROUND(-AC5*0.01,0) -> -480452 | AD8: =ROUND(-AD5*0.01,0) -> -480004 | AE8: -474224 | AF8: -470448
B9: Subtotal | C9: =+C8+C5 -> 34216272 | D9: 34170848 | E9: =+E8+E5 -> 33576241 | F9: 33537256 | G9: =+G8+G5 -> 33732253 | H9: 33670267 | I9: =+I8+I5 -> 32955744 | J9: 32916673 | K9: 33185940 | L9: 32994904 | M9: 33185940 | N9: =+N8+N5 -> 33169946 | O9: 36349665 | P9: =+P8+P5 -> 36213072 | Q9: 36349665 | R9: 36343840 | S9: =+S8+S5 -> 37084251 | T9: 36002206 | U9: 37159781 | V9: 37148947 | W9: 37154343 | X9: 39320757 | Y9: 39438326 | Z9: 39070396 | AA9: 39491247 | AB9: 47270327 | AC9: 47564797 | AD9: 47520426 | AE9: 46948221 | AF9: 46574384
A10: 0.025 | B10: Reserve for SAHE (Subgrants) | J10: 0 | K10: 0 | L10: 0 | M10: 0 | N10: 0 | O10: =ROUND(-O9*$A10,0) -> -908742 | P10: =ROUND(-P9*$A10,0) -> -905327 | Q10: =ROUND(-Q9*$A10,0) -> -908742 | R10: =ROUND(-R9*$A10,0) -> -908596 | S10: -927106 | T10: =ROUND(-T9*$A10,0) -> -900055 | U10: =ROUND(-U9*$A10,0) -> -928995 | V10: =ROUND(-V9*$A10,0) -> -928724 | W10: =ROUND(-W9*$A10,0) -> -928859 | X10: -983019 | Y10: =ROUND(-Y9*$A10,0) -> -985958 | Z10: -976760 | AA10: -987281 | AB10: -1181758 | AC10: -1189120 | AD10: -1188011 | AE10: -1173706 | AF10: -1164360
B11: Total OSPI Allocation (w/ Admin) | C11: =C5+C6+C10+C8 -> 34216272 | D11: =D5+D6+D10+D8 -> 34170848 | E11: 33576241 | F11: =F5+F6+F10+F8 -> 33537256 | G11: 33732253 | H11: =H5+H6+H10+H8 -> 33670267 | I11: 32955744 | J11: 32916673 | K11: 33185940 | L11: 32994904 | M11: 33185940 | N11: =N5+N6+N10 -> 33504996 | O11: 35750257 | P11: =P5+P6+P10 -> 35615700 | Q11: 35750257 | R11: 35744520 | S11: =S5+S6+S10 -> 36473899 | T11: =T5+T6+T10 -> 35407976 | U11: 36548303 | V11: =V5+V6+V10 -> 36595465 | W11: =W5+W6+W10 -> 36542946 | X11: =X5+X6+X10 -> 38677083
A13: 0.04 | B13: Reserve for State Activities | C13: =ROUND(-C5*$A13,0) -> -1382476 | D13: -1380640 | E13: -1356616 | F13: -1355041 | G13: -1362919 | H13: -1360415 | I13: =ROUND(-I5*$A13,0) -> -1331545 | J13: -1329967 | K13: -1340846 | L13: -1333127 | M13: -1340846 | N13: -1340200 | O13: =ROUND(-O9*$A13,0) -> -1453987 | P13: =ROUND(-P9*$A13,0) -> -1448523 | Q13: -1453987 | R13: =ROUND(-R9*$A13,0) -> -1453754 | S13: -1483370 | T13: -1440088 | U13: -1486391 | V13: -1485958 | W13: -1486174 | X13: -983019 | Y13: =ROUND(-Y9*$A13,0) -> -1577533 | Z13: -1562816 | AA13: -1579650 | AB13: -1890813 | AC13: -1902592 | AD13: -1900817 | AE13: -1173706 | AF13: -1164360
B14: 95% for LEA's | C14: =SUM(C9,C10,C13) -> 32833796 | D14: 32790208 | E14: =SUM(E9,E10,E13) -> 32219625 | F14: 32182215 | G14: =SUM(G9,G10,G13) -> 32369334 | H14: 32309852 | I14: =SUM(I9,I10,I13) -> 31624199 | J14: 31586706 | K14: 31845094 | L14: 31661777 | M14: 31845094 | N14: =SUM(N9,N10,N13) -> 31829746 | O14: 33986936 | P14: 33859222 | Q14: 33986936 | R14: 33981490 | S14: 34673775 | T14: =SUM(T9,T10,T13) -> 33662063 | U14: 34744395 | V14: 34734265 | W14: 34739310 | X14: 37354719 | Y14: =SUM(Y9:Y13) -> 36874835 | Z14: 36530820 | AA14: 36924316 | AB14: 44197756 | AC14: 44473085 | AD14: 44431598 | AE14: 44600809 | AF14: 44245664 | AH14: =S13+S6 -> -1541204
B15: Less: Hold harmless | AH15: =S6/AH14 -> 0.03752520756
B16: Eisenhower allocation 2001-02 | K16: 0 | L16: 0 | M16: 0 | N16: 0 | O16: 0 | P16: =-'Allocation 2009-10'!$C5 -> -5465310 | Q16: =-'Allocation 2009-10'!$C5 -> -5465310 | R16: =-'Allocation 2009-10'!$C5 -> -5465310 | S16: =-'Allocation 2009-10'!$C5 -> -5465310 | T16: =-'Allocation 2009-10'!$C5 -> -5465310 | U16: =-'Allocation 2009-10'!$C5 -> -5465310 | V16: =-'Allocation 2009-10'!$C5 -> -5465310 | W16: =-'Allocation 2009-10'!$C5 -> -5465310 | X16: =-'Allocation 2009-10'!$C5 -> -5465310 | Y16: =-'Allocation 2009-10'!$C5 -> -5465310 | Z16: =-'Allocation 2009-10'!$C5 -> -5465310 | AA16: =-'Allocation 2009-10'!$C5 -> -5465310 | AB16: =-'Allocation 2009-10'!$C5 -> -5465310 | AC16: =-'Allocation 2009-10'!$C5 -> -5465310 | AD16: =-'Allocation 2008-09'!$C5 -> -5465310 | AE16: -5465310 | AF16: -5465310
B17: Classsize reduction 2001-02 | K17: 0 | L17: 0 | M17: 0 | N17: 0 | O17: 0 | P17: =-'Allocation 2009-10'!$D5 -> -26536963 | Q17: =-'Allocation 2009-10'!$D5 -> -26536963 | R17: =-'Allocation 2009-10'!$D5 -> -26536963 | S17: =-'Allocation 2009-10'!$D5 -> -26536963 | T17: =-'Allocation 2009-10'!$D5 -> -26536963 | U17: =-'Allocation 2009-10'!$D5 -> -26536963 | V17: =-'Allocation 2009-10'!$D5 -> -26536963 | W17: =-'Allocation 2009-10'!$D5 -> -26536963 | X17: =-'Allocation 2009-10'!$D5 -> -26536963 | Y17: =-'Allocation 2009-10'!$D5 -> -26536963 | Z17: =-'Allocation 2009-10'!$D5 -> -26536963 | AA17: =-'Allocation 2009-10'!$D5 -> -26536963 | AB17: =-'Allocation 2009-10'!$D5 -> -26536963 | AC17: =-'Allocation 2009-10'!$D5 -> -26536963 | AD17: =-'Allocation 2008-09'!$D5 -> -26536963 | AE17: -26536963 | AF17: -26536963
B19: MOE
B20: MOE Reduction | C20: ='Allocation 2021-22 Preliminary'!S5 -> 0 | D20: ='Allocation 2021-22 Preliminary'!S5 -> 0 | E20: ='Allocation 2020-21 Preliminary'!S5 -> 0 | F20: ='Allocation 2020-21 Preliminary'!T5 -> 0 | G20: ='Allocation 2019-20 Final'!T5 -> -64 | H20: ='Allocation 2019-20 Preliminary'!T5 -> -64 | I20: -8893 | J20: -9395 | K20: -1050 | L20: -1030 | M20: -1037
B21: =+"Amt avail for allocation- "&A27 -> Amt avail for allocation- Allocation sec. 2121 (a)(3) | C21: =SUM(C14,C16:C17,C20) -> 32833796 | D21: =SUM(D14,D16:D17,D20) -> 32790208 | E21: 32219625 | F21: =SUM(F14,F16:F17,F20) -> 32182215 | G21: 32369270 | H21: =SUM(H14,H16:H17,H20) -> 32309788 | I21: 31615306 | J21: 31577311 | K21: 31844044 | L21: 31660747 | M21: 31844057 | N21: =ROUND(SUM(N14,N16:N17),0) -> 31829746 | O21: =ROUND(SUM(O14,O16:O17),0) -> 33986936 | P21: =ROUND(SUM(P14,P16:P17),0) -> 1856949 | Q21: 1984663 | R21: 1979217 | S21: =ROUND(SUM(S14,S16:S17),0) -> 2671502 | T21: =ROUND(SUM(T14,T16:T17),0) -> 1659790 | U21: 2742122 | V21: 2731992 | W21: 2737037 | X21: 5352446 | Y21: =ROUND(SUM(Y14:Y17),0) -> 4872562 | Z21: =ROUND(SUM(Z14:Z17),0) -> 4528547 | AA21: =ROUND(SUM(AA14:AA17),0) -> 4922043 | AB21: =ROUND(SUM(AB14:AB17),0) -> 12195483 | AC21: =SUM(AC14:AC17) -> 12470812 | AD21: =SUM(AD14:AD17) -> 12429325 | AE21: 12598536 | AF21: 12243391
B23: Per Allocation Calculation Sheet | Q23: ='Allocation 2015-16 Preliminary'!R5 -> 0 | R23: ='Allocation 2015-16 Preliminary'!S5 -> 0 | S23: ='Allocation 2015-16 Final'!U5 -> 35230039 | T23: ='Allocation 2015-16 Preliminary'!U5 -> 34202096 | U23: ='Allocation 2014-15 Final'!U5 -> 35301419 | W23: ='Allocation 2013-14 Prelim'!U5 -> 35289403 | X23: ='Allocation 2012-13'!R5 -> 37354719 | Y23: =+'Allocation 2011-12 Rev 012312'!$J$5 -> 37466410 | Z23: =+'Allocation 2011-12 Revised'!$J$5 -> 37116876 | AA23: =+'Allocation 2011-12'!$J$5 -> 37516685 | AB23: =+'Allocation 2010-11'!$J$5 -> 44905961 | AC23: =+'Allocation 2009-10'!$J$5 -> 45186557 | AD23: =+'Allocation 2008-09'!$J$5 -> 45144404 | AE23: 44600809 | AF23: 44245664
X24: =X23-X14 -> 0 | Y24: 591575 | Z24: 586056 | AA24: 592369 | AB24: 708205 | AC24: 713472 | AD24: 712806 | AE24: 0 | AF24: 0
B25: Direct Grant Award to SAHE | C25: 0 | D25: 0 | E25: 0 | F25: 0 | G25: 0 | H25: 0 | I25: 0 | J25: 0 | K25: 0 | L25: 0 | M25: 0 | N25: 0 | O25: =(O10+O6)*-1 -> 966576 | P25: =(P10+P6)*-1 -> 963161 | Q25: =(Q10+Q6)*-1 -> 966576 | W25: =+W5-X5 -> -2188297 | X25: =X5-Y5 -> -118756 | Z25: =Z5-AA5 -> -425102 | AA25: =AA5-AB5 -> -7857657 | AB25: =AB5-AC5 -> -297444
B26: Direct Grant Award to OSPI | C26: =C11 -> 34216272 | D26: =D11 -> 34170848 | E26: =E11 -> 33576241 | F26: =F11 -> 33537256 | G26: =G11 -> 33732253 | H26: =H11 -> 33670267 | I26: =I11 -> 32955744 | J26: 32916673 | K26: 33185940 | L26: 32994904 | M26: 33185940 | N26: 33504996 | O26: 35750257 | P26: 35615700 | Q26: 35750257 | T26: =IF(Q26=Q11," ","not balanced") ->  | W26: =+W23-X23 -> -2065316 | X26: =X23-Y23 -> -111691 | Z26: =Z23-AA23 -> -399809 | AA26: =AA23-AB23 -> -7389276 | AB26: =AB23-AC23 -> -280596
A27: Allocation sec. 2121 (a)(3)
A28: The amount exceeding the hold harmles is allocated as follows:
A29: 20% based upon the 5-17 population in the area (Census data) | C29: 0.2 | D29: 0.2 | E29: 0.2 | F29: 0.2 | G29: 0.2 | H29: 0.2 | I29: 0.2 | J29: 0.2 | K29: 0.2 | L29: 0.2 | M29: 0.2 | N29: 0.2 | O29: 0.2 | P29: 0.2 | Q29: 0.2 | R29: 0.2 | S29: 0.2 | T29: 0.2 | U29: 0.2
A30: 80% based upon the 5-17 poverty population in the area (Census data) | C30: 0.8 | D30: 0.8 | E30: 0.8 | F30: 0.8 | G30: 0.8 | H30: 0.8 | I30: 0.8 | J30: 0.8 | K30: 0.8 | L30: 0.8 | M30: 0.8 | N30: 0.8 | O30: 0.8 | P30: 0.8 | Q30: 0.8 | R30: 0.8 | S30: 0.8 | T30: 0.8 | U30: 0.8
A32: Hold harmless thresehold sec. 2121(a) (2)
B33: An Amount equal to what the district received in Eisenhower and Classsize Reduction for 2001-02
S34: Signature | T34: Date
B35: Allocations Complete (Michelle Matakas)
B36: Program Supervisor (Maria Flores)
B37: Calculations Reviewed
B39: Preliminary
B40: Final
A43: NOTES:
B44: Revised per E-mail from Mary Jo Johnson dated 3/18/02: | S44: See Section 2113
B45: The allocation will need to be re-calculated in the following manner. The 1% admin comes off the top of the state allocation. Thus, the 95% for LEAs is calculated using 99% of the total funds. The 2.5% for state admin and SAHE is then calculated from the remaining funds. This is guidance that will be coming from the Dept. of Ed. Also, it appears that the admin for SAHE will be at hold harmless level as last year. Census data is the data to calculate 80/20.
B47: The P105 public and private are without pre-kindergarten per Mary Jo and Gayle Pauley 7/17/06.
B49: The State Administration amount is broken down as follows: | S49: 2013-14 Final | U49: 2012-13 Final | V49: 2011-12 Re-Revised | W49: 2011-12 Revised | X49: 2011-12 | Y49: 2010-11 | Z49: 2009-10 | AA49: 2008-09
B50: Higher Education | S50: -57834 | U50: -57834 | V50: -57834 | W50: -57834 | X50: -57834 | Y50: =AB8*Y53 -> 59087.9671 | Z50: 59456 | AA50: 59401
B51: State Administration | S51: -317462 | U51: -339345 | V51: -340532 | W51: -336816 | X51: -341067 | Y51: =AB8*Y54 -> 418390.0329 | Z51: 420996 | AA51: 420603
S53: =S50/SUM(S50:S51) -> 0.1541023619 | U53: =U50/SUM(U50:U51) -> 0.1456119281 | V53: =V50/SUM(V50:V51) -> 0.1451780523 | W53: =W50/SUM(W50:W51) -> 0.1465450399 | X53: =X50/SUM(X50:X51) -> 0.1449833417 | Y53: =Z53 -> -0.1237501353 | Z53: =Z50/AC8 -> -0.1237501353 | AA53: =AA50/AD8 -> -0.1237510521
S54: =S51/SUM(S50:S51) -> 0.8458976381 | U54: =U51/SUM(U50:U51) -> 0.8543880719 | V54: =V51/SUM(V50:V51) -> 0.8548219477 | W54: =W51/SUM(W50:W51) -> 0.8534549601 | X54: =X51/SUM(X50:X51) -> 0.8550166583 | Y54: =Z54 -> -0.8762498647 | Z54: =Z51/AC8 -> -0.8762498647 | AA54: =AA51/AD8 -> -0.8762489479

Sheet iGRANTS (hidden)
A1: Title II A Allocations
A2: 2021-22 Final FP 239
C3: 2021-22 Final
A4: CCDDD | B4: District
A5: 00000 | B5: State Summary | C5: =SUM(C7:C321) -> 32833796
A7: 14005 | B7: ABERDEEN | C7: =VLOOKUP($A7,'Allocation 2021-22 Final'!$A$7:$U$340,21,FALSE) -> 164727
A8: 21226 | B8: ADNA | C8: =VLOOKUP($A8,'Allocation 2021-22 Final'!$A$7:$U$340,21,FALSE) -> 11752
A9: 22017 | B9: ALMIRA | C9: =VLOOKUP($A9,'Allocation 2021-22 Final'!$A$7:$U$340,21,FALSE) -> 2278
A10: 29103 | B10: ANACORTES | C10: =VLOOKUP($A10,'Allocation 2021-22 Final'!$A$7:$U$340,21,FALSE) -> 76111
A11: 31016 | B11: ARLINGTON | C11: =VLOOKUP($A11,'Allocation 2021-22 Final'!$A$7:$U$340,21,FALSE) -> 105785
A12: 02420 | B12: ASOTIN-ANATONE | C12: =VLOOKUP($A12,'Allocation 2021-22 Final'!$A$7:$U$340,21,FALSE) -> 13963
A13: 17408 | B13: AUBURN | C13: =VLOOKUP($A13,'Allocation 2021-22 Final'!$A$7:$U$340,21,FALSE) -> 481800
A14: 18303 | B14: BAINBRIDGE ISLAND | C14: =VLOOKUP($A14,'Allocation 2021-22 Final'!$A$7:$U$340,21,FALSE) -> 48764
A15: 06119 | B15: BATTLE GROUND | C15: =VLOOKUP($A15,'Allocation 2021-22 Final'!$A$7:$U$340,21,FALSE) -> 298828
A16: 17405 | B16: BELLEVUE | C16: =VLOOKUP($A16,'Allocation 2021-22 Final'!$A$7:$U$340,21,FALSE) -> 324598
A17: 37501 | B17: BELLINGHAM | C17: =VLOOKUP($A17,'Allocation 2021-22 Final'!$A$7:$U$340,21,FALSE) -> 326874
A18: 01122 | B18: BENGE | C18: =VLOOKUP($A18,'Allocation 2021-22 Final'!$A$7:$U$340,21,FALSE) -> 232
A19: 27403 | B19: BETHEL | C19: =VLOOKUP($A19,'Allocation 2021-22 Final'!$A$7:$U$340,21,FALSE) -> 568129
A20: 20203 | B20: BICKLETON | C20: =VLOOKUP($A20,'Allocation 2021-22 Final'!$A$7:$U$340,21,FALSE) -> 1729
A21: 37503 | B21: BLAINE | C21: =VLOOKUP($A21,'Allocation 2021-22 Final'!$A$7:$U$340,21,FALSE) -> 88600
A22: 21234 | B22: BOISTFORT | C22: =VLOOKUP($A22,'Allocation 2021-22 Final'!$A$7:$U$340,21,FALSE) -> 5788
A23: 18100 | B23: BREMERTON | C23: =VLOOKUP($A23,'Allocation 2021-22 Final'!$A$7:$U$340,21,FALSE) -> 178442
A24: 24111 | B24: BREWSTER | C24: =VLOOKUP($A24,'Allocation 2021-22 Final'!$A$7:$U$340,21,FALSE) -> 37068
A25: 09075 | B25: BRIDGEPORT | C25: =VLOOKUP($A25,'Allocation 2021-22 Final'!$A$7:$U$340,21,FALSE) -> 44510
A26: 16046 | B26: BRINNON | C26: =VLOOKUP($A26,'Allocation 2021-22 Final'!$A$7:$U$340,21,FALSE) -> 5831
A27: 29100 | B27: BURLINGTON-EDISON | C27: =VLOOKUP($A27,'Allocation 2021-22 Final'!$A$7:$U$340,21,FALSE) -> 165405
A28: 06117 | B28: CAMAS | C28: =VLOOKUP($A28,'Allocation 2021-22 Final'!$A$7:$U$340,21,FALSE) -> 93565
A29: 05401 | B29: CAPE FLATTERY | C29: =VLOOKUP($A29,'Allocation 2021-22 Final'!$A$7:$U$340,21,FALSE) -> 14375
A30: 27019 | B30: CARBONADO | C30: =VLOOKUP($A30,'Allocation 2021-22 Final'!$A$7:$U$340,21,FALSE) -> 3627
A31: 04228 | B31: CASCADE | C31: =VLOOKUP($A31,'Allocation 2021-22 Final'!$A$7:$U$340,21,FALSE) -> 47482
A32: 04222 | B32: CASHMERE | C32: =VLOOKUP($A32,'Allocation 2021-22 Final'!$A$7:$U$340,21,FALSE) -> 53610
A33: 08401 | B33: CASTLE ROCK | C33: =VLOOKUP($A33,'Allocation 2021-22 Final'!$A$7:$U$340,21,FALSE) -> 40895
A34: 18901 | B34: CATALYST BREMERTON CHARTER | C34: =VLOOKUP($A34,'Allocation 2021-22 Final'!$A$7:$U$340,21,FALSE) -> 3382
A35: 20215 | B35: CENTERVILLE | C35: =VLOOKUP($A35,'Allocation 2021-22 Final'!$A$7:$U$340,21,FALSE) -> 2803
A36: 18401 | B36: CENTRAL KITSAP | C36: =VLOOKUP($A36,'Allocation 2021-22 Final'!$A$7:$U$340,21,FALSE) -> 203732
A37: 32356 | B37: CENTRAL VALLEY | C37: =VLOOKUP($A37,'Allocation 2021-22 Final'!$A$7:$U$340,21,FALSE) -> 353175
A38: 21401 | B38: CENTRALIA | C38: =VLOOKUP($A38,'Allocation 2021-22 Final'!$A$7:$U$340,21,FALSE) -> 140860
A39: 21302 | B39: CHEHALIS | C39: =VLOOKUP($A39,'Allocation 2021-22 Final'!$A$7:$U$340,21,FALSE) -> 59323
A40: 32360 | B40: CHENEY | C40: =VLOOKUP($A40,'Allocation 2021-22 Final'!$A$7:$U$340,21,FALSE) -> 139537
A41: 33036 | B41: CHEWELAH | C41: =VLOOKUP($A41,'Allocation 2021-22 Final'!$A$7:$U$340,21,FALSE) -> 54298
A42: 16049 | B42: CHIMACUM | C42: =VLOOKUP($A42,'Allocation 2021-22 Final'!$A$7:$U$340,21,FALSE) -> 36355
A43: 02250 | B43: CLARKSTON | C43: =VLOOKUP($A43,'Allocation 2021-22 Final'!$A$7:$U$340,21,FALSE) -> 114462
A44: 19404 | B44: CLE ELUM-ROSLYN | C44: =VLOOKUP($A44,'Allocation 2021-22 Final'!$A$7:$U$340,21,FALSE) -> 39895
A45: 27400 | B45: CLOVER PARK | C45: =VLOOKUP($A45,'Allocation 2021-22 Final'!$A$7:$U$340,21,FALSE) -> 547361
A46: 38300 | B46: COLFAX | C46: =VLOOKUP($A46,'Allocation 2021-22 Final'!$A$7:$U$340,21,FALSE) -> 18109
A47: 36250 | B47: COLLEGE PLACE | C47: =VLOOKUP($A47,'Allocation 2021-22 Final'!$A$7:$U$340,21,FALSE) -> 54262
A48: 38306 | B48: COLTON | C48: =VLOOKUP($A48,'Allocation 2021-22 Final'!$A$7:$U$340,21,FALSE) -> 4738
A49: 33206 | B49: COLUMBIA (STEV) | C49: =VLOOKUP($A49,'Allocation 2021-22 Final'!$A$7:$U$340,21,FALSE) -> 9593
A50: 36400 | B50: COLUMBIA (WALLA) | C50: =VLOOKUP($A50,'Allocation 2021-22 Final'!$A$7:$U$340,21,FALSE) -> 35755
A51: 33115 | B51: COLVILLE | C51: =VLOOKUP($A51,'Allocation 2021-22 Final'!$A$7:$U$340,21,FALSE) -> 85599
A52: 29011 | B52: CONCRETE | C52: =VLOOKUP($A52,'Allocation 2021-22 Final'!$A$7:$U$340,21,FALSE) -> 27292
A53: 29317 | B53: CONWAY | C53: =VLOOKUP($A53,'Allocation 2021-22 Final'!$A$7:$U$340,21,FALSE) -> 11044
A54: 14099 | B54: COSMOPOLIS | C54: =VLOOKUP($A54,'Allocation 2021-22 Final'!$A$7:$U$340,21,FALSE) -> 6189
A55: 13151 | B55: COULEE-HARTLINE | C55: =VLOOKUP($A55,'Allocation 2021-22 Final'!$A$7:$U$340,21,FALSE) -> 5116
A56: 15204 | B56: COUPEVILLE | C56: =VLOOKUP($A56,'Allocation 2021-22 Final'!$A$7:$U$340,21,FALSE) -> 32357
A57: 05313 | B57: CRESCENT | C57: =VLOOKUP($A57,'Allocation 2021-22 Final'!$A$7:$U$340,21,FALSE) -> 10513
A58: 22073 | B58: CRESTON | C58: =VLOOKUP($A58,'Allocation 2021-22 Final'!$A$7:$U$340,21,FALSE) -> 3497
A59: 10050 | B59: CURLEW | C59: =VLOOKUP($A59,'Allocation 2021-22 Final'!$A$7:$U$340,21,FALSE) -> 14085
A60: 26059 | B60: CUSICK | C60: =VLOOKUP($A60,'Allocation 2021-22 Final'!$A$7:$U$340,21,FALSE) -> 24516
A61: 19007 | B61: DAMMAN | C61: =VLOOKUP($A61,'Allocation 2021-22 Final'!$A$7:$U$340,21,FALSE) -> 1484
A62: 31330 | B62: DARRINGTON | C62: =VLOOKUP($A62,'Allocation 2021-22 Final'!$A$7:$U$340,21,FALSE) -> 12554
A63: 22207 | B63: DAVENPORT | C63: =VLOOKUP($A63,'Allocation 2021-22 Final'!$A$7:$U$340,21,FALSE) -> 20952
A64: 07002 | B64: DAYTON | C64: =VLOOKUP($A64,'Allocation 2021-22 Final'!$A$7:$U$340,21,FALSE) -> 16622
A65: 32414 | B65: DEER PARK | C65: =VLOOKUP($A65,'Allocation 2021-22 Final'!$A$7:$U$340,21,FALSE) -> 73287
A66: 27343 | B66: DIERINGER | C66: =VLOOKUP($A66,'Allocation 2021-22 Final'!$A$7:$U$340,21,FALSE) -> 25943
A67: 36101 | B67: DIXIE | C67: =VLOOKUP($A67,'Allocation 2021-22 Final'!$A$7:$U$340,21,FALSE) -> 2539
A68: 32361 | B68: EAST VALLEY (SPK) | C68: =VLOOKUP($A68,'Allocation 2021-22 Final'!$A$7:$U$340,21,FALSE) -> 140523
A69: 39090 | B69: EAST VALLEY (YAK) | C69: =VLOOKUP($A69,'Allocation 2021-22 Final'!$A$7:$U$340,21,FALSE) -> 105827
A70: 09206 | B70: EASTMONT | C70: =VLOOKUP($A70,'Allocation 2021-22 Final'!$A$7:$U$340,21,FALSE) -> 192001
A71: 19028 | B71: EASTON | C71: =VLOOKUP($A71,'Allocation 2021-22 Final'!$A$7:$U$340,21,FALSE) -> 2605
A72: 27404 | B72: EATONVILLE | C72: =VLOOKUP($A72,'Allocation 2021-22 Final'!$A$7:$U$340,21,FALSE) -> 53757
A73: 31015 | B73: EDMONDS | C73: =VLOOKUP($A73,'Allocation 2021-22 Final'!$A$7:$U$340,21,FALSE) -> 514639
A74: 19401 | B74: ELLENSBURG | C74: =VLOOKUP($A74,'Allocation 2021-22 Final'!$A$7:$U$340,21,FALSE) -> 87737
A75: 14068 | B75: ELMA | C75: =VLOOKUP($A75,'Allocation 2021-22 Final'!$A$7:$U$340,21,FALSE) -> 54232
A76: 38308 | B76: ENDICOTT | C76: =VLOOKUP($A76,'Allocation 2021-22 Final'!$A$7:$U$340,21,FALSE) -> 4800
A77: 04127 | B77: ENTIAT | C77: =VLOOKUP($A77,'Allocation 2021-22 Final'!$A$7:$U$340,21,FALSE) -> 17403
A78: 17216 | B78: ENUMCLAW | C78: =VLOOKUP($A78,'Allocation 2021-22 Final'!$A$7:$U$340,21,FALSE) -> 77728
A79: 13165 | B79: EPHRATA | C79: =VLOOKUP($A79,'Allocation 2021-22 Final'!$A$7:$U$340,21,FALSE) -> 79282
A80: 21036 | B80: EVALINE | C80: =VLOOKUP($A80,'Allocation 2021-22 Final'!$A$7:$U$340,21,FALSE) -> 10115
A81: 31002 | B81: EVERETT | C81: =VLOOKUP($A81,'Allocation 2021-22 Final'!$A$7:$U$340,21,FALSE) -> 483154
A82: 06114 | B82: EVERGREEN (CLARK) | C82: =VLOOKUP($A82,'Allocation 2021-22 Final'!$A$7:$U$340,21,FALSE) -> 841124
A83: 33205 | B83: EVERGREEN (STEV) | C83: =VLOOKUP($A83,'Allocation 2021-22 Final'!$A$7:$U$340,21,FALSE) -> 2974
A84: 17210 | B84: FEDERAL WAY | C84: =VLOOKUP($A84,'Allocation 2021-22 Final'!$A$7:$U$340,21,FALSE) -> 737612
A85: 37502 | B85: FERNDALE | C85: =VLOOKUP($A85,'Allocation 2021-22 Final'!$A$7:$U$340,21,FALSE) -> 169973
A86: 27417 | B86: FIFE | C86: =VLOOKUP($A86,'Allocation 2021-22 Final'!$A$7:$U$340,21,FALSE) -> 99372
A87: 03053 | B87: FINLEY | C87: =VLOOKUP($A87,'Allocation 2021-22 Final'!$A$7:$U$340,21,FALSE) -> 49321
A88: 27402 | B88: FRANKLIN PIERCE | C88: =VLOOKUP($A88,'Allocation 2021-22 Final'!$A$7:$U$340,21,FALSE) -> 349495
A89: 32358 | B89: FREEMAN | C89: =VLOOKUP($A89,'Allocation 2021-22 Final'!$A$7:$U$340,21,FALSE) -> 14050
A90: 38302 | B90: GARFIELD | C90: =VLOOKUP($A90,'Allocation 2021-22 Final'!$A$7:$U$340,21,FALSE) -> 7076
A91: 20401 | B91: GLENWOOD | C91: =VLOOKUP($A91,'Allocation 2021-22 Final'!$A$7:$U$340,21,FALSE) -> 1519
A92: 20404 | B92: GOLDENDALE | C92: =VLOOKUP($A92,'Allocation 2021-22 Final'!$A$7:$U$340,21,FALSE) -> 46510
A93: 13301 | B93: GRAND COULEE | C93: =VLOOKUP($A93,'Allocation 2021-22 Final'!$A$7:$U$340,21,FALSE) -> 25369
A94: 39200 | B94: GRANDVIEW | C94: =VLOOKUP($A94,'Allocation 2021-22 Final'!$A$7:$U$340,21,FALSE) -> 168746
A95: 39204 | B95: GRANGER | C95: =VLOOKUP($A95,'Allocation 2021-22 Final'!$A$7:$U$340,21,FALSE) -> 103204
A96: 31332 | B96: GRANITE FALLS | C96: =VLOOKUP($A96,'Allocation 2021-22 Final'!$A$7:$U$340,21,FALSE) -> 48749
A97: 23054 | B97: GRAPEVIEW | C97: =VLOOKUP($A97,'Allocation 2021-22 Final'!$A$7:$U$340,21,FALSE) -> 11615
A98: 32312 | B98: GREAT NORTHERN | C98: =VLOOKUP($A98,'Allocation 2021-22 Final'!$A$7:$U$340,21,FALSE) -> 3913
A99: 06103 | B99: GREEN MOUNTAIN | C99: =VLOOKUP($A99,'Allocation 2021-22 Final'!$A$7:$U$340,21,FALSE) -> 3756
A100: 34324 | B100: GRIFFIN | C100: =VLOOKUP($A100,'Allocation 2021-22 Final'!$A$7:$U$340,21,FALSE) -> 13875
A101: 22204 | B101: HARRINGTON | C101: =VLOOKUP($A101,'Allocation 2021-22 Final'!$A$7:$U$340,21,FALSE) -> 6651
A102: 39203 | B102: HIGHLAND | C102: =VLOOKUP($A102,'Allocation 2021-22 Final'!$A$7:$U$340,21,FALSE) -> 45366
A103: 17401 | B103: HIGHLINE | C103: =VLOOKUP($A103,'Allocation 2021-22 Final'!$A$7:$U$340,21,FALSE) -> 693326
A104: 06098 | B104: HOCKINSON | C104: =VLOOKUP($A104,'Allocation 2021-22 Final'!$A$7:$U$340,21,FALSE) -> 34777
A105: 23404 | B105: HOOD CANAL | C105: =VLOOKUP($A105,'Allocation 2021-22 Final'!$A$7:$U$340,21,FALSE) -> 28674
A106: 14028 | B106: HOQUIAM | C106: =VLOOKUP($A106,'Allocation 2021-22 Final'!$A$7:$U$340,21,FALSE) -> 79275
A107: 27902 | B107: IMPACT COMMENCEMENT BAY CHARTER | C107: =VLOOKUP($A107,'Allocation 2021-22 Final'!$A$7:$U$340,21,FALSE) -> 10818
A108: 17911 | B108: IMPACT PUGET SOUND CHARTER | C108: =VLOOKUP($A108,'Allocation 2021-22 Final'!$A$7:$U$340,21,FALSE) -> 18055
A109: 17916 | B109: IMPACT SALISH SEA CHARTER | C109: =VLOOKUP($A109,'Allocation 2021-22 Final'!$A$7:$U$340,21,FALSE) -> 3611
A110: 10070 | B110: INCHELIUM | C110: =VLOOKUP($A110,'Allocation 2021-22 Final'!$A$7:$U$340,21,FALSE) -> 12744
A111: 31063 | B111: INDEX | C111: =VLOOKUP($A111,'Allocation 2021-22 Final'!$A$7:$U$340,21,FALSE) -> 2618
A112: 17411 | B112: ISSAQUAH | C112: =VLOOKUP($A112,'Allocation 2021-22 Final'!$A$7:$U$340,21,FALSE) -> 266993
A113: 11056 | B113: KAHLOTUS | C113: =VLOOKUP($A113,'Allocation 2021-22 Final'!$A$7:$U$340,21,FALSE) -> 2267
A114: 08402 | B114: KALAMA | C114: =VLOOKUP($A114,'Allocation 2021-22 Final'!$A$7:$U$340,21,FALSE) -> 21999
A115: 10003 | B115: KELLER | C115: =VLOOKUP($A115,'Allocation 2021-22 Final'!$A$7:$U$340,21,FALSE) -> 6351
A116: 08458 | B116: KELSO | C116: =VLOOKUP($A116,'Allocation 2021-22 Final'!$A$7:$U$340,21,FALSE) -> 198426
A117: 03017 | B117: KENNEWICK | C117: =VLOOKUP($A117,'Allocation 2021-22 Final'!$A$7:$U$340,21,FALSE) -> 792733
A118: 17415 | B118: KENT | C118: =VLOOKUP($A118,'Allocation 2021-22 Final'!$A$7:$U$340,21,FALSE) -> 891193
A119: 33212 | B119: KETTLE FALLS | C119: =VLOOKUP($A119,'Allocation 2021-22 Final'!$A$7:$U$340,21,FALSE) -> 29850
A120: 03052 | B120: KIONA-BENTON | C120: =VLOOKUP($A120,'Allocation 2021-22 Final'!$A$7:$U$340,21,FALSE) -> 56042
A121: 19403 | B121: KITTITAS | C121: =VLOOKUP($A121,'Allocation 2021-22 Final'!$A$7:$U$340,21,FALSE) -> 16183
A122: 20402 | B122: KLICKITAT | C122: =VLOOKUP($A122,'Allocation 2021-22 Final'!$A$7:$U$340,21,FALSE) -> 3603
A123: 06101 | B123: LA CENTER | C123: =VLOOKUP($A123,'Allocation 2021-22 Final'!$A$7:$U$340,21,FALSE) -> 26276
A124: 29311 | B124: LA CONNER | C124: =VLOOKUP($A124,'Allocation 2021-22 Final'!$A$7:$U$340,21,FALSE) -> 20432
A125: 38126 | B125: LACROSSE | C125: =VLOOKUP($A125,'Allocation 2021-22 Final'!$A$7:$U$340,21,FALSE) -> 5780
A126: 04129 | B126: LAKE CHELAN | C126: =VLOOKUP($A126,'Allocation 2021-22 Final'!$A$7:$U$340,21,FALSE) -> 32002
A127: 31004 | B127: LAKE STEVENS | C127: =VLOOKUP($A127,'Allocation 2021-22 Final'!$A$7:$U$340,21,FALSE) -> 147576
A128: 17414 | B128: LAKE WASHINGTON | C128: =VLOOKUP($A128,'Allocation 2021-22 Final'!$A$7:$U$340,21,FALSE) -> 383158
A129: 31306 | B129: LAKEWOOD | C129: =VLOOKUP($A129,'Allocation 2021-22 Final'!$A$7:$U$340,21,FALSE) -> 58640
A130: 38264 | B130: LAMONT | C130: =VLOOKUP($A130,'Allocation 2021-22 Final'!$A$7:$U$340,21,FALSE) -> 1763
A131: 32362 | B131: LIBERTY | C131: =VLOOKUP($A131,'Allocation 2021-22 Final'!$A$7:$U$340,21,FALSE) -> 15507
A132: 01158 | B132: LIND | C132: =VLOOKUP($A132,'Allocation 2021-22 Final'!$A$7:$U$340,21,FALSE) -> 9739
A133: 08122 | B133: LONGVIEW | C133: =VLOOKUP($A133,'Allocation 2021-22 Final'!$A$7:$U$340,21,FALSE) -> 304649
A134: 33183 | B134: LOON LAKE | C134: =VLOOKUP($A134,'Allocation 2021-22 Final'!$A$7:$U$340,21,FALSE) -> 10251
A135: 28144 | B135: LOPEZ | C135: =VLOOKUP($A135,'Allocation 2021-22 Final'!$A$7:$U$340,21,FALSE) -> 8934
A136: 32903 | B136: LUMEN CHARTER | C136: =VLOOKUP($A136,'Allocation 2021-22 Final'!$A$7:$U$340,21,FALSE) -> 1996
A137: 20406 | B137: LYLE | C137: =VLOOKUP($A137,'Allocation 2021-22 Final'!$A$7:$U$340,21,FALSE) -> 25006
A138: 37504 | B138: LYNDEN | C138: =VLOOKUP($A138,'Allocation 2021-22 Final'!$A$7:$U$340,21,FALSE) -> 73844
A139: 39120 | B139: MABTON | C139: =VLOOKUP($A139,'Allocation 2021-22 Final'!$A$7:$U$340,21,FALSE) -> 44845
A140: 09207 | B140: MANSFIELD | C140: =VLOOKUP($A140,'Allocation 2021-22 Final'!$A$7:$U$340,21,FALSE) -> 4988
A141: 04019 | B141: MANSON | C141: =VLOOKUP($A141,'Allocation 2021-22 Final'!$A$7:$U$340,21,FALSE) -> 13113
A142: 23311 | B142: MARY M KNIGHT | C142: =VLOOKUP($A142,'Allocation 2021-22 Final'!$A$7:$U$340,21,FALSE) -> 14757
A143: 33207 | B143: MARY WALKER | C143: =VLOOKUP($A143,'Allocation 2021-22 Final'!$A$7:$U$340,21,FALSE) -> 33148
A144: 31025 | B144: MARYSVILLE | C144: =VLOOKUP($A144,'Allocation 2021-22 Final'!$A$7:$U$340,21,FALSE) -> 310512
A145: 14065 | B145: MCCLEARY | C145: =VLOOKUP($A145,'Allocation 2021-22 Final'!$A$7:$U$340,21,FALSE) -> 12725
A146: 32354 | B146: MEAD | C146: =VLOOKUP($A146,'Allocation 2021-22 Final'!$A$7:$U$340,21,FALSE) -> 228576
A147: 32326 | B147: MEDICAL LAKE | C147: =VLOOKUP($A147,'Allocation 2021-22 Final'!$A$7:$U$340,21,FALSE) -> 47186
A148: 17400 | B148: MERCER ISLAND | C148: =VLOOKUP($A148,'Allocation 2021-22 Final'!$A$7:$U$340,21,FALSE) -> 57874
A149: 37505 | B149: MERIDIAN | C149: =VLOOKUP($A149,'Allocation 2021-22 Final'!$A$7:$U$340,21,FALSE) -> 47334
A150: 24350 | B150: METHOW VALLEY | C150: =VLOOKUP($A150,'Allocation 2021-22 Final'!$A$7:$U$340,21,FALSE) -> 24231
A151: 30031 | B151: MILL A | C151: =VLOOKUP($A151,'Allocation 2021-22 Final'!$A$7:$U$340,21,FALSE) -> 1712
A152: 31103 | B152: MONROE | C152: =VLOOKUP($A152,'Allocation 2021-22 Final'!$A$7:$U$340,21,FALSE) -> 112449
A153: 14066 | B153: MONTESANO | C153: =VLOOKUP($A153,'Allocation 2021-22 Final'!$A$7:$U$340,21,FALSE) -> 45444
A154: 21214 | B154: MORTON | C154: =VLOOKUP($A154,'Allocation 2021-22 Final'!$A$7:$U$340,21,FALSE) -> 11149
A155: 13161 | B155: MOSES LAKE | C155: =VLOOKUP($A155,'Allocation 2021-22 Final'!$A$7:$U$340,21,FALSE) -> 324703
A156: 21206 | B156: MOSSYROCK | C156: =VLOOKUP($A156,'Allocation 2021-22 Final'!$A$7:$U$340,21,FALSE) -> 23820
A157: 39209 | B157: MOUNT ADAMS | C157: =VLOOKUP($A157,'Allocation 2021-22 Final'!$A$7:$U$340,21,FALSE) -> 50587
A158: 37507 | B158: MOUNT BAKER | C158: =VLOOKUP($A158,'Allocation 2021-22 Final'!$A$7:$U$340,21,FALSE) -> 91890
A159: 30029 | B159: MOUNT PLEASANT | C159: =VLOOKUP($A159,'Allocation 2021-22 Final'!$A$7:$U$340,21,FALSE) -> 1464
A160: 29320 | B160: MOUNT VERNON | C160: =VLOOKUP($A160,'Allocation 2021-22 Final'!$A$7:$U$340,21,FALSE) -> 267955
A161: 31006 | B161: MUKILTEO | C161: =VLOOKUP($A161,'Allocation 2021-22 Final'!$A$7:$U$340,21,FALSE) -> 472081
A162: 39003 | B162: NACHES VALLEY | C162: =VLOOKUP($A162,'Allocation 2021-22 Final'!$A$7:$U$340,21,FALSE) -> 44993
A163: 21014 | B163: NAPAVINE | C163: =VLOOKUP($A163,'Allocation 2021-22 Final'!$A$7:$U$340,21,FALSE) -> 29069
A164: 25155 | B164: NASELLE-GRAYS | C164: =VLOOKUP($A164,'Allocation 2021-22 Final'!$A$7:$U$340,21,FALSE) -> 11544
A165: 24014 | B165: NESPELEM | C165: =VLOOKUP($A165,'Allocation 2021-22 Final'!$A$7:$U$340,21,FALSE) -> 14159
A166: 26056 | B166: NEWPORT | C166: =VLOOKUP($A166,'Allocation 2021-22 Final'!$A$7:$U$340,21,FALSE) -> 59618
A167: 32325 | B167: NINE MILE FALLS | C167: =VLOOKUP($A167,'Allocation 2021-22 Final'!$A$7:$U$340,21,FALSE) -> 64159
A168: 37506 | B168: NOOKSACK VALLEY | C168: =VLOOKUP($A168,'Allocation 2021-22 Final'!$A$7:$U$340,21,FALSE) -> 52614
A169: 14064 | B169: NORTH BEACH | C169: =VLOOKUP($A169,'Allocation 2021-22 Final'!$A$7:$U$340,21,FALSE) -> 22243
A170: 11051 | B170: NORTH FRANKLIN | C170: =VLOOKUP($A170,'Allocation 2021-22 Final'!$A$7:$U$340,21,FALSE) -> 109846
A171: 18400 | B171: NORTH KITSAP | C171: =VLOOKUP($A171,'Allocation 2021-22 Final'!$A$7:$U$340,21,FALSE) -> 140787
A172: 23403 | B172: NORTH MASON | C172: =VLOOKUP($A172,'Allocation 2021-22 Final'!$A$7:$U$340,21,FALSE) -> 77752
A173: 25200 | B173: NORTH RIVER | C173: =VLOOKUP($A173,'Allocation 2021-22 Final'!$A$7:$U$340,21,FALSE) -> 1979
A174: 34003 | B174: NORTH THURSTON | C174: =VLOOKUP($A174,'Allocation 2021-22 Final'!$A$7:$U$340,21,FALSE) -> 406879
A175: 33211 | B175: NORTHPORT | C175: =VLOOKUP($A175,'Allocation 2021-22 Final'!$A$7:$U$340,21,FALSE) -> 10988
A176: 17417 | B176: NORTHSHORE | C176: =VLOOKUP($A176,'Allocation 2021-22 Final'!$A$7:$U$340,21,FALSE) -> 282722
A177: 15201 | B177: OAK HARBOR | C177: =VLOOKUP($A177,'Allocation 2021-22 Final'!$A$7:$U$340,21,FALSE) -> 138787
A178: 38324 | B178: OAKESDALE | C178: =VLOOKUP($A178,'Allocation 2021-22 Final'!$A$7:$U$340,21,FALSE) -> 2917
A179: 14400 | B179: OAKVILLE | C179: =VLOOKUP($A179,'Allocation 2021-22 Final'!$A$7:$U$340,21,FALSE) -> 19770
A180: 25101 | B180: OCEAN BEACH | C180: =VLOOKUP($A180,'Allocation 2021-22 Final'!$A$7:$U$340,21,FALSE) -> 41762
A181: 14172 | B181: OCOSTA | C181: =VLOOKUP($A181,'Allocation 2021-22 Final'!$A$7:$U$340,21,FALSE) -> 28283
A182: 22105 | B182: ODESSA | C182: =VLOOKUP($A182,'Allocation 2021-22 Final'!$A$7:$U$340,21,FALSE) -> 9067
A183: 24105 | B183: OKANOGAN | C183: =VLOOKUP($A183,'Allocation 2021-22 Final'!$A$7:$U$340,21,FALSE) -> 49117
A184: 34111 | B184: OLYMPIA | C184: =VLOOKUP($A184,'Allocation 2021-22 Final'!$A$7:$U$340,21,FALSE) -> 258022
A185: 24019 | B185: OMAK | C185: =VLOOKUP($A185,'Allocation 2021-22 Final'!$A$7:$U$340,21,FALSE) -> 82277
A186: 21300 | B186: ONALASKA | C186: =VLOOKUP($A186,'Allocation 2021-22 Final'!$A$7:$U$340,21,FALSE) -> 21192
A187: 33030 | B187: ONION CREEK | C187: =VLOOKUP($A187,'Allocation 2021-22 Final'!$A$7:$U$340,21,FALSE) -> 3660
A188: 28137 | B188: ORCAS ISLAND | C188: =VLOOKUP($A188,'Allocation 2021-22 Final'!$A$7:$U$340,21,FALSE) -> 14657
A189: 32123 | B189: ORCHARD PRAIRIE | C189: =VLOOKUP($A189,'Allocation 2021-22 Final'!$A$7:$U$340,21,FALSE) -> 3333
A190: 10065 | B190: ORIENT | C190: =VLOOKUP($A190,'Allocation 2021-22 Final'!$A$7:$U$340,21,FALSE) -> 3695
A191: 09013 | B191: ORONDO | C191: =VLOOKUP($A191,'Allocation 2021-22 Final'!$A$7:$U$340,21,FALSE) -> 17534
A192: 24410 | B192: OROVILLE | C192: =VLOOKUP($A192,'Allocation 2021-22 Final'!$A$7:$U$340,21,FALSE) -> 51973
A193: 27344 | B193: ORTING | C193: =VLOOKUP($A193,'Allocation 2021-22 Final'!$A$7:$U$340,21,FALSE) -> 56600
A194: 01147 | B194: OTHELLO | C194: =VLOOKUP($A194,'Allocation 2021-22 Final'!$A$7:$U$340,21,FALSE) -> 227098
A195: 09102 | B195: PALISADES | C195: =VLOOKUP($A195,'Allocation 2021-22 Final'!$A$7:$U$340,21,FALSE) -> 2533
A196: 38301 | B196: PALOUSE | C196: =VLOOKUP($A196,'Allocation 2021-22 Final'!$A$7:$U$340,21,FALSE) -> 3827
A197: 11001 | B197: PASCO | C197: =VLOOKUP($A197,'Allocation 2021-22 Final'!$A$7:$U$340,21,FALSE) -> 747028
A198: 24122 | B198: PATEROS | C198: =VLOOKUP($A198,'Allocation 2021-22 Final'!$A$7:$U$340,21,FALSE) -> 8031
A199: 03050 | B199: PATERSON | C199: =VLOOKUP($A199,'Allocation 2021-22 Final'!$A$7:$U$340,21,FALSE) -> 3306
A200: 21301 | B200: PE ELL | C200: =VLOOKUP($A200,'Allocation 2021-22 Final'!$A$7:$U$340,21,FALSE) -> 6020
A201: 27401 | B201: PENINSULA | C201: =VLOOKUP($A201,'Allocation 2021-22 Final'!$A$7:$U$340,21,FALSE) -> 176430
... 120 more rows

Sheet CCDDDD (hidden)
A1: CCDDD | B1: District | C1: CCDDD | F1: Preliminary | G1: =INDEX(#REF!,MATCH(#REF!,$A$3:$A$309,0),MATCH(F1,#REF!,0)) -> 
A2: 00000 | B2: State Summary | C2: 00000
A3: 14005 | B3: ABERDEEN | C3: =A3 -> 14005 | F3: Difference | G3: =#REF!-G1 -> 
A4: 21226 | B4: ADNA | C4: =A4 -> 21226 | F4: Percent Difference | G4: =G3/G1 -> 
A5: 22017 | B5: ALMIRA | C5: 22017
A6: 29103 | B6: ANACORTES | C6: 29103
A7: 31016 | B7: ARLINGTON | C7: 31016
A8: 02420 | B8: ASOTIN-ANATONE | C8: 02420
A9: 17408 | B9: AUBURN | C9: 17408
A10: 18303 | B10: BAINBRIDGE ISLAND | C10: 18303
A11: 06119 | B11: BATTLE GROUND | C11: 06119
A12: 17405 | B12: BELLEVUE | C12: 17405
A13: 37501 | B13: BELLINGHAM | C13: 37501
A14: 01122 | B14: BENGE | C14: 01122
A15: 27403 | B15: BETHEL | C15: 27403
A16: 20203 | B16: BICKLETON | C16: 20203
A17: 37503 | B17: BLAINE | C17: 37503
A18: 21234 | B18: BOISTFORT | C18: 21234
A19: 18100 | B19: BREMERTON | C19: 18100
A20: 24111 | B20: BREWSTER | C20: 24111
A21: 09075 | B21: BRIDGEPORT | C21: 09075
A22: 16046 | B22: BRINNON | C22: 16046
A23: 29100 | B23: BURLINGTON-EDISON | C23: 29100
A24: 06117 | B24: CAMAS | C24: 06117
A25: 05401 | B25: CAPE FLATTERY | C25: 05401
A26: 27019 | B26: CARBONADO | C26: 27019
A27: 04228 | B27: CASCADE | C27: 04228
A28: 04222 | B28: CASHMERE | C28: 04222
A29: 08401 | B29: CASTLE ROCK | C29: 08401
A30: 18901 | B30: CATALYST BREMERTON CHARTER | C30: 18901
A31: 20215 | B31: CENTERVILLE | C31: 20215
A32: 18401 | B32: CENTRAL KITSAP | C32: 18401
A33: 32356 | B33: CENTRAL VALLEY | C33: 32356
A34: 21401 | B34: CENTRALIA | C34: 21401
A35: 21302 | B35: CHEHALIS | C35: 21302
A36: 32360 | B36: CHENEY | C36: 32360
A37: 33036 | B37: CHEWELAH | C37: 33036
A38: 16049 | B38: CHIMACUM | C38: 16049
A39: 02250 | B39: CLARKSTON | C39: 02250
A40: 19404 | B40: CLE ELUM-ROSLYN | C40: 19404
A41: 27400 | B41: CLOVER PARK | C41: 27400
A42: 38300 | B42: COLFAX | C42: 38300
A43: 36250 | B43: COLLEGE PLACE | C43: 36250
A44: 38306 | B44: COLTON | C44: 38306
A45: 33206 | B45: COLUMBIA (STEV) | C45: 33206
A46: 36400 | B46: COLUMBIA (WALLA) | C46: 36400
A47: 33115 | B47: COLVILLE | C47: 33115
A48: 29011 | B48: CONCRETE | C48: 29011
A49: 29317 | B49: CONWAY | C49: 29317
A50: 14099 | B50: COSMOPOLIS | C50: 14099
A51: 13151 | B51: COULEE-HARTLINE | C51: 13151
A52: 15204 | B52: COUPEVILLE | C52: 15204
A53: 05313 | B53: CRESCENT | C53: 05313
A54: 22073 | B54: CRESTON | C54: 22073
A55: 10050 | B55: CURLEW | C55: 10050
A56: 26059 | B56: CUSICK | C56: 26059
A57: 19007 | B57: DAMMAN | C57: 19007
A58: 31330 | B58: DARRINGTON | C58: 31330
A59: 22207 | B59: DAVENPORT | C59: 22207
A60: 07002 | B60: DAYTON | C60: 07002
A61: 32414 | B61: DEER PARK | C61: 32414
A62: 27343 | B62: DIERINGER | C62: 27343
A63: 36101 | B63: DIXIE | C63: 36101
A64: 32361 | B64: EAST VALLEY (SPK) | C64: 32361
A65: 39090 | B65: EAST VALLEY (YAK) | C65: 39090
A66: 09206 | B66: EASTMONT | C66: 09206
A67: 19028 | B67: EASTON | C67: 19028
A68: 27404 | B68: EATONVILLE | C68: =A68 -> 27404
A69: 31015 | B69: EDMONDS | C69: 31015
A70: 19401 | B70: ELLENSBURG | C70: 19401
A71: 14068 | B71: ELMA | C71: 14068
A72: 38308 | B72: ENDICOTT | C72: 38308
A73: 04127 | B73: ENTIAT | C73: 04127
A74: 17216 | B74: ENUMCLAW | C74: 17216
A75: 13165 | B75: EPHRATA | C75: 13165
A76: 21036 | B76: EVALINE | C76: 21036
A77: 31002 | B77: EVERETT | C77: 31002
A78: 06114 | B78: EVERGREEN (CLARK) | C78: 06114
A79: 33205 | B79: EVERGREEN (STEV) | C79: 33205
A80: 17210 | B80: FEDERAL WAY | C80: 17210
A81: 37502 | B81: FERNDALE | C81: 37502
A82: 27417 | B82: FIFE | C82: 27417
A83: 03053 | B83: FINLEY | C83: 03053
A84: 27402 | B84: FRANKLIN PIERCE | C84: 27402
A85: 32358 | B85: FREEMAN | C85: 32358
A86: 38302 | B86: GARFIELD | C86: 38302
A87: 20401 | B87: GLENWOOD | C87: 20401
A88: 20404 | B88: GOLDENDALE | C88: 20404
A89: 13301 | B89: GRAND COULEE | C89: 13301
A90: 39200 | B90: GRANDVIEW | C90: 39200
A91: 39204 | B91: GRANGER | C91: 39204
A92: 31332 | B92: GRANITE FALLS | C92: 31332
A93: 23054 | B93: GRAPEVIEW | C93: 23054
A94: 32312 | B94: GREAT NORTHERN | C94: 32312
A95: 06103 | B95: GREEN MOUNTAIN | C95: 06103
A96: 34324 | B96: GRIFFIN | C96: 34324
A97: 22204 | B97: HARRINGTON | C97: 22204
A98: 39203 | B98: HIGHLAND | C98: 39203
A99: 17401 | B99: HIGHLINE | C99: 17401
A100: 06098 | B100: HOCKINSON | C100: 06098
A101: 23404 | B101: HOOD CANAL | C101: 23404
A102: 14028 | B102: HOQUIAM | C102: 14028
A103: 27902 | B103: IMPACT COMMENCEMENT BAY CHARTER | C103: 27902
A104: 17911 | B104: IMPACT PUGET SOUND CHARTER | C104: 17911
A105: 17916 | B105: IMPACT SALISH SEA CHARTER | C105: 17916
A106: 10070 | B106: INCHELIUM | C106: 10070
A107: 31063 | B107: INDEX | C107: 31063
A108: 17411 | B108: ISSAQUAH | C108: 17411
A109: 11056 | B109: KAHLOTUS | C109: 11056
A110: 08402 | B110: KALAMA | C110: 08402
A111: 10003 | B111: KELLER | C111: 10003
A112: 08458 | B112: KELSO | C112: 08458
A113: 03017 | B113: KENNEWICK | C113: 03017
A114: 17415 | B114: KENT | C114: 17415
A115: 33212 | B115: KETTLE FALLS | C115: 33212
A116: 03052 | B116: KIONA-BENTON | C116: 03052
A117: 19403 | B117: KITTITAS | C117: 19403
A118: 20402 | B118: KLICKITAT | C118: 20402
A119: 06101 | B119: LA CENTER | C119: 06101
A120: 29311 | B120: LA CONNER | C120: 29311
A121: 38126 | B121: LACROSSE | C121: 38126
A122: 04129 | B122: LAKE CHELAN | C122: 04129
A123: 31004 | B123: LAKE STEVENS | C123: 31004
A124: 17414 | B124: LAKE WASHINGTON | C124: 17414
A125: 31306 | B125: LAKEWOOD | C125: 31306
A126: 38264 | B126: LAMONT | C126: 38264
A127: 32362 | B127: LIBERTY | C127: 32362
A128: 01158 | B128: LIND | C128: 01158
A129: 08122 | B129: LONGVIEW | C129: 08122
A130: 33183 | B130: LOON LAKE | C130: 33183
A131: 28144 | B131: LOPEZ | C131: 28144
A132: 32903 | B132: LUMEN CHARTER | C132: =A132 -> 32903
A133: 20406 | B133: LYLE | C133: 20406
A134: 37504 | B134: LYNDEN | C134: 37504
A135: 39120 | B135: MABTON | C135: 39120
A136: 09207 | B136: MANSFIELD | C136: 09207
A137: 04019 | B137: MANSON | C137: 04019
A138: 23311 | B138: MARY M KNIGHT | C138: 23311
A139: 33207 | B139: MARY WALKER | C139: 33207
A140: 31025 | B140: MARYSVILLE | C140: 31025
A141: 14065 | B141: MCCLEARY | C141: 14065
A142: 32354 | B142: MEAD | C142: 32354
A143: 32326 | B143: MEDICAL LAKE | C143: 32326
A144: 17400 | B144: MERCER ISLAND | C144: 17400
A145: 37505 | B145: MERIDIAN | C145: 37505
A146: 24350 | B146: METHOW VALLEY | C146: 24350
A147: 30031 | B147: MILL A | C147: 30031
A148: 31103 | B148: MONROE | C148: 31103
A149: 14066 | B149: MONTESANO | C149: 14066
A150: 21214 | B150: MORTON | C150: 21214
A151: 13161 | B151: MOSES LAKE | C151: 13161
A152: 21206 | B152: MOSSYROCK | C152: 21206
A153: 39209 | B153: MOUNT ADAMS | C153: 39209
A154: 37507 | B154: MOUNT BAKER | C154: 37507
A155: 30029 | B155: MOUNT PLEASANT | C155: 30029
A156: 29320 | B156: MOUNT VERNON | C156: 29320
A157: 31006 | B157: MUKILTEO | C157: 31006
A158: 39003 | B158: NACHES VALLEY | C158: 39003
A159: 21014 | B159: NAPAVINE | C159: 21014
A160: 25155 | B160: NASELLE-GRAYS | C160: 25155
A161: 24014 | B161: NESPELEM | C161: 24014
A162: 26056 | B162: NEWPORT | C162: 26056
A163: 32325 | B163: NINE MILE FALLS | C163: 32325
A164: 37506 | B164: NOOKSACK VALLEY | C164: 37506
A165: 14064 | B165: NORTH BEACH | C165: 14064
A166: 11051 | B166: NORTH FRANKLIN | C166: 11051
A167: 18400 | B167: NORTH KITSAP | C167: 18400
A168: 23403 | B168: NORTH MASON | C168: 23403
A169: 25200 | B169: NORTH RIVER | C169: 25200
A170: 34003 | B170: NORTH THURSTON | C170: 34003
A171: 33211 | B171: NORTHPORT | C171: 33211
A172: 17417 | B172: NORTHSHORE | C172: 17417
A173: 15201 | B173: OAK HARBOR | C173: 15201
A174: 38324 | B174: OAKESDALE | C174: 38324
A175: 14400 | B175: OAKVILLE | C175: 14400
A176: 25101 | B176: OCEAN BEACH | C176: 25101
A177: 14172 | B177: OCOSTA | C177: 14172
A178: 22105 | B178: ODESSA | C178: 22105
A179: 24105 | B179: OKANOGAN | C179: 24105
A180: 34111 | B180: OLYMPIA | C180: 34111
A181: 24019 | B181: OMAK | C181: 24019
A182: 21300 | B182: ONALASKA | C182: 21300
A183: 33030 | B183: ONION CREEK | C183: 33030
A184: 28137 | B184: ORCAS ISLAND | C184: 28137
A185: 32123 | B185: ORCHARD PRAIRIE | C185: 32123
A186: 10065 | B186: ORIENT | C186: 10065
A187: 09013 | B187: ORONDO | C187: 09013
A188: 24410 | B188: OROVILLE | C188: 24410
A189: 27344 | B189: ORTING | C189: 27344
A190: 01147 | B190: OTHELLO | C190: 01147
A191: 09102 | B191: PALISADES | C191: 09102
A192: 38301 | B192: PALOUSE | C192: 38301
A193: 11001 | B193: PASCO | C193: 11001
A194: 24122 | B194: PATEROS | C194: 24122
A195: 03050 | B195: PATERSON | C195: 03050
A196: 21301 | B196: PE ELL | C196: =A196 -> 21301
A197: 27401 | B197: PENINSULA | C197: 27401
A198: 04901 | B198: PINNACLE PREP CHARTER | C198: 04901
A199: 23402 | B199: PIONEER | C199: 23402
A200: 12110 | B200: POMEROY | C200: 12110
... 117 more rows

Sheet Comparison (hidden)
A1: ESEA -- Title 2 Distributions
A2: Revised Final for 2017-18 | F2: =MIN(F6:F311) -> 0 | G2: ="Lose = "& PROPER(VLOOKUP(F2,$F$6:$N$311,9,FALSE)) -> Lose = Vancouver
F3: =MAX(F6:F311) -> 0 | G3: ="Win = "&PROPER(VLOOKUP(F3,$F$6:$N$311,9,FALSE)) -> Win = Vancouver
A4: ccddd | B4: District Name | C4: 2017-18 Revised Final Allocation | D4: 2017-18 Final Allocation | E4: % Change | F4: Change | G4: Rank - % change | H4: Rank - $ change | M4: do not delete Y & Z
A5: 00000 | B5: State Totals | C5: =SUM(C6:C311) ->  | D5: =SUM(D6:D311) ->  | E5: =F5/D5 ->  | F5: =SUM(F13:F311) -> 0 | G5: NA | H5: NA | M5: =+A5 -> 00000 | N5: =+B5 -> State Totals
A6: 06037 | B6: VANCOUVER | C6: =VLOOKUP(A6,'Allocation 2017-18 Rev_Final'!$A$7:$U$315,21,FALSE)+VLOOKUP(A6,iGRANTS!A:C,5,FALSE) ->  | D6: =IFERROR(VLOOKUP(A6,'Allocation 2017-18 Final'!$A$7:$Y$314,21,FALSE),0)+VLOOKUP(A6,iGRANTS!A:C,5,FALSE) ->  | E6: =IFERROR(F6/D6,0) -> 0 | F6: =IFERROR(C6-D6,0) -> 0 | G6: =RANK(E6,$E$6:$E$314,1) -> 1 | H6: =RANK(F6,$F$6:$F$314,1) -> 1 | M6: =+A6 -> 06037 | N6: =+B6 -> VANCOUVER
A7: 17902 | B7: SUMMIT SIERRA CHARTER | C7: =VLOOKUP(A7,'Allocation 2017-18 Rev_Final'!$A$7:$U$315,21,FALSE)+VLOOKUP(A7,iGRANTS!A:C,5,FALSE) ->  | D7: =IFERROR(VLOOKUP(A7,'Allocation 2017-18 Final'!$A$7:$Y$314,21,FALSE),0)+VLOOKUP(A7,iGRANTS!A:C,5,FALSE) ->  | E7: 0 | F7: 0 | G7: 1 | H7: 1 | M7: 17902 | N7: SUMMIT SIERRA CHARTER
A8: 04069 | B8: STEHEKIN | C8: =VLOOKUP(A8,'Allocation 2017-18 Rev_Final'!$A$7:$U$315,21,FALSE)+VLOOKUP(A8,iGRANTS!A:C,5,FALSE) ->  | D8: =IFERROR(VLOOKUP(A8,'Allocation 2017-18 Final'!$A$7:$Y$314,21,FALSE),0)+VLOOKUP(A8,iGRANTS!A:C,5,FALSE) ->  | E8: 0 | F8: 0 | G8: 1 | H8: 1 | M8: 04069 | N8: STEHEKIN
A9: 88888 | B9: GREEN DOT SEATTLE CHARTER | C9: =VLOOKUP(A9,'Allocation 2017-18 Rev_Final'!$A$7:$U$315,21,FALSE)+VLOOKUP(A9,iGRANTS!A:C,5,FALSE) ->  | D9: =IFERROR(VLOOKUP(A9,'Allocation 2017-18 Final'!$A$7:$Y$314,21,FALSE),0)+VLOOKUP(A9,iGRANTS!A:C,5,FALSE) ->  | E9: 0 | F9: 0 | G9: 1 | H9: 1 | M9: 88888 | N9: GREEN DOT SEATTLE CHARTER
A10: 28010 | B10: SHAW ISLAND | C10: =VLOOKUP(A10,'Allocation 2017-18 Rev_Final'!$A$7:$U$315,21,FALSE)+VLOOKUP(A10,iGRANTS!A:C,5,FALSE) ->  | D10: =IFERROR(VLOOKUP(A10,'Allocation 2017-18 Final'!$A$7:$Y$314,21,FALSE),0)+VLOOKUP(A10,iGRANTS!A:C,5,FALSE) ->  | E10: 0 | F10: 0 | G10: 1 | H10: 1 | M10: 28010 | N10: SHAW ISLAND
A11: 22017 | B11: ALMIRA | C11: =VLOOKUP(A11,'Allocation 2017-18 Rev_Final'!$A$7:$U$315,21,FALSE)+VLOOKUP(A11,iGRANTS!A:C,5,FALSE) ->  | D11: =IFERROR(VLOOKUP(A11,'Allocation 2017-18 Final'!$A$7:$Y$314,21,FALSE),0)+VLOOKUP(A11,iGRANTS!A:C,5,FALSE) ->  | E11: 0 | F11: 0 | G11: 1 | H11: 1 | M11: 22017 | N11: ALMIRA
A12: 01109 | B12: WASHTUCNA | C12: =VLOOKUP(A12,'Allocation 2017-18 Rev_Final'!$A$7:$U$315,21,FALSE)+VLOOKUP(A12,iGRANTS!A:C,5,FALSE) ->  | D12: =IFERROR(VLOOKUP(A12,'Allocation 2017-18 Final'!$A$7:$Y$314,21,FALSE),0)+VLOOKUP(A12,iGRANTS!A:C,5,FALSE) ->  | E12: 0 | F12: 0 | G12: 1 | H12: 1 | M12: 01109 | N12: WASHTUCNA
A13: 03050 | B13: PATERSON | C13: =VLOOKUP(A13,'Allocation 2017-18 Rev_Final'!$A$7:$U$315,21,FALSE)+VLOOKUP(A13,iGRANTS!A:C,5,FALSE) ->  | D13: =IFERROR(VLOOKUP(A13,'Allocation 2017-18 Final'!$A$7:$Y$314,21,FALSE),0)+VLOOKUP(A13,iGRANTS!A:C,5,FALSE) ->  | E13: 0 | F13: 0 | G13: 1 | H13: 1 | M13: =+A13 -> 03050 | N13: =+B13 -> PATERSON
A14: 22073 | B14: CRESTON | C14: =VLOOKUP(A14,'Allocation 2017-18 Rev_Final'!$A$7:$U$315,21,FALSE)+VLOOKUP(A14,iGRANTS!A:C,5,FALSE) ->  | D14: =IFERROR(VLOOKUP(A14,'Allocation 2017-18 Final'!$A$7:$Y$314,21,FALSE),0)+VLOOKUP(A14,iGRANTS!A:C,5,FALSE) ->  | E14: 0 | F14: 0 | G14: 1 | H14: 1 | M14: 22073 | N14: CRESTON
A15: 38308 | B15: ENDICOTT | C15: =VLOOKUP(A15,'Allocation 2017-18 Rev_Final'!$A$7:$U$315,21,FALSE)+VLOOKUP(A15,iGRANTS!A:C,5,FALSE) ->  | D15: =IFERROR(VLOOKUP(A15,'Allocation 2017-18 Final'!$A$7:$Y$314,21,FALSE),0)+VLOOKUP(A15,iGRANTS!A:C,5,FALSE) ->  | E15: 0 | F15: 0 | G15: 1 | H15: 1 | M15: 38308 | N15: ENDICOTT
A16: 20215 | B16: CENTERVILLE | C16: =VLOOKUP(A16,'Allocation 2017-18 Rev_Final'!$A$7:$U$315,21,FALSE)+VLOOKUP(A16,iGRANTS!A:C,5,FALSE) ->  | D16: =IFERROR(VLOOKUP(A16,'Allocation 2017-18 Final'!$A$7:$Y$314,21,FALSE),0)+VLOOKUP(A16,iGRANTS!A:C,5,FALSE) ->  | E16: 0 | F16: 0 | G16: 1 | H16: 1 | M16: 20215 | N16: CENTERVILLE
A17: 19400 | B17: THORP | C17: =VLOOKUP(A17,'Allocation 2017-18 Rev_Final'!$A$7:$U$315,21,FALSE)+VLOOKUP(A17,iGRANTS!A:C,5,FALSE) ->  | D17: =IFERROR(VLOOKUP(A17,'Allocation 2017-18 Final'!$A$7:$Y$314,21,FALSE),0)+VLOOKUP(A17,iGRANTS!A:C,5,FALSE) ->  | E17: 0 | F17: 0 | G17: 1 | H17: 1 | M17: 19400 | N17: THORP
A18: 18902 | B18: SUQUAMISH TRIBAL | C18: =VLOOKUP(A18,'Allocation 2017-18 Rev_Final'!$A$7:$U$315,21,FALSE)+VLOOKUP(A18,iGRANTS!A:C,5,FALSE) ->  | D18: =IFERROR(VLOOKUP(A18,'Allocation 2017-18 Final'!$A$7:$Y$314,21,FALSE),0)+VLOOKUP(A18,iGRANTS!A:C,5,FALSE) ->  | E18: 0 | F18: 0 | G18: 1 | H18: 1 | M18: 18902 | N18: SUQUAMISH TRIBAL
A19: 21234 | B19: BOISTFORT | C19: =VLOOKUP(A19,'Allocation 2017-18 Rev_Final'!$A$7:$U$315,21,FALSE)+VLOOKUP(A19,iGRANTS!A:C,5,FALSE) ->  | D19: =IFERROR(VLOOKUP(A19,'Allocation 2017-18 Final'!$A$7:$Y$314,21,FALSE),0)+VLOOKUP(A19,iGRANTS!A:C,5,FALSE) ->  | E19: 0 | F19: 0 | G19: 1 | H19: 1 | M19: 21234 | N19: BOISTFORT
A20: 27019 | B20: CARBONADO | C20: =VLOOKUP(A20,'Allocation 2017-18 Rev_Final'!$A$7:$U$315,21,FALSE)+VLOOKUP(A20,iGRANTS!A:C,5,FALSE) ->  | D20: =IFERROR(VLOOKUP(A20,'Allocation 2017-18 Final'!$A$7:$Y$314,21,FALSE),0)+VLOOKUP(A20,iGRANTS!A:C,5,FALSE) ->  | E20: 0 | F20: 0 | G20: 1 | H20: 1 | M20: 27019 | N20: CARBONADO
A21: 38320 | B21: ROSALIA | C21: =VLOOKUP(A21,'Allocation 2017-18 Rev_Final'!$A$7:$U$315,21,FALSE)+VLOOKUP(A21,iGRANTS!A:C,5,FALSE) ->  | D21: =IFERROR(VLOOKUP(A21,'Allocation 2017-18 Final'!$A$7:$Y$314,21,FALSE),0)+VLOOKUP(A21,iGRANTS!A:C,5,FALSE) ->  | E21: 0 | F21: 0 | G21: 1 | H21: 1 | M21: 38320 | N21: ROSALIA
A22: 33030 | B22: ONION CREEK | C22: =VLOOKUP(A22,'Allocation 2017-18 Rev_Final'!$A$7:$U$315,21,FALSE)+VLOOKUP(A22,iGRANTS!A:C,5,FALSE) ->  | D22: =IFERROR(VLOOKUP(A22,'Allocation 2017-18 Final'!$A$7:$Y$314,21,FALSE),0)+VLOOKUP(A22,iGRANTS!A:C,5,FALSE) ->  | E22: 0 | F22: 0 | G22: 1 | H22: 1 | M22: 33030 | N22: ONION CREEK
A23: 19007 | B23: DAMMAN | C23: =VLOOKUP(A23,'Allocation 2017-18 Rev_Final'!$A$7:$U$315,21,FALSE)+VLOOKUP(A23,iGRANTS!A:C,5,FALSE) ->  | D23: =IFERROR(VLOOKUP(A23,'Allocation 2017-18 Final'!$A$7:$Y$314,21,FALSE),0)+VLOOKUP(A23,iGRANTS!A:C,5,FALSE) ->  | E23: 0 | F23: 0 | G23: 1 | H23: 1 | M23: 19007 | N23: DAMMAN
A24: 38264 | B24: LAMONT | C24: =VLOOKUP(A24,'Allocation 2017-18 Rev_Final'!$A$7:$U$315,21,FALSE)+VLOOKUP(A24,iGRANTS!A:C,5,FALSE) ->  | D24: =IFERROR(VLOOKUP(A24,'Allocation 2017-18 Final'!$A$7:$Y$314,21,FALSE),0)+VLOOKUP(A24,iGRANTS!A:C,5,FALSE) ->  | E24: 0 | F24: 0 | G24: 1 | H24: 1 | M24: 38264 | N24: LAMONT
A25: 17906 | B25: EXCEL CHARTER | C25: =VLOOKUP(A25,'Allocation 2017-18 Rev_Final'!$A$7:$U$315,21,FALSE)+VLOOKUP(A25,iGRANTS!A:C,5,FALSE) ->  | D25: =IFERROR(VLOOKUP(A25,'Allocation 2017-18 Final'!$A$7:$Y$314,21,FALSE),0)+VLOOKUP(A25,iGRANTS!A:C,5,FALSE) ->  | E25: 0 | F25: 0 | G25: 1 | H25: 1 | M25: 17906 | N25: EXCEL CHARTER
A26: 11054 | B26: STAR | C26: =VLOOKUP(A26,'Allocation 2017-18 Rev_Final'!$A$7:$U$315,21,FALSE)+VLOOKUP(A26,iGRANTS!A:C,5,FALSE) ->  | D26: =IFERROR(VLOOKUP(A26,'Allocation 2017-18 Final'!$A$7:$Y$314,21,FALSE),0)+VLOOKUP(A26,iGRANTS!A:C,5,FALSE) ->  | E26: 0 | F26: 0 | G26: 1 | H26: 1 | M26: 11054 | N26: STAR
A27: 25200 | B27: NORTH RIVER | C27: =VLOOKUP(A27,'Allocation 2017-18 Rev_Final'!$A$7:$U$315,21,FALSE)+VLOOKUP(A27,iGRANTS!A:C,5,FALSE) ->  | D27: =IFERROR(VLOOKUP(A27,'Allocation 2017-18 Final'!$A$7:$Y$314,21,FALSE),0)+VLOOKUP(A27,iGRANTS!A:C,5,FALSE) ->  | E27: 0 | F27: 0 | G27: 1 | H27: 1 | M27: 25200 | N27: NORTH RIVER
A28: 10070 | B28: INCHELIUM | C28: =VLOOKUP(A28,'Allocation 2017-18 Rev_Final'!$A$7:$U$315,21,FALSE)+VLOOKUP(A28,iGRANTS!A:C,5,FALSE) ->  | D28: =IFERROR(VLOOKUP(A28,'Allocation 2017-18 Final'!$A$7:$Y$314,21,FALSE),0)+VLOOKUP(A28,iGRANTS!A:C,5,FALSE) ->  | E28: 0 | F28: 0 | G28: 1 | H28: 1 | M28: 10070 | N28: INCHELIUM
A29: 14097 | B29: QUINAULT | C29: =VLOOKUP(A29,'Allocation 2017-18 Rev_Final'!$A$7:$U$315,21,FALSE)+VLOOKUP(A29,iGRANTS!A:C,5,FALSE) ->  | D29: =IFERROR(VLOOKUP(A29,'Allocation 2017-18 Final'!$A$7:$Y$314,21,FALSE),0)+VLOOKUP(A29,iGRANTS!A:C,5,FALSE) ->  | E29: 0 | F29: 0 | G29: 1 | H29: 1 | M29: 14097 | N29: QUINAULT
A30: 33070 | B30: VALLEY | C30: =VLOOKUP(A30,'Allocation 2017-18 Rev_Final'!$A$7:$U$315,21,FALSE)+VLOOKUP(A30,iGRANTS!A:C,5,FALSE) ->  | D30: =IFERROR(VLOOKUP(A30,'Allocation 2017-18 Final'!$A$7:$Y$314,21,FALSE),0)+VLOOKUP(A30,iGRANTS!A:C,5,FALSE) ->  | E30: 0 | F30: 0 | G30: 1 | H30: 1 | M30: 33070 | N30: VALLEY
A31: 22105 | B31: ODESSA | C31: =VLOOKUP(A31,'Allocation 2017-18 Rev_Final'!$A$7:$U$315,21,FALSE)+VLOOKUP(A31,iGRANTS!A:C,5,FALSE) ->  | D31: =IFERROR(VLOOKUP(A31,'Allocation 2017-18 Final'!$A$7:$Y$314,21,FALSE),0)+VLOOKUP(A31,iGRANTS!A:C,5,FALSE) ->  | E31: 0 | F31: 0 | G31: 1 | H31: 1 | M31: 22105 | N31: ODESSA
A32: 33183 | B32: LOON LAKE | C32: =VLOOKUP(A32,'Allocation 2017-18 Rev_Final'!$A$7:$U$315,21,FALSE)+VLOOKUP(A32,iGRANTS!A:C,5,FALSE) ->  | D32: =IFERROR(VLOOKUP(A32,'Allocation 2017-18 Final'!$A$7:$Y$314,21,FALSE),0)+VLOOKUP(A32,iGRANTS!A:C,5,FALSE) ->  | E32: 0 | F32: 0 | G32: 1 | H32: 1 | M32: 33183 | N32: LOON LAKE
A33: 32123 | B33: ORCHARD PRAIRIE | C33: =VLOOKUP(A33,'Allocation 2017-18 Rev_Final'!$A$7:$U$315,21,FALSE)+VLOOKUP(A33,iGRANTS!A:C,5,FALSE) ->  | D33: =IFERROR(VLOOKUP(A33,'Allocation 2017-18 Final'!$A$7:$Y$314,21,FALSE),0)+VLOOKUP(A33,iGRANTS!A:C,5,FALSE) ->  | E33: 0 | F33: 0 | G33: 1 | H33: 1 | M33: 32123 | N33: ORCHARD PRAIRIE
A34: 12110 | B34: POMEROY | C34: =VLOOKUP(A34,'Allocation 2017-18 Rev_Final'!$A$7:$U$315,21,FALSE)+VLOOKUP(A34,iGRANTS!A:C,5,FALSE) ->  | D34: =IFERROR(VLOOKUP(A34,'Allocation 2017-18 Final'!$A$7:$Y$314,21,FALSE),0)+VLOOKUP(A34,iGRANTS!A:C,5,FALSE) ->  | E34: 0 | F34: 0 | G34: 1 | H34: 1 | M34: 12110 | N34: POMEROY
A35: 09207 | B35: MANSFIELD | C35: =VLOOKUP(A35,'Allocation 2017-18 Rev_Final'!$A$7:$U$315,21,FALSE)+VLOOKUP(A35,iGRANTS!A:C,5,FALSE) ->  | D35: =IFERROR(VLOOKUP(A35,'Allocation 2017-18 Final'!$A$7:$Y$314,21,FALSE),0)+VLOOKUP(A35,iGRANTS!A:C,5,FALSE) ->  | E35: 0 | F35: 0 | G35: 1 | H35: 1 | M35: 09207 | N35: MANSFIELD
A36: 20406 | B36: LYLE | C36: =VLOOKUP(A36,'Allocation 2017-18 Rev_Final'!$A$7:$U$315,21,FALSE)+VLOOKUP(A36,iGRANTS!A:C,5,FALSE) ->  | D36: =IFERROR(VLOOKUP(A36,'Allocation 2017-18 Final'!$A$7:$Y$314,21,FALSE),0)+VLOOKUP(A36,iGRANTS!A:C,5,FALSE) ->  | E36: 0 | F36: 0 | G36: 1 | H36: 1 | M36: 20406 | N36: LYLE
A37: 30029 | B37: MOUNT PLEASANT | C37: =VLOOKUP(A37,'Allocation 2017-18 Rev_Final'!$A$7:$U$315,21,FALSE)+VLOOKUP(A37,iGRANTS!A:C,5,FALSE) ->  | D37: =IFERROR(VLOOKUP(A37,'Allocation 2017-18 Final'!$A$7:$Y$314,21,FALSE),0)+VLOOKUP(A37,iGRANTS!A:C,5,FALSE) ->  | E37: 0 | F37: 0 | G37: 1 | H37: 1 | M37: 30029 | N37: MOUNT PLEASANT
A38: 13301 | B38: GRAND COULEE DAM | C38: =VLOOKUP(A38,'Allocation 2017-18 Rev_Final'!$A$7:$U$315,21,FALSE)+VLOOKUP(A38,iGRANTS!A:C,5,FALSE) ->  | D38: =IFERROR(VLOOKUP(A38,'Allocation 2017-18 Final'!$A$7:$Y$314,21,FALSE),0)+VLOOKUP(A38,iGRANTS!A:C,5,FALSE) ->  | E38: 0 | F38: 0 | G38: 1 | H38: 1 | M38: 13301 | N38: GRAND COULEE DAM
A39: 01158 | B39: LIND | C39: =VLOOKUP(A39,'Allocation 2017-18 Rev_Final'!$A$7:$U$315,21,FALSE)+VLOOKUP(A39,iGRANTS!A:C,5,FALSE) ->  | D39: =IFERROR(VLOOKUP(A39,'Allocation 2017-18 Final'!$A$7:$Y$314,21,FALSE),0)+VLOOKUP(A39,iGRANTS!A:C,5,FALSE) ->  | E39: 0 | F39: 0 | G39: 1 | H39: 1 | M39: 01158 | N39: LIND
A40: 08130 | B40: TOUTLE LAKE | C40: =VLOOKUP(A40,'Allocation 2017-18 Rev_Final'!$A$7:$U$315,21,FALSE)+VLOOKUP(A40,iGRANTS!A:C,5,FALSE) ->  | D40: =IFERROR(VLOOKUP(A40,'Allocation 2017-18 Final'!$A$7:$Y$314,21,FALSE),0)+VLOOKUP(A40,iGRANTS!A:C,5,FALSE) ->  | E40: 0 | F40: 0 | G40: 1 | H40: 1 | M40: 08130 | N40: TOUTLE LAKE
A41: 16046 | B41: BRINNON | C41: =VLOOKUP(A41,'Allocation 2017-18 Rev_Final'!$A$7:$U$315,21,FALSE)+VLOOKUP(A41,iGRANTS!A:C,5,FALSE) ->  | D41: =IFERROR(VLOOKUP(A41,'Allocation 2017-18 Final'!$A$7:$Y$314,21,FALSE),0)+VLOOKUP(A41,iGRANTS!A:C,5,FALSE) ->  | E41: 0 | F41: 0 | G41: 1 | H41: 1 | M41: 16046 | N41: BRINNON
A42: 13151 | B42: COULEE/HARTLINE | C42: =VLOOKUP(A42,'Allocation 2017-18 Rev_Final'!$A$7:$U$315,21,FALSE)+VLOOKUP(A42,iGRANTS!A:C,5,FALSE) ->  | D42: =IFERROR(VLOOKUP(A42,'Allocation 2017-18 Final'!$A$7:$Y$314,21,FALSE),0)+VLOOKUP(A42,iGRANTS!A:C,5,FALSE) ->  | E42: 0 | F42: 0 | G42: 1 | H42: 1 | M42: 13151 | N42: COULEE/HARTLINE
A43: 32907 | B43: PRIDE PREP CHARTER | C43: =VLOOKUP(A43,'Allocation 2017-18 Rev_Final'!$A$7:$U$315,21,FALSE)+VLOOKUP(A43,iGRANTS!A:C,5,FALSE) ->  | D43: =IFERROR(VLOOKUP(A43,'Allocation 2017-18 Final'!$A$7:$Y$314,21,FALSE),0)+VLOOKUP(A43,iGRANTS!A:C,5,FALSE) ->  | E43: 0 | F43: 0 | G43: 1 | H43: 1 | M43: 32907 | N43: PRIDE PREP CHARTER
A44: 14077 | B44: TAHOLAH | C44: =VLOOKUP(A44,'Allocation 2017-18 Rev_Final'!$A$7:$U$315,21,FALSE)+VLOOKUP(A44,iGRANTS!A:C,5,FALSE) ->  | D44: =IFERROR(VLOOKUP(A44,'Allocation 2017-18 Final'!$A$7:$Y$314,21,FALSE),0)+VLOOKUP(A44,iGRANTS!A:C,5,FALSE) ->  | E44: 0 | F44: 0 | G44: 1 | H44: 1 | M44: 14077 | N44: TAHOLAH
A45: 29317 | B45: CONWAY | C45: =VLOOKUP(A45,'Allocation 2017-18 Rev_Final'!$A$7:$U$315,21,FALSE)+VLOOKUP(A45,iGRANTS!A:C,5,FALSE) ->  | D45: =IFERROR(VLOOKUP(A45,'Allocation 2017-18 Final'!$A$7:$Y$314,21,FALSE),0)+VLOOKUP(A45,iGRANTS!A:C,5,FALSE) ->  | E45: 0 | F45: 0 | G45: 1 | H45: 1 | M45: 29317 | N45: CONWAY
A46: 38301 | B46: PALOUSE | C46: =VLOOKUP(A46,'Allocation 2017-18 Rev_Final'!$A$7:$U$315,21,FALSE)+VLOOKUP(A46,iGRANTS!A:C,5,FALSE) ->  | D46: =IFERROR(VLOOKUP(A46,'Allocation 2017-18 Final'!$A$7:$Y$314,21,FALSE),0)+VLOOKUP(A46,iGRANTS!A:C,5,FALSE) ->  | E46: 0 | F46: 0 | G46: 1 | H46: 1 | M46: 38301 | N46: PALOUSE
A47: 16049 | B47: CHIMACUM | C47: =VLOOKUP(A47,'Allocation 2017-18 Rev_Final'!$A$7:$U$315,21,FALSE)+VLOOKUP(A47,iGRANTS!A:C,5,FALSE) ->  | D47: =IFERROR(VLOOKUP(A47,'Allocation 2017-18 Final'!$A$7:$Y$314,21,FALSE),0)+VLOOKUP(A47,iGRANTS!A:C,5,FALSE) ->  | E47: 0 | F47: 0 | G47: 1 | H47: 1 | M47: 16049 | N47: CHIMACUM
A48: 33049 | B48: WELLPINIT | C48: =VLOOKUP(A48,'Allocation 2017-18 Rev_Final'!$A$7:$U$315,21,FALSE)+VLOOKUP(A48,iGRANTS!A:C,5,FALSE) ->  | D48: =IFERROR(VLOOKUP(A48,'Allocation 2017-18 Final'!$A$7:$Y$314,21,FALSE),0)+VLOOKUP(A48,iGRANTS!A:C,5,FALSE) ->  | E48: 0 | F48: 0 | G48: 1 | H48: 1 | M48: 33049 | N48: WELLPINIT
A49: 22207 | B49: DAVENPORT | C49: =VLOOKUP(A49,'Allocation 2017-18 Rev_Final'!$A$7:$U$315,21,FALSE)+VLOOKUP(A49,iGRANTS!A:C,5,FALSE) ->  | D49: =IFERROR(VLOOKUP(A49,'Allocation 2017-18 Final'!$A$7:$Y$314,21,FALSE),0)+VLOOKUP(A49,iGRANTS!A:C,5,FALSE) ->  | E49: 0 | F49: 0 | G49: 1 | H49: 1 | M49: 22207 | N49: DAVENPORT
A50: 14099 | B50: COSMOPOLIS | C50: =VLOOKUP(A50,'Allocation 2017-18 Rev_Final'!$A$7:$U$315,21,FALSE)+VLOOKUP(A50,iGRANTS!A:C,5,FALSE) ->  | D50: =IFERROR(VLOOKUP(A50,'Allocation 2017-18 Final'!$A$7:$Y$314,21,FALSE),0)+VLOOKUP(A50,iGRANTS!A:C,5,FALSE) ->  | E50: 0 | F50: 0 | G50: 1 | H50: 1 | M50: 14099 | N50: COSMOPOLIS
A51: 29311 | B51: LA CONNER | C51: =VLOOKUP(A51,'Allocation 2017-18 Rev_Final'!$A$7:$U$315,21,FALSE)+VLOOKUP(A51,iGRANTS!A:C,5,FALSE) ->  | D51: =IFERROR(VLOOKUP(A51,'Allocation 2017-18 Final'!$A$7:$Y$314,21,FALSE),0)+VLOOKUP(A51,iGRANTS!A:C,5,FALSE) ->  | E51: 0 | F51: 0 | G51: 1 | H51: 1 | M51: 29311 | N51: LA CONNER
A52: 36300 | B52: TOUCHET | C52: =VLOOKUP(A52,'Allocation 2017-18 Rev_Final'!$A$7:$U$315,21,FALSE)+VLOOKUP(A52,iGRANTS!A:C,5,FALSE) ->  | D52: =IFERROR(VLOOKUP(A52,'Allocation 2017-18 Final'!$A$7:$Y$314,21,FALSE),0)+VLOOKUP(A52,iGRANTS!A:C,5,FALSE) ->  | E52: 0 | F52: 0 | G52: 1 | H52: 1 | M52: 36300 | N52: TOUCHET
A53: 21237 | B53: TOLEDO | C53: =VLOOKUP(A53,'Allocation 2017-18 Rev_Final'!$A$7:$U$315,21,FALSE)+VLOOKUP(A53,iGRANTS!A:C,5,FALSE) ->  | D53: =IFERROR(VLOOKUP(A53,'Allocation 2017-18 Final'!$A$7:$Y$314,21,FALSE),0)+VLOOKUP(A53,iGRANTS!A:C,5,FALSE) ->  | E53: 0 | F53: 0 | G53: 1 | H53: 1 | M53: 21237 | N53: TOLEDO
A54: 03053 | B54: FINLEY | C54: =VLOOKUP(A54,'Allocation 2017-18 Rev_Final'!$A$7:$U$315,21,FALSE)+VLOOKUP(A54,iGRANTS!A:C,5,FALSE) ->  | D54: =IFERROR(VLOOKUP(A54,'Allocation 2017-18 Final'!$A$7:$Y$314,21,FALSE),0)+VLOOKUP(A54,iGRANTS!A:C,5,FALSE) ->  | E54: 0 | F54: 0 | G54: 1 | H54: 1 | M54: 03053 | N54: FINLEY
A55: 11056 | B55: KAHLOTUS | C55: =VLOOKUP(A55,'Allocation 2017-18 Rev_Final'!$A$7:$U$315,21,FALSE)+VLOOKUP(A55,iGRANTS!A:C,5,FALSE) ->  | D55: =IFERROR(VLOOKUP(A55,'Allocation 2017-18 Final'!$A$7:$Y$314,21,FALSE),0)+VLOOKUP(A55,iGRANTS!A:C,5,FALSE) ->  | E55: 0 | F55: 0 | G55: 1 | H55: 1 | M55: 11056 | N55: KAHLOTUS
A56: 21303 | B56: WHITE PASS | C56: =VLOOKUP(A56,'Allocation 2017-18 Rev_Final'!$A$7:$U$315,21,FALSE)+VLOOKUP(A56,iGRANTS!A:C,5,FALSE) ->  | D56: =IFERROR(VLOOKUP(A56,'Allocation 2017-18 Final'!$A$7:$Y$314,21,FALSE),0)+VLOOKUP(A56,iGRANTS!A:C,5,FALSE) ->  | E56: 0 | F56: 0 | G56: 1 | H56: 1 | M56: 21303 | N56: WHITE PASS
A57: 23042 | B57: SOUTHSIDE | C57: =VLOOKUP(A57,'Allocation 2017-18 Rev_Final'!$A$7:$U$315,21,FALSE)+VLOOKUP(A57,iGRANTS!A:C,5,FALSE) ->  | D57: =IFERROR(VLOOKUP(A57,'Allocation 2017-18 Final'!$A$7:$Y$314,21,FALSE),0)+VLOOKUP(A57,iGRANTS!A:C,5,FALSE) ->  | E57: 0 | F57: 0 | G57: 1 | H57: 1 | M57: 23042 | N57: SOUTHSIDE
A58: 21214 | B58: MORTON | C58: =VLOOKUP(A58,'Allocation 2017-18 Rev_Final'!$A$7:$U$315,21,FALSE)+VLOOKUP(A58,iGRANTS!A:C,5,FALSE) ->  | D58: =IFERROR(VLOOKUP(A58,'Allocation 2017-18 Final'!$A$7:$Y$314,21,FALSE),0)+VLOOKUP(A58,iGRANTS!A:C,5,FALSE) ->  | E58: 0 | F58: 0 | G58: 1 | H58: 1 | M58: 21214 | N58: MORTON
A59: 23054 | B59: GRAPEVIEW | C59: =VLOOKUP(A59,'Allocation 2017-18 Rev_Final'!$A$7:$U$315,21,FALSE)+VLOOKUP(A59,iGRANTS!A:C,5,FALSE) ->  | D59: =IFERROR(VLOOKUP(A59,'Allocation 2017-18 Final'!$A$7:$Y$314,21,FALSE),0)+VLOOKUP(A59,iGRANTS!A:C,5,FALSE) ->  | E59: 0 | F59: 0 | G59: 1 | H59: 1 | M59: 23054 | N59: GRAPEVIEW
A60: 08402 | B60: KALAMA | C60: =VLOOKUP(A60,'Allocation 2017-18 Rev_Final'!$A$7:$U$315,21,FALSE)+VLOOKUP(A60,iGRANTS!A:C,5,FALSE) ->  | D60: =IFERROR(VLOOKUP(A60,'Allocation 2017-18 Final'!$A$7:$Y$314,21,FALSE),0)+VLOOKUP(A60,iGRANTS!A:C,5,FALSE) ->  | E60: 0 | F60: 0 | G60: 1 | H60: 1 | M60: 08402 | N60: KALAMA
A61: 24105 | B61: OKANOGAN | C61: =VLOOKUP(A61,'Allocation 2017-18 Rev_Final'!$A$7:$U$315,21,FALSE)+VLOOKUP(A61,iGRANTS!A:C,5,FALSE) ->  | D61: =IFERROR(VLOOKUP(A61,'Allocation 2017-18 Final'!$A$7:$Y$314,21,FALSE),0)+VLOOKUP(A61,iGRANTS!A:C,5,FALSE) ->  | E61: 0 | F61: 0 | G61: 1 | H61: 1 | M61: 24105 | N61: OKANOGAN
A62: 05402 | B62: QUILLAYUTE VALLEY | C62: =VLOOKUP(A62,'Allocation 2017-18 Rev_Final'!$A$7:$U$315,21,FALSE)+VLOOKUP(A62,iGRANTS!A:C,5,FALSE) ->  | D62: =IFERROR(VLOOKUP(A62,'Allocation 2017-18 Final'!$A$7:$Y$314,21,FALSE),0)+VLOOKUP(A62,iGRANTS!A:C,5,FALSE) ->  | E62: 0 | F62: 0 | G62: 1 | H62: 1 | M62: 05402 | N62: QUILLAYUTE VALLEY
A63: 39007 | B63: YAKIMA | C63: =VLOOKUP(A63,'Allocation 2017-18 Rev_Final'!$A$7:$U$315,21,FALSE)+VLOOKUP(A63,iGRANTS!A:C,5,FALSE) ->  | D63: =IFERROR(VLOOKUP(A63,'Allocation 2017-18 Final'!$A$7:$Y$314,21,FALSE),0)+VLOOKUP(A63,iGRANTS!A:C,5,FALSE) ->  | E63: 0 | F63: 0 | G63: 1 | H63: 1 | M63: 39007 | N63: YAKIMA
A64: 21232 | B64: WINLOCK | C64: =VLOOKUP(A64,'Allocation 2017-18 Rev_Final'!$A$7:$U$315,21,FALSE)+VLOOKUP(A64,iGRANTS!A:C,5,FALSE) ->  | D64: =IFERROR(VLOOKUP(A64,'Allocation 2017-18 Final'!$A$7:$Y$314,21,FALSE),0)+VLOOKUP(A64,iGRANTS!A:C,5,FALSE) ->  | E64: 0 | F64: 0 | G64: 1 | H64: 1 | M64: 21232 | N64: WINLOCK
A65: 35200 | B65: WAHKIAKUM | C65: =VLOOKUP(A65,'Allocation 2017-18 Rev_Final'!$A$7:$U$315,21,FALSE)+VLOOKUP(A65,iGRANTS!A:C,5,FALSE) ->  | D65: =IFERROR(VLOOKUP(A65,'Allocation 2017-18 Final'!$A$7:$Y$314,21,FALSE),0)+VLOOKUP(A65,iGRANTS!A:C,5,FALSE) ->  | E65: 0 | F65: 0 | G65: 1 | H65: 1 | M65: 35200 | N65: WAHKIAKUM
A66: 20405 | B66: WHITE SALMON | C66: =VLOOKUP(A66,'Allocation 2017-18 Rev_Final'!$A$7:$U$315,21,FALSE)+VLOOKUP(A66,iGRANTS!A:C,5,FALSE) ->  | D66: =IFERROR(VLOOKUP(A66,'Allocation 2017-18 Final'!$A$7:$Y$314,21,FALSE),0)+VLOOKUP(A66,iGRANTS!A:C,5,FALSE) ->  | E66: 0 | F66: 0 | G66: 1 | H66: 1 | M66: 20405 | N66: WHITE SALMON
A67: 27416 | B67: WHITE RIVER | C67: =VLOOKUP(A67,'Allocation 2017-18 Rev_Final'!$A$7:$U$315,21,FALSE)+VLOOKUP(A67,iGRANTS!A:C,5,FALSE) ->  | D67: =IFERROR(VLOOKUP(A67,'Allocation 2017-18 Final'!$A$7:$Y$314,21,FALSE),0)+VLOOKUP(A67,iGRANTS!A:C,5,FALSE) ->  | E67: 0 | F67: 0 | G67: 1 | H67: 1 | M67: 27416 | N67: WHITE RIVER
A68: 06101 | B68: LACENTER | C68: =VLOOKUP(A68,'Allocation 2017-18 Rev_Final'!$A$7:$U$315,21,FALSE)+VLOOKUP(A68,iGRANTS!A:C,5,FALSE) ->  | D68: =IFERROR(VLOOKUP(A68,'Allocation 2017-18 Final'!$A$7:$Y$314,21,FALSE),0)+VLOOKUP(A68,iGRANTS!A:C,5,FALSE) ->  | E68: 0 | F68: 0 | G68: 1 | H68: 1 | M68: 06101 | N68: LACENTER
A69: 34002 | B69: YELM | C69: =VLOOKUP(A69,'Allocation 2017-18 Rev_Final'!$A$7:$U$315,21,FALSE)+VLOOKUP(A69,iGRANTS!A:C,5,FALSE) ->  | D69: =IFERROR(VLOOKUP(A69,'Allocation 2017-18 Final'!$A$7:$Y$314,21,FALSE),0)+VLOOKUP(A69,iGRANTS!A:C,5,FALSE) ->  | E69: 0 | F69: 0 | G69: 1 | H69: 1 | M69: 34002 | N69: YELM
A70: 14064 | B70: NORTH BEACH | C70: =VLOOKUP(A70,'Allocation 2017-18 Rev_Final'!$A$7:$U$315,21,FALSE)+VLOOKUP(A70,iGRANTS!A:C,5,FALSE) ->  | D70: =IFERROR(VLOOKUP(A70,'Allocation 2017-18 Final'!$A$7:$Y$314,21,FALSE),0)+VLOOKUP(A70,iGRANTS!A:C,5,FALSE) ->  | E70: =IFERROR(F70/D70,0) -> 0 | F70: =IFERROR(C70-D70,0) -> 0 | G70: =RANK(E70,$E$6:$E$314,1) -> 1 | H70: =RANK(F70,$F$6:$F$314,1) -> 1 | M70: 14064 | N70: NORTH BEACH
A71: 34324 | B71: GRIFFIN | C71: =VLOOKUP(A71,'Allocation 2017-18 Rev_Final'!$A$7:$U$315,21,FALSE)+VLOOKUP(A71,iGRANTS!A:C,5,FALSE) ->  | D71: =IFERROR(VLOOKUP(A71,'Allocation 2017-18 Final'!$A$7:$Y$314,21,FALSE),0)+VLOOKUP(A71,iGRANTS!A:C,5,FALSE) ->  | E71: 0 | F71: 0 | G71: 1 | H71: 1 | M71: 34324 | N71: GRIFFIN
A72: 33206 | B72: COLUMBIA (STEV) | C72: =VLOOKUP(A72,'Allocation 2017-18 Rev_Final'!$A$7:$U$315,21,FALSE)+VLOOKUP(A72,iGRANTS!A:C,5,FALSE) ->  | D72: =IFERROR(VLOOKUP(A72,'Allocation 2017-18 Final'!$A$7:$Y$314,21,FALSE),0)+VLOOKUP(A72,iGRANTS!A:C,5,FALSE) ->  | E72: 0 | F72: 0 | G72: 1 | H72: 1 | M72: 33206 | N72: COLUMBIA (STEV)
A73: 39002 | B73: UNION GAP | C73: =VLOOKUP(A73,'Allocation 2017-18 Rev_Final'!$A$7:$U$315,21,FALSE)+VLOOKUP(A73,iGRANTS!A:C,5,FALSE) ->  | D73: =IFERROR(VLOOKUP(A73,'Allocation 2017-18 Final'!$A$7:$Y$314,21,FALSE),0)+VLOOKUP(A73,iGRANTS!A:C,5,FALSE) ->  | E73: 0 | F73: 0 | G73: 1 | H73: 1 | M73: 39002 | N73: UNION GAP
A74: 08404 | B74: WOODLAND | C74: =VLOOKUP(A74,'Allocation 2017-18 Rev_Final'!$A$7:$U$315,21,FALSE)+VLOOKUP(A74,iGRANTS!A:C,5,FALSE) ->  | D74: =IFERROR(VLOOKUP(A74,'Allocation 2017-18 Final'!$A$7:$Y$314,21,FALSE),0)+VLOOKUP(A74,iGRANTS!A:C,5,FALSE) ->  | E74: 0 | F74: 0 | G74: 1 | H74: 1 | M74: 08404 | N74: WOODLAND
A75: 25160 | B75: WILLAPA VALLEY | C75: =VLOOKUP(A75,'Allocation 2017-18 Rev_Final'!$A$7:$U$315,21,FALSE)+VLOOKUP(A75,iGRANTS!A:C,5,FALSE) ->  | D75: =IFERROR(VLOOKUP(A75,'Allocation 2017-18 Final'!$A$7:$Y$314,21,FALSE),0)+VLOOKUP(A75,iGRANTS!A:C,5,FALSE) ->  | E75: 0 | F75: 0 | G75: 1 | H75: 1 | M75: 25160 | N75: WILLAPA VALLEY
A76: 07002 | B76: DAYTON | C76: =VLOOKUP(A76,'Allocation 2017-18 Rev_Final'!$A$7:$U$315,21,FALSE)+VLOOKUP(A76,iGRANTS!A:C,5,FALSE) ->  | D76: =IFERROR(VLOOKUP(A76,'Allocation 2017-18 Final'!$A$7:$Y$314,21,FALSE),0)+VLOOKUP(A76,iGRANTS!A:C,5,FALSE) ->  | E76: 0 | F76: 0 | G76: 1 | H76: 1 | M76: 07002 | N76: DAYTON
A77: 14172 | B77: OCOSTA | C77: =VLOOKUP(A77,'Allocation 2017-18 Rev_Final'!$A$7:$U$315,21,FALSE)+VLOOKUP(A77,iGRANTS!A:C,5,FALSE) ->  | D77: =IFERROR(VLOOKUP(A77,'Allocation 2017-18 Final'!$A$7:$Y$314,21,FALSE),0)+VLOOKUP(A77,iGRANTS!A:C,5,FALSE) ->  | E77: 0 | F77: 0 | G77: 1 | H77: 1 | M77: 14172 | N77: OCOSTA
A78: 32416 | B78: RIVERSIDE | C78: =VLOOKUP(A78,'Allocation 2017-18 Rev_Final'!$A$7:$U$315,21,FALSE)+VLOOKUP(A78,iGRANTS!A:C,5,FALSE) ->  | D78: =IFERROR(VLOOKUP(A78,'Allocation 2017-18 Final'!$A$7:$Y$314,21,FALSE),0)+VLOOKUP(A78,iGRANTS!A:C,5,FALSE) ->  | E78: 0 | F78: 0 | G78: 1 | H78: 1 | M78: =+A78 -> 32416 | N78: =+B78 -> RIVERSIDE
A79: 33212 | B79: KETTLE FALLS | C79: =VLOOKUP(A79,'Allocation 2017-18 Rev_Final'!$A$7:$U$315,21,FALSE)+VLOOKUP(A79,iGRANTS!A:C,5,FALSE) ->  | D79: =IFERROR(VLOOKUP(A79,'Allocation 2017-18 Final'!$A$7:$Y$314,21,FALSE),0)+VLOOKUP(A79,iGRANTS!A:C,5,FALSE) ->  | E79: 0 | F79: 0 | G79: 1 | H79: 1 | M79: =+A79 -> 33212 | N79: =+B79 -> KETTLE FALLS
A80: 34402 | B80: TENINO | C80: =VLOOKUP(A80,'Allocation 2017-18 Rev_Final'!$A$7:$U$315,21,FALSE)+VLOOKUP(A80,iGRANTS!A:C,5,FALSE) ->  | D80: =IFERROR(VLOOKUP(A80,'Allocation 2017-18 Final'!$A$7:$Y$314,21,FALSE),0)+VLOOKUP(A80,iGRANTS!A:C,5,FALSE) ->  | E80: 0 | F80: 0 | G80: 1 | H80: 1 | M80: 34402 | N80: TENINO
A81: 09209 | B81: WATERVILLE | C81: =VLOOKUP(A81,'Allocation 2017-18 Rev_Final'!$A$7:$U$315,21,FALSE)+VLOOKUP(A81,iGRANTS!A:C,5,FALSE) ->  | D81: =IFERROR(VLOOKUP(A81,'Allocation 2017-18 Final'!$A$7:$Y$314,21,FALSE),0)+VLOOKUP(A81,iGRANTS!A:C,5,FALSE) ->  | E81: 0 | F81: 0 | G81: 1 | H81: 1 | M81: 09209 | N81: WATERVILLE
A82: 03052 | B82: KIONA BENTON | C82: =VLOOKUP(A82,'Allocation 2017-18 Rev_Final'!$A$7:$U$315,21,FALSE)+VLOOKUP(A82,iGRANTS!A:C,5,FALSE) ->  | D82: =IFERROR(VLOOKUP(A82,'Allocation 2017-18 Final'!$A$7:$Y$314,21,FALSE),0)+VLOOKUP(A82,iGRANTS!A:C,5,FALSE) ->  | E82: 0 | F82: 0 | G82: 1 | H82: 1 | M82: 03052 | N82: KIONA BENTON
A83: 32326 | B83: MEDICAL LAKE | C83: =VLOOKUP(A83,'Allocation 2017-18 Rev_Final'!$A$7:$U$315,21,FALSE)+VLOOKUP(A83,iGRANTS!A:C,5,FALSE) ->  | D83: =IFERROR(VLOOKUP(A83,'Allocation 2017-18 Final'!$A$7:$Y$314,21,FALSE),0)+VLOOKUP(A83,iGRANTS!A:C,5,FALSE) ->  | E83: 0 | F83: 0 | G83: 1 | H83: 1 | M83: 32326 | N83: MEDICAL LAKE
A84: 21302 | B84: CHEHALIS | C84: =VLOOKUP(A84,'Allocation 2017-18 Rev_Final'!$A$7:$U$315,21,FALSE)+VLOOKUP(A84,iGRANTS!A:C,5,FALSE) ->  | D84: =IFERROR(VLOOKUP(A84,'Allocation 2017-18 Final'!$A$7:$Y$314,21,FALSE),0)+VLOOKUP(A84,iGRANTS!A:C,5,FALSE) ->  | E84: 0 | F84: 0 | G84: 1 | H84: 1 | M84: 21302 | N84: CHEHALIS
A85: 23404 | B85: HOOD CANAL | C85: =VLOOKUP(A85,'Allocation 2017-18 Rev_Final'!$A$7:$U$315,21,FALSE)+VLOOKUP(A85,iGRANTS!A:C,5,FALSE) ->  | D85: =IFERROR(VLOOKUP(A85,'Allocation 2017-18 Final'!$A$7:$Y$314,21,FALSE),0)+VLOOKUP(A85,iGRANTS!A:C,5,FALSE) ->  | E85: 0 | F85: 0 | G85: 1 | H85: 1 | M85: 23404 | N85: HOOD CANAL
A86: 25116 | B86: RAYMOND | C86: =VLOOKUP(A86,'Allocation 2017-18 Rev_Final'!$A$7:$U$315,21,FALSE)+VLOOKUP(A86,iGRANTS!A:C,5,FALSE) ->  | D86: =IFERROR(VLOOKUP(A86,'Allocation 2017-18 Final'!$A$7:$Y$314,21,FALSE),0)+VLOOKUP(A86,iGRANTS!A:C,5,FALSE) ->  | E86: 0 | F86: 0 | G86: 1 | H86: 1 | M86: 25116 | N86: RAYMOND
A87: 15204 | B87: COUPEVILLE | C87: =VLOOKUP(A87,'Allocation 2017-18 Rev_Final'!$A$7:$U$315,21,FALSE)+VLOOKUP(A87,iGRANTS!A:C,5,FALSE) ->  | D87: =IFERROR(VLOOKUP(A87,'Allocation 2017-18 Final'!$A$7:$Y$314,21,FALSE),0)+VLOOKUP(A87,iGRANTS!A:C,5,FALSE) ->  | E87: 0 | F87: 0 | G87: 1 | H87: 1 | M87: 15204 | N87: COUPEVILLE
A88: 27404 | B88: EATONVILLE | C88: =VLOOKUP(A88,'Allocation 2017-18 Rev_Final'!$A$7:$U$315,21,FALSE)+VLOOKUP(A88,iGRANTS!A:C,5,FALSE) ->  | D88: =IFERROR(VLOOKUP(A88,'Allocation 2017-18 Final'!$A$7:$Y$314,21,FALSE),0)+VLOOKUP(A88,iGRANTS!A:C,5,FALSE) ->  | E88: 0 | F88: 0 | G88: 1 | H88: 1 | M88: 27404 | N88: EATONVILLE
A89: 28137 | B89: ORCAS | C89: =VLOOKUP(A89,'Allocation 2017-18 Rev_Final'!$A$7:$U$315,21,FALSE)+VLOOKUP(A89,iGRANTS!A:C,5,FALSE) ->  | D89: =IFERROR(VLOOKUP(A89,'Allocation 2017-18 Final'!$A$7:$Y$314,21,FALSE),0)+VLOOKUP(A89,iGRANTS!A:C,5,FALSE) ->  | E89: 0 | F89: 0 | G89: 1 | H89: 1 | M89: 28137 | N89: ORCAS
A90: 18303 | B90: BAINBRIDGE | C90: =VLOOKUP(A90,'Allocation 2017-18 Rev_Final'!$A$7:$U$315,21,FALSE)+VLOOKUP(A90,iGRANTS!A:C,5,FALSE) ->  | D90: =IFERROR(VLOOKUP(A90,'Allocation 2017-18 Final'!$A$7:$Y$314,21,FALSE),0)+VLOOKUP(A90,iGRANTS!A:C,5,FALSE) ->  | E90: 0 | F90: 0 | G90: 1 | H90: 1 | M90: 18303 | N90: BAINBRIDGE
A91: 13146 | B91: WARDEN | C91: =VLOOKUP(A91,'Allocation 2017-18 Rev_Final'!$A$7:$U$315,21,FALSE)+VLOOKUP(A91,iGRANTS!A:C,5,FALSE) ->  | D91: =IFERROR(VLOOKUP(A91,'Allocation 2017-18 Final'!$A$7:$Y$314,21,FALSE),0)+VLOOKUP(A91,iGRANTS!A:C,5,FALSE) ->  | E91: 0 | F91: 0 | G91: 1 | H91: 1 | M91: 13146 | N91: WARDEN
A92: 29103 | B92: ANACORTES | C92: =VLOOKUP(A92,'Allocation 2017-18 Rev_Final'!$A$7:$U$315,21,FALSE)+VLOOKUP(A92,iGRANTS!A:C,5,FALSE) ->  | D92: =IFERROR(VLOOKUP(A92,'Allocation 2017-18 Final'!$A$7:$Y$314,21,FALSE),0)+VLOOKUP(A92,iGRANTS!A:C,5,FALSE) ->  | E92: 0 | F92: 0 | G92: 1 | H92: 1 | M92: 29103 | N92: ANACORTES
A93: 37506 | B93: NOOKSACK VALLEY | C93: =VLOOKUP(A93,'Allocation 2017-18 Rev_Final'!$A$7:$U$315,21,FALSE)+VLOOKUP(A93,iGRANTS!A:C,5,FALSE) ->  | D93: =IFERROR(VLOOKUP(A93,'Allocation 2017-18 Final'!$A$7:$Y$314,21,FALSE),0)+VLOOKUP(A93,iGRANTS!A:C,5,FALSE) ->  | E93: 0 | F93: 0 | G93: 1 | H93: 1 | M93: 37506 | N93: NOOKSACK VALLEY
A94: 26059 | B94: CUSICK | C94: =VLOOKUP(A94,'Allocation 2017-18 Rev_Final'!$A$7:$U$315,21,FALSE)+VLOOKUP(A94,iGRANTS!A:C,5,FALSE) ->  | D94: =IFERROR(VLOOKUP(A94,'Allocation 2017-18 Final'!$A$7:$Y$314,21,FALSE),0)+VLOOKUP(A94,iGRANTS!A:C,5,FALSE) ->  | E94: 0 | F94: 0 | G94: 1 | H94: 1 | M94: 26059 | N94: CUSICK
A95: 31332 | B95: GRANITE FALLS | C95: =VLOOKUP(A95,'Allocation 2017-18 Rev_Final'!$A$7:$U$315,21,FALSE)+VLOOKUP(A95,iGRANTS!A:C,5,FALSE) ->  | D95: =IFERROR(VLOOKUP(A95,'Allocation 2017-18 Final'!$A$7:$Y$314,21,FALSE),0)+VLOOKUP(A95,iGRANTS!A:C,5,FALSE) ->  | E95: 0 | F95: 0 | G95: 1 | H95: 1 | M95: 31332 | N95: GRANITE FALLS
A96: 27001 | B96: STEILACOOM HIST. | C96: =VLOOKUP(A96,'Allocation 2017-18 Rev_Final'!$A$7:$U$315,21,FALSE)+VLOOKUP(A96,iGRANTS!A:C,5,FALSE) ->  | D96: =IFERROR(VLOOKUP(A96,'Allocation 2017-18 Final'!$A$7:$Y$314,21,FALSE),0)+VLOOKUP(A96,iGRANTS!A:C,5,FALSE) ->  | E96: 0 | F96: 0 | G96: 1 | H96: 1 | M96: 27001 | N96: STEILACOOM HIST.
A97: 36402 | B97: PRESCOTT | C97: =VLOOKUP(A97,'Allocation 2017-18 Rev_Final'!$A$7:$U$315,21,FALSE)+VLOOKUP(A97,iGRANTS!A:C,5,FALSE) ->  | D97: =IFERROR(VLOOKUP(A97,'Allocation 2017-18 Final'!$A$7:$Y$314,21,FALSE),0)+VLOOKUP(A97,iGRANTS!A:C,5,FALSE) ->  | E97: 0 | F97: 0 | G97: 1 | H97: 1 | M97: 36402 | N97: PRESCOTT
A98: 02250 | B98: CLARKSTON | C98: =VLOOKUP(A98,'Allocation 2017-18 Rev_Final'!$A$7:$U$315,21,FALSE)+VLOOKUP(A98,iGRANTS!A:C,5,FALSE) ->  | D98: =IFERROR(VLOOKUP(A98,'Allocation 2017-18 Final'!$A$7:$Y$314,21,FALSE),0)+VLOOKUP(A98,iGRANTS!A:C,5,FALSE) ->  | E98: 0 | F98: 0 | G98: 1 | H98: 1 | M98: 02250 | N98: CLARKSTON
A99: 05323 | B99: SEQUIM | C99: =VLOOKUP(A99,'Allocation 2017-18 Rev_Final'!$A$7:$U$315,21,FALSE)+VLOOKUP(A99,iGRANTS!A:C,5,FALSE) ->  | D99: =IFERROR(VLOOKUP(A99,'Allocation 2017-18 Final'!$A$7:$Y$314,21,FALSE),0)+VLOOKUP(A99,iGRANTS!A:C,5,FALSE) ->  | E99: 0 | F99: 0 | G99: 1 | H99: 1 | M99: 05323 | N99: SEQUIM
A100: 24410 | B100: OROVILLE | C100: =VLOOKUP(A100,'Allocation 2017-18 Rev_Final'!$A$7:$U$315,21,FALSE)+VLOOKUP(A100,iGRANTS!A:C,5,FALSE) ->  | D100: =IFERROR(VLOOKUP(A100,'Allocation 2017-18 Final'!$A$7:$Y$314,21,FALSE),0)+VLOOKUP(A100,iGRANTS!A:C,5,FALSE) ->  | E100: 0 | F100: 0 | G100: 1 | H100: 1 | M100: 24410 | N100: OROVILLE
A101: 24111 | B101: BREWSTER | C101: =VLOOKUP(A101,'Allocation 2017-18 Rev_Final'!$A$7:$U$315,21,FALSE)+VLOOKUP(A101,iGRANTS!A:C,5,FALSE) ->  | D101: =IFERROR(VLOOKUP(A101,'Allocation 2017-18 Final'!$A$7:$Y$314,21,FALSE),0)+VLOOKUP(A101,iGRANTS!A:C,5,FALSE) ->  | E101: 0 | F101: 0 | G101: 1 | H101: 1 | M101: 24111 | N101: BREWSTER
A102: 37504 | B102: LYNDEN | C102: =VLOOKUP(A102,'Allocation 2017-18 Rev_Final'!$A$7:$U$315,21,FALSE)+VLOOKUP(A102,iGRANTS!A:C,5,FALSE) ->  | D102: =IFERROR(VLOOKUP(A102,'Allocation 2017-18 Final'!$A$7:$Y$314,21,FALSE),0)+VLOOKUP(A102,iGRANTS!A:C,5,FALSE) ->  | E102: 0 | F102: 0 | G102: 1 | H102: 1 | M102: 37504 | N102: LYNDEN
A103: 24019 | B103: OMAK | C103: =VLOOKUP(A103,'Allocation 2017-18 Rev_Final'!$A$7:$U$315,21,FALSE)+VLOOKUP(A103,iGRANTS!A:C,5,FALSE) ->  | D103: =IFERROR(VLOOKUP(A103,'Allocation 2017-18 Final'!$A$7:$Y$314,21,FALSE),0)+VLOOKUP(A103,iGRANTS!A:C,5,FALSE) ->  | E103: 0 | F103: 0 | G103: 1 | H103: 1 | M103: 24019 | N103: OMAK
A104: 31016 | B104: ARLINGTON | C104: =VLOOKUP(A104,'Allocation 2017-18 Rev_Final'!$A$7:$U$315,21,FALSE)+VLOOKUP(A104,iGRANTS!A:C,5,FALSE) ->  | D104: =IFERROR(VLOOKUP(A104,'Allocation 2017-18 Final'!$A$7:$Y$314,21,FALSE),0)+VLOOKUP(A104,iGRANTS!A:C,5,FALSE) ->  | E104: 0 | F104: 0 | G104: 1 | H104: 1 | M104: 31016 | N104: ARLINGTON
A105: 39003 | B105: NACHES VALLEY | C105: =VLOOKUP(A105,'Allocation 2017-18 Rev_Final'!$A$7:$U$315,21,FALSE)+VLOOKUP(A105,iGRANTS!A:C,5,FALSE) ->  | D105: =IFERROR(VLOOKUP(A105,'Allocation 2017-18 Final'!$A$7:$Y$314,21,FALSE),0)+VLOOKUP(A105,iGRANTS!A:C,5,FALSE) ->  | E105: 0 | F105: 0 | G105: 1 | H105: 1 | M105: 39003 | N105: NACHES VALLEY
A106: 14028 | B106: HOQUIAM | C106: =VLOOKUP(A106,'Allocation 2017-18 Rev_Final'!$A$7:$U$315,21,FALSE)+VLOOKUP(A106,iGRANTS!A:C,5,FALSE) ->  | D106: =IFERROR(VLOOKUP(A106,'Allocation 2017-18 Final'!$A$7:$Y$314,21,FALSE),0)+VLOOKUP(A106,iGRANTS!A:C,5,FALSE) ->  | E106: 0 | F106: 0 | G106: 1 | H106: 1 | M106: 14028 | N106: HOQUIAM
A107: 23403 | B107: NORTH MASON | C107: =VLOOKUP(A107,'Allocation 2017-18 Rev_Final'!$A$7:$U$315,21,FALSE)+VLOOKUP(A107,iGRANTS!A:C,5,FALSE) ->  | D107: =IFERROR(VLOOKUP(A107,'Allocation 2017-18 Final'!$A$7:$Y$314,21,FALSE),0)+VLOOKUP(A107,iGRANTS!A:C,5,FALSE) ->  | E107: 0 | F107: 0 | G107: 1 | H107: 1 | M107: 23403 | N107: NORTH MASON
A108: 39209 | B108: MOUNT ADAMS | C108: =VLOOKUP(A108,'Allocation 2017-18 Rev_Final'!$A$7:$U$315,21,FALSE)+VLOOKUP(A108,iGRANTS!A:C,5,FALSE) ->  | D108: =IFERROR(VLOOKUP(A108,'Allocation 2017-18 Final'!$A$7:$Y$314,21,FALSE),0)+VLOOKUP(A108,iGRANTS!A:C,5,FALSE) ->  | E108: 0 | F108: 0 | G108: 1 | H108: 1 | M108: 39209 | N108: MOUNT ADAMS
A109: 13161 | B109: MOSES LAKE | C109: =VLOOKUP(A109,'Allocation 2017-18 Rev_Final'!$A$7:$U$315,21,FALSE)+VLOOKUP(A109,iGRANTS!A:C,5,FALSE) ->  | D109: =IFERROR(VLOOKUP(A109,'Allocation 2017-18 Final'!$A$7:$Y$314,21,FALSE),0)+VLOOKUP(A109,iGRANTS!A:C,5,FALSE) ->  | E109: 0 | F109: 0 | G109: 1 | H109: 1 | M109: 13161 | N109: MOSES LAKE
A110: 21300 | B110: ONALASKA | C110: =VLOOKUP(A110,'Allocation 2017-18 Rev_Final'!$A$7:$U$315,21,FALSE)+VLOOKUP(A110,iGRANTS!A:C,5,FALSE) ->  | D110: =IFERROR(VLOOKUP(A110,'Allocation 2017-18 Final'!$A$7:$Y$314,21,FALSE),0)+VLOOKUP(A110,iGRANTS!A:C,5,FALSE) ->  | E110: 0 | F110: 0 | G110: 1 | H110: 1 | M110: 21300 | N110: ONALASKA
A111: 36400 | B111: COLUMBIA (WALLA) | C111: =VLOOKUP(A111,'Allocation 2017-18 Rev_Final'!$A$7:$U$315,21,FALSE)+VLOOKUP(A111,iGRANTS!A:C,5,FALSE) ->  | D111: =IFERROR(VLOOKUP(A111,'Allocation 2017-18 Final'!$A$7:$Y$314,21,FALSE),0)+VLOOKUP(A111,iGRANTS!A:C,5,FALSE) ->  | E111: 0 | F111: 0 | G111: 1 | H111: 1 | M111: 36400 | N111: COLUMBIA (WALLA)
A112: 39205 | B112: ZILLAH | C112: =VLOOKUP(A112,'Allocation 2017-18 Rev_Final'!$A$7:$U$315,21,FALSE)+VLOOKUP(A112,iGRANTS!A:C,5,FALSE) ->  | D112: =IFERROR(VLOOKUP(A112,'Allocation 2017-18 Final'!$A$7:$Y$314,21,FALSE),0)+VLOOKUP(A112,iGRANTS!A:C,5,FALSE) ->  | E112: 0 | F112: 0 | G112: 1 | H112: 1 | M112: 39205 | N112: ZILLAH
A113: 04228 | B113: CASCADE | C113: =VLOOKUP(A113,'Allocation 2017-18 Rev_Final'!$A$7:$U$315,21,FALSE)+VLOOKUP(A113,iGRANTS!A:C,5,FALSE) ->  | D113: =IFERROR(VLOOKUP(A113,'Allocation 2017-18 Final'!$A$7:$Y$314,21,FALSE),0)+VLOOKUP(A113,iGRANTS!A:C,5,FALSE) ->  | E113: 0 | F113: 0 | G113: 1 | H113: 1 | M113: 04228 | N113: CASCADE
A114: 33036 | B114: CHEWELAH | C114: =VLOOKUP(A114,'Allocation 2017-18 Rev_Final'!$A$7:$U$315,21,FALSE)+VLOOKUP(A114,iGRANTS!A:C,5,FALSE) ->  | D114: =IFERROR(VLOOKUP(A114,'Allocation 2017-18 Final'!$A$7:$Y$314,21,FALSE),0)+VLOOKUP(A114,iGRANTS!A:C,5,FALSE) ->  | E114: 0 | F114: 0 | G114: 1 | H114: 1 | M114: 33036 | N114: CHEWELAH
A115: 27417 | B115: FIFE | C115: =VLOOKUP(A115,'Allocation 2017-18 Rev_Final'!$A$7:$U$315,21,FALSE)+VLOOKUP(A115,iGRANTS!A:C,5,FALSE) ->  | D115: =IFERROR(VLOOKUP(A115,'Allocation 2017-18 Final'!$A$7:$Y$314,21,FALSE),0)+VLOOKUP(A115,iGRANTS!A:C,5,FALSE) ->  | E115: 0 | F115: 0 | G115: 1 | H115: 1 | M115: 27417 | N115: FIFE
A116: 27909 | B116: SOAR CHARTER | C116: =VLOOKUP(A116,'Allocation 2017-18 Rev_Final'!$A$7:$U$315,21,FALSE)+VLOOKUP(A116,iGRANTS!A:C,5,FALSE) ->  | D116: =IFERROR(VLOOKUP(A116,'Allocation 2017-18 Final'!$A$7:$Y$314,21,FALSE),0)+VLOOKUP(A116,iGRANTS!A:C,5,FALSE) ->  | E116: 0 | F116: 0 | G116: 1 | H116: 1 | M116: 27909 | N116: SOAR CHARTER
A117: 32360 | B117: CHENEY | C117: =VLOOKUP(A117,'Allocation 2017-18 Rev_Final'!$A$7:$U$315,21,FALSE)+VLOOKUP(A117,iGRANTS!A:C,5,FALSE) ->  | D117: =IFERROR(VLOOKUP(A117,'Allocation 2017-18 Final'!$A$7:$Y$314,21,FALSE),0)+VLOOKUP(A117,iGRANTS!A:C,5,FALSE) ->  | E117: 0 | F117: 0 | G117: 1 | H117: 1 | M117: 32360 | N117: CHENEY
A118: 27402 | B118: FRANKLIN PIERCE | C118: =VLOOKUP(A118,'Allocation 2017-18 Rev_Final'!$A$7:$U$315,21,FALSE)+VLOOKUP(A118,iGRANTS!A:C,5,FALSE) ->  | D118: =IFERROR(VLOOKUP(A118,'Allocation 2017-18 Final'!$A$7:$Y$314,21,FALSE),0)+VLOOKUP(A118,iGRANTS!A:C,5,FALSE) ->  | E118: 0 | F118: 0 | G118: 1 | H118: 1 | M118: 27402 | N118: FRANKLIN PIERCE
A119: 13165 | B119: EPHRATA | C119: =VLOOKUP(A119,'Allocation 2017-18 Rev_Final'!$A$7:$U$315,21,FALSE)+VLOOKUP(A119,iGRANTS!A:C,5,FALSE) ->  | D119: =IFERROR(VLOOKUP(A119,'Allocation 2017-18 Final'!$A$7:$Y$314,21,FALSE),0)+VLOOKUP(A119,iGRANTS!A:C,5,FALSE) ->  | E119: 0 | F119: 0 | G119: 1 | H119: 1 | M119: 13165 | N119: EPHRATA
A120: 17410 | B120: SNOQUALMIE VALLEY | C120: =VLOOKUP(A120,'Allocation 2017-18 Rev_Final'!$A$7:$U$315,21,FALSE)+VLOOKUP(A120,iGRANTS!A:C,5,FALSE) ->  | D120: =IFERROR(VLOOKUP(A120,'Allocation 2017-18 Final'!$A$7:$Y$314,21,FALSE),0)+VLOOKUP(A120,iGRANTS!A:C,5,FALSE) ->  | E120: 0 | F120: 0 | G120: 1 | H120: 1 | M120: 17410 | N120: SNOQUALMIE VALLEY
A121: 36101 | B121: DIXIE | C121: =VLOOKUP(A121,'Allocation 2017-18 Rev_Final'!$A$7:$U$315,21,FALSE)+VLOOKUP(A121,iGRANTS!A:C,5,FALSE) ->  | D121: =IFERROR(VLOOKUP(A121,'Allocation 2017-18 Final'!$A$7:$Y$314,21,FALSE),0)+VLOOKUP(A121,iGRANTS!A:C,5,FALSE) ->  | E121: 0 | F121: 0 | G121: 1 | H121: 1 | M121: 36101 | N121: DIXIE
A122: 26056 | B122: NEWPORT | C122: =VLOOKUP(A122,'Allocation 2017-18 Rev_Final'!$A$7:$U$315,21,FALSE)+VLOOKUP(A122,iGRANTS!A:C,5,FALSE) ->  | D122: =IFERROR(VLOOKUP(A122,'Allocation 2017-18 Final'!$A$7:$Y$314,21,FALSE),0)+VLOOKUP(A122,iGRANTS!A:C,5,FALSE) ->  | E122: 0 | F122: 0 | G122: 1 | H122: 1 | M122: 26056 | N122: NEWPORT
A123: 23309 | B123: SHELTON | C123: =VLOOKUP(A123,'Allocation 2017-18 Rev_Final'!$A$7:$U$315,21,FALSE)+VLOOKUP(A123,iGRANTS!A:C,5,FALSE) ->  | D123: =IFERROR(VLOOKUP(A123,'Allocation 2017-18 Final'!$A$7:$Y$314,21,FALSE),0)+VLOOKUP(A123,iGRANTS!A:C,5,FALSE) ->  | E123: 0 | F123: 0 | G123: 1 | H123: 1 | M123: 23309 | N123: SHELTON
A124: 31006 | B124: MUKILTEO | C124: =VLOOKUP(A124,'Allocation 2017-18 Rev_Final'!$A$7:$U$315,21,FALSE)+VLOOKUP(A124,iGRANTS!A:C,5,FALSE) ->  | D124: =IFERROR(VLOOKUP(A124,'Allocation 2017-18 Final'!$A$7:$Y$314,21,FALSE),0)+VLOOKUP(A124,iGRANTS!A:C,5,FALSE) ->  | E124: 0 | F124: 0 | G124: 1 | H124: 1 | M124: 31006 | N124: MUKILTEO
A125: 31401 | B125: STANWOOD | C125: =VLOOKUP(A125,'Allocation 2017-18 Rev_Final'!$A$7:$U$315,21,FALSE)+VLOOKUP(A125,iGRANTS!A:C,5,FALSE) ->  | D125: =IFERROR(VLOOKUP(A125,'Allocation 2017-18 Final'!$A$7:$Y$314,21,FALSE),0)+VLOOKUP(A125,iGRANTS!A:C,5,FALSE) ->  | E125: 0 | F125: 0 | G125: 1 | H125: 1 | M125: 31401 | N125: STANWOOD
A126: 32363 | B126: WEST VALLEY(SPOK) | C126: =VLOOKUP(A126,'Allocation 2017-18 Rev_Final'!$A$7:$U$315,21,FALSE)+VLOOKUP(A126,iGRANTS!A:C,5,FALSE) ->  | D126: =IFERROR(VLOOKUP(A126,'Allocation 2017-18 Final'!$A$7:$Y$314,21,FALSE),0)+VLOOKUP(A126,iGRANTS!A:C,5,FALSE) ->  | E126: 0 | F126: 0 | G126: 1 | H126: 1 | M126: 32363 | N126: WEST VALLEY(SPOK)
A127: 32356 | B127: CENTRAL VALLEY | C127: =VLOOKUP(A127,'Allocation 2017-18 Rev_Final'!$A$7:$U$315,21,FALSE)+VLOOKUP(A127,iGRANTS!A:C,5,FALSE) ->  | D127: =IFERROR(VLOOKUP(A127,'Allocation 2017-18 Final'!$A$7:$Y$314,21,FALSE),0)+VLOOKUP(A127,iGRANTS!A:C,5,FALSE) ->  | E127: 0 | F127: 0 | G127: 1 | H127: 1 | M127: 32356 | N127: CENTRAL VALLEY
A128: 03400 | B128: RICHLAND | C128: =VLOOKUP(A128,'Allocation 2017-18 Rev_Final'!$A$7:$U$315,21,FALSE)+VLOOKUP(A128,iGRANTS!A:C,5,FALSE) ->  | D128: =IFERROR(VLOOKUP(A128,'Allocation 2017-18 Final'!$A$7:$Y$314,21,FALSE),0)+VLOOKUP(A128,iGRANTS!A:C,5,FALSE) ->  | E128: 0 | F128: 0 | G128: 1 | H128: 1 | M128: 03400 | N128: RICHLAND
A129: 36140 | B129: WALLA WALLA | C129: =VLOOKUP(A129,'Allocation 2017-18 Rev_Final'!$A$7:$U$315,21,FALSE)+VLOOKUP(A129,iGRANTS!A:C,5,FALSE) ->  | D129: =IFERROR(VLOOKUP(A129,'Allocation 2017-18 Final'!$A$7:$Y$314,21,FALSE),0)+VLOOKUP(A129,iGRANTS!A:C,5,FALSE) ->  | E129: 0 | F129: 0 | G129: 1 | H129: 1 | M129: 36140 | N129: WALLA WALLA
A130: 29101 | B130: SEDRO WOOLLEY | C130: =VLOOKUP(A130,'Allocation 2017-18 Rev_Final'!$A$7:$U$315,21,FALSE)+VLOOKUP(A130,iGRANTS!A:C,5,FALSE) ->  | D130: =IFERROR(VLOOKUP(A130,'Allocation 2017-18 Final'!$A$7:$Y$314,21,FALSE),0)+VLOOKUP(A130,iGRANTS!A:C,5,FALSE) ->  | E130: 0 | F130: 0 | G130: 1 | H130: 1 | M130: 29101 | N130: SEDRO WOOLLEY
A131: 32354 | B131: MEAD | C131: =VLOOKUP(A131,'Allocation 2017-18 Rev_Final'!$A$7:$U$315,21,FALSE)+VLOOKUP(A131,iGRANTS!A:C,5,FALSE) ->  | D131: =IFERROR(VLOOKUP(A131,'Allocation 2017-18 Final'!$A$7:$Y$314,21,FALSE),0)+VLOOKUP(A131,iGRANTS!A:C,5,FALSE) ->  | E131: 0 | F131: 0 | G131: 1 | H131: 1 | M131: 32354 | N131: MEAD
A132: 27083 | B132: UNIVERSITY PLACE | C132: =VLOOKUP(A132,'Allocation 2017-18 Rev_Final'!$A$7:$U$315,21,FALSE)+VLOOKUP(A132,iGRANTS!A:C,5,FALSE) ->  | D132: =IFERROR(VLOOKUP(A132,'Allocation 2017-18 Final'!$A$7:$Y$314,21,FALSE),0)+VLOOKUP(A132,iGRANTS!A:C,5,FALSE) ->  | E132: 0 | F132: 0 | G132: 1 | H132: 1 | M132: 27083 | N132: UNIVERSITY PLACE
A133: 37502 | B133: FERNDALE | C133: =VLOOKUP(A133,'Allocation 2017-18 Rev_Final'!$A$7:$U$315,21,FALSE)+VLOOKUP(A133,iGRANTS!A:C,5,FALSE) ->  | D133: =IFERROR(VLOOKUP(A133,'Allocation 2017-18 Final'!$A$7:$Y$314,21,FALSE),0)+VLOOKUP(A133,iGRANTS!A:C,5,FALSE) ->  | E133: 0 | F133: 0 | G133: 1 | H133: 1 | M133: 37502 | N133: FERNDALE
A134: 06119 | B134: BATTLE GROUND | C134: =VLOOKUP(A134,'Allocation 2017-18 Rev_Final'!$A$7:$U$315,21,FALSE)+VLOOKUP(A134,iGRANTS!A:C,5,FALSE) ->  | D134: =IFERROR(VLOOKUP(A134,'Allocation 2017-18 Final'!$A$7:$Y$314,21,FALSE),0)+VLOOKUP(A134,iGRANTS!A:C,5,FALSE) ->  | E134: =IFERROR(F134/D134,0) -> 0 | F134: =IFERROR(C134-D134,0) -> 0 | G134: =RANK(E134,$E$6:$E$314,1) -> 1 | H134: =RANK(F134,$F$6:$F$314,1) -> 1 | M134: 06119 | N134: BATTLE GROUND
A135: 06114 | B135: EVERGREEN (CLARK) | C135: =VLOOKUP(A135,'Allocation 2017-18 Rev_Final'!$A$7:$U$315,21,FALSE)+VLOOKUP(A135,iGRANTS!A:C,5,FALSE) ->  | D135: =IFERROR(VLOOKUP(A135,'Allocation 2017-18 Final'!$A$7:$Y$314,21,FALSE),0)+VLOOKUP(A135,iGRANTS!A:C,5,FALSE) ->  | E135: 0 | F135: 0 | G135: 1 | H135: 1 | M135: 06114 | N135: EVERGREEN (CLARK)
A136: 17001 | B136: SEATTLE | C136: =VLOOKUP(A136,'Allocation 2017-18 Rev_Final'!$A$7:$U$315,21,FALSE)+VLOOKUP(A136,iGRANTS!A:C,5,FALSE) ->  | D136: =IFERROR(VLOOKUP(A136,'Allocation 2017-18 Final'!$A$7:$Y$314,21,FALSE),0)+VLOOKUP(A136,iGRANTS!A:C,5,FALSE) ->  | E136: 0 | F136: 0 | G136: 1 | H136: 1 | M136: 17001 | N136: SEATTLE
A137: 17400 | B137: MERCER ISLAND | C137: =VLOOKUP(A137,'Allocation 2017-18 Rev_Final'!$A$7:$U$315,21,FALSE)+VLOOKUP(A137,iGRANTS!A:C,5,FALSE) ->  | D137: =IFERROR(VLOOKUP(A137,'Allocation 2017-18 Final'!$A$7:$Y$314,21,FALSE),0)+VLOOKUP(A137,iGRANTS!A:C,5,FALSE) ->  | E137: 0 | F137: 0 | G137: 1 | H137: 1 | M137: 17400 | N137: MERCER ISLAND
A138: 27400 | B138: CLOVER PARK | C138: =VLOOKUP(A138,'Allocation 2017-18 Rev_Final'!$A$7:$U$315,21,FALSE)+VLOOKUP(A138,iGRANTS!A:C,5,FALSE) ->  | D138: =IFERROR(VLOOKUP(A138,'Allocation 2017-18 Final'!$A$7:$Y$314,21,FALSE),0)+VLOOKUP(A138,iGRANTS!A:C,5,FALSE) ->  | E138: 0 | F138: 0 | G138: 1 | H138: 1 | M138: 27400 | N138: CLOVER PARK
A139: 32081 | B139: SPOKANE | C139: =VLOOKUP(A139,'Allocation 2017-18 Rev_Final'!$A$7:$U$315,21,FALSE)+VLOOKUP(A139,iGRANTS!A:C,5,FALSE) ->  | D139: =IFERROR(VLOOKUP(A139,'Allocation 2017-18 Final'!$A$7:$Y$314,21,FALSE),0)+VLOOKUP(A139,iGRANTS!A:C,5,FALSE) ->  | E139: 0 | F139: 0 | G139: 1 | H139: 1 | M139: 32081 | N139: SPOKANE
A140: 39200 | B140: GRANDVIEW | C140: =VLOOKUP(A140,'Allocation 2017-18 Rev_Final'!$A$7:$U$315,21,FALSE)+VLOOKUP(A140,iGRANTS!A:C,5,FALSE) ->  | D140: =IFERROR(VLOOKUP(A140,'Allocation 2017-18 Final'!$A$7:$Y$314,21,FALSE),0)+VLOOKUP(A140,iGRANTS!A:C,5,FALSE) ->  | E140: 0 | F140: 0 | G140: 1 | H140: 1 | M140: 39200 | N140: GRANDVIEW
A141: 27403 | B141: BETHEL | C141: =VLOOKUP(A141,'Allocation 2017-18 Rev_Final'!$A$7:$U$315,21,FALSE)+VLOOKUP(A141,iGRANTS!A:C,5,FALSE) ->  | D141: =IFERROR(VLOOKUP(A141,'Allocation 2017-18 Final'!$A$7:$Y$314,21,FALSE),0)+VLOOKUP(A141,iGRANTS!A:C,5,FALSE) ->  | E141: 0 | F141: 0 | G141: 1 | H141: 1 | M141: 27403 | N141: BETHEL
A142: 05121 | B142: PORT ANGELES | C142: =VLOOKUP(A142,'Allocation 2017-18 Rev_Final'!$A$7:$U$315,21,FALSE)+VLOOKUP(A142,iGRANTS!A:C,5,FALSE) ->  | D142: =IFERROR(VLOOKUP(A142,'Allocation 2017-18 Final'!$A$7:$Y$314,21,FALSE),0)+VLOOKUP(A142,iGRANTS!A:C,5,FALSE) ->  | E142: 0 | F142: 0 | G142: 1 | H142: 1 | M142: 05121 | N142: PORT ANGELES
A143: 31002 | B143: EVERETT | C143: =VLOOKUP(A143,'Allocation 2017-18 Rev_Final'!$A$7:$U$315,21,FALSE)+VLOOKUP(A143,iGRANTS!A:C,5,FALSE) ->  | D143: =IFERROR(VLOOKUP(A143,'Allocation 2017-18 Final'!$A$7:$Y$314,21,FALSE),0)+VLOOKUP(A143,iGRANTS!A:C,5,FALSE) ->  | E143: 0 | F143: 0 | G143: 1 | H143: 1 | M143: =+A143 -> 31002 | N143: =+B143 -> EVERETT
A144: 06117 | B144: CAMAS | C144: =VLOOKUP(A144,'Allocation 2017-18 Rev_Final'!$A$7:$U$315,21,FALSE)+VLOOKUP(A144,iGRANTS!A:C,5,FALSE) ->  | D144: =IFERROR(VLOOKUP(A144,'Allocation 2017-18 Final'!$A$7:$Y$314,21,FALSE),0)+VLOOKUP(A144,iGRANTS!A:C,5,FALSE) ->  | E144: 0 | F144: 0 | G144: 1 | H144: 1 | M144: 06117 | N144: CAMAS
A145: 29100 | B145: BURLINGTON EDISON | C145: =VLOOKUP(A145,'Allocation 2017-18 Rev_Final'!$A$7:$U$315,21,FALSE)+VLOOKUP(A145,iGRANTS!A:C,5,FALSE) ->  | D145: =IFERROR(VLOOKUP(A145,'Allocation 2017-18 Final'!$A$7:$Y$314,21,FALSE),0)+VLOOKUP(A145,iGRANTS!A:C,5,FALSE) ->  | E145: 0 | F145: 0 | G145: 1 | H145: 1 | M145: 29100 | N145: BURLINGTON EDISON
A146: 31015 | B146: EDMONDS | C146: =VLOOKUP(A146,'Allocation 2017-18 Rev_Final'!$A$7:$U$315,21,FALSE)+VLOOKUP(A146,iGRANTS!A:C,5,FALSE) ->  | D146: =IFERROR(VLOOKUP(A146,'Allocation 2017-18 Final'!$A$7:$Y$314,21,FALSE),0)+VLOOKUP(A146,iGRANTS!A:C,5,FALSE) ->  | E146: 0 | F146: 0 | G146: 1 | H146: 1 | M146: 31015 | N146: EDMONDS
A147: 17402 | B147: VASHON ISLAND | C147: =VLOOKUP(A147,'Allocation 2017-18 Rev_Final'!$A$7:$U$315,21,FALSE)+VLOOKUP(A147,iGRANTS!A:C,5,FALSE) ->  | D147: =IFERROR(VLOOKUP(A147,'Allocation 2017-18 Final'!$A$7:$Y$314,21,FALSE),0)+VLOOKUP(A147,iGRANTS!A:C,5,FALSE) ->  | E147: 0 | F147: 0 | G147: 1 | H147: 1 | M147: 17402 | N147: VASHON ISLAND
A148: 06098 | B148: HOCKINSON | C148: =VLOOKUP(A148,'Allocation 2017-18 Rev_Final'!$A$7:$U$315,21,FALSE)+VLOOKUP(A148,iGRANTS!A:C,5,FALSE) ->  | D148: =IFERROR(VLOOKUP(A148,'Allocation 2017-18 Final'!$A$7:$Y$314,21,FALSE),0)+VLOOKUP(A148,iGRANTS!A:C,5,FALSE) ->  | E148: 0 | F148: 0 | G148: 1 | H148: 1 | M148: 06098 | N148: HOCKINSON
A149: 13144 | B149: QUINCY | C149: =VLOOKUP(A149,'Allocation 2017-18 Rev_Final'!$A$7:$U$315,21,FALSE)+VLOOKUP(A149,iGRANTS!A:C,5,FALSE) ->  | D149: =IFERROR(VLOOKUP(A149,'Allocation 2017-18 Final'!$A$7:$Y$314,21,FALSE),0)+VLOOKUP(A149,iGRANTS!A:C,5,FALSE) ->  | E149: 0 | F149: 0 | G149: 1 | H149: 1 | M149: 13144 | N149: QUINCY
A150: 17407 | B150: RIVERVIEW | C150: =VLOOKUP(A150,'Allocation 2017-18 Rev_Final'!$A$7:$U$315,21,FALSE)+VLOOKUP(A150,iGRANTS!A:C,5,FALSE) ->  | D150: =IFERROR(VLOOKUP(A150,'Allocation 2017-18 Final'!$A$7:$Y$314,21,FALSE),0)+VLOOKUP(A150,iGRANTS!A:C,5,FALSE) ->  | E150: 0 | F150: 0 | G150: 1 | H150: 1 | M150: 17407 | N150: RIVERVIEW
A151: 27010 | B151: TACOMA | C151: =VLOOKUP(A151,'Allocation 2017-18 Rev_Final'!$A$7:$U$315,21,FALSE)+VLOOKUP(A151,iGRANTS!A:C,5,FALSE) ->  | D151: =IFERROR(VLOOKUP(A151,'Allocation 2017-18 Final'!$A$7:$Y$314,21,FALSE),0)+VLOOKUP(A151,iGRANTS!A:C,5,FALSE) ->  | E151: 0 | F151: 0 | G151: 1 | H151: 1 | M151: 27010 | N151: TACOMA
A152: 08122 | B152: LONGVIEW | C152: =VLOOKUP(A152,'Allocation 2017-18 Rev_Final'!$A$7:$U$315,21,FALSE)+VLOOKUP(A152,iGRANTS!A:C,5,FALSE) ->  | D152: =IFERROR(VLOOKUP(A152,'Allocation 2017-18 Final'!$A$7:$Y$314,21,FALSE),0)+VLOOKUP(A152,iGRANTS!A:C,5,FALSE) ->  | E152: 0 | F152: 0 | G152: 1 | H152: 1 | M152: 08122 | N152: LONGVIEW
A153: 31201 | B153: SNOHOMISH | C153: =VLOOKUP(A153,'Allocation 2017-18 Rev_Final'!$A$7:$U$315,21,FALSE)+VLOOKUP(A153,iGRANTS!A:C,5,FALSE) ->  | D153: =IFERROR(VLOOKUP(A153,'Allocation 2017-18 Final'!$A$7:$Y$314,21,FALSE),0)+VLOOKUP(A153,iGRANTS!A:C,5,FALSE) ->  | E153: 0 | F153: 0 | G153: 1 | H153: 1 | M153: 31201 | N153: SNOHOMISH
A154: 09206 | B154: EASTMONT | C154: =VLOOKUP(A154,'Allocation 2017-18 Rev_Final'!$A$7:$U$315,21,FALSE)+VLOOKUP(A154,iGRANTS!A:C,5,FALSE) ->  | D154: =IFERROR(VLOOKUP(A154,'Allocation 2017-18 Final'!$A$7:$Y$314,21,FALSE),0)+VLOOKUP(A154,iGRANTS!A:C,5,FALSE) ->  | E154: 0 | F154: 0 | G154: 1 | H154: 1 | M154: 09206 | N154: EASTMONT
A155: 37505 | B155: MERIDIAN | C155: =VLOOKUP(A155,'Allocation 2017-18 Rev_Final'!$A$7:$U$315,21,FALSE)+VLOOKUP(A155,iGRANTS!A:C,5,FALSE) ->  | D155: =IFERROR(VLOOKUP(A155,'Allocation 2017-18 Final'!$A$7:$Y$314,21,FALSE),0)+VLOOKUP(A155,iGRANTS!A:C,5,FALSE) ->  | E155: 0 | F155: 0 | G155: 1 | H155: 1 | M155: 37505 | N155: MERIDIAN
A156: 34111 | B156: OLYMPIA | C156: =VLOOKUP(A156,'Allocation 2017-18 Rev_Final'!$A$7:$U$315,21,FALSE)+VLOOKUP(A156,iGRANTS!A:C,5,FALSE) ->  | D156: =IFERROR(VLOOKUP(A156,'Allocation 2017-18 Final'!$A$7:$Y$314,21,FALSE),0)+VLOOKUP(A156,iGRANTS!A:C,5,FALSE) ->  | E156: 0 | F156: 0 | G156: 1 | H156: 1 | M156: 34111 | N156: OLYMPIA
A157: 31025 | B157: MARYSVILLE | C157: =VLOOKUP(A157,'Allocation 2017-18 Rev_Final'!$A$7:$U$315,21,FALSE)+VLOOKUP(A157,iGRANTS!A:C,5,FALSE) ->  | D157: =IFERROR(VLOOKUP(A157,'Allocation 2017-18 Final'!$A$7:$Y$314,21,FALSE),0)+VLOOKUP(A157,iGRANTS!A:C,5,FALSE) ->  | E157: 0 | F157: 0 | G157: 1 | H157: 1 | M157: 31025 | N157: MARYSVILLE
A158: 04127 | B158: ENTIAT | C158: =VLOOKUP(A158,'Allocation 2017-18 Rev_Final'!$A$7:$U$315,21,FALSE)+VLOOKUP(A158,iGRANTS!A:C,5,FALSE) ->  | D158: =IFERROR(VLOOKUP(A158,'Allocation 2017-18 Final'!$A$7:$Y$314,21,FALSE),0)+VLOOKUP(A158,iGRANTS!A:C,5,FALSE) ->  | E158: 0 | F158: 0 | G158: 1 | H158: 1 | M158: 04127 | N158: ENTIAT
A159: 27003 | B159: PUYALLUP | C159: =VLOOKUP(A159,'Allocation 2017-18 Rev_Final'!$A$7:$U$315,21,FALSE)+VLOOKUP(A159,iGRANTS!A:C,5,FALSE) ->  | D159: =IFERROR(VLOOKUP(A159,'Allocation 2017-18 Final'!$A$7:$Y$314,21,FALSE),0)+VLOOKUP(A159,iGRANTS!A:C,5,FALSE) ->  | E159: 0 | F159: 0 | G159: 1 | H159: 1 | M159: 27003 | N159: PUYALLUP
A160: 18100 | B160: BREMERTON | C160: =VLOOKUP(A160,'Allocation 2017-18 Rev_Final'!$A$7:$U$315,21,FALSE)+VLOOKUP(A160,iGRANTS!A:C,5,FALSE) ->  | D160: =IFERROR(VLOOKUP(A160,'Allocation 2017-18 Final'!$A$7:$Y$314,21,FALSE),0)+VLOOKUP(A160,iGRANTS!A:C,5,FALSE) ->  | E160: 0 | F160: 0 | G160: 1 | H160: 1 | M160: 18100 | N160: BREMERTON
A161: 34003 | B161: NORTH THURSTON | C161: =VLOOKUP(A161,'Allocation 2017-18 Rev_Final'!$A$7:$U$315,21,FALSE)+VLOOKUP(A161,iGRANTS!A:C,5,FALSE) ->  | D161: =IFERROR(VLOOKUP(A161,'Allocation 2017-18 Final'!$A$7:$Y$314,21,FALSE),0)+VLOOKUP(A161,iGRANTS!A:C,5,FALSE) ->  | E161: 0 | F161: 0 | G161: 1 | H161: 1 | M161: 34003 | N161: NORTH THURSTON
A162: 11051 | B162: NORTH FRANKLIN | C162: =VLOOKUP(A162,'Allocation 2017-18 Rev_Final'!$A$7:$U$315,21,FALSE)+VLOOKUP(A162,iGRANTS!A:C,5,FALSE) ->  | D162: =IFERROR(VLOOKUP(A162,'Allocation 2017-18 Final'!$A$7:$Y$314,21,FALSE),0)+VLOOKUP(A162,iGRANTS!A:C,5,FALSE) ->  | E162: 0 | F162: 0 | G162: 1 | H162: 1 | M162: 11051 | N162: NORTH FRANKLIN
A163: 18400 | B163: NORTH KITSAP | C163: =VLOOKUP(A163,'Allocation 2017-18 Rev_Final'!$A$7:$U$315,21,FALSE)+VLOOKUP(A163,iGRANTS!A:C,5,FALSE) ->  | D163: =IFERROR(VLOOKUP(A163,'Allocation 2017-18 Final'!$A$7:$Y$314,21,FALSE),0)+VLOOKUP(A163,iGRANTS!A:C,5,FALSE) ->  | E163: 0 | F163: 0 | G163: 1 | H163: 1 | M163: 18400 | N163: NORTH KITSAP
A164: 17412 | B164: SHORELINE | C164: =VLOOKUP(A164,'Allocation 2017-18 Rev_Final'!$A$7:$U$315,21,FALSE)+VLOOKUP(A164,iGRANTS!A:C,5,FALSE) ->  | D164: =IFERROR(VLOOKUP(A164,'Allocation 2017-18 Final'!$A$7:$Y$314,21,FALSE),0)+VLOOKUP(A164,iGRANTS!A:C,5,FALSE) ->  | E164: 0 | F164: 0 | G164: 1 | H164: 1 | M164: 17412 | N164: SHORELINE
A165: 17411 | B165: ISSAQUAH | C165: =VLOOKUP(A165,'Allocation 2017-18 Rev_Final'!$A$7:$U$315,21,FALSE)+VLOOKUP(A165,iGRANTS!A:C,5,FALSE) ->  | D165: =IFERROR(VLOOKUP(A165,'Allocation 2017-18 Final'!$A$7:$Y$314,21,FALSE),0)+VLOOKUP(A165,iGRANTS!A:C,5,FALSE) ->  | E165: 0 | F165: 0 | G165: 1 | H165: 1 | M165: 17411 | N165: ISSAQUAH
A166: 39207 | B166: WAPATO | C166: =VLOOKUP(A166,'Allocation 2017-18 Rev_Final'!$A$7:$U$315,21,FALSE)+VLOOKUP(A166,iGRANTS!A:C,5,FALSE) ->  | D166: =IFERROR(VLOOKUP(A166,'Allocation 2017-18 Final'!$A$7:$Y$314,21,FALSE),0)+VLOOKUP(A166,iGRANTS!A:C,5,FALSE) ->  | E166: 0 | F166: 0 | G166: 1 | H166: 1 | M166: 39207 | N166: WAPATO
A167: 29320 | B167: MT VERNON | C167: =VLOOKUP(A167,'Allocation 2017-18 Rev_Final'!$A$7:$U$315,21,FALSE)+VLOOKUP(A167,iGRANTS!A:C,5,FALSE) ->  | D167: =IFERROR(VLOOKUP(A167,'Allocation 2017-18 Final'!$A$7:$Y$314,21,FALSE),0)+VLOOKUP(A167,iGRANTS!A:C,5,FALSE) ->  | E167: 0 | F167: 0 | G167: 1 | H167: 1 | M167: 29320 | N167: MT VERNON
A168: 15201 | B168: OAK HARBOR | C168: =VLOOKUP(A168,'Allocation 2017-18 Rev_Final'!$A$7:$U$315,21,FALSE)+VLOOKUP(A168,iGRANTS!A:C,5,FALSE) ->  | D168: =IFERROR(VLOOKUP(A168,'Allocation 2017-18 Final'!$A$7:$Y$314,21,FALSE),0)+VLOOKUP(A168,iGRANTS!A:C,5,FALSE) ->  | E168: 0 | F168: 0 | G168: 1 | H168: 1 | M168: 15201 | N168: OAK HARBOR
A169: 01147 | B169: OTHELLO | C169: =VLOOKUP(A169,'Allocation 2017-18 Rev_Final'!$A$7:$U$315,21,FALSE)+VLOOKUP(A169,iGRANTS!A:C,5,FALSE) ->  | D169: =IFERROR(VLOOKUP(A169,'Allocation 2017-18 Final'!$A$7:$Y$314,21,FALSE),0)+VLOOKUP(A169,iGRANTS!A:C,5,FALSE) ->  | E169: 0 | F169: 0 | G169: 1 | H169: 1 | M169: 01147 | N169: OTHELLO
A170: 17408 | B170: AUBURN | C170: =VLOOKUP(A170,'Allocation 2017-18 Rev_Final'!$A$7:$U$315,21,FALSE)+VLOOKUP(A170,iGRANTS!A:C,5,FALSE) ->  | D170: =IFERROR(VLOOKUP(A170,'Allocation 2017-18 Final'!$A$7:$Y$314,21,FALSE),0)+VLOOKUP(A170,iGRANTS!A:C,5,FALSE) ->  | E170: 0 | F170: 0 | G170: 1 | H170: 1 | M170: 17408 | N170: AUBURN
A171: 38300 | B171: COLFAX | C171: =VLOOKUP(A171,'Allocation 2017-18 Rev_Final'!$A$7:$U$315,21,FALSE)+VLOOKUP(A171,iGRANTS!A:C,5,FALSE) ->  | D171: =IFERROR(VLOOKUP(A171,'Allocation 2017-18 Final'!$A$7:$Y$314,21,FALSE),0)+VLOOKUP(A171,iGRANTS!A:C,5,FALSE) ->  | E171: 0 | F171: 0 | G171: 1 | H171: 1 | M171: 38300 | N171: COLFAX
A172: 37501 | B172: BELLINGHAM | C172: =VLOOKUP(A172,'Allocation 2017-18 Rev_Final'!$A$7:$U$315,21,FALSE)+VLOOKUP(A172,iGRANTS!A:C,5,FALSE) ->  | D172: =IFERROR(VLOOKUP(A172,'Allocation 2017-18 Final'!$A$7:$Y$314,21,FALSE),0)+VLOOKUP(A172,iGRANTS!A:C,5,FALSE) ->  | E172: 0 | F172: 0 | G172: 1 | H172: 1 | M172: 37501 | N172: BELLINGHAM
A173: 18401 | B173: CENTRAL KITSAP | C173: =VLOOKUP(A173,'Allocation 2017-18 Rev_Final'!$A$7:$U$315,21,FALSE)+VLOOKUP(A173,iGRANTS!A:C,5,FALSE) ->  | D173: =IFERROR(VLOOKUP(A173,'Allocation 2017-18 Final'!$A$7:$Y$314,21,FALSE),0)+VLOOKUP(A173,iGRANTS!A:C,5,FALSE) ->  | E173: 0 | F173: 0 | G173: 1 | H173: 1 | M173: 18401 | N173: CENTRAL KITSAP
A174: 13073 | B174: WAHLUKE | C174: =VLOOKUP(A174,'Allocation 2017-18 Rev_Final'!$A$7:$U$315,21,FALSE)+VLOOKUP(A174,iGRANTS!A:C,5,FALSE) ->  | D174: =IFERROR(VLOOKUP(A174,'Allocation 2017-18 Final'!$A$7:$Y$314,21,FALSE),0)+VLOOKUP(A174,iGRANTS!A:C,5,FALSE) ->  | E174: 0 | F174: 0 | G174: 1 | H174: 1 | M174: 13073 | N174: WAHLUKE
A175: 32358 | B175: FREEMAN | C175: =VLOOKUP(A175,'Allocation 2017-18 Rev_Final'!$A$7:$U$315,21,FALSE)+VLOOKUP(A175,iGRANTS!A:C,5,FALSE) ->  | D175: =IFERROR(VLOOKUP(A175,'Allocation 2017-18 Final'!$A$7:$Y$314,21,FALSE),0)+VLOOKUP(A175,iGRANTS!A:C,5,FALSE) ->  | E175: 0 | F175: 0 | G175: 1 | H175: 1 | M175: 32358 | N175: FREEMAN
A176: 39201 | B176: SUNNYSIDE | C176: =VLOOKUP(A176,'Allocation 2017-18 Rev_Final'!$A$7:$U$315,21,FALSE)+VLOOKUP(A176,iGRANTS!A:C,5,FALSE) ->  | D176: =IFERROR(VLOOKUP(A176,'Allocation 2017-18 Final'!$A$7:$Y$314,21,FALSE),0)+VLOOKUP(A176,iGRANTS!A:C,5,FALSE) ->  | E176: 0 | F176: 0 | G176: 1 | H176: 1 | M176: 39201 | N176: SUNNYSIDE
A177: 27401 | B177: PENINSULA | C177: =VLOOKUP(A177,'Allocation 2017-18 Rev_Final'!$A$7:$U$315,21,FALSE)+VLOOKUP(A177,iGRANTS!A:C,5,FALSE) ->  | D177: =IFERROR(VLOOKUP(A177,'Allocation 2017-18 Final'!$A$7:$Y$314,21,FALSE),0)+VLOOKUP(A177,iGRANTS!A:C,5,FALSE) ->  | E177: 0 | F177: 0 | G177: 1 | H177: 1 | M177: 27401 | N177: PENINSULA
A178: 27320 | B178: SUMNER | C178: =VLOOKUP(A178,'Allocation 2017-18 Rev_Final'!$A$7:$U$315,21,FALSE)+VLOOKUP(A178,iGRANTS!A:C,5,FALSE) ->  | D178: =IFERROR(VLOOKUP(A178,'Allocation 2017-18 Final'!$A$7:$Y$314,21,FALSE),0)+VLOOKUP(A178,iGRANTS!A:C,5,FALSE) ->  | E178: 0 | F178: 0 | G178: 1 | H178: 1 | M178: 27320 | N178: SUMNER
A179: 17405 | B179: BELLEVUE | C179: =VLOOKUP(A179,'Allocation 2017-18 Rev_Final'!$A$7:$U$315,21,FALSE)+VLOOKUP(A179,iGRANTS!A:C,5,FALSE) ->  | D179: =IFERROR(VLOOKUP(A179,'Allocation 2017-18 Final'!$A$7:$Y$314,21,FALSE),0)+VLOOKUP(A179,iGRANTS!A:C,5,FALSE) ->  | E179: 0 | F179: 0 | G179: 1 | H179: 1 | M179: 17405 | N179: BELLEVUE
A180: 31103 | B180: MONROE | C180: =VLOOKUP(A180,'Allocation 2017-18 Rev_Final'!$A$7:$U$315,21,FALSE)+VLOOKUP(A180,iGRANTS!A:C,5,FALSE) ->  | D180: =IFERROR(VLOOKUP(A180,'Allocation 2017-18 Final'!$A$7:$Y$314,21,FALSE),0)+VLOOKUP(A180,iGRANTS!A:C,5,FALSE) ->  | E180: 0 | F180: 0 | G180: 1 | H180: 1 | M180: 31103 | N180: MONROE
A181: 03017 | B181: KENNEWICK | C181: =VLOOKUP(A181,'Allocation 2017-18 Rev_Final'!$A$7:$U$315,21,FALSE)+VLOOKUP(A181,iGRANTS!A:C,5,FALSE) ->  | D181: =IFERROR(VLOOKUP(A181,'Allocation 2017-18 Final'!$A$7:$Y$314,21,FALSE),0)+VLOOKUP(A181,iGRANTS!A:C,5,FALSE) ->  | E181: 0 | F181: 0 | G181: 1 | H181: 1 | M181: 03017 | N181: KENNEWICK
A182: 14068 | B182: ELMA | C182: =VLOOKUP(A182,'Allocation 2017-18 Rev_Final'!$A$7:$U$315,21,FALSE)+VLOOKUP(A182,iGRANTS!A:C,5,FALSE) ->  | D182: =IFERROR(VLOOKUP(A182,'Allocation 2017-18 Final'!$A$7:$Y$314,21,FALSE),0)+VLOOKUP(A182,iGRANTS!A:C,5,FALSE) ->  | E182: 0 | F182: 0 | G182: 1 | H182: 1 | M182: 14068 | N182: ELMA
A183: 17210 | B183: FEDERAL WAY | C183: =VLOOKUP(A183,'Allocation 2017-18 Rev_Final'!$A$7:$U$315,21,FALSE)+VLOOKUP(A183,iGRANTS!A:C,5,FALSE) ->  | D183: =IFERROR(VLOOKUP(A183,'Allocation 2017-18 Final'!$A$7:$Y$314,21,FALSE),0)+VLOOKUP(A183,iGRANTS!A:C,5,FALSE) ->  | E183: 0 | F183: 0 | G183: 1 | H183: 1 | M183: 17210 | N183: FEDERAL WAY
A184: 03116 | B184: PROSSER | C184: =VLOOKUP(A184,'Allocation 2017-18 Rev_Final'!$A$7:$U$315,21,FALSE)+VLOOKUP(A184,iGRANTS!A:C,5,FALSE) ->  | D184: =IFERROR(VLOOKUP(A184,'Allocation 2017-18 Final'!$A$7:$Y$314,21,FALSE),0)+VLOOKUP(A184,iGRANTS!A:C,5,FALSE) ->  | E184: 0 | F184: 0 | G184: 1 | H184: 1 | M184: 03116 | N184: PROSSER
A185: 11001 | B185: PASCO | C185: =VLOOKUP(A185,'Allocation 2017-18 Rev_Final'!$A$7:$U$315,21,FALSE)+VLOOKUP(A185,iGRANTS!A:C,5,FALSE) ->  | D185: =IFERROR(VLOOKUP(A185,'Allocation 2017-18 Final'!$A$7:$Y$314,21,FALSE),0)+VLOOKUP(A185,iGRANTS!A:C,5,FALSE) ->  | E185: 0 | F185: 0 | G185: 1 | H185: 1 | M185: 11001 | N185: PASCO
A186: 17415 | B186: KENT | C186: =VLOOKUP(A186,'Allocation 2017-18 Rev_Final'!$A$7:$U$315,21,FALSE)+VLOOKUP(A186,iGRANTS!A:C,5,FALSE) ->  | D186: =IFERROR(VLOOKUP(A186,'Allocation 2017-18 Final'!$A$7:$Y$314,21,FALSE),0)+VLOOKUP(A186,iGRANTS!A:C,5,FALSE) ->  | E186: 0 | F186: 0 | G186: 1 | H186: 1 | M186: 17415 | N186: KENT
A187: 19401 | B187: ELLENSBURG | C187: =VLOOKUP(A187,'Allocation 2017-18 Rev_Final'!$A$7:$U$315,21,FALSE)+VLOOKUP(A187,iGRANTS!A:C,5,FALSE) ->  | D187: =IFERROR(VLOOKUP(A187,'Allocation 2017-18 Final'!$A$7:$Y$314,21,FALSE),0)+VLOOKUP(A187,iGRANTS!A:C,5,FALSE) ->  | E187: 0 | F187: 0 | G187: 1 | H187: 1 | M187: 19401 | N187: ELLENSBURG
A188: 17216 | B188: ENUMCLAW | C188: =VLOOKUP(A188,'Allocation 2017-18 Rev_Final'!$A$7:$U$315,21,FALSE)+VLOOKUP(A188,iGRANTS!A:C,5,FALSE) ->  | D188: =IFERROR(VLOOKUP(A188,'Allocation 2017-18 Final'!$A$7:$Y$314,21,FALSE),0)+VLOOKUP(A188,iGRANTS!A:C,5,FALSE) ->  | E188: 0 | F188: 0 | G188: 1 | H188: 1 | M188: 17216 | N188: ENUMCLAW
A189: 39203 | B189: HIGHLAND | C189: =VLOOKUP(A189,'Allocation 2017-18 Rev_Final'!$A$7:$U$315,21,FALSE)+VLOOKUP(A189,iGRANTS!A:C,5,FALSE) ->  | D189: =IFERROR(VLOOKUP(A189,'Allocation 2017-18 Final'!$A$7:$Y$314,21,FALSE),0)+VLOOKUP(A189,iGRANTS!A:C,5,FALSE) ->  | E189: 0 | F189: 0 | G189: 1 | H189: 1 | M189: 39203 | N189: HIGHLAND
A190: 17417 | B190: NORTHSHORE | C190: =VLOOKUP(A190,'Allocation 2017-18 Rev_Final'!$A$7:$U$315,21,FALSE)+VLOOKUP(A190,iGRANTS!A:C,5,FALSE) ->  | D190: =IFERROR(VLOOKUP(A190,'Allocation 2017-18 Final'!$A$7:$Y$314,21,FALSE),0)+VLOOKUP(A190,iGRANTS!A:C,5,FALSE) ->  | E190: 0 | F190: 0 | G190: 1 | H190: 1 | M190: 17417 | N190: NORTHSHORE
A191: 04246 | B191: WENATCHEE | C191: =VLOOKUP(A191,'Allocation 2017-18 Rev_Final'!$A$7:$U$315,21,FALSE)+VLOOKUP(A191,iGRANTS!A:C,5,FALSE) ->  | D191: =IFERROR(VLOOKUP(A191,'Allocation 2017-18 Final'!$A$7:$Y$314,21,FALSE),0)+VLOOKUP(A191,iGRANTS!A:C,5,FALSE) ->  | E191: 0 | F191: 0 | G191: 1 | H191: 1 | M191: 04246 | N191: WENATCHEE
A192: 17401 | B192: HIGHLINE | C192: =VLOOKUP(A192,'Allocation 2017-18 Rev_Final'!$A$7:$U$315,21,FALSE)+VLOOKUP(A192,iGRANTS!A:C,5,FALSE) ->  | D192: =IFERROR(VLOOKUP(A192,'Allocation 2017-18 Final'!$A$7:$Y$314,21,FALSE),0)+VLOOKUP(A192,iGRANTS!A:C,5,FALSE) ->  | E192: 0 | F192: 0 | G192: 1 | H192: 1 | M192: 17401 | N192: HIGHLINE
A193: 39119 | B193: SELAH | C193: =VLOOKUP(A193,'Allocation 2017-18 Rev_Final'!$A$7:$U$315,21,FALSE)+VLOOKUP(A193,iGRANTS!A:C,5,FALSE) ->  | D193: =IFERROR(VLOOKUP(A193,'Allocation 2017-18 Final'!$A$7:$Y$314,21,FALSE),0)+VLOOKUP(A193,iGRANTS!A:C,5,FALSE) ->  | E193: 0 | F193: 0 | G193: 1 | H193: 1 | M193: 39119 | N193: SELAH
A194: 02420 | B194: ASOTIN-ANATONE | C194: =VLOOKUP(A194,'Allocation 2017-18 Rev_Final'!$A$7:$U$315,21,FALSE)+VLOOKUP(A194,iGRANTS!A:C,5,FALSE) ->  | D194: =IFERROR(VLOOKUP(A194,'Allocation 2017-18 Final'!$A$7:$Y$314,21,FALSE),0)+VLOOKUP(A194,iGRANTS!A:C,5,FALSE) ->  | E194: 0 | F194: 0 | G194: 1 | H194: 1 | M194: 02420 | N194: ASOTIN-ANATONE
A195: 17414 | B195: LAKE WASHINGTON | C195: =VLOOKUP(A195,'Allocation 2017-18 Rev_Final'!$A$7:$U$315,21,FALSE)+VLOOKUP(A195,iGRANTS!A:C,5,FALSE) ->  | D195: =IFERROR(VLOOKUP(A195,'Allocation 2017-18 Final'!$A$7:$Y$314,21,FALSE),0)+VLOOKUP(A195,iGRANTS!A:C,5,FALSE) ->  | E195: 0 | F195: 0 | G195: 1 | H195: 1 | M195: 17414 | N195: LAKE WASHINGTON
A196: 08458 | B196: KELSO | C196: =VLOOKUP(A196,'Allocation 2017-18 Rev_Final'!$A$7:$U$315,21,FALSE)+VLOOKUP(A196,iGRANTS!A:C,5,FALSE) ->  | D196: =IFERROR(VLOOKUP(A196,'Allocation 2017-18 Final'!$A$7:$Y$314,21,FALSE),0)+VLOOKUP(A196,iGRANTS!A:C,5,FALSE) ->  | E196: 0 | F196: 0 | G196: 1 | H196: 1 | M196: 08458 | N196: KELSO
A197: 21401 | B197: CENTRALIA | C197: =VLOOKUP(A197,'Allocation 2017-18 Rev_Final'!$A$7:$U$315,21,FALSE)+VLOOKUP(A197,iGRANTS!A:C,5,FALSE) ->  | D197: =IFERROR(VLOOKUP(A197,'Allocation 2017-18 Final'!$A$7:$Y$314,21,FALSE),0)+VLOOKUP(A197,iGRANTS!A:C,5,FALSE) ->  | E197: 0 | F197: 0 | G197: 1 | H197: 1 | M197: 21401 | N197: CENTRALIA
A198: 32361 | B198: EAST VALLEY (SPK) | C198: =VLOOKUP(A198,'Allocation 2017-18 Rev_Final'!$A$7:$U$315,21,FALSE)+VLOOKUP(A198,iGRANTS!A:C,5,FALSE) ->  | D198: =IFERROR(VLOOKUP(A198,'Allocation 2017-18 Final'!$A$7:$Y$314,21,FALSE),0)+VLOOKUP(A198,iGRANTS!A:C,5,FALSE) ->  | E198: =IFERROR(F198/D198,0) -> 0 | F198: =IFERROR(C198-D198,0) -> 0 | G198: =RANK(E198,$E$6:$E$314,1) -> 1 | H198: =RANK(F198,$F$6:$F$314,1) -> 1 | M198: 32361 | N198: EAST VALLEY (SPK)
A199: 17403 | B199: RENTON | C199: =VLOOKUP(A199,'Allocation 2017-18 Rev_Final'!$A$7:$U$315,21,FALSE)+VLOOKUP(A199,iGRANTS!A:C,5,FALSE) ->  | D199: =IFERROR(VLOOKUP(A199,'Allocation 2017-18 Final'!$A$7:$Y$314,21,FALSE),0)+VLOOKUP(A199,iGRANTS!A:C,5,FALSE) ->  | E199: 0 | F199: 0 | G199: 1 | H199: 1 | M199: 17403 | N199: RENTON
A200: 24350 | B200: METHOW VALLEY | C200: =VLOOKUP(A200,'Allocation 2017-18 Rev_Final'!$A$7:$U$315,21,FALSE)+VLOOKUP(A200,iGRANTS!A:C,5,FALSE) ->  | D200: =IFERROR(VLOOKUP(A200,'Allocation 2017-18 Final'!$A$7:$Y$314,21,FALSE),0)+VLOOKUP(A200,iGRANTS!A:C,5,FALSE) ->  | E200: 0 | F200: 0 | G200: 1 | H200: 1 | M200: 24350 | N200: METHOW VALLEY
... 116 more rows

Sheet District
D2: 2021-22 | E2: 2021-22 | F2: 2020-21 | G2: 2020-21 | H2: 2019-20 | I2: 2019-20 | J2: 2018-19 | K2: 2017-18 | L2: 2016-17 | M2: 2015-16 | N2: 2014-15
D3: Final | E3: Preliminary | F3: Final | G3: Preliminary | H3: Final | I3: Preliminary | J3: Final | K3: 2nd Revised | L3: Revised
C4: Select District Name | D4: ABERDEEN
C5: District Code (CCDDD) | D5: =VLOOKUP(D4,CCDDDD!B:C,2,FALSE) -> 14005
C7: Eisenhower 2001-02 Allocations | D7: =VLOOKUP($D$5,'Allocation 2021-22 Final'!$A$7:$M$321,3,FALSE) -> 0 | E7: =VLOOKUP($D$5,'Allocation 2021-22 Preliminary'!$A$7:$M$321,3,FALSE) -> 0 | F7: =IFERROR(VLOOKUP($D$5,'Allocation 2020-21 Final'!$A$7:$M$317,3,FALSE),0) -> 0 | G7: =IFERROR(VLOOKUP($D$5,'Allocation 2020-21 Preliminary'!$A$7:$M$318,3,FALSE),0) -> 0 | H7: =IFERROR(VLOOKUP($D$5,'Allocation 2019-20 Final'!$A$7:$M$314,3,FALSE),0) -> 0 | I7: =IFERROR(VLOOKUP($D$5,'Allocation 2019-20 Preliminary'!$A$7:$M$316,3,FALSE),0) -> 0 | J7: =IFERROR(VLOOKUP($D$5,'Allocation 2018-19 Final'!$A$7:$M$316,3,FALSE),0) -> 0 | K7: =VLOOKUP($D$5,'Allocation 2017-18 2ndRev_Final'!$A$7:$M$315,3,FALSE) -> 0 | L7: =VLOOKUP($D$5,'Allocation 2016-17 rev_Final'!$A$7:$M$314,3,FALSE) -> 24422 | M7: =VLOOKUP($D$5,'Allocation 2015-16 Final'!$A$7:$M$313,3,FALSE) -> 24422 | N7: =VLOOKUP($D$5,'Allocation 2014-15 Final'!$A$7:$M$304,3,FALSE) -> 24422
C8: Class Size Reduction allocations 2001-02 | D8: =VLOOKUP($D$5,'Allocation 2021-22 Final'!$A$7:$M$321,4,FALSE) -> 0 | E8: =VLOOKUP($D$5,'Allocation 2021-22 Preliminary'!$A$7:$M$321,4,FALSE) -> 0 | F8: =IFERROR(VLOOKUP($D$5,'Allocation 2020-21 Final'!$A$7:$M$317,4,FALSE),0) -> 0 | G8: =IFERROR(VLOOKUP($D$5,'Allocation 2020-21 Preliminary'!$A$7:$M$318,4,FALSE),0) -> 0 | H8: =IFERROR(VLOOKUP($D$5,'Allocation 2019-20 Final'!$A$7:$M$314,4,FALSE),0) -> 0 | I8: =IFERROR(VLOOKUP($D$5,'Allocation 2019-20 Preliminary'!$A$7:$M$316,4,FALSE),0) -> 0 | J8: =IFERROR(VLOOKUP($D$5,'Allocation 2018-19 Final'!$A$7:$M$316,4,FALSE),0) -> 0 | K8: =VLOOKUP($D$5,'Allocation 2017-18 2ndRev_Final'!$A$7:$M$315,4,FALSE) -> 0 | L8: =VLOOKUP($D$5,'Allocation 2016-17 rev_Final'!$A$7:$M$314,4,FALSE) -> 128290 | M8: =VLOOKUP($D$5,'Allocation 2015-16 Final'!$A$7:$M$313,4,FALSE) -> 128290 | N8: =VLOOKUP($D$5,'Allocation 2014-15 Final'!$A$7:$M$304,4,FALSE) -> 128290
C10: Census Population Ages 5-17 | D10: =VLOOKUP($D$5,'Allocation 2021-22 Final'!$A$7:$M$321,5,FALSE) -> 3402 | E10: =VLOOKUP($D$5,'Allocation 2021-22 Preliminary'!$A$7:$M$321,5,FALSE) -> 3384 | F10: =IFERROR(VLOOKUP($D$5,'Allocation 2020-21 Final'!$A$7:$M$317,5,FALSE),0) -> 3343 | G10: =IFERROR(VLOOKUP($D$5,'Allocation 2020-21 Preliminary'!$A$7:$M$318,5,FALSE),0) -> 3341 | H10: =IFERROR(VLOOKUP($D$5,'Allocation 2019-20 Final'!$A$7:$M$314,5,FALSE),0) -> 3269 | I10: =IFERROR(VLOOKUP($D$5,'Allocation 2019-20 Preliminary'!$A$7:$M$316,5,FALSE),0) -> 3269 | J10: =IFERROR(VLOOKUP($D$5,'Allocation 2018-19 Final'!$A$7:$M$315,5,FALSE),0) -> 3257 | K10: =VLOOKUP($D$5,'Allocation 2017-18 2ndRev_Final'!$A$7:$M$315,5,FALSE) -> 3229 | L10: =VLOOKUP($D$5,'Allocation 2016-17 rev_Final'!$A$7:$M$314,5,FALSE) -> 3239 | M10: =VLOOKUP($D$5,'Allocation 2015-16 Final'!$A$7:$M$313,5,FALSE) -> 3253 | N10: =VLOOKUP($D$5,'Allocation 2014-15 Final'!$A$7:$M$304,5,FALSE) -> 3252
C11: 20% based on Total Pop | D11: =VLOOKUP($D$5,'Allocation 2021-22 Final'!$A$7:$M$321,6,FALSE) -> 18525 | E11: =VLOOKUP($D$5,'Allocation 2021-22 Preliminary'!$A$7:$M$321,6,FALSE) -> 18415 | F11: =IFERROR(VLOOKUP($D$5,'Allocation 2020-21 Final'!$A$7:$M$317,6,FALSE),0) -> 17964 | G11: =IFERROR(VLOOKUP($D$5,'Allocation 2020-21 Preliminary'!$A$7:$M$318,6,FALSE),0) -> 17933 | H11: =IFERROR(VLOOKUP($D$5,'Allocation 2019-20 Final'!$A$7:$M$314,6,FALSE),0) -> 17854 | I11: =IFERROR(VLOOKUP($D$5,'Allocation 2019-20 Preliminary'!$A$7:$M$316,6,FALSE),0) -> 17810 | J11: =IFERROR(VLOOKUP($D$5,'Allocation 2018-19 Final'!$A$7:$M$315,6,FALSE),0) -> 17567 | K11: =VLOOKUP($D$5,'Allocation 2017-18 Rev_Final'!$A$7:$M$315,6,FALSE) -> 17590 | L11: =VLOOKUP($D$5,'Allocation 2016-17 rev_Final'!$A$7:$M$314,6,FALSE) -> 1386 | M11: =VLOOKUP($D$5,'Allocation 2015-16 Final'!$A$7:$M$313,6,FALSE) -> 1880 | N11: =VLOOKUP($D$5,'Allocation 2014-15 Final'!$A$7:$M$304,6,FALSE) -> 1883
C12: Census Poverty Ages 5-17 | D12: =VLOOKUP($D$5,'Allocation 2021-22 Final'!$A$7:$M$321,7,FALSE) -> 736 | E12: =VLOOKUP($D$5,'Allocation 2021-22 Preliminary'!$A$7:$M$321,7,FALSE) -> 736 | F12: =IFERROR(VLOOKUP($D$5,'Allocation 2020-21 Final'!$A$7:$M$317,7,FALSE),0) -> 871 | G12: =IFERROR(VLOOKUP($D$5,'Allocation 2020-21 Preliminary'!$A$7:$M$318,7,FALSE),0) -> 871 | H12: =IFERROR(VLOOKUP($D$5,'Allocation 2019-20 Final'!$A$7:$M$314,7,FALSE),0) -> 996 | I12: =IFERROR(VLOOKUP($D$5,'Allocation 2019-20 Preliminary'!$A$7:$M$316,7,FALSE),0) -> 996 | J12: =IFERROR(VLOOKUP($D$5,'Allocation 2018-19 Final'!$A$7:$M$316,7,FALSE),0) -> 835 | K12: =VLOOKUP($D$5,'Allocation 2017-18 2ndRev_Final'!$A$7:$M$315,7,FALSE) -> 859 | L12: =VLOOKUP($D$5,'Allocation 2016-17 rev_Final'!$A$7:$M$314,7,FALSE) -> 941 | M12: =VLOOKUP($D$5,'Allocation 2015-16 Final'!$A$7:$M$313,7,FALSE) -> 964 | N12: =VLOOKUP($D$5,'Allocation 2014-15 Final'!$A$7:$M$304,7,FALSE) -> 1012
C13: 80% based on Low Inc Pop | D13: =VLOOKUP($D$5,'Allocation 2021-22 Final'!$A$7:$M$321,8,FALSE) -> 146202 | E13: =VLOOKUP($D$5,'Allocation 2021-22 Preliminary'!$A$7:$M$321,8,FALSE) -> 146008 | F13: =IFERROR(VLOOKUP($D$5,'Allocation 2020-21 Final'!$A$7:$M$317,8,FALSE),0) -> 162759 | G13: =IFERROR(VLOOKUP($D$5,'Allocation 2020-21 Preliminary'!$A$7:$M$318,8,FALSE),0) -> 162570 | H13: =IFERROR(VLOOKUP($D$5,'Allocation 2019-20 Final'!$A$7:$M$314,8,FALSE),0) -> 165895 | I13: =IFERROR(VLOOKUP($D$5,'Allocation 2019-20 Preliminary'!$A$7:$M$316,8,FALSE),0) -> 165487 | J13: =IFERROR(VLOOKUP($D$5,'Allocation 2018-19 Final'!$A$7:$M$316,8,FALSE),0) -> 143714 | K13: =VLOOKUP($D$5,'Allocation 2017-18 2ndRev_Final'!$A$7:$M$315,8,FALSE) -> 132230 | L13: =VLOOKUP($D$5,'Allocation 2016-17 rev_Final'!$A$7:$M$314,8,FALSE) -> 10197 | M13: =VLOOKUP($D$5,'Allocation 2015-16 Final'!$A$7:$M$313,8,FALSE) -> 13166 | N13: =VLOOKUP($D$5,'Allocation 2014-15 Final'!$A$7:$M$304,8,FALSE) -> 13862
C15: Total Allocation | D15: =VLOOKUP($D$5,'Allocation 2021-22 Final'!$A$7:$R$321,18,FALSE) -> 164727 | E15: =VLOOKUP($D$5,'Allocation 2021-22 Preliminary'!$A$7:$R$321,18,FALSE) -> 164423 | F15: =IFERROR(VLOOKUP($D$5,'Allocation 2020-21 Final'!$A$7:$R$317,18,FALSE),0) -> 180723 | G15: =IFERROR(VLOOKUP($D$5,'Allocation 2020-21 Preliminary'!$A$7:$R$318,18,FALSE),0) -> 180503 | H15: =IFERROR(VLOOKUP($D$5,'Allocation 2019-20 Final'!$A$7:$R$314,18,FALSE),0) -> 183749 | I15: =IFERROR(VLOOKUP($D$5,'Allocation 2019-20 Preliminary'!$A$7:$R$316,18,FALSE),0) -> 183297 | J15: =IFERROR(VLOOKUP($D$5,'Allocation 2018-19 Final'!$A$7:$R$316,18,FALSE),0) -> 161281 | K15: =VLOOKUP($D$5,'Allocation 2017-18 2ndRev_Final'!$A$7:$R$315,18,FALSE) -> 149921 | L15: =VLOOKUP($D$5,'Allocation 2016-17 rev_Final'!$A$7:$R$314,18,FALSE)-IF(D4="Seattle",11,0) -> 164277 | M15: =VLOOKUP($D$5,'Allocation 2015-16 Final'!$A$7:$R$313,18,FALSE)-IF(D4="Seattle",6,0) -> 167716 | N15: =VLOOKUP($D$5,'Allocation 2014-15 Final'!$A$7:$R$304,18,FALSE) -> 168415
C16: Per Student Allocation | D16: =VLOOKUP($D$5,'Allocation 2021-22 Final'!$A$7:$M$321,12,FALSE) -> 0 | E16: =VLOOKUP($D$5,'Allocation 2021-22 Preliminary'!$A$7:$M$321,12,FALSE) -> 0 | F16: =IFERROR(VLOOKUP($D$5,'Allocation 2020-21 Final'!$A$7:$M$317,12,FALSE),0) -> 53.61888854 | G16: =IF(VLOOKUP($D$5,'Allocation 2020-21 Preliminary'!$A$7:$M$318,12,FALSE),0) -> 0 | H16: =IFERROR(VLOOKUP($D$5,'Allocation 2019-20 Final'!$A$7:$M$314,12,FALSE),0) -> 54.40884285 | I16: =IFERROR(VLOOKUP($D$5,'Allocation 2019-20 Preliminary'!$A$7:$M$316,12,FALSE),0) -> 54.27500378 | J16: =IFERROR(VLOOKUP($D$5,'Allocation 2018-19 Final'!$A$7:$M$316,12,FALSE),0) -> 47.06941587 | K16: =VLOOKUP($D$5,'Allocation 2017-18 2ndRev_Final'!$A$7:$M$315,12,FALSE) -> 43.26724387 | L16: =VLOOKUP($D$5,'Allocation 2016-17 rev_Final'!$A$7:$M$314,12,FALSE) -> 50.10827132 | M16: =VLOOKUP($D$5,'Allocation 2015-16 Final'!$A$7:$M$313,12,FALSE) -> 50.39291078 | N16: =VLOOKUP($D$5,'Allocation 2014-15 Final'!$A$7:$M$304,12,FALSE) -> 49.83934911
C17: P-105 District Enrollment | D17: =VLOOKUP($D$5,'Allocation 2021-22 Final'!$A$7:$M$321,13,FALSE) -> 0 | E17: =VLOOKUP($D$5,'Allocation 2021-22 Preliminary'!$A$7:$M$321,13,FALSE) -> 0 | F17: =IFERROR(VLOOKUP($D$5,'Allocation 2020-21 Final'!$A$7:$M$317,13,FALSE),0) -> 3231.51 | G17: =IFERROR(VLOOKUP($D$5,'Allocation 2020-21 Preliminary'!$A$7:$M$318,13,FALSE),0) -> 3239.58 | H17: =IFERROR(VLOOKUP($D$5,'Allocation 2019-20 Final'!$A$7:$M$314,13,FALSE),0) -> 3252.19 | I17: =IFERROR(VLOOKUP($D$5,'Allocation 2019-20 Preliminary'!$A$7:$M$316,13,FALSE),0) -> 3252.19 | J17: =IFERROR(VLOOKUP($D$5,'Allocation 2018-19 Final'!$A$7:$M$316,13,FALSE),0) -> 3301.45 | K17: =VLOOKUP($D$5,'Allocation 2017-18 2ndRev_Final'!$A$7:$M$315,13,FALSE) -> 3340 | L17: =VLOOKUP($D$5,'Allocation 2016-17 rev_Final'!$A$7:$M$314,13,FALSE) -> 3154.8 | M17: =VLOOKUP($D$5,'Allocation 2015-16 Final'!$A$7:$M$313,13,FALSE) -> 3221 | N17: =VLOOKUP($D$5,'Allocation 2014-15 Final'!$A$7:$M$304,13,FALSE) -> 3224
C18: Poverty Percentage | D18: =IF(D10=0,0,D12/D10) -> 0.2163433275 | E18: =IF(E10=0,0,E12/E10) -> 0.2174940898 | F18: 0.2605444212 | G18: =IF(G10=0,0,G12/G10) -> 0.2607003891 | H18: 0.3046803304 | I18: =IF(I10=0,0,I12/I10) -> 0.3046803304 | J18: 0.2563708935 | K18: 0.2660266336 | L18: 0.290521766 | M18: 0.2963418383 | N18: 0.3111931119
C19: Private Participation Enrollment | D19: =VLOOKUP($D$5,'Allocation 2021-22 Final'!$A$7:$N$321,14,FALSE) -> 0 | E19: =VLOOKUP($D$5,'Allocation 2021-22 Preliminary'!$A$7:$N$321,14,FALSE) -> 0 | F19: =IFERROR(VLOOKUP($D$5,'Allocation 2020-21 Final'!$A$7:$N$317,14,FALSE),0) -> 139 | G19: =VLOOKUP($D$5,'Allocation 2020-21 Preliminary'!$A$7:$N$318,14,FALSE) -> 125 | H19: =IFERROR(VLOOKUP($D$5,'Allocation 2019-20 Final'!$A$7:$N$314,14,FALSE),0) -> 125 | I19: =IFERROR(VLOOKUP($D$5,'Allocation 2019-20 Preliminary'!$A$7:$N$316,14,FALSE),0) -> 125 | J19: =IFERROR(VLOOKUP($D$5,'Allocation 2018-19 Final'!$A$7:$N$316,14,FALSE),0) -> 125 | K19: =VLOOKUP($D$5,'Allocation 2017-18 2ndRev_Final'!$A$7:$N$315,14,FALSE) -> 125 | L19: =VLOOKUP($D$5,'Allocation 2016-17 rev_Final'!$A$7:$N$314,14,FALSE) -> 124 | M19: =VLOOKUP($D$5,'Allocation 2015-16 Final'!$A$7:$N$313,14,FALSE) -> 108 | N19: =VLOOKUP($D$5,'Allocation 2014-15 Final'!$A$7:$N$304,14,FALSE) -> 156
C21: MOE Reduction Percentage | D21: =IF(VLOOKUP($D$5,'Allocation 2021-22 Final'!$A$7:$T$321,19,FALSE)=0,0,VLOOKUP($D$5,'Allocation 2021-22 Final'!$A$7:$T$321,19,FALSE)-0.9) -> 0 | E21: =IF(VLOOKUP($D$5,'Allocation 2021-22 Preliminary'!$A$7:$T$321,19,FALSE)=0,0,VLOOKUP($D$5,'Allocation 2021-22 Preliminary'!$A$7:$T$321,19,FALSE)-0.9) -> 0 | F21: =IFERROR(IF(VLOOKUP($D$5,'Allocation 2020-21 Final'!$A$7:$T$317,19,FALSE)=0,0,VLOOKUP($D$5,'Allocation 2020-21 Final'!$A$7:$T$317,19,FALSE)-0.9),0) -> 0 | G21: =IFERROR(IF(VLOOKUP($D$5,'Allocation 2020-21 Preliminary'!$A$7:$T$318,19,FALSE)=0,0,VLOOKUP($D$5,'Allocation 2020-21 Preliminary'!$A$7:$T$318,19,FALSE)-0.9),0) -> 0 | H21: =IFERROR(IF(VLOOKUP($D$5,'Allocation 2019-20 Final'!$A$7:$T$314,19,FALSE)=0,0,VLOOKUP($G$5,'Allocation 2019-20 Final'!$A$7:$T$314,19,FALSE)-0.9),0) -> 0 | I21: =IFERROR(IF(VLOOKUP($D$5,'Allocation 2019-20 Preliminary'!$A$7:$T$316,19,FALSE)=0,0,VLOOKUP($D$5,'Allocation 2019-20 Preliminary'!$A$7:$T$316,19,FALSE)-0.9),0) -> 0 | J21: =IFERROR(IF(VLOOKUP($D$5,'Allocation 2018-19 Final'!$A$7:$T$316,19,FALSE)=0,0,VLOOKUP($D$5,'Allocation 2018-19 Final'!$A$7:$T$316,19,FALSE)-0.9),0) -> 0 | K21: =IF(VLOOKUP($D$5,'Allocation 2017-18 2ndRev_Final'!$A$7:$T$315,19,FALSE)=0,0,VLOOKUP($D$5,'Allocation 2017-18 2ndRev_Final'!$A$7:$T$315,19,FALSE)-0.9) -> 0 | L21: =IF(VLOOKUP($D$5,'Allocation 2016-17 rev_Final'!$A$7:$T$314,19,FALSE)=0,0,VLOOKUP($D$5,'Allocation 2016-17 rev_Final'!$A$7:$T$314,19,FALSE)-0.9) -> 0 | M21: =IF(VLOOKUP($D$5,'Allocation 2015-16 Final'!$A$7:$T$313,19,FALSE)=0,0,VLOOKUP($D$5,'Allocation 2015-16 Final'!$A$7:$T$313,19,FALSE)-0.9) -> 0 | N21: =IF(VLOOKUP($D$5,'Allocation 2014-15 Final'!$A$7:$T$304,19,FALSE)=0,0,VLOOKUP($D$5,'Allocation 2014-15 Final'!$A$7:$T$304,19,FALSE)-0.9) -> 0
C22: MOE Reduction Amount | D22: =VLOOKUP($D$5,'Allocation 2021-22 Final'!$A$7:$T$321,20,FALSE) -> 0 | E22: =VLOOKUP($D$5,'Allocation 2021-22 Preliminary'!$A$7:$T$321,20,FALSE) -> 0 | F22: =IFERROR(VLOOKUP($D$5,'Allocation 2020-21 Final'!$A$7:$T$317,20,FALSE),0) -> 0 | G22: =IFERROR(VLOOKUP($D$5,'Allocation 2020-21 Preliminary'!$A$7:$T$318,20,FALSE),0) -> 0 | H22: =IFERROR(VLOOKUP($D$5,'Allocation 2019-20 Final'!$A$7:$T$314,20,FALSE),0) -> 0 | I22: =IFERROR(VLOOKUP($D$5,'Allocation 2019-20 Preliminary'!$A$7:$T$316,20,FALSE),0) -> 0 | J22: =IFERROR(VLOOKUP($D$5,'Allocation 2018-19 Preliminary'!$A$7:$T$316,20,FALSE),0) -> 0 | K22: =VLOOKUP($D$5,'Allocation 2017-18 2ndRev_Final'!$A$7:$T$315,20,FALSE) -> 0 | L22: =VLOOKUP($D$5,'Allocation 2016-17 rev_Final'!$A$7:$T$314,20,FALSE) -> 0 | M22: =VLOOKUP($D$5,'Allocation 2015-16 Final'!$A$7:$T$313,20,FALSE) -> 0 | N22: =VLOOKUP($D$5,'Allocation 2014-15 Final'!$A$7:$T$304,20,FALSE) -> 0
C23: Prior Year Adjustment (reallocation)
C24: Final Allocation | D24: =+D15+D22+D23 -> 164727 | E24: =+E15+E22+E23 -> 164423 | F24: 180723 | G24: =+G15+G22+G23 -> 180503 | H24: 183749 | I24: =+I15+I22+I23 -> 183297 | J24: 161281 | K24: =+K15+K22+K23 -> 149921 | L24: =+L15+L22 -> 164277 | M24: =+M15+M22 -> 167716 | N24: =+N15+N22 -> 168415
C26: Increase (Decrease) from Prior Year | D26: =D24-E15 -> 304 | E26: -16300 | F26: 220 | G26: -3246 | H26: 452 | I26: 22016 | J26: =IFERROR(J24-K15,0) -> 11360 | K26: -14356 | L26: =L15-M15 -> -3439 | M26: =M15-N15 -> -699
C27: % Change from Prior Year | D27: =IFERROR(D26/E15,"") -> 0.001848889754 | E27: -0.09019327922 | F27: 0.001218816308 | G27: -0.01766540226 | H27: 0.002465943251 | I27: 0.1365070901 | J27: 0.07577324057 | K27: =K26/L15 -> -0.08738898324 | L27: -0.02050490114 | M27: -0.004150461657

Sheet Allocation 2021-22 Final (hidden)
A1: 2021-22 | J1: =IF(J5=Assumptions!$D14+I5,"Rounding OK","Rounding Error = "&FIXED(J5-Assumptions!$C14-I5,TRUE)) -> Rounding Error = 0.0 | T1: =T5 -> 0 | U1: =IF(U5=Assumptions!$D14+T5,"Rounding OK","Rounding Error = "&FIXED(U5-(Assumptions!$C14+T5),TRUE)) -> Rounding Error = 0.0
A2: ESEA -- Title 2 Distributions | J2: Allocation including private participation | U2: \
A3: 1 | B3: 2 | C3: 3 | D3: 4 | E3: 5 | F3: 6 | G3: 7 | H3: 8 | I3: 9 | J3: 10 | K3: 11 | L3: 12 | M3: 13 | N3: 14 | U3: \ | W3: 18
A4: ccddd | B4: District Name | C4: Eisenhower 2001-02 Allocations | D4: Class Size Reduction Allocations 2001-02 | E4: Census Population Ages 5-17 | F4: 20% based on Total Pop | G4: Census Poverty Ages 5-17 | H4: 80% based on Low Inc Pop | I4: MOE | J4: Total Final Allocation | L4: Per Student Allocation | M4: P-105A District Enrollment WO PK | N4: Private School Partcipation Enroll | O4: Alloc to non-Census LEA | P4: Realloc Pool | Q4: Realloc | R4: Final Alloc Before MOE | S4: MOE | T4: MOE Reduction | U4: Final Alloc | W4: Prior Year Allocation | Y4: Change | AA4: Rank Order | AD4: do not delete Y & Z
B5: State Totals | C5: =SUM(C7:C312) -> 0 | D5: =SUM(D7:D312) -> 0 | E5: =SUM(E7:E321) -> 1205968 | F5: =SUM(F7:F321) -> 6566757 | G5: =SUM(G7:G321) -> 132232 | H5: =SUM(H7:H321) -> 26267038 | J5: =SUM(J7:J321) -> 32833796 | L5: =IFERROR(+J5/(+M5+N5),0) -> 0 | M5: =SUM(M7:M321) -> 0 | N5: 0 | O5: 0 | P5: 32833796 | Q5: 0 | R5: 32833796 | T5: =SUM(T7:T321) -> 0 | U5: =SUM(U7:U321) -> 32833796 | W5: =SUM(W7:W321) -> 32219625 | Y5: =SUM(Y7:Y321) -> 614171 | Z5: =MIN(Z7:Z321) -> -1 | AA5: ="Lose = "& PROPER(VLOOKUP(Z5,$Z$7:$AE$321,6,FALSE)) -> Lose = Willow Charter | AD5: =+A5 -> 0 | AE5: =+B5 -> State Totals
Z6: =MAX(Z7:Z313) -> 5.263157895 | AA6: ="Win = "&PROPER(VLOOKUP(Z6,$Z$7:$AE$313,6,FALSE)) -> Win = Index
A7: 14005 | B7: ABERDEEN | C7: 0 | D7: 0 | E7: =IFERROR(VLOOKUP($A7,Census!$A$11:$I$346,7,FALSE),0) -> 3402 | F7: =ROUND(E7/$E$5*Assumptions!$C$14*Assumptions!$C$29,0) -> 18525 | G7: =IFERROR(VLOOKUP($A7,Census!$A$11:$I$495,8,FALSE),0) -> 736 | H7: =ROUND(G7/$G$5*+Assumptions!$C$14*Assumptions!$C$30,0) -> 146202 | J7: =ROUNDDOWN(+H7+F7+D7+C7+I7,0) -> 164727 | L7: =IF((M7+N7=0),0,+J7/(+M7+N7)) -> 0 | M7: =IFERROR(VLOOKUP(A7,ENROLLMENT!$A$5:$B$349,2,FALSE),0)*0 -> 0 | N7: =IFERROR(GETPIVOTDATA("Total W/O Preschool",'Private 19-20'!$O$3,"District Code",A7),0)*0 -> 0 | P7: =J7 -> 164727 | Q7: =-ROUND(P7/$P$5*$O$5,0) -> 0 | R7: =+J7+Q7+O7 -> 164727 | T7: =IF(S7>0,-ROUND((R7*(0.9-S7)),0),0) -> 0 | U7: =+R7+T7 -> 164727 | W7: =IFERROR(VLOOKUP($A7,'Allocation 2020-21 Final'!$A$7:$U$317,18,FALSE),0) -> 180723 | Y7: =+U7-W7 -> -15996 | Z7: =IF(W7>0,Y7/W7,0) -> -0.08851114689 | AA7: =RANK(Y7,$Y$7:$Y$321,0) -> 289 | AB7: =(SUM(C7:D7)/U7) -> 0 | AD7: =+A7 -> 14005 | AE7: ABERDEEN
A8: 21226 | B8: ADNA | C8: 0 | D8: 0 | E8: =IFERROR(VLOOKUP($A8,Census!$A$11:$I$344,7,FALSE),0) -> 772 | F8: =ROUND(E8/$E$5*Assumptions!$C$14*Assumptions!$C$29,0) -> 4204 | G8: =IFERROR(VLOOKUP($A8,Census!$A$11:$I$495,8,FALSE),0) -> 38 | H8: =ROUND(G8/$G$5*+Assumptions!$C$14*Assumptions!$C$30,0) -> 7548 | J8: 11752 | L8: 0 | M8: =IFERROR(VLOOKUP(A8,ENROLLMENT!$A$5:$B$349,2,FALSE),0)*0 -> 0 | N8: =IFERROR(GETPIVOTDATA("Total W/O Preschool",'Private 19-20'!$O$3,"District Code",A8),0)*0 -> 0 | P8: =J8 -> 11752 | Q8: =-ROUND(P8/$P$5*$O$5,0) -> 0 | R8: =+J8+Q8+O8 -> 11752 | T8: =IF(S8>0,-ROUND((R8*(0.9-S8)),0),0) -> 0 | U8: =+R8+T8 -> 11752 | W8: =IFERROR(VLOOKUP($A8,'Allocation 2020-21 Final'!$A$7:$U$317,18,FALSE),0) -> 16433 | Y8: -4681 | Z8: -0.2848536481 | AA8: =RANK(Y8,$Y$7:$Y$321,0) -> 261 | AB8: 0 | AD8: 21226 | AE8: ADNA
A9: 22017 | B9: ALMIRA | C9: 0 | D9: 0 | E9: =IFERROR(VLOOKUP($A9,Census!$A$11:$I$344,7,FALSE),0) -> 90 | F9: =ROUND(E9/$E$5*Assumptions!$C$14*Assumptions!$C$29,0) -> 490 | G9: =IFERROR(VLOOKUP($A9,Census!$A$11:$I$344,8,FALSE),0) -> 9 | H9: =ROUND(G9/$G$5*+Assumptions!$C$14*Assumptions!$C$30,0) -> 1788 | J9: 2278 | L9: 0 | M9: =IFERROR(VLOOKUP(A9,ENROLLMENT!$A$5:$B$349,2,FALSE),0)*0 -> 0 | N9: =IFERROR(GETPIVOTDATA("Total W/O Preschool",'Private 19-20'!$O$3,"District Code",A9),0)*0 -> 0 | P9: 2278 | Q9: 0 | R9: 2278 | T9: 0 | U9: 2278 | W9: =IFERROR(VLOOKUP($A9,'Allocation 2020-21 Final'!$A$7:$U$317,18,FALSE),0) -> 2166 | Y9: 112 | Z9: 0.05170821791 | AA9: 170 | AB9: 0 | AD9: 22017 | AE9: ALMIRA
A10: 29103 | B10: ANACORTES | C10: 0 | D10: 0 | E10: =IFERROR(VLOOKUP($A10,Census!$A$11:$I$344,7,FALSE),0) -> 2778 | F10: =ROUND(E10/$E$5*Assumptions!$C$14*Assumptions!$C$29,0) -> 15127 | G10: =IFERROR(VLOOKUP($A10,Census!$A$11:$I$344,8,FALSE),0) -> 307 | H10: =ROUND(G10/$G$5*+Assumptions!$C$14*Assumptions!$C$30,0) -> 60984 | J10: 76111 | L10: 0 | M10: =IFERROR(VLOOKUP(A10,ENROLLMENT!$A$5:$B$349,2,FALSE),0)*0 -> 0 | N10: =IFERROR(GETPIVOTDATA("Total W/O Preschool",'Private 19-20'!$O$3,"District Code",A10),0)*0 -> 0 | P10: 76111 | Q10: 0 | R10: 76111 | T10: 0 | U10: 76111 | W10: =IFERROR(VLOOKUP($A10,'Allocation 2020-21 Final'!$A$7:$U$317,18,FALSE),0) -> 56722 | Y10: 19389 | Z10: 0.3418250414 | AA10: 30 | AB10: 0 | AD10: 29103 | AE10: ANACORTES
A11: 31016 | B11: ARLINGTON | C11: 0 | D11: 0 | E11: =IFERROR(VLOOKUP($A11,Census!$A$11:$I$344,7,FALSE),0) -> 5966 | F11: =ROUND(E11/$E$5*Assumptions!$C$14*Assumptions!$C$29,0) -> 32486 | G11: =IFERROR(VLOOKUP($A11,Census!$A$11:$I$344,8,FALSE),0) -> 369 | H11: =ROUND(G11/$G$5*+Assumptions!$C$14*Assumptions!$C$30,0) -> 73299 | J11: 105785 | L11: 0 | M11: =IFERROR(VLOOKUP(A11,ENROLLMENT!$A$5:$B$349,2,FALSE),0)*0 -> 0 | N11: =IFERROR(GETPIVOTDATA("Total W/O Preschool",'Private 19-20'!$O$3,"District Code",A11),0)*0 -> 0 | P11: 105785 | Q11: 0 | R11: 105785 | T11: 0 | U11: 105785 | W11: =IFERROR(VLOOKUP($A11,'Allocation 2020-21 Final'!$A$7:$U$317,18,FALSE),0) -> 96619 | Y11: 9166 | Z11: 0.09486746913 | AA11: 51 | AB11: 0 | AD11: 31016 | AE11: ARLINGTON
A12: 02420 | B12: ASOTIN-ANATONE | C12: 0 | D12: 0 | E12: =IFERROR(VLOOKUP($A12,Census!$A$11:$I$344,7,FALSE),0) -> 558 | F12: =ROUND(E12/$E$5*Assumptions!$C$14*Assumptions!$C$29,0) -> 3038 | G12: =IFERROR(VLOOKUP($A12,Census!$A$11:$I$344,8,FALSE),0) -> 55 | H12: =ROUND(G12/$G$5*+Assumptions!$C$14*Assumptions!$C$30,0) -> 10925 | J12: 13963 | L12: 0 | M12: =IFERROR(VLOOKUP(A12,ENROLLMENT!$A$5:$B$349,2,FALSE),0)*0 -> 0 | N12: =IFERROR(GETPIVOTDATA("Total W/O Preschool",'Private 19-20'!$O$3,"District Code",A12),0)*0 -> 0 | P12: 13963 | Q12: 0 | R12: 13963 | T12: 0 | U12: 13963 | W12: =IFERROR(VLOOKUP($A12,'Allocation 2020-21 Final'!$A$7:$U$317,18,FALSE),0) -> 15572 | Y12: -1609 | Z12: -0.1033264834 | AA12: 228 | AB12: 0 | AD12: 02420 | AE12: ASOTIN-ANATONE
A13: 17408 | B13: AUBURN | C13: 0 | D13: 0 | E13: =IFERROR(VLOOKUP($A13,Census!$A$11:$I$344,7,FALSE),0) -> 17308 | F13: =ROUND(E13/$E$5*Assumptions!$C$14*Assumptions!$C$29,0) -> 94246 | G13: =IFERROR(VLOOKUP($A13,Census!$A$11:$I$344,8,FALSE),0) -> 1951 | H13: =ROUND(G13/$G$5*+Assumptions!$C$14*Assumptions!$C$30,0) -> 387554 | J13: 481800 | L13: 0 | M13: =IFERROR(VLOOKUP(A13,ENROLLMENT!$A$5:$B$349,2,FALSE),0)*0 -> 0 | N13: =IFERROR(GETPIVOTDATA("Total W/O Preschool",'Private 19-20'!$O$3,"District Code",A13),0)*0 -> 0 | P13: 481800 | Q13: 0 | R13: 481800 | T13: 0 | U13: 481800 | W13: =IFERROR(VLOOKUP($A13,'Allocation 2020-21 Final'!$A$7:$U$317,18,FALSE),0) -> 556889 | Y13: -75089 | Z13: -0.1348365653 | AA13: 310 | AB13: 0 | AD13: 17408 | AE13: AUBURN
A14: 18303 | B14: BAINBRIDGE ISLAND | C14: 0 | D14: 0 | E14: =IFERROR(VLOOKUP($A14,Census!$A$11:$I$344,7,FALSE),0) -> 4286 | F14: =ROUND(E14/$E$5*Assumptions!$C$14*Assumptions!$C$29,0) -> 23338 | G14: =IFERROR(VLOOKUP($A14,Census!$A$11:$I$344,8,FALSE),0) -> 128 | H14: =ROUND(G14/$G$5*+Assumptions!$C$14*Assumptions!$C$30,0) -> 25426 | J14: 48764 | L14: 0 | M14: =IFERROR(VLOOKUP(A14,ENROLLMENT!$A$5:$B$349,2,FALSE),0)*0 -> 0 | N14: =IFERROR(GETPIVOTDATA("Total W/O Preschool",'Private 19-20'!$O$3,"District Code",A14),0)*0 -> 0 | P14: 48764 | Q14: 0 | R14: 48764 | T14: 0 | U14: 48764 | W14: =IFERROR(VLOOKUP($A14,'Allocation 2020-21 Final'!$A$7:$U$317,18,FALSE),0) -> 52951 | Y14: -4187 | Z14: -0.07907310532 | AA14: 258 | AB14: 0 | AD14: 18303 | AE14: BAINBRIDGE ISLAND
A15: 06119 | B15: BATTLE GROUND | C15: 0 | D15: 0 | E15: =IFERROR(VLOOKUP($A15,Census!$A$11:$I$344,7,FALSE),0) -> 15079 | F15: =ROUND(E15/$E$5*Assumptions!$C$14*Assumptions!$C$29,0) -> 82108 | G15: =IFERROR(VLOOKUP($A15,Census!$A$11:$I$344,8,FALSE),0) -> 1091 | H15: =ROUND(G15/$G$5*+Assumptions!$C$14*Assumptions!$C$30,0) -> 216720 | J15: 298828 | L15: 0 | M15: =IFERROR(VLOOKUP(A15,ENROLLMENT!$A$5:$B$349,2,FALSE),0)*0 -> 0 | N15: =IFERROR(GETPIVOTDATA("Total W/O Preschool",'Private 19-20'!$O$3,"District Code",A15),0)*0 -> 0 | P15: 298828 | Q15: 0 | R15: 298828 | T15: 0 | U15: 298828 | W15: =IFERROR(VLOOKUP($A15,'Allocation 2020-21 Final'!$A$7:$U$317,18,FALSE),0) -> 272355 | Y15: 26473 | Z15: 0.09720034514 | AA15: 24 | AB15: 0 | AD15: 06119 | AE15: BATTLE GROUND
A16: 17405 | B16: BELLEVUE | C16: 0 | D16: 0 | E16: =IFERROR(VLOOKUP($A16,Census!$A$11:$I$344,7,FALSE),0) -> 21599 | F16: =ROUND(E16/$E$5*Assumptions!$C$14*Assumptions!$C$29,0) -> 117611 | G16: =IFERROR(VLOOKUP($A16,Census!$A$11:$I$344,8,FALSE),0) -> 1042 | H16: =ROUND(G16/$G$5*+Assumptions!$C$14*Assumptions!$C$30,0) -> 206987 | J16: 324598 | L16: 0 | M16: =IFERROR(VLOOKUP(A16,ENROLLMENT!$A$5:$B$349,2,FALSE),0)*0 -> 0 | N16: =IFERROR(GETPIVOTDATA("Total W/O Preschool",'Private 19-20'!$O$3,"District Code",A16),0)*0 -> 0 | P16: 324598 | Q16: 0 | R16: 324598 | T16: 0 | U16: 324598 | W16: =IFERROR(VLOOKUP($A16,'Allocation 2020-21 Final'!$A$7:$U$317,18,FALSE),0) -> 375091 | Y16: -50493 | Z16: -0.1346153333 | AA16: 308 | AB16: 0 | AD16: 17405 | AE16: BELLEVUE
A17: 37501 | B17: BELLINGHAM | C17: 0 | D17: 0 | E17: =IFERROR(VLOOKUP($A17,Census!$A$11:$I$344,7,FALSE),0) -> 12961.0134 | F17: =ROUND(E17/$E$5*Assumptions!$C$14*Assumptions!$C$29,0) -> 70576 | G17: =IFERROR(VLOOKUP($A17,Census!$A$11:$I$344,8,FALSE),0) -> 1290.241122 | H17: =ROUND(G17/$G$5*+Assumptions!$C$14*Assumptions!$C$30,0) -> 256298 | J17: 326874 | L17: 0 | M17: =IFERROR(VLOOKUP(A17,ENROLLMENT!$A$5:$B$349,2,FALSE),0)*0 -> 0 | N17: =IFERROR(GETPIVOTDATA("Total W/O Preschool",'Private 19-20'!$O$3,"District Code",A17),0)*0 -> 0 | P17: 326874 | Q17: 0 | R17: 326874 | T17: 0 | U17: 326874 | W17: =IFERROR(VLOOKUP($A17,'Allocation 2020-21 Final'!$A$7:$U$317,18,FALSE),0) -> 361689 | Y17: -34815 | Z17: -0.09625672885 | AA17: 301 | AB17: 0 | AD17: 37501 | AE17: BELLINGHAM
A18: 01122 | B18: BENGE | C18: 0 | D18: 0 | E18: =IFERROR(VLOOKUP($A18,Census!$A$11:$I$344,7,FALSE),0) -> 6 | F18: =ROUND(E18/$E$5*Assumptions!$C$14*Assumptions!$C$29,0) -> 33 | G18: =IFERROR(VLOOKUP($A18,Census!$A$11:$I$344,8,FALSE),0) -> 1 | H18: =ROUND(G18/$G$5*+Assumptions!$C$14*Assumptions!$C$30,0) -> 199 | J18: 232 | L18: 0 | M18: =IFERROR(VLOOKUP(A18,ENROLLMENT!$A$5:$B$349,2,FALSE),0)*0 -> 0 | N18: =IFERROR(GETPIVOTDATA("Total W/O Preschool",'Private 19-20'!$O$3,"District Code",A18),0)*0 -> 0 | P18: 232 | Q18: 0 | R18: 232 | T18: 0 | U18: 232 | W18: =IFERROR(VLOOKUP($A18,'Allocation 2020-21 Final'!$A$7:$U$317,18,FALSE),0) -> 406 | Y18: -174 | Z18: -0.4285714286 | AA18: 190 | AB18: 0 | AD18: 01122 | AE18: BENGE
A19: 27403 | B19: BETHEL | C19: 0 | D19: 0 | E19: =IFERROR(VLOOKUP($A19,Census!$A$11:$I$344,7,FALSE),0) -> 21306 | F19: =ROUND(E19/$E$5*Assumptions!$C$14*Assumptions!$C$29,0) -> 116016 | G19: =IFERROR(VLOOKUP($A19,Census!$A$11:$I$344,8,FALSE),0) -> 2276 | H19: =ROUND(G19/$G$5*+Assumptions!$C$14*Assumptions!$C$30,0) -> 452113 | J19: 568129 | L19: 0 | M19: =IFERROR(VLOOKUP(A19,ENROLLMENT!$A$5:$B$349,2,FALSE),0)*0 -> 0 | N19: =IFERROR(GETPIVOTDATA("Total W/O Preschool",'Private 19-20'!$O$3,"District Code",A19),0)*0 -> 0 | P19: 568129 | Q19: 0 | R19: 568129 | T19: 0 | U19: 568129 | W19: =IFERROR(VLOOKUP($A19,'Allocation 2020-21 Final'!$A$7:$U$317,18,FALSE),0) -> 497605 | Y19: 70524 | Z19: 0.1417268717 | AA19: 10 | AB19: 0 | AD19: 27403 | AE19: BETHEL
A20: 20203 | B20: BICKLETON | C20: 0 | D20: 0 | E20: =IFERROR(VLOOKUP($A20,Census!$A$11:$I$344,7,FALSE),0) -> 62 | F20: =ROUND(E20/$E$5*Assumptions!$C$14*Assumptions!$C$29,0) -> 338 | G20: =IFERROR(VLOOKUP($A20,Census!$A$11:$I$344,8,FALSE),0) -> 7 | H20: =ROUND(G20/$G$5*+Assumptions!$C$14*Assumptions!$C$30,0) -> 1391 | J20: 1729 | L20: 0 | M20: =IFERROR(VLOOKUP(A20,ENROLLMENT!$A$5:$B$349,2,FALSE),0)*0 -> 0 | N20: =IFERROR(GETPIVOTDATA("Total W/O Preschool",'Private 19-20'!$O$3,"District Code",A20),0)*0 -> 0 | P20: 1729 | Q20: 0 | R20: 1729 | T20: 0 | U20: 1729 | W20: =IFERROR(VLOOKUP($A20,'Allocation 2020-21 Final'!$A$7:$U$317,18,FALSE),0) -> 1828 | Y20: -99 | Z20: -0.05415754923 | AA20: 184 | AB20: 0 | AD20: 20203 | AE20: BICKLETON
A21: 37503 | B21: BLAINE | C21: 0 | D21: 0 | E21: =IFERROR(VLOOKUP($A21,Census!$A$11:$I$344,7,FALSE),0) -> 2518 | F21: =ROUND(E21/$E$5*Assumptions!$C$14*Assumptions!$C$29,0) -> 13711 | G21: =IFERROR(VLOOKUP($A21,Census!$A$11:$I$344,8,FALSE),0) -> 377 | H21: =ROUND(G21/$G$5*+Assumptions!$C$14*Assumptions!$C$30,0) -> 74889 | J21: 88600 | L21: 0 | M21: =IFERROR(VLOOKUP(A21,ENROLLMENT!$A$5:$B$349,2,FALSE),0)*0 -> 0 | N21: =IFERROR(GETPIVOTDATA("Total W/O Preschool",'Private 19-20'!$O$3,"District Code",A21),0)*0 -> 0 | P21: 88600 | Q21: 0 | R21: 88600 | T21: 0 | U21: 88600 | W21: =IFERROR(VLOOKUP($A21,'Allocation 2020-21 Final'!$A$7:$U$317,18,FALSE),0) -> 89440 | Y21: -840 | Z21: -0.00939177102 | AA21: 213 | AB21: 0 | AD21: 37503 | AE21: BLAINE
A22: 21234 | B22: BOISTFORT | C22: 0 | D22: 0 | E22: =IFERROR(VLOOKUP($A22,Census!$A$11:$I$344,7,FALSE),0) -> 151 | F22: =ROUND(E22/$E$5*Assumptions!$C$14*Assumptions!$C$29,0) -> 822 | G22: =IFERROR(VLOOKUP($A22,Census!$A$11:$I$344,8,FALSE),0) -> 25 | H22: =ROUND(G22/$G$5*+Assumptions!$C$14*Assumptions!$C$30,0) -> 4966 | J22: 5788 | L22: 0 | M22: =IFERROR(VLOOKUP(A22,ENROLLMENT!$A$5:$B$349,2,FALSE),0)*0 -> 0 | N22: =IFERROR(GETPIVOTDATA("Total W/O Preschool",'Private 19-20'!$O$3,"District Code",A22),0)*0 -> 0 | P22: 5788 | Q22: 0 | R22: 5788 | T22: 0 | U22: 5788 | W22: =IFERROR(VLOOKUP($A22,'Allocation 2020-21 Final'!$A$7:$U$317,18,FALSE),0) -> 5286 | Y22: 502 | Z22: 0.09496783958 | AA22: 154 | AB22: 0 | AD22: 21234 | AE22: BOISTFORT
A23: 18100 | B23: BREMERTON | C23: 0 | D23: 0 | E23: =IFERROR(VLOOKUP($A23,Census!$A$11:$I$344,7,FALSE),0) -> 5165.528083 | F23: =ROUND(E23/$E$5*Assumptions!$C$14*Assumptions!$C$29,0) -> 28127 | G23: =IFERROR(VLOOKUP($A23,Census!$A$11:$I$344,8,FALSE),0) -> 756.7087912 | H23: =ROUND(G23/$G$5*+Assumptions!$C$14*Assumptions!$C$30,0) -> 150315 | J23: 178442 | L23: 0 | M23: =IFERROR(VLOOKUP(A23,ENROLLMENT!$A$5:$B$349,2,FALSE),0)*0 -> 0 | N23: =IFERROR(GETPIVOTDATA("Total W/O Preschool",'Private 19-20'!$O$3,"District Code",A23),0)*0 -> 0 | P23: 178442 | Q23: 0 | R23: 178442 | T23: 0 | U23: 178442 | W23: =IFERROR(VLOOKUP($A23,'Allocation 2020-21 Final'!$A$7:$U$317,18,FALSE),0) -> 205717 | Y23: -27275 | Z23: -0.1325850562 | AA23: 299 | AB23: 0 | AD23: 18100 | AE23: BREMERTON
A24: 24111 | B24: BREWSTER | C24: 0 | D24: 0 | E24: =IFERROR(VLOOKUP($A24,Census!$A$11:$I$344,7,FALSE),0) -> 1080 | F24: =ROUND(E24/$E$5*Assumptions!$C$14*Assumptions!$C$29,0) -> 5881 | G24: =IFERROR(VLOOKUP($A24,Census!$A$11:$I$344,8,FALSE),0) -> 157 | H24: =ROUND(G24/$G$5*+Assumptions!$C$14*Assumptions!$C$30,0) -> 31187 | J24: 37068 | L24: 0 | M24: =IFERROR(VLOOKUP(A24,ENROLLMENT!$A$5:$B$349,2,FALSE),0)*0 -> 0 | N24: =IFERROR(GETPIVOTDATA("Total W/O Preschool",'Private 19-20'!$O$3,"District Code",A24),0)*0 -> 0 | P24: 37068 | Q24: 0 | R24: 37068 | T24: 0 | U24: 37068 | W24: =IFERROR(VLOOKUP($A24,'Allocation 2020-21 Final'!$A$7:$U$317,18,FALSE),0) -> 40266 | Y24: -3198 | Z24: -0.07942184473 | AA24: 250 | AB24: 0 | AD24: 24111 | AE24: BREWSTER
A25: 09075 | B25: BRIDGEPORT | C25: 0 | D25: 0 | E25: =IFERROR(VLOOKUP($A25,Census!$A$11:$I$344,7,FALSE),0) -> 878 | F25: =ROUND(E25/$E$5*Assumptions!$C$14*Assumptions!$C$29,0) -> 4781 | G25: =IFERROR(VLOOKUP($A25,Census!$A$11:$I$344,8,FALSE),0) -> 200 | H25: =ROUND(G25/$G$5*+Assumptions!$C$14*Assumptions!$C$30,0) -> 39729 | J25: 44510 | L25: 0 | M25: =IFERROR(VLOOKUP(A25,ENROLLMENT!$A$5:$B$349,2,FALSE),0)*0 -> 0 | N25: =IFERROR(GETPIVOTDATA("Total W/O Preschool",'Private 19-20'!$O$3,"District Code",A25),0)*0 -> 0 | P25: 44510 | Q25: 0 | R25: 44510 | T25: 0 | U25: 44510 | W25: =IFERROR(VLOOKUP($A25,'Allocation 2020-21 Final'!$A$7:$U$317,18,FALSE),0) -> 36057 | Y25: 8453 | Z25: 0.2344343678 | AA25: 57 | AB25: 0 | AD25: 09075 | AE25: BRIDGEPORT
A26: 16046 | B26: BRINNON | C26: 0 | D26: 0 | E26: =IFERROR(VLOOKUP($A26,Census!$A$11:$I$344,7,FALSE),0) -> 86 | F26: =ROUND(E26/$E$5*Assumptions!$C$14*Assumptions!$C$29,0) -> 468 | G26: =IFERROR(VLOOKUP($A26,Census!$A$11:$I$344,8,FALSE),0) -> 27 | H26: =ROUND(G26/$G$5*+Assumptions!$C$14*Assumptions!$C$30,0) -> 5363 | J26: 5831 | L26: 0 | M26: =IFERROR(VLOOKUP(A26,ENROLLMENT!$A$5:$B$349,2,FALSE),0)*0 -> 0 | N26: =IFERROR(GETPIVOTDATA("Total W/O Preschool",'Private 19-20'!$O$3,"District Code",A26),0)*0 -> 0 | P26: 5831 | Q26: 0 | R26: 5831 | T26: 0 | U26: 5831 | W26: =IFERROR(VLOOKUP($A26,'Allocation 2020-21 Final'!$A$7:$U$317,18,FALSE),0) -> 5496 | Y26: 335 | Z26: 0.06095342067 | AA26: 159 | AB26: 0 | AD26: 16046 | AE26: BRINNON
A27: 29100 | B27: BURLINGTON-EDISON | C27: 0 | D27: 0 | E27: =IFERROR(VLOOKUP($A27,Census!$A$11:$I$344,7,FALSE),0) -> 3855 | F27: =ROUND(E27/$E$5*Assumptions!$C$14*Assumptions!$C$29,0) -> 20991 | G27: =IFERROR(VLOOKUP($A27,Census!$A$11:$I$344,8,FALSE),0) -> 727 | H27: =ROUND(G27/$G$5*+Assumptions!$C$14*Assumptions!$C$30,0) -> 144414 | J27: 165405 | L27: 0 | M27: =IFERROR(VLOOKUP(A27,ENROLLMENT!$A$5:$B$349,2,FALSE),0)*0 -> 0 | N27: =IFERROR(GETPIVOTDATA("Total W/O Preschool",'Private 19-20'!$O$3,"District Code",A27),0)*0 -> 0 | P27: 165405 | Q27: 0 | R27: 165405 | T27: 0 | U27: 165405 | W27: =IFERROR(VLOOKUP($A27,'Allocation 2020-21 Final'!$A$7:$U$317,18,FALSE),0) -> 112935 | Y27: 52470 | Z27: 0.464603533 | AA27: 13 | AB27: 0 | AD27: 29100 | AE27: BURLINGTON-EDISON
A28: 06117 | B28: CAMAS | C28: 0 | D28: 0 | E28: =IFERROR(VLOOKUP($A28,Census!$A$11:$I$344,7,FALSE),0) -> 6713 | F28: =ROUND(E28/$E$5*Assumptions!$C$14*Assumptions!$C$29,0) -> 36554 | G28: =IFERROR(VLOOKUP($A28,Census!$A$11:$I$344,8,FALSE),0) -> 287 | H28: =ROUND(G28/$G$5*+Assumptions!$C$14*Assumptions!$C$30,0) -> 57011 | J28: 93565 | L28: 0 | M28: =IFERROR(VLOOKUP(A28,ENROLLMENT!$A$5:$B$349,2,FALSE),0)*0 -> 0 | N28: =IFERROR(GETPIVOTDATA("Total W/O Preschool",'Private 19-20'!$O$3,"District Code",A28),0)*0 -> 0 | P28: 93565 | Q28: 0 | R28: 93565 | T28: 0 | U28: 93565 | W28: =IFERROR(VLOOKUP($A28,'Allocation 2020-21 Final'!$A$7:$U$317,18,FALSE),0) -> 83496 | Y28: 10069 | Z28: 0.1205926032 | AA28: 47 | AB28: 0 | AD28: 06117 | AE28: CAMAS
A29: 05401 | B29: CAPE FLATTERY | C29: 0 | D29: 0 | E29: =IFERROR(VLOOKUP($A29,Census!$A$11:$I$344,7,FALSE),0) -> 451 | F29: =ROUND(E29/$E$5*Assumptions!$C$14*Assumptions!$C$29,0) -> 2456 | G29: =IFERROR(VLOOKUP($A29,Census!$A$11:$I$344,8,FALSE),0) -> 60 | H29: =ROUND(G29/$G$5*+Assumptions!$C$14*Assumptions!$C$30,0) -> 11919 | J29: 14375 | L29: 0 | M29: =IFERROR(VLOOKUP(A29,ENROLLMENT!$A$5:$B$349,2,FALSE),0)*0 -> 0 | N29: =IFERROR(GETPIVOTDATA("Total W/O Preschool",'Private 19-20'!$O$3,"District Code",A29),0)*0 -> 0 | P29: 14375 | Q29: 0 | R29: 14375 | T29: 0 | U29: 14375 | W29: =IFERROR(VLOOKUP($A29,'Allocation 2020-21 Final'!$A$7:$U$317,18,FALSE),0) -> 14179 | Y29: 196 | Z29: 0.01382325975 | AA29: 167 | AB29: 0 | AD29: 05401 | AE29: CAPE FLATTERY
A30: 27019 | B30: CARBONADO | C30: 0 | D30: 0 | E30: =IFERROR(VLOOKUP($A30,Census!$A$11:$I$344,7,FALSE),0) -> 192 | F30: =ROUND(E30/$E$5*Assumptions!$C$14*Assumptions!$C$29,0) -> 1045 | G30: =IFERROR(VLOOKUP($A30,Census!$A$11:$I$344,8,FALSE),0) -> 13 | H30: =ROUND(G30/$G$5*+Assumptions!$C$14*Assumptions!$C$30,0) -> 2582 | J30: 3627 | L30: 0 | M30: =IFERROR(VLOOKUP(A30,ENROLLMENT!$A$5:$B$349,2,FALSE),0)*0 -> 0 | N30: =IFERROR(GETPIVOTDATA("Total W/O Preschool",'Private 19-20'!$O$3,"District Code",A30),0)*0 -> 0 | P30: 3627 | Q30: 0 | R30: 3627 | T30: 0 | U30: 3627 | W30: =IFERROR(VLOOKUP($A30,'Allocation 2020-21 Final'!$A$7:$U$317,18,FALSE),0) -> 3077 | Y30: 550 | Z30: 0.1787455314 | AA30: 149 | AB30: 0 | AD30: 27019 | AE30: CARBONADO
A31: 04228 | B31: CASCADE | C31: 0 | D31: 0 | E31: =IFERROR(VLOOKUP($A31,Census!$A$11:$I$344,7,FALSE),0) -> 1497 | F31: =ROUND(E31/$E$5*Assumptions!$C$14*Assumptions!$C$29,0) -> 8151 | G31: =IFERROR(VLOOKUP($A31,Census!$A$11:$I$344,8,FALSE),0) -> 198 | H31: =ROUND(G31/$G$5*+Assumptions!$C$14*Assumptions!$C$30,0) -> 39331 | J31: 47482 | L31: 0 | M31: =IFERROR(VLOOKUP(A31,ENROLLMENT!$A$5:$B$349,2,FALSE),0)*0 -> 0 | N31: =IFERROR(GETPIVOTDATA("Total W/O Preschool",'Private 19-20'!$O$3,"District Code",A31),0)*0 -> 0 | P31: 47482 | Q31: 0 | R31: 47482 | T31: 0 | U31: 47482 | W31: =IFERROR(VLOOKUP($A31,'Allocation 2020-21 Final'!$A$7:$U$317,18,FALSE),0) -> 49550 | Y31: -2068 | Z31: -0.04173562059 | AA31: 234 | AB31: 0 | AD31: 04228 | AE31: CASCADE
A32: 04222 | B32: CASHMERE | C32: 0 | D32: 0 | E32: =IFERROR(VLOOKUP($A32,Census!$A$11:$I$344,7,FALSE),0) -> 1382 | F32: =ROUND(E32/$E$5*Assumptions!$C$14*Assumptions!$C$29,0) -> 7525 | G32: =IFERROR(VLOOKUP($A32,Census!$A$11:$I$344,8,FALSE),0) -> 232 | H32: =ROUND(G32/$G$5*+Assumptions!$C$14*Assumptions!$C$30,0) -> 46085 | J32: 53610 | L32: 0 | M32: =IFERROR(VLOOKUP(A32,ENROLLMENT!$A$5:$B$349,2,FALSE),0)*0 -> 0 | N32: =IFERROR(GETPIVOTDATA("Total W/O Preschool",'Private 19-20'!$O$3,"District Code",A32),0)*0 -> 0 | P32: 53610 | Q32: 0 | R32: 53610 | T32: 0 | U32: 53610 | W32: =IFERROR(VLOOKUP($A32,'Allocation 2020-21 Final'!$A$7:$U$317,18,FALSE),0) -> 53599 | Y32: 11 | Z32: 0.0002052277095 | AA32: 179 | AB32: 0 | AD32: 04222 | AE32: CASHMERE
A33: 08401 | B33: CASTLE ROCK | C33: 0 | D33: 0 | E33: =IFERROR(VLOOKUP($A33,Census!$A$11:$I$344,7,FALSE),0) -> 1564 | F33: =ROUND(E33/$E$5*Assumptions!$C$14*Assumptions!$C$29,0) -> 8516 | G33: =IFERROR(VLOOKUP($A33,Census!$A$11:$I$344,8,FALSE),0) -> 163 | H33: =ROUND(G33/$G$5*+Assumptions!$C$14*Assumptions!$C$30,0) -> 32379 | J33: 40895 | L33: 0 | M33: =IFERROR(VLOOKUP(A33,ENROLLMENT!$A$5:$B$349,2,FALSE),0)*0 -> 0 | N33: =IFERROR(GETPIVOTDATA("Total W/O Preschool",'Private 19-20'!$O$3,"District Code",A33),0)*0 -> 0 | P33: 40895 | Q33: 0 | R33: 40895 | T33: 0 | U33: 40895 | W33: =IFERROR(VLOOKUP($A33,'Allocation 2020-21 Final'!$A$7:$U$317,18,FALSE),0) -> 38238 | Y33: 2657 | Z33: 0.06948585177 | AA33: 103 | AB33: 0 | AD33: 08401 | AE33: CASTLE ROCK
A34: 18901 | B34: CATALYST BREMERTON CHARTER | C34: 0 | D34: 0 | E34: =IFERROR(VLOOKUP($A34,Census!$A$11:$I$344,7,FALSE),0) -> 97.89377289 | F34: =ROUND(E34/$E$5*Assumptions!$C$14*Assumptions!$C$29,0) -> 533 | G34: =IFERROR(VLOOKUP($A34,Census!$A$11:$I$344,8,FALSE),0) -> 14.34065934 | H34: =ROUND(G34/$G$5*+Assumptions!$C$14*Assumptions!$C$30,0) -> 2849 | J34: 3382 | L34: 0 | M34: =IFERROR(VLOOKUP(A34,ENROLLMENT!$A$5:$B$349,2,FALSE),0)*0 -> 0 | N34: =IFERROR(GETPIVOTDATA("Total W/O Preschool",'Private 19-20'!$O$3,"District Code",A34),0)*0 -> 0 | P34: 3382 | Q34: 0 | R34: 3382 | T34: 0 | U34: 3382 | W34: =IFERROR(VLOOKUP($A34,'Allocation 2020-21 Final'!$A$7:$U$317,18,FALSE),0) -> 9174 | Y34: -5792 | Z34: -0.6313494659 | AA34: 270 | AB34: 0 | AD34: 18901 | AE34: CATALYST BREMERTON CHARTER
A35: 20215 | B35: CENTERVILLE | C35: 0 | D35: 0 | E35: =IFERROR(VLOOKUP($A35,Census!$A$11:$I$344,7,FALSE),0) -> 77 | F35: =ROUND(E35/$E$5*Assumptions!$C$14*Assumptions!$C$29,0) -> 419 | G35: =IFERROR(VLOOKUP($A35,Census!$A$11:$I$344,8,FALSE),0) -> 12 | H35: =ROUND(G35/$G$5*+Assumptions!$C$14*Assumptions!$C$30,0) -> 2384 | J35: 2803 | L35: 0 | M35: =IFERROR(VLOOKUP(A35,ENROLLMENT!$A$5:$B$349,2,FALSE),0)*0 -> 0 | N35: =IFERROR(GETPIVOTDATA("Total W/O Preschool",'Private 19-20'!$O$3,"District Code",A35),0)*0 -> 0 | P35: 2803 | Q35: 0 | R35: 2803 | T35: 0 | U35: 2803 | W35: =IFERROR(VLOOKUP($A35,'Allocation 2020-21 Final'!$A$7:$U$317,18,FALSE),0) -> 3217 | Y35: -414 | Z35: -0.1286913273 | AA35: 202 | AB35: 0 | AD35: 20215 | AE35: CENTERVILLE
A36: 18401 | B36: CENTRAL KITSAP | C36: 0 | D36: 0 | E36: =IFERROR(VLOOKUP($A36,Census!$A$11:$I$344,7,FALSE),0) -> 11149 | F36: =ROUND(E36/$E$5*Assumptions!$C$14*Assumptions!$C$29,0) -> 60709 | G36: =IFERROR(VLOOKUP($A36,Census!$A$11:$I$344,8,FALSE),0) -> 720 | H36: =ROUND(G36/$G$5*+Assumptions!$C$14*Assumptions!$C$30,0) -> 143023 | J36: 203732 | L36: 0 | M36: =IFERROR(VLOOKUP(A36,ENROLLMENT!$A$5:$B$349,2,FALSE),0)*0 -> 0 | N36: =IFERROR(GETPIVOTDATA("Total W/O Preschool",'Private 19-20'!$O$3,"District Code",A36),0)*0 -> 0 | P36: 203732 | Q36: 0 | R36: 203732 | T36: 0 | U36: 203732 | W36: =IFERROR(VLOOKUP($A36,'Allocation 2020-21 Final'!$A$7:$U$317,18,FALSE),0) -> 249446 | Y36: -45714 | Z36: -0.1832621088 | AA36: 305 | AB36: 0 | AD36: 18401 | AE36: CENTRAL KITSAP
A37: 32356 | B37: CENTRAL VALLEY | C37: 0 | D37: 0 | E37: =IFERROR(VLOOKUP($A37,Census!$A$11:$I$344,7,FALSE),0) -> 15064 | F37: =ROUND(E37/$E$5*Assumptions!$C$14*Assumptions!$C$29,0) -> 82027 | G37: =IFERROR(VLOOKUP($A37,Census!$A$11:$I$344,8,FALSE),0) -> 1365 | H37: =ROUND(G37/$G$5*+Assumptions!$C$14*Assumptions!$C$30,0) -> 271148 | J37: 353175 | L37: 0 | M37: =IFERROR(VLOOKUP(A37,ENROLLMENT!$A$5:$B$349,2,FALSE),0)*0 -> 0 | N37: =IFERROR(GETPIVOTDATA("Total W/O Preschool",'Private 19-20'!$O$3,"District Code",A37),0)*0 -> 0 | P37: 353175 | Q37: 0 | R37: 353175 | T37: 0 | U37: 353175 | W37: =IFERROR(VLOOKUP($A37,'Allocation 2020-21 Final'!$A$7:$U$317,18,FALSE),0) -> 397850 | Y37: -44675 | Z37: -0.1122910645 | AA37: 304 | AB37: 0 | AD37: 32356 | AE37: CENTRAL VALLEY
A38: 21401 | B38: CENTRALIA | C38: 0 | D38: 0 | E38: =IFERROR(VLOOKUP($A38,Census!$A$11:$I$344,7,FALSE),0) -> 3725 | F38: =ROUND(E38/$E$5*Assumptions!$C$14*Assumptions!$C$29,0) -> 20283 | G38: =IFERROR(VLOOKUP($A38,Census!$A$11:$I$344,8,FALSE),0) -> 607 | H38: =ROUND(G38/$G$5*+Assumptions!$C$14*Assumptions!$C$30,0) -> 120577 | J38: 140860 | L38: 0 | M38: =IFERROR(VLOOKUP(A38,ENROLLMENT!$A$5:$B$349,2,FALSE),0)*0 -> 0 | N38: =IFERROR(GETPIVOTDATA("Total W/O Preschool",'Private 19-20'!$O$3,"District Code",A38),0)*0 -> 0 | P38: 140860 | Q38: 0 | R38: 140860 | T38: 0 | U38: 140860 | W38: =IFERROR(VLOOKUP($A38,'Allocation 2020-21 Final'!$A$7:$U$317,18,FALSE),0) -> 142022 | Y38: -1162 | Z38: -0.008181830984 | AA38: 220 | AB38: 0 | AD38: 21401 | AE38: CENTRALIA
A39: 21302 | B39: CHEHALIS | C39: 0 | D39: 0 | E39: =IFERROR(VLOOKUP($A39,Census!$A$11:$I$344,7,FALSE),0) -> 2577 | F39: =ROUND(E39/$E$5*Assumptions!$C$14*Assumptions!$C$29,0) -> 14032 | G39: =IFERROR(VLOOKUP($A39,Census!$A$11:$I$344,8,FALSE),0) -> 228 | H39: =ROUND(G39/$G$5*+Assumptions!$C$14*Assumptions!$C$30,0) -> 45291 | J39: 59323 | L39: 0 | M39: =IFERROR(VLOOKUP(A39,ENROLLMENT!$A$5:$B$349,2,FALSE),0)*0 -> 0 | N39: =IFERROR(GETPIVOTDATA("Total W/O Preschool",'Private 19-20'!$O$3,"District Code",A39),0)*0 -> 0 | P39: 59323 | Q39: 0 | R39: 59323 | T39: 0 | U39: 59323 | W39: =IFERROR(VLOOKUP($A39,'Allocation 2020-21 Final'!$A$7:$U$317,18,FALSE),0) -> 75047 | Y39: -15724 | Z39: -0.2095220329 | AA39: 288 | AB39: 0 | AD39: 21302 | AE39: CHEHALIS
A40: 32360 | B40: CHENEY | C40: 0 | D40: 0 | E40: =IFERROR(VLOOKUP($A40,Census!$A$11:$I$344,7,FALSE),0) -> 4686 | F40: =ROUND(E40/$E$5*Assumptions!$C$14*Assumptions!$C$29,0) -> 25516 | G40: =IFERROR(VLOOKUP($A40,Census!$A$11:$I$344,8,FALSE),0) -> 574 | H40: =ROUND(G40/$G$5*+Assumptions!$C$14*Assumptions!$C$30,0) -> 114021 | J40: 139537 | L40: 0 | M40: =IFERROR(VLOOKUP(A40,ENROLLMENT!$A$5:$B$349,2,FALSE),0)*0 -> 0 | N40: =IFERROR(GETPIVOTDATA("Total W/O Preschool",'Private 19-20'!$O$3,"District Code",A40),0)*0 -> 0 | P40: 139537 | Q40: 0 | R40: 139537 | T40: 0 | U40: 139537 | W40: =IFERROR(VLOOKUP($A40,'Allocation 2020-21 Final'!$A$7:$U$317,18,FALSE),0) -> 131766 | Y40: 7771 | Z40: 0.05897576006 | AA40: 61 | AB40: 0 | AD40: 32360 | AE40: CHENEY
A41: 33036 | B41: CHEWELAH | C41: 0 | D41: 0 | E41: =IFERROR(VLOOKUP($A41,Census!$A$11:$I$344,7,FALSE),0) -> 961 | F41: =ROUND(E41/$E$5*Assumptions!$C$14*Assumptions!$C$29,0) -> 5233 | G41: =IFERROR(VLOOKUP($A41,Census!$A$11:$I$344,8,FALSE),0) -> 247 | H41: =ROUND(G41/$G$5*+Assumptions!$C$14*Assumptions!$C$30,0) -> 49065 | J41: 54298 | L41: 0 | M41: =IFERROR(VLOOKUP(A41,ENROLLMENT!$A$5:$B$349,2,FALSE),0)*0 -> 0 | N41: =IFERROR(GETPIVOTDATA("Total W/O Preschool",'Private 19-20'!$O$3,"District Code",A41),0)*0 -> 0 | P41: 54298 | Q41: 0 | R41: 54298 | T41: 0 | U41: 54298 | W41: =IFERROR(VLOOKUP($A41,'Allocation 2020-21 Final'!$A$7:$U$317,18,FALSE),0) -> 44038 | Y41: 10260 | Z41: 0.2329806077 | AA41: 46 | AB41: 0 | AD41: 33036 | AE41: CHEWELAH
A42: 16049 | B42: CHIMACUM | C42: 0 | D42: 0 | E42: =IFERROR(VLOOKUP($A42,Census!$A$11:$I$344,7,FALSE),0) -> 1095 | F42: =ROUND(E42/$E$5*Assumptions!$C$14*Assumptions!$C$29,0) -> 5963 | G42: =IFERROR(VLOOKUP($A42,Census!$A$11:$I$344,8,FALSE),0) -> 153 | H42: =ROUND(G42/$G$5*+Assumptions!$C$14*Assumptions!$C$30,0) -> 30392 | J42: 36355 | L42: 0 | M42: =IFERROR(VLOOKUP(A42,ENROLLMENT!$A$5:$B$349,2,FALSE),0)*0 -> 0 | N42: =IFERROR(GETPIVOTDATA("Total W/O Preschool",'Private 19-20'!$O$3,"District Code",A42),0)*0 -> 0 | P42: 36355 | Q42: 0 | R42: 36355 | T42: 0 | U42: 36355 | W42: =IFERROR(VLOOKUP($A42,'Allocation 2020-21 Final'!$A$7:$U$317,18,FALSE),0) -> 32312 | Y42: 4043 | Z42: 0.125123793 | AA42: 88 | AB42: 0 | AD42: 16049 | AE42: CHIMACUM
A43: 02250 | B43: CLARKSTON | C43: 0 | D43: 0 | E43: =IFERROR(VLOOKUP($A43,Census!$A$11:$I$344,7,FALSE),0) -> 2817 | F43: =ROUND(E43/$E$5*Assumptions!$C$14*Assumptions!$C$29,0) -> 15339 | G43: =IFERROR(VLOOKUP($A43,Census!$A$11:$I$344,8,FALSE),0) -> 499 | H43: =ROUND(G43/$G$5*+Assumptions!$C$14*Assumptions!$C$30,0) -> 99123 | J43: 114462 | L43: 0 | M43: =IFERROR(VLOOKUP(A43,ENROLLMENT!$A$5:$B$349,2,FALSE),0)*0 -> 0 | N43: =IFERROR(GETPIVOTDATA("Total W/O Preschool",'Private 19-20'!$O$3,"District Code",A43),0)*0 -> 0 | P43: 114462 | Q43: 0 | R43: 114462 | T43: 0 | U43: 114462 | W43: =IFERROR(VLOOKUP($A43,'Allocation 2020-21 Final'!$A$7:$U$317,18,FALSE),0) -> 118182 | Y43: -3720 | Z43: -0.03147687465 | AA43: 256 | AB43: 0 | AD43: 02250 | AE43: CLARKSTON
A44: 19404 | B44: CLE ELUM-ROSLYN | C44: 0 | D44: 0 | E44: =IFERROR(VLOOKUP($A44,Census!$A$11:$I$344,7,FALSE),0) -> 1125 | F44: =ROUND(E44/$E$5*Assumptions!$C$14*Assumptions!$C$29,0) -> 6126 | G44: =IFERROR(VLOOKUP($A44,Census!$A$11:$I$344,8,FALSE),0) -> 170 | H44: =ROUND(G44/$G$5*+Assumptions!$C$14*Assumptions!$C$30,0) -> 33769 | J44: 39895 | L44: 0 | M44: =IFERROR(VLOOKUP(A44,ENROLLMENT!$A$5:$B$349,2,FALSE),0)*0 -> 0 | N44: =IFERROR(GETPIVOTDATA("Total W/O Preschool",'Private 19-20'!$O$3,"District Code",A44),0)*0 -> 0 | P44: 39895 | Q44: 0 | R44: 39895 | T44: 0 | U44: 39895 | W44: =IFERROR(VLOOKUP($A44,'Allocation 2020-21 Final'!$A$7:$U$317,18,FALSE),0) -> 36547 | Y44: 3348 | Z44: 0.09160806633 | AA44: 98 | AB44: 0 | AD44: 19404 | AE44: CLE ELUM-ROSLYN
A45: 27400 | B45: CLOVER PARK | C45: 0 | D45: 0 | E45: =IFERROR(VLOOKUP($A45,Census!$A$11:$I$344,7,FALSE),0) -> 13698 | F45: =ROUND(E45/$E$5*Assumptions!$C$14*Assumptions!$C$29,0) -> 74589 | G45: =IFERROR(VLOOKUP($A45,Census!$A$11:$I$344,8,FALSE),0) -> 2380 | H45: =ROUND(G45/$G$5*+Assumptions!$C$14*Assumptions!$C$30,0) -> 472772 | J45: 547361 | L45: 0 | M45: =IFERROR(VLOOKUP(A45,ENROLLMENT!$A$5:$B$349,2,FALSE),0)*0 -> 0 | N45: =IFERROR(GETPIVOTDATA("Total W/O Preschool",'Private 19-20'!$O$3,"District Code",A45),0)*0 -> 0 | P45: 547361 | Q45: 0 | R45: 547361 | T45: 0 | U45: 547361 | W45: =IFERROR(VLOOKUP($A45,'Allocation 2020-21 Final'!$A$7:$U$317,18,FALSE),0) -> 471935 | Y45: 75426 | Z45: 0.159822857 | AA45: 9 | AB45: 0 | AD45: 27400 | AE45: CLOVER PARK
A46: 38300 | B46: COLFAX | C46: 0 | D46: 0 | E46: =IFERROR(VLOOKUP($A46,Census!$A$11:$I$344,7,FALSE),0) -> 772 | F46: =ROUND(E46/$E$5*Assumptions!$C$14*Assumptions!$C$29,0) -> 4204 | G46: =IFERROR(VLOOKUP($A46,Census!$A$11:$I$344,8,FALSE),0) -> 70 | H46: =ROUND(G46/$G$5*+Assumptions!$C$14*Assumptions!$C$30,0) -> 13905 | J46: 18109 | L46: 0 | M46: =IFERROR(VLOOKUP(A46,ENROLLMENT!$A$5:$B$349,2,FALSE),0)*0 -> 0 | N46: =IFERROR(GETPIVOTDATA("Total W/O Preschool",'Private 19-20'!$O$3,"District Code",A46),0)*0 -> 0 | P46: 18109 | Q46: 0 | R46: 18109 | T46: 0 | U46: 18109 | W46: =IFERROR(VLOOKUP($A46,'Allocation 2020-21 Final'!$A$7:$U$317,18,FALSE),0) -> 14346 | Y46: 3763 | Z46: 0.262303081 | AA46: 94 | AB46: 0 | AD46: 38300 | AE46: COLFAX
A47: 36250 | B47: COLLEGE PLACE | C47: 0 | D47: 0 | E47: =IFERROR(VLOOKUP($A47,Census!$A$11:$I$344,7,FALSE),0) -> 1903 | F47: =ROUND(E47/$E$5*Assumptions!$C$14*Assumptions!$C$29,0) -> 10362 | G47: =IFERROR(VLOOKUP($A47,Census!$A$11:$I$344,8,FALSE),0) -> 221 | H47: =ROUND(G47/$G$5*+Assumptions!$C$14*Assumptions!$C$30,0) -> 43900 | J47: 54262 | L47: 0 | M47: =IFERROR(VLOOKUP(A47,ENROLLMENT!$A$5:$B$349,2,FALSE),0)*0 -> 0 | N47: =IFERROR(GETPIVOTDATA("Total W/O Preschool",'Private 19-20'!$O$3,"District Code",A47),0)*0 -> 0 | P47: 54262 | Q47: 0 | R47: 54262 | T47: 0 | U47: 54262 | W47: =IFERROR(VLOOKUP($A47,'Allocation 2020-21 Final'!$A$7:$U$317,18,FALSE),0) -> 54984 | Y47: -722 | Z47: -0.01313109268 | AA47: 209 | AB47: 0 | AD47: 36250 | AE47: COLLEGE PLACE
A48: 38306 | B48: COLTON | C48: 0 | D48: 0 | E48: =IFERROR(VLOOKUP($A48,Census!$A$11:$I$344,7,FALSE),0) -> 250 | F48: =ROUND(E48/$E$5*Assumptions!$C$14*Assumptions!$C$29,0) -> 1361 | G48: =IFERROR(VLOOKUP($A48,Census!$A$11:$I$344,8,FALSE),0) -> 17 | H48: =ROUND(G48/$G$5*+Assumptions!$C$14*Assumptions!$C$30,0) -> 3377 | J48: 4738 | L48: 0 | M48: =IFERROR(VLOOKUP(A48,ENROLLMENT!$A$5:$B$349,2,FALSE),0)*0 -> 0 | N48: =IFERROR(GETPIVOTDATA("Total W/O Preschool",'Private 19-20'!$O$3,"District Code",A48),0)*0 -> 0 | P48: 4738 | Q48: 0 | R48: 4738 | T48: 0 | U48: 4738 | W48: =IFERROR(VLOOKUP($A48,'Allocation 2020-21 Final'!$A$7:$U$317,18,FALSE),0) -> 4867 | Y48: -129 | Z48: -0.0265050339 | AA48: 187 | AB48: 0 | AD48: 38306 | AE48: COLTON
A49: 33206 | B49: COLUMBIA (STEV) | C49: 0 | D49: 0 | E49: =IFERROR(VLOOKUP($A49,Census!$A$11:$I$344,7,FALSE),0) -> 193 | F49: =ROUND(E49/$E$5*Assumptions!$C$14*Assumptions!$C$29,0) -> 1051 | G49: =IFERROR(VLOOKUP($A49,Census!$A$11:$I$344,8,FALSE),0) -> 43 | H49: =ROUND(G49/$G$5*+Assumptions!$C$14*Assumptions!$C$30,0) -> 8542 | J49: 9593 | L49: 0 | M49: =IFERROR(VLOOKUP(A49,ENROLLMENT!$A$5:$B$349,2,FALSE),0)*0 -> 0 | N49: =IFERROR(GETPIVOTDATA("Total W/O Preschool",'Private 19-20'!$O$3,"District Code",A49),0)*0 -> 0 | P49: 9593 | Q49: 0 | R49: 9593 | T49: 0 | U49: 9593 | W49: =IFERROR(VLOOKUP($A49,'Allocation 2020-21 Final'!$A$7:$U$317,18,FALSE),0) -> 7951 | Y49: 1642 | Z49: 0.2065149038 | AA49: 118 | AB49: 0 | AD49: 33206 | AE49: COLUMBIA (STEV)
A50: 36400 | B50: COLUMBIA (WALLA) | C50: 0 | D50: 0 | E50: =IFERROR(VLOOKUP($A50,Census!$A$11:$I$344,7,FALSE),0) -> 766 | F50: =ROUND(E50/$E$5*Assumptions!$C$14*Assumptions!$C$29,0) -> 4171 | G50: =IFERROR(VLOOKUP($A50,Census!$A$11:$I$344,8,FALSE),0) -> 159 | H50: =ROUND(G50/$G$5*+Assumptions!$C$14*Assumptions!$C$30,0) -> 31584 | J50: 35755 | L50: 0 | M50: =IFERROR(VLOOKUP(A50,ENROLLMENT!$A$5:$B$349,2,FALSE),0)*0 -> 0 | N50: =IFERROR(GETPIVOTDATA("Total W/O Preschool",'Private 19-20'!$O$3,"District Code",A50),0)*0 -> 0 | P50: 35755 | Q50: 0 | R50: 35755 | T50: 0 | U50: 35755 | W50: =IFERROR(VLOOKUP($A50,'Allocation 2020-21 Final'!$A$7:$U$317,18,FALSE),0) -> 29754 | Y50: 6001 | Z50: 0.2016871681 | AA50: 71 | AB50: 0 | AD50: 36400 | AE50: COLUMBIA (WALLA)
A51: 33115 | B51: COLVILLE | C51: 0 | D51: 0 | E51: =IFERROR(VLOOKUP($A51,Census!$A$11:$I$344,7,FALSE),0) -> 1821 | F51: =ROUND(E51/$E$5*Assumptions!$C$14*Assumptions!$C$29,0) -> 9916 | G51: =IFERROR(VLOOKUP($A51,Census!$A$11:$I$344,8,FALSE),0) -> 381 | H51: =ROUND(G51/$G$5*+Assumptions!$C$14*Assumptions!$C$30,0) -> 75683 | J51: 85599 | L51: 0 | M51: =IFERROR(VLOOKUP(A51,ENROLLMENT!$A$5:$B$349,2,FALSE),0)*0 -> 0 | N51: =IFERROR(GETPIVOTDATA("Total W/O Preschool",'Private 19-20'!$O$3,"District Code",A51),0)*0 -> 0 | P51: 85599 | Q51: 0 | R51: 85599 | T51: 0 | U51: 85599 | W51: =IFERROR(VLOOKUP($A51,'Allocation 2020-21 Final'!$A$7:$U$317,18,FALSE),0) -> 71274 | Y51: 14325 | Z51: 0.2009849314 | AA51: 37 | AB51: 0 | AD51: 33115 | AE51: COLVILLE
A52: 29011 | B52: CONCRETE | C52: 0 | D52: 0 | E52: =IFERROR(VLOOKUP($A52,Census!$A$11:$I$344,7,FALSE),0) -> 744 | F52: =ROUND(E52/$E$5*Assumptions!$C$14*Assumptions!$C$29,0) -> 4051 | G52: =IFERROR(VLOOKUP($A52,Census!$A$11:$I$344,8,FALSE),0) -> 117 | H52: =ROUND(G52/$G$5*+Assumptions!$C$14*Assumptions!$C$30,0) -> 23241 | J52: 27292 | L52: 0 | M52: =IFERROR(VLOOKUP(A52,ENROLLMENT!$A$5:$B$349,2,FALSE),0)*0 -> 0 | N52: =IFERROR(GETPIVOTDATA("Total W/O Preschool",'Private 19-20'!$O$3,"District Code",A52),0)*0 -> 0 | P52: 27292 | Q52: 0 | R52: 27292 | T52: 0 | U52: 27292 | W52: =IFERROR(VLOOKUP($A52,'Allocation 2020-21 Final'!$A$7:$U$317,18,FALSE),0) -> 16876 | Y52: 10416 | Z52: 0.6172078692 | AA52: 45 | AB52: 0 | AD52: 29011 | AE52: CONCRETE
A53: 29317 | B53: CONWAY | C53: 0 | D53: 0 | E53: =IFERROR(VLOOKUP($A53,Census!$A$11:$I$344,7,FALSE),0) -> 569 | F53: =ROUND(E53/$E$5*Assumptions!$C$14*Assumptions!$C$29,0) -> 3098 | G53: =IFERROR(VLOOKUP($A53,Census!$A$11:$I$344,8,FALSE),0) -> 40 | H53: =ROUND(G53/$G$5*+Assumptions!$C$14*Assumptions!$C$30,0) -> 7946 | J53: 11044 | L53: 0 | M53: =IFERROR(VLOOKUP(A53,ENROLLMENT!$A$5:$B$349,2,FALSE),0)*0 -> 0 | N53: =IFERROR(GETPIVOTDATA("Total W/O Preschool",'Private 19-20'!$O$3,"District Code",A53),0)*0 -> 0 | P53: 11044 | Q53: 0 | R53: 11044 | T53: 0 | U53: 11044 | W53: =IFERROR(VLOOKUP($A53,'Allocation 2020-21 Final'!$A$7:$U$317,18,FALSE),0) -> 8653 | Y53: 2391 | Z53: 0.2763203513 | AA53: 108 | AB53: 0 | AD53: 29317 | AE53: CONWAY
A54: 14099 | B54: COSMOPOLIS | C54: 0 | D54: 0 | E54: =IFERROR(VLOOKUP($A54,Census!$A$11:$I$344,7,FALSE),0) -> 334 | F54: =ROUND(E54/$E$5*Assumptions!$C$14*Assumptions!$C$29,0) -> 1819 | G54: =IFERROR(VLOOKUP($A54,Census!$A$11:$I$344,8,FALSE),0) -> 22 | H54: =ROUND(G54/$G$5*+Assumptions!$C$14*Assumptions!$C$30,0) -> 4370 | J54: 6189 | L54: 0 | M54: =IFERROR(VLOOKUP(A54,ENROLLMENT!$A$5:$B$349,2,FALSE),0)*0 -> 0 | N54: =IFERROR(GETPIVOTDATA("Total W/O Preschool",'Private 19-20'!$O$3,"District Code",A54),0)*0 -> 0 | P54: 6189 | Q54: 0 | R54: 6189 | T54: 0 | U54: 6189 | W54: =IFERROR(VLOOKUP($A54,'Allocation 2020-21 Final'!$A$7:$U$317,18,FALSE),0) -> 7011 | Y54: -822 | Z54: -0.1172443303 | AA54: 212 | AB54: 0 | AD54: 14099 | AE54: COSMOPOLIS
A55: 13151 | B55: COULEE-HARTLINE | C55: 0 | D55: 0 | E55: =IFERROR(VLOOKUP($A55,Census!$A$11:$I$344,7,FALSE),0) -> 210 | F55: =ROUND(E55/$E$5*Assumptions!$C$14*Assumptions!$C$29,0) -> 1143 | G55: =IFERROR(VLOOKUP($A55,Census!$A$11:$I$344,8,FALSE),0) -> 20 | H55: =ROUND(G55/$G$5*+Assumptions!$C$14*Assumptions!$C$30,0) -> 3973 | J55: 5116 | L55: 0 | M55: =IFERROR(VLOOKUP(A55,ENROLLMENT!$A$5:$B$349,2,FALSE),0)*0 -> 0 | N55: =IFERROR(GETPIVOTDATA("Total W/O Preschool",'Private 19-20'!$O$3,"District Code",A55),0)*0 -> 0 | P55: 5116 | Q55: 0 | R55: 5116 | T55: 0 | U55: 5116 | W55: =IFERROR(VLOOKUP($A55,'Allocation 2020-21 Final'!$A$7:$U$317,18,FALSE),0) -> 8603 | Y55: -3487 | Z55: -0.4053237243 | AA55: 255 | AB55: 0 | AD55: 13151 | AE55: COULEE-HARTLINE
A56: 15204 | B56: COUPEVILLE | C56: 0 | D56: 0 | E56: =IFERROR(VLOOKUP($A56,Census!$A$11:$I$344,7,FALSE),0) -> 1054 | F56: =ROUND(E56/$E$5*Assumptions!$C$14*Assumptions!$C$29,0) -> 5739 | G56: =IFERROR(VLOOKUP($A56,Census!$A$11:$I$344,8,FALSE),0) -> 134 | H56: =ROUND(G56/$G$5*+Assumptions!$C$14*Assumptions!$C$30,0) -> 26618 | J56: 32357 | L56: 0 | M56: =IFERROR(VLOOKUP(A56,ENROLLMENT!$A$5:$B$349,2,FALSE),0)*0 -> 0 | N56: =IFERROR(GETPIVOTDATA("Total W/O Preschool",'Private 19-20'!$O$3,"District Code",A56),0)*0 -> 0 | P56: 32357 | Q56: 0 | R56: 32357 | T56: 0 | U56: 32357 | W56: =IFERROR(VLOOKUP($A56,'Allocation 2020-21 Final'!$A$7:$U$317,18,FALSE),0) -> 28184 | Y56: 4173 | Z56: 0.1480627306 | AA56: 87 | AB56: 0 | AD56: 15204 | AE56: COUPEVILLE
A57: 05313 | B57: CRESCENT | C57: 0 | D57: 0 | E57: =IFERROR(VLOOKUP($A57,Census!$A$11:$I$344,7,FALSE),0) -> 362 | F57: =ROUND(E57/$E$5*Assumptions!$C$14*Assumptions!$C$29,0) -> 1971 | G57: =IFERROR(VLOOKUP($A57,Census!$A$11:$I$344,8,FALSE),0) -> 43 | H57: =ROUND(G57/$G$5*+Assumptions!$C$14*Assumptions!$C$30,0) -> 8542 | J57: 10513 | L57: 0 | M57: =IFERROR(VLOOKUP(A57,ENROLLMENT!$A$5:$B$349,2,FALSE),0)*0 -> 0 | N57: =IFERROR(GETPIVOTDATA("Total W/O Preschool",'Private 19-20'!$O$3,"District Code",A57),0)*0 -> 0 | P57: 10513 | Q57: 0 | R57: 10513 | T57: 0 | U57: 10513 | W57: =IFERROR(VLOOKUP($A57,'Allocation 2020-21 Final'!$A$7:$U$317,18,FALSE),0) -> 10338 | Y57: 175 | Z57: 0.01692783904 | AA57: 168 | AB57: 0 | AD57: 05313 | AE57: CRESCENT
A58: 22073 | B58: CRESTON | C58: 0 | D58: 0 | E58: =IFERROR(VLOOKUP($A58,Census!$A$11:$I$344,7,FALSE),0) -> 95 | F58: =ROUND(E58/$E$5*Assumptions!$C$14*Assumptions!$C$29,0) -> 517 | G58: =IFERROR(VLOOKUP($A58,Census!$A$11:$I$344,8,FALSE),0) -> 15 | H58: =ROUND(G58/$G$5*+Assumptions!$C$14*Assumptions!$C$30,0) -> 2980 | J58: 3497 | L58: 0 | M58: =IFERROR(VLOOKUP(A58,ENROLLMENT!$A$5:$B$349,2,FALSE),0)*0 -> 0 | N58: =IFERROR(GETPIVOTDATA("Total W/O Preschool",'Private 19-20'!$O$3,"District Code",A58),0)*0 -> 0 | P58: 3497 | Q58: 0 | R58: 3497 | T58: 0 | U58: 3497 | W58: =IFERROR(VLOOKUP($A58,'Allocation 2020-21 Final'!$A$7:$U$317,18,FALSE),0) -> 2374 | Y58: 1123 | Z58: 0.4730412805 | AA58: 134 | AB58: 0 | AD58: 22073 | AE58: CRESTON
A59: 10050 | B59: CURLEW | C59: 0 | D59: 0 | E59: =IFERROR(VLOOKUP($A59,Census!$A$11:$I$344,7,FALSE),0) -> 179 | F59: =ROUND(E59/$E$5*Assumptions!$C$14*Assumptions!$C$29,0) -> 975 | G59: =IFERROR(VLOOKUP($A59,Census!$A$11:$I$344,8,FALSE),0) -> 66 | H59: =ROUND(G59/$G$5*+Assumptions!$C$14*Assumptions!$C$30,0) -> 13110 | J59: 14085 | L59: 0 | M59: =IFERROR(VLOOKUP(A59,ENROLLMENT!$A$5:$B$349,2,FALSE),0)*0 -> 0 | N59: =IFERROR(GETPIVOTDATA("Total W/O Preschool",'Private 19-20'!$O$3,"District Code",A59),0)*0 -> 0 | P59: 14085 | Q59: 0 | R59: 14085 | T59: 0 | U59: 14085 | W59: =IFERROR(VLOOKUP($A59,'Allocation 2020-21 Final'!$A$7:$U$317,18,FALSE),0) -> 8671 | Y59: 5414 | Z59: 0.6243801176 | AA59: 78 | AB59: 0 | AD59: 10050 | AE59: CURLEW
A60: 26059 | B60: CUSICK | C60: 0 | D60: 0 | E60: =IFERROR(VLOOKUP($A60,Census!$A$11:$I$344,7,FALSE),0) -> 307 | F60: =ROUND(E60/$E$5*Assumptions!$C$14*Assumptions!$C$29,0) -> 1672 | G60: =IFERROR(VLOOKUP($A60,Census!$A$11:$I$344,8,FALSE),0) -> 115 | H60: =ROUND(G60/$G$5*+Assumptions!$C$14*Assumptions!$C$30,0) -> 22844 | J60: 24516 | L60: 0 | M60: =IFERROR(VLOOKUP(A60,ENROLLMENT!$A$5:$B$349,2,FALSE),0)*0 -> 0 | N60: =IFERROR(GETPIVOTDATA("Total W/O Preschool",'Private 19-20'!$O$3,"District Code",A60),0)*0 -> 0 | P60: 24516 | Q60: 0 | R60: 24516 | T60: 0 | U60: 24516 | W60: =IFERROR(VLOOKUP($A60,'Allocation 2020-21 Final'!$A$7:$U$317,18,FALSE),0) -> 17347 | Y60: 7169 | Z60: 0.4132703061 | AA60: 64 | AB60: 0 | AD60: 26059 | AE60: CUSICK
A61: 19007 | B61: DAMMAN | C61: 0 | D61: 0 | E61: =IFERROR(VLOOKUP($A61,Census!$A$11:$I$344,7,FALSE),0) -> 163 | F61: =ROUND(E61/$E$5*Assumptions!$C$14*Assumptions!$C$29,0) -> 888 | G61: =IFERROR(VLOOKUP($A61,Census!$A$11:$I$344,8,FALSE),0) -> 3 | H61: =ROUND(G61/$G$5*+Assumptions!$C$14*Assumptions!$C$30,0) -> 596 | J61: 1484 | L61: 0 | M61: =IFERROR(VLOOKUP(A61,ENROLLMENT!$A$5:$B$349,2,FALSE),0)*0 -> 0 | N61: =IFERROR(GETPIVOTDATA("Total W/O Preschool",'Private 19-20'!$O$3,"District Code",A61),0)*0 -> 0 | P61: 1484 | Q61: 0 | R61: 1484 | T61: 0 | U61: 1484 | W61: =IFERROR(VLOOKUP($A61,'Allocation 2020-21 Final'!$A$7:$U$317,18,FALSE),0) -> 2002 | Y61: -518 | Z61: -0.2587412587 | AA61: 205 | AB61: 0 | AD61: 19007 | AE61: DAMMAN
A62: 31330 | B62: DARRINGTON | C62: 0 | D62: 0 | E62: =IFERROR(VLOOKUP($A62,Census!$A$11:$I$344,7,FALSE),0) -> 591 | F62: =ROUND(E62/$E$5*Assumptions!$C$14*Assumptions!$C$29,0) -> 3218 | G62: =IFERROR(VLOOKUP($A62,Census!$A$11:$I$344,8,FALSE),0) -> 47 | H62: =ROUND(G62/$G$5*+Assumptions!$C$14*Assumptions!$C$30,0) -> 9336 | J62: 12554 | L62: 0 | M62: =IFERROR(VLOOKUP(A62,ENROLLMENT!$A$5:$B$349,2,FALSE),0)*0 -> 0 | N62: =IFERROR(GETPIVOTDATA("Total W/O Preschool",'Private 19-20'!$O$3,"District Code",A62),0)*0 -> 0 | P62: 12554 | Q62: 0 | R62: 12554 | T62: 0 | U62: 12554 | W62: =IFERROR(VLOOKUP($A62,'Allocation 2020-21 Final'!$A$7:$U$317,18,FALSE),0) -> 11398 | Y62: 1156 | Z62: 0.101421302 | AA62: 131 | AB62: 0 | AD62: 31330 | AE62: DARRINGTON
A63: 22207 | B63: DAVENPORT | C63: 0 | D63: 0 | E63: =IFERROR(VLOOKUP($A63,Census!$A$11:$I$344,7,FALSE),0) -> 601 | F63: =ROUND(E63/$E$5*Assumptions!$C$14*Assumptions!$C$29,0) -> 3273 | G63: =IFERROR(VLOOKUP($A63,Census!$A$11:$I$344,8,FALSE),0) -> 89 | H63: =ROUND(G63/$G$5*+Assumptions!$C$14*Assumptions!$C$30,0) -> 17679 | J63: 20952 | L63: 0 | M63: =IFERROR(VLOOKUP(A63,ENROLLMENT!$A$5:$B$349,2,FALSE),0)*0 -> 0 | N63: =IFERROR(GETPIVOTDATA("Total W/O Preschool",'Private 19-20'!$O$3,"District Code",A63),0)*0 -> 0 | P63: 20952 | Q63: 0 | R63: 20952 | T63: 0 | U63: 20952 | W63: =IFERROR(VLOOKUP($A63,'Allocation 2020-21 Final'!$A$7:$U$317,18,FALSE),0) -> 21345 | Y63: -393 | Z63: -0.01841180604 | AA63: 200 | AB63: 0 | AD63: 22207 | AE63: DAVENPORT
A64: 07002 | B64: DAYTON | C64: 0 | D64: 0 | E64: =IFERROR(VLOOKUP($A64,Census!$A$11:$I$344,7,FALSE),0) -> 499 | F64: =ROUND(E64/$E$5*Assumptions!$C$14*Assumptions!$C$29,0) -> 2717 | G64: =IFERROR(VLOOKUP($A64,Census!$A$11:$I$344,8,FALSE),0) -> 70 | H64: =ROUND(G64/$G$5*+Assumptions!$C$14*Assumptions!$C$30,0) -> 13905 | J64: 16622 | L64: 0 | M64: =IFERROR(VLOOKUP(A64,ENROLLMENT!$A$5:$B$349,2,FALSE),0)*0 -> 0 | N64: =IFERROR(GETPIVOTDATA("Total W/O Preschool",'Private 19-20'!$O$3,"District Code",A64),0)*0 -> 0 | P64: 16622 | Q64: 0 | R64: 16622 | T64: 0 | U64: 16622 | W64: =IFERROR(VLOOKUP($A64,'Allocation 2020-21 Final'!$A$7:$U$317,18,FALSE),0) -> 18913 | Y64: -2291 | Z64: -0.1211336118 | AA64: 236 | AB64: 0 | AD64: 07002 | AE64: DAYTON
A65: 32414 | B65: DEER PARK | C65: 0 | D65: 0 | E65: =IFERROR(VLOOKUP($A65,Census!$A$11:$I$344,7,FALSE),0) -> 2223 | F65: =ROUND(E65/$E$5*Assumptions!$C$14*Assumptions!$C$29,0) -> 12105 | G65: =IFERROR(VLOOKUP($A65,Census!$A$11:$I$344,8,FALSE),0) -> 308 | H65: =ROUND(G65/$G$5*+Assumptions!$C$14*Assumptions!$C$30,0) -> 61182 | J65: 73287 | L65: 0 | M65: =IFERROR(VLOOKUP(A65,ENROLLMENT!$A$5:$B$349,2,FALSE),0)*0 -> 0 | N65: =IFERROR(GETPIVOTDATA("Total W/O Preschool",'Private 19-20'!$O$3,"District Code",A65),0)*0 -> 0 | P65: 73287 | Q65: 0 | R65: 73287 | T65: 0 | U65: 73287 | W65: =IFERROR(VLOOKUP($A65,'Allocation 2020-21 Final'!$A$7:$U$317,18,FALSE),0) -> 68282 | Y65: 5005 | Z65: 0.07329896605 | AA65: 82 | AB65: 0 | AD65: 32414 | AE65: DEER PARK
A66: 27343 | B66: DIERINGER | C66: 0 | D66: 0 | E66: =IFERROR(VLOOKUP($A66,Census!$A$11:$I$344,7,FALSE),0) -> 1919 | F66: =ROUND(E66/$E$5*Assumptions!$C$14*Assumptions!$C$29,0) -> 10449 | G66: =IFERROR(VLOOKUP($A66,Census!$A$11:$I$344,8,FALSE),0) -> 78 | H66: =ROUND(G66/$G$5*+Assumptions!$C$14*Assumptions!$C$30,0) -> 15494 | J66: 25943 | L66: 0 | M66: =IFERROR(VLOOKUP(A66,ENROLLMENT!$A$5:$B$349,2,FALSE),0)*0 -> 0 | N66: =IFERROR(GETPIVOTDATA("Total W/O Preschool",'Private 19-20'!$O$3,"District Code",A66),0)*0 -> 0 | P66: 25943 | Q66: 0 | R66: 25943 | T66: 0 | U66: 25943 | W66: =IFERROR(VLOOKUP($A66,'Allocation 2020-21 Final'!$A$7:$U$317,18,FALSE),0) -> 27017 | Y66: -1074 | Z66: -0.03975274827 | AA66: 217 | AB66: 0 | AD66: 27343 | AE66: DIERINGER
A67: 36101 | B67: DIXIE | C67: 0 | D67: 0 | E67: =IFERROR(VLOOKUP($A67,Census!$A$11:$I$344,7,FALSE),0) -> 65 | F67: =ROUND(E67/$E$5*Assumptions!$C$14*Assumptions!$C$29,0) -> 354 | G67: =IFERROR(VLOOKUP($A67,Census!$A$11:$I$344,8,FALSE),0) -> 11 | H67: =ROUND(G67/$G$5*+Assumptions!$C$14*Assumptions!$C$30,0) -> 2185 | J67: 2539 | L67: 0 | M67: =IFERROR(VLOOKUP(A67,ENROLLMENT!$A$5:$B$349,2,FALSE),0)*0 -> 0 | N67: =IFERROR(GETPIVOTDATA("Total W/O Preschool",'Private 19-20'!$O$3,"District Code",A67),0)*0 -> 0 | P67: 2539 | Q67: 0 | R67: 2539 | T67: 0 | U67: 2539 | W67: =IFERROR(VLOOKUP($A67,'Allocation 2020-21 Final'!$A$7:$U$317,18,FALSE),0) -> 2597 | Y67: -58 | Z67: -0.02233346169 | AA67: 182 | AB67: 0 | AD67: 36101 | AE67: DIXIE
A68: 32361 | B68: EAST VALLEY (SPK) | C68: 0 | D68: 0 | E68: =IFERROR(VLOOKUP($A68,Census!$A$11:$I$344,7,FALSE),0) -> 4940 | F68: =ROUND(E68/$E$5*Assumptions!$C$14*Assumptions!$C$29,0) -> 26899 | G68: =IFERROR(VLOOKUP($A68,Census!$A$11:$I$344,8,FALSE),0) -> 572 | H68: =ROUND(G68/$G$5*+Assumptions!$C$14*Assumptions!$C$30,0) -> 113624 | J68: 140523 | L68: 0 | M68: =IFERROR(VLOOKUP(A68,ENROLLMENT!$A$5:$B$349,2,FALSE),0)*0 -> 0 | N68: =IFERROR(GETPIVOTDATA("Total W/O Preschool",'Private 19-20'!$O$3,"District Code",A68),0)*0 -> 0 | P68: 140523 | Q68: 0 | R68: 140523 | T68: 0 | U68: 140523 | W68: =IFERROR(VLOOKUP($A68,'Allocation 2020-21 Final'!$A$7:$U$317,18,FALSE),0) -> 149939 | Y68: -9416 | Z68: -0.06279887154 | AA68: 278 | AB68: 0 | AD68: 32361 | AE68: EAST VALLEY (SPK)
A69: 39090 | B69: EAST VALLEY (YAK) | C69: 0 | D69: 0 | E69: =IFERROR(VLOOKUP($A69,Census!$A$11:$I$344,7,FALSE),0) -> 3128 | F69: =ROUND(E69/$E$5*Assumptions!$C$14*Assumptions!$C$29,0) -> 17033 | G69: =IFERROR(VLOOKUP($A69,Census!$A$11:$I$344,8,FALSE),0) -> 447 | H69: =ROUND(G69/$G$5*+Assumptions!$C$14*Assumptions!$C$30,0) -> 88794 | J69: 105827 | L69: 0 | M69: =IFERROR(VLOOKUP(A69,ENROLLMENT!$A$5:$B$349,2,FALSE),0)*0 -> 0 | N69: =IFERROR(GETPIVOTDATA("Total W/O Preschool",'Private 19-20'!$O$3,"District Code",A69),0)*0 -> 0 | P69: 105827 | Q69: 0 | R69: 105827 | T69: 0 | U69: 105827 | W69: =IFERROR(VLOOKUP($A69,'Allocation 2020-21 Final'!$A$7:$U$317,18,FALSE),0) -> 98804 | Y69: 7023 | Z69: 0.07108011821 | AA69: 66 | AB69: 0 | AD69: 39090 | AE69: EAST VALLEY (YAK)
A70: 09206 | B70: EASTMONT | C70: 0 | D70: 0 | E70: =IFERROR(VLOOKUP($A70,Census!$A$11:$I$344,7,FALSE),0) -> 6368 | F70: =ROUND(E70/$E$5*Assumptions!$C$14*Assumptions!$C$29,0) -> 34675 | G70: =IFERROR(VLOOKUP($A70,Census!$A$11:$I$344,8,FALSE),0) -> 792 | H70: =ROUND(G70/$G$5*+Assumptions!$C$14*Assumptions!$C$30,0) -> 157326 | J70: 192001 | L70: 0 | M70: =IFERROR(VLOOKUP(A70,ENROLLMENT!$A$5:$B$349,2,FALSE),0)*0 -> 0 | N70: =IFERROR(GETPIVOTDATA("Total W/O Preschool",'Private 19-20'!$O$3,"District Code",A70),0)*0 -> 0 | P70: 192001 | Q70: 0 | R70: 192001 | T70: 0 | U70: 192001 | W70: =IFERROR(VLOOKUP($A70,'Allocation 2020-21 Final'!$A$7:$U$317,18,FALSE),0) -> 186330 | Y70: 5671 | Z70: 0.03043524929 | AA70: 77 | AB70: 0 | AD70: =+A70 -> 09206 | AE70: EASTMONT
A71: 19028 | B71: EASTON | C71: 0 | D71: 0 | E71: =IFERROR(VLOOKUP($A71,Census!$A$11:$I$344,7,FALSE),0) -> 150 | F71: =ROUND(E71/$E$5*Assumptions!$C$14*Assumptions!$C$29,0) -> 817 | G71: =IFERROR(VLOOKUP($A71,Census!$A$11:$I$344,8,FALSE),0) -> 9 | H71: =ROUND(G71/$G$5*+Assumptions!$C$14*Assumptions!$C$30,0) -> 1788 | J71: =ROUNDDOWN(+H71+F71+D71+C71+I71,0) -> 2605 | L71: =IF((M71+N71=0),0,+J71/(+M71+N71)) -> 0 | M71: =IFERROR(VLOOKUP(A71,ENROLLMENT!$A$5:$B$349,2,FALSE),0)*0 -> 0 | N71: =IFERROR(GETPIVOTDATA("Total W/O Preschool",'Private 19-20'!$O$3,"District Code",A71),0)*0 -> 0 | P71: 2605 | Q71: 0 | R71: 2605 | T71: 0 | U71: 2605 | W71: =IFERROR(VLOOKUP($A71,'Allocation 2020-21 Final'!$A$7:$U$317,18,FALSE),0) -> 3614 | Y71: =+U71-W71 -> -1009 | Z71: =IF(W71>0,Y71/W71,0) -> -0.279192031 | AA71: 215 | AB71: =(SUM(C71:D71)/U71) -> 0 | AD71: 19028 | AE71: EASTON
A72: 27404 | B72: EATONVILLE | C72: 0 | D72: 0 | E72: =IFERROR(VLOOKUP($A72,Census!$A$11:$I$344,7,FALSE),0) -> 2321 | F72: =ROUND(E72/$E$5*Assumptions!$C$14*Assumptions!$C$29,0) -> 12638 | G72: =IFERROR(VLOOKUP($A72,Census!$A$11:$I$344,8,FALSE),0) -> 207 | H72: =ROUND(G72/$G$5*+Assumptions!$C$14*Assumptions!$C$30,0) -> 41119 | J72: 53757 | L72: 0 | M72: =IFERROR(VLOOKUP(A72,ENROLLMENT!$A$5:$B$349,2,FALSE),0)*0 -> 0 | N72: =IFERROR(GETPIVOTDATA("Total W/O Preschool",'Private 19-20'!$O$3,"District Code",A72),0)*0 -> 0 | P72: =J72 -> 53757 | Q72: =-ROUND(P72/$P$5*$O$5,0) -> 0 | R72: =+J72+Q72+O72 -> 53757 | T72: =IF(S72>0,-ROUND((R72*(0.9-S72)),0),0) -> 0 | U72: =+R72+T72 -> 53757 | W72: =IFERROR(VLOOKUP($A72,'Allocation 2020-21 Final'!$A$7:$U$317,18,FALSE),0) -> 36246 | Y72: 17511 | Z72: 0.4831153782 | AA72: =RANK(Y72,$Y$7:$Y$321,0) -> 31 | AB72: 0 | AD72: 27404 | AE72: EATONVILLE
A73: 31015 | B73: EDMONDS | C73: 0 | D73: 0 | E73: =IFERROR(VLOOKUP($A73,Census!$A$11:$I$344,7,FALSE),0) -> 24944 | F73: =ROUND(E73/$E$5*Assumptions!$C$14*Assumptions!$C$29,0) -> 135826 | G73: =IFERROR(VLOOKUP($A73,Census!$A$11:$I$344,8,FALSE),0) -> 1907 | H73: =ROUND(G73/$G$5*+Assumptions!$C$14*Assumptions!$C$30,0) -> 378813 | J73: 514639 | L73: 0 | M73: =IFERROR(VLOOKUP(A73,ENROLLMENT!$A$5:$B$349,2,FALSE),0)*0 -> 0 | N73: =IFERROR(GETPIVOTDATA("Total W/O Preschool",'Private 19-20'!$O$3,"District Code",A73),0)*0 -> 0 | P73: 514639 | Q73: 0 | R73: 514639 | T73: 0 | U73: 514639 | W73: =IFERROR(VLOOKUP($A73,'Allocation 2020-21 Final'!$A$7:$U$317,18,FALSE),0) -> 500513 | Y73: 14126 | Z73: 0.02822304316 | AA73: 38 | AB73: 0 | AD73: 31015 | AE73: EDMONDS
A74: 19401 | B74: ELLENSBURG | C74: 0 | D74: 0 | E74: =IFERROR(VLOOKUP($A74,Census!$A$11:$I$344,7,FALSE),0) -> 3381 | F74: =ROUND(E74/$E$5*Assumptions!$C$14*Assumptions!$C$29,0) -> 18410 | G74: =IFERROR(VLOOKUP($A74,Census!$A$11:$I$344,8,FALSE),0) -> 349 | H74: =ROUND(G74/$G$5*+Assumptions!$C$14*Assumptions!$C$30,0) -> 69327 | J74: 87737 | L74: 0 | M74: =IFERROR(VLOOKUP(A74,ENROLLMENT!$A$5:$B$349,2,FALSE),0)*0 -> 0 | N74: =IFERROR(GETPIVOTDATA("Total W/O Preschool",'Private 19-20'!$O$3,"District Code",A74),0)*0 -> 0 | P74: 87737 | Q74: 0 | R74: 87737 | T74: 0 | U74: 87737 | W74: =IFERROR(VLOOKUP($A74,'Allocation 2020-21 Final'!$A$7:$U$317,18,FALSE),0) -> 92670 | Y74: -4933 | Z74: -0.05323189813 | AA74: 263 | AB74: 0 | AD74: 19401 | AE74: ELLENSBURG
A75: 14068 | B75: ELMA | C75: 0 | D75: 0 | E75: =IFERROR(VLOOKUP($A75,Census!$A$11:$I$344,7,FALSE),0) -> 1569 | F75: =ROUND(E75/$E$5*Assumptions!$C$14*Assumptions!$C$29,0) -> 8544 | G75: =IFERROR(VLOOKUP($A75,Census!$A$11:$I$344,8,FALSE),0) -> 230 | H75: =ROUND(G75/$G$5*+Assumptions!$C$14*Assumptions!$C$30,0) -> 45688 | J75: 54232 | L75: 0 | M75: =IFERROR(VLOOKUP(A75,ENROLLMENT!$A$5:$B$349,2,FALSE),0)*0 -> 0 | N75: =IFERROR(GETPIVOTDATA("Total W/O Preschool",'Private 19-20'!$O$3,"District Code",A75),0)*0 -> 0 | P75: 54232 | Q75: 0 | R75: 54232 | T75: 0 | U75: 54232 | W75: =IFERROR(VLOOKUP($A75,'Allocation 2020-21 Final'!$A$7:$U$317,18,FALSE),0) -> 53353 | Y75: 879 | Z75: 0.01647517478 | AA75: 140 | AB75: 0 | AD75: 14068 | AE75: ELMA
A76: 38308 | B76: ENDICOTT | C76: 0 | D76: 0 | E76: =IFERROR(VLOOKUP($A76,Census!$A$11:$I$344,7,FALSE),0) -> 79 | F76: =ROUND(E76/$E$5*Assumptions!$C$14*Assumptions!$C$29,0) -> 430 | G76: =IFERROR(VLOOKUP($A76,Census!$A$11:$I$344,8,FALSE),0) -> 22 | H76: =ROUND(G76/$G$5*+Assumptions!$C$14*Assumptions!$C$30,0) -> 4370 | J76: 4800 | L76: 0 | M76: =IFERROR(VLOOKUP(A76,ENROLLMENT!$A$5:$B$349,2,FALSE),0)*0 -> 0 | N76: =IFERROR(GETPIVOTDATA("Total W/O Preschool",'Private 19-20'!$O$3,"District Code",A76),0)*0 -> 0 | P76: 4800 | Q76: 0 | R76: 4800 | T76: 0 | U76: 4800 | W76: =IFERROR(VLOOKUP($A76,'Allocation 2020-21 Final'!$A$7:$U$317,18,FALSE),0) -> 3404 | Y76: 1396 | Z76: 0.4101057579 | AA76: 126 | AB76: 0 | AD76: 38308 | AE76: ENDICOTT
A77: 04127 | B77: ENTIAT | C77: 0 | D77: 0 | E77: =IFERROR(VLOOKUP($A77,Census!$A$11:$I$344,7,FALSE),0) -> 387 | F77: =ROUND(E77/$E$5*Assumptions!$C$14*Assumptions!$C$29,0) -> 2107 | G77: =IFERROR(VLOOKUP($A77,Census!$A$11:$I$344,8,FALSE),0) -> 77 | H77: =ROUND(G77/$G$5*+Assumptions!$C$14*Assumptions!$C$30,0) -> 15296 | J77: 17403 | L77: 0 | M77: =IFERROR(VLOOKUP(A77,ENROLLMENT!$A$5:$B$349,2,FALSE),0)*0 -> 0 | N77: =IFERROR(GETPIVOTDATA("Total W/O Preschool",'Private 19-20'!$O$3,"District Code",A77),0)*0 -> 0 | P77: 17403 | Q77: 0 | R77: 17403 | T77: 0 | U77: 17403 | W77: =IFERROR(VLOOKUP($A77,'Allocation 2020-21 Final'!$A$7:$U$317,18,FALSE),0) -> 18155 | Y77: -752 | Z77: -0.04142109612 | AA77: 210 | AB77: 0 | AD77: 04127 | AE77: ENTIAT
A78: 17216 | B78: ENUMCLAW | C78: 0 | D78: 0 | E78: =IFERROR(VLOOKUP($A78,Census!$A$11:$I$344,7,FALSE),0) -> 5045 | F78: =ROUND(E78/$E$5*Assumptions!$C$14*Assumptions!$C$29,0) -> 27471 | G78: =IFERROR(VLOOKUP($A78,Census!$A$11:$I$344,8,FALSE),0) -> 253 | H78: =ROUND(G78/$G$5*+Assumptions!$C$14*Assumptions!$C$30,0) -> 50257 | J78: 77728 | L78: 0 | M78: =IFERROR(VLOOKUP(A78,ENROLLMENT!$A$5:$B$349,2,FALSE),0)*0 -> 0 | N78: =IFERROR(GETPIVOTDATA("Total W/O Preschool",'Private 19-20'!$O$3,"District Code",A78),0)*0 -> 0 | P78: 77728 | Q78: 0 | R78: 77728 | T78: 0 | U78: 77728 | W78: =IFERROR(VLOOKUP($A78,'Allocation 2020-21 Final'!$A$7:$U$317,18,FALSE),0) -> 89400 | Y78: -11672 | Z78: -0.1305592841 | AA78: 283 | AB78: 0 | AD78: 17216 | AE78: ENUMCLAW
A79: 13165 | B79: EPHRATA | C79: 0 | D79: 0 | E79: =IFERROR(VLOOKUP($A79,Census!$A$11:$I$344,7,FALSE),0) -> 2631 | F79: =ROUND(E79/$E$5*Assumptions!$C$14*Assumptions!$C$29,0) -> 14326 | G79: =IFERROR(VLOOKUP($A79,Census!$A$11:$I$344,8,FALSE),0) -> 327 | H79: =ROUND(G79/$G$5*+Assumptions!$C$14*Assumptions!$C$30,0) -> 64956 | J79: 79282 | L79: 0 | M79: =IFERROR(VLOOKUP(A79,ENROLLMENT!$A$5:$B$349,2,FALSE),0)*0 -> 0 | N79: =IFERROR(GETPIVOTDATA("Total W/O Preschool",'Private 19-20'!$O$3,"District Code",A79),0)*0 -> 0 | P79: 79282 | Q79: 0 | R79: 79282 | T79: 0 | U79: 79282 | W79: =IFERROR(VLOOKUP($A79,'Allocation 2020-21 Final'!$A$7:$U$317,18,FALSE),0) -> 84586 | Y79: -5304 | Z79: -0.06270541224 | AA79: 265 | AB79: 0 | AD79: 13165 | AE79: EPHRATA
A80: 21036 | B80: EVALINE | C80: 0 | D80: 0 | E80: =IFERROR(VLOOKUP($A80,Census!$A$11:$I$344,7,FALSE),0) -> 143 | F80: =ROUND(E80/$E$5*Assumptions!$C$14*Assumptions!$C$29,0) -> 779 | G80: =IFERROR(VLOOKUP($A80,Census!$A$11:$I$344,8,FALSE),0) -> 47 | H80: =ROUND(G80/$G$5*+Assumptions!$C$14*Assumptions!$C$30,0) -> 9336 | J80: 10115 | L80: 0 | M80: =IFERROR(VLOOKUP(A80,ENROLLMENT!$A$5:$B$349,2,FALSE),0)*0 -> 0 | N80: =IFERROR(GETPIVOTDATA("Total W/O Preschool",'Private 19-20'!$O$3,"District Code",A80),0)*0 -> 0 | P80: 10115 | Q80: 0 | R80: 10115 | T80: 0 | U80: 10115 | W80: =IFERROR(VLOOKUP($A80,'Allocation 2020-21 Final'!$A$7:$U$317,18,FALSE),0) -> 9172 | Y80: 943 | Z80: 0.1028129089 | AA80: 139 | AB80: 0 | AD80: 21036 | AE80: EVALINE
A81: 31002 | B81: EVERETT | C81: 0 | D81: 0 | E81: =IFERROR(VLOOKUP($A81,Census!$A$11:$I$344,7,FALSE),0) -> 22591 | F81: =ROUND(E81/$E$5*Assumptions!$C$14*Assumptions!$C$29,0) -> 123013 | G81: =IFERROR(VLOOKUP($A81,Census!$A$11:$I$344,8,FALSE),0) -> 1813 | H81: =ROUND(G81/$G$5*+Assumptions!$C$14*Assumptions!$C$30,0) -> 360141 | J81: 483154 | L81: 0 | M81: =IFERROR(VLOOKUP(A81,ENROLLMENT!$A$5:$B$349,2,FALSE),0)*0 -> 0 | N81: =IFERROR(GETPIVOTDATA("Total W/O Preschool",'Private 19-20'!$O$3,"District Code",A81),0)*0 -> 0 | P81: 483154 | Q81: 0 | R81: 483154 | T81: 0 | U81: 483154 | W81: =IFERROR(VLOOKUP($A81,'Allocation 2020-21 Final'!$A$7:$U$317,18,FALSE),0) -> 538038 | Y81: -54884 | Z81: -0.1020076649 | AA81: 309 | AB81: 0 | AD81: 31002 | AE81: EVERETT
A82: 06114 | B82: EVERGREEN (CLARK) | C82: 0 | D82: 0 | E82: =IFERROR(VLOOKUP($A82,Census!$A$11:$I$344,7,FALSE),0) -> 28467 | F82: =ROUND(E82/$E$5*Assumptions!$C$14*Assumptions!$C$29,0) -> 155009 | G82: =IFERROR(VLOOKUP($A82,Census!$A$11:$I$344,8,FALSE),0) -> 3454 | H82: =ROUND(G82/$G$5*+Assumptions!$C$14*Assumptions!$C$30,0) -> 686115 | J82: 841124 | L82: =IF((M82+N82=0),0,+J82/(+M82+N82)) -> 0 | M82: =IFERROR(VLOOKUP(A82,ENROLLMENT!$A$5:$B$349,2,FALSE),0)*0 -> 0 | N82: =IFERROR(GETPIVOTDATA("Total W/O Preschool",'Private 19-20'!$O$3,"District Code",A82),0)*0 -> 0 | P82: =J82 -> 841124 | Q82: =-ROUND(P82/$P$5*$O$5,0) -> 0 | R82: =+J82+Q82+O82 -> 841124 | T82: =IF(S82>0,-ROUND((R82*(0.9-S82)),0),0) -> 0 | U82: =+R82+T82 -> 841124 | W82: =IFERROR(VLOOKUP($A82,'Allocation 2020-21 Final'!$A$7:$U$317,18,FALSE),0) -> 698906 | Y82: =+U82-W82 -> 142218 | Z82: =IF(W82>0,Y82/W82,0) -> 0.2034865919 | AA82: 2 | AB82: 0 | AD82: 06114 | AE82: EVERGREEN (CLARK)
A83: 33205 | B83: EVERGREEN (STEV) | C83: 0 | D83: 0 | E83: =IFERROR(VLOOKUP($A83,Census!$A$11:$I$344,7,FALSE),0) -> 72 | F83: =ROUND(E83/$E$5*Assumptions!$C$14*Assumptions!$C$29,0) -> 392 | G83: =IFERROR(VLOOKUP($A83,Census!$A$11:$I$344,8,FALSE),0) -> 13 | H83: =ROUND(G83/$G$5*+Assumptions!$C$14*Assumptions!$C$30,0) -> 2582 | J83: 2974 | L83: 0 | M83: =IFERROR(VLOOKUP(A83,ENROLLMENT!$A$5:$B$349,2,FALSE),0)*0 -> 0 | N83: =IFERROR(GETPIVOTDATA("Total W/O Preschool",'Private 19-20'!$O$3,"District Code",A83),0)*0 -> 0 | P83: 2974 | Q83: 0 | R83: 2974 | T83: 0 | U83: 2974 | W83: =IFERROR(VLOOKUP($A83,'Allocation 2020-21 Final'!$A$7:$U$317,18,FALSE),0) -> 1887 | Y83: 1087 | Z83: 0.5760466349 | AA83: 136 | AB83: 0 | AD83: 33205 | AE83: EVERGREEN (STEV)
A84: 17210 | B84: FEDERAL WAY | C84: 0 | D84: 0 | E84: =IFERROR(VLOOKUP($A84,Census!$A$11:$I$344,7,FALSE),0) -> 26676 | F84: =ROUND(E84/$E$5*Assumptions!$C$14*Assumptions!$C$29,0) -> 145257 | G84: =IFERROR(VLOOKUP($A84,Census!$A$11:$I$344,8,FALSE),0) -> 2982 | H84: =ROUND(G84/$G$5*+Assumptions!$C$14*Assumptions!$C$30,0) -> 592355 | J84: 737612 | L84: 0 | M84: =IFERROR(VLOOKUP(A84,ENROLLMENT!$A$5:$B$349,2,FALSE),0)*0 -> 0 | N84: =IFERROR(GETPIVOTDATA("Total W/O Preschool",'Private 19-20'!$O$3,"District Code",A84),0)*0 -> 0 | P84: 737612 | Q84: 0 | R84: 737612 | T84: 0 | U84: 737612 | W84: =IFERROR(VLOOKUP($A84,'Allocation 2020-21 Final'!$A$7:$U$317,18,FALSE),0) -> 875400 | Y84: -137788 | Z84: -0.1574000457 | AA84: 313 | AB84: 0 | AD84: 17210 | AE84: FEDERAL WAY
A85: 37502 | B85: FERNDALE | C85: 0 | D85: 0 | E85: =IFERROR(VLOOKUP($A85,Census!$A$11:$I$344,7,FALSE),0) -> 6226 | F85: =ROUND(E85/$E$5*Assumptions!$C$14*Assumptions!$C$29,0) -> 33902 | G85: =IFERROR(VLOOKUP($A85,Census!$A$11:$I$344,8,FALSE),0) -> 685 | H85: =ROUND(G85/$G$5*+Assumptions!$C$14*Assumptions!$C$30,0) -> 136071 | J85: 169973 | L85: 0 | M85: =IFERROR(VLOOKUP(A85,ENROLLMENT!$A$5:$B$349,2,FALSE),0)*0 -> 0 | N85: =IFERROR(GETPIVOTDATA("Total W/O Preschool",'Private 19-20'!$O$3,"District Code",A85),0)*0 -> 0 | P85: 169973 | Q85: 0 | R85: 169973 | T85: 0 | U85: 169973 | W85: =IFERROR(VLOOKUP($A85,'Allocation 2020-21 Final'!$A$7:$U$317,18,FALSE),0) -> 177548 | Y85: -7575 | Z85: -0.04266451889 | AA85: 275 | AB85: 0 | AD85: 37502 | AE85: FERNDALE
A86: 27417 | B86: FIFE | C86: 0 | D86: 0 | E86: =IFERROR(VLOOKUP($A86,Census!$A$11:$I$344,7,FALSE),0) -> 3876 | F86: =ROUND(E86/$E$5*Assumptions!$C$14*Assumptions!$C$29,0) -> 21106 | G86: =IFERROR(VLOOKUP($A86,Census!$A$11:$I$344,8,FALSE),0) -> 394 | H86: =ROUND(G86/$G$5*+Assumptions!$C$14*Assumptions!$C$30,0) -> 78266 | J86: 99372 | L86: 0 | M86: =IFERROR(VLOOKUP(A86,ENROLLMENT!$A$5:$B$349,2,FALSE),0)*0 -> 0 | N86: =IFERROR(GETPIVOTDATA("Total W/O Preschool",'Private 19-20'!$O$3,"District Code",A86),0)*0 -> 0 | P86: 99372 | Q86: 0 | R86: 99372 | T86: 0 | U86: 99372 | W86: =IFERROR(VLOOKUP($A86,'Allocation 2020-21 Final'!$A$7:$U$317,18,FALSE),0) -> 100031 | Y86: -659 | Z86: -0.006587957733 | AA86: 208 | AB86: 0 | AD86: 27417 | AE86: FIFE
A87: 03053 | B87: FINLEY | C87: 0 | D87: 0 | E87: =IFERROR(VLOOKUP($A87,Census!$A$11:$I$344,7,FALSE),0) -> 1178 | F87: =ROUND(E87/$E$5*Assumptions!$C$14*Assumptions!$C$29,0) -> 6414 | G87: =IFERROR(VLOOKUP($A87,Census!$A$11:$I$344,8,FALSE),0) -> 216 | H87: =ROUND(G87/$G$5*+Assumptions!$C$14*Assumptions!$C$30,0) -> 42907 | J87: 49321 | L87: 0 | M87: =IFERROR(VLOOKUP(A87,ENROLLMENT!$A$5:$B$349,2,FALSE),0)*0 -> 0 | N87: =IFERROR(GETPIVOTDATA("Total W/O Preschool",'Private 19-20'!$O$3,"District Code",A87),0)*0 -> 0 | P87: 49321 | Q87: 0 | R87: 49321 | T87: 0 | U87: 49321 | W87: =IFERROR(VLOOKUP($A87,'Allocation 2020-21 Final'!$A$7:$U$317,18,FALSE),0) -> 28476 | Y87: 20845 | Z87: 0.7320199466 | AA87: 29 | AB87: 0 | AD87: 03053 | AE87: FINLEY
A88: 27402 | B88: FRANKLIN PIERCE | C88: 0 | D88: 0 | E88: =IFERROR(VLOOKUP($A88,Census!$A$11:$I$344,7,FALSE),0) -> 8916 | F88: =ROUND(E88/$E$5*Assumptions!$C$14*Assumptions!$C$29,0) -> 48550 | G88: =IFERROR(VLOOKUP($A88,Census!$A$11:$I$344,8,FALSE),0) -> 1515 | H88: =ROUND(G88/$G$5*+Assumptions!$C$14*Assumptions!$C$30,0) -> 300945 | J88: 349495 | L88: 0 | M88: =IFERROR(VLOOKUP(A88,ENROLLMENT!$A$5:$B$349,2,FALSE),0)*0 -> 0 | N88: =IFERROR(GETPIVOTDATA("Total W/O Preschool",'Private 19-20'!$O$3,"District Code",A88),0)*0 -> 0 | P88: 349495 | Q88: 0 | R88: 349495 | T88: 0 | U88: 349495 | W88: =IFERROR(VLOOKUP($A88,'Allocation 2020-21 Final'!$A$7:$U$317,18,FALSE),0) -> 296289 | Y88: 53206 | Z88: 0.179574672 | AA88: 12 | AB88: 0 | AD88: 27402 | AE88: FRANKLIN PIERCE
A89: 32358 | B89: FREEMAN | C89: 0 | D89: 0 | E89: =IFERROR(VLOOKUP($A89,Census!$A$11:$I$344,7,FALSE),0) -> 902 | F89: =ROUND(E89/$E$5*Assumptions!$C$14*Assumptions!$C$29,0) -> 4912 | G89: =IFERROR(VLOOKUP($A89,Census!$A$11:$I$344,8,FALSE),0) -> 46 | H89: =ROUND(G89/$G$5*+Assumptions!$C$14*Assumptions!$C$30,0) -> 9138 | J89: 14050 | L89: 0 | M89: =IFERROR(VLOOKUP(A89,ENROLLMENT!$A$5:$B$349,2,FALSE),0)*0 -> 0 | N89: =IFERROR(GETPIVOTDATA("Total W/O Preschool",'Private 19-20'!$O$3,"District Code",A89),0)*0 -> 0 | P89: 14050 | Q89: 0 | R89: 14050 | T89: 0 | U89: 14050 | W89: =IFERROR(VLOOKUP($A89,'Allocation 2020-21 Final'!$A$7:$U$317,18,FALSE),0) -> 15626 | Y89: -1576 | Z89: -0.1008575451 | AA89: 226 | AB89: 0 | AD89: 32358 | AE89: FREEMAN
A90: 38302 | B90: GARFIELD | C90: 0 | D90: 0 | E90: =IFERROR(VLOOKUP($A90,Census!$A$11:$I$344,7,FALSE),0) -> 132 | F90: =ROUND(E90/$E$5*Assumptions!$C$14*Assumptions!$C$29,0) -> 719 | G90: =IFERROR(VLOOKUP($A90,Census!$A$11:$I$344,8,FALSE),0) -> 32 | H90: =ROUND(G90/$G$5*+Assumptions!$C$14*Assumptions!$C$30,0) -> 6357 | J90: 7076 | L90: 0 | M90: =IFERROR(VLOOKUP(A90,ENROLLMENT!$A$5:$B$349,2,FALSE),0)*0 -> 0 | N90: =IFERROR(GETPIVOTDATA("Total W/O Preschool",'Private 19-20'!$O$3,"District Code",A90),0)*0 -> 0 | P90: 7076 | Q90: 0 | R90: 7076 | T90: 0 | U90: 7076 | W90: =IFERROR(VLOOKUP($A90,'Allocation 2020-21 Final'!$A$7:$U$317,18,FALSE),0) -> 7052 | Y90: 24 | Z90: 0.003403289847 | AA90: 178 | AB90: 0 | AD90: 38302 | AE90: GARFIELD
A91: 20401 | B91: GLENWOOD | C91: 0 | D91: 0 | E91: =IFERROR(VLOOKUP($A91,Census!$A$11:$I$344,7,FALSE),0) -> 60 | F91: =ROUND(E91/$E$5*Assumptions!$C$14*Assumptions!$C$29,0) -> 327 | G91: =IFERROR(VLOOKUP($A91,Census!$A$11:$I$344,8,FALSE),0) -> 6 | H91: =ROUND(G91/$G$5*+Assumptions!$C$14*Assumptions!$C$30,0) -> 1192 | J91: 1519 | L91: 0 | M91: =IFERROR(VLOOKUP(A91,ENROLLMENT!$A$5:$B$349,2,FALSE),0)*0 -> 0 | N91: =IFERROR(GETPIVOTDATA("Total W/O Preschool",'Private 19-20'!$O$3,"District Code",A91),0)*0 -> 0 | P91: 1519 | Q91: 0 | R91: 1519 | T91: 0 | U91: 1519 | W91: =IFERROR(VLOOKUP($A91,'Allocation 2020-21 Final'!$A$7:$U$317,18,FALSE),0) -> 1256 | Y91: 263 | Z91: 0.2093949045 | AA91: 165 | AB91: 0 | AD91: 20401 | AE91: GLENWOOD
A92: 20404 | B92: GOLDENDALE | C92: 0 | D92: 0 | E92: =IFERROR(VLOOKUP($A92,Census!$A$11:$I$344,7,FALSE),0) -> 1063 | F92: =ROUND(E92/$E$5*Assumptions!$C$14*Assumptions!$C$29,0) -> 5788 | G92: =IFERROR(VLOOKUP($A92,Census!$A$11:$I$344,8,FALSE),0) -> 205 | H92: =ROUND(G92/$G$5*+Assumptions!$C$14*Assumptions!$C$30,0) -> 40722 | J92: 46510 | L92: 0 | M92: =IFERROR(VLOOKUP(A92,ENROLLMENT!$A$5:$B$349,2,FALSE),0)*0 -> 0 | N92: =IFERROR(GETPIVOTDATA("Total W/O Preschool",'Private 19-20'!$O$3,"District Code",A92),0)*0 -> 0 | P92: 46510 | Q92: 0 | R92: 46510 | T92: 0 | U92: 46510 | W92: =IFERROR(VLOOKUP($A92,'Allocation 2020-21 Final'!$A$7:$U$317,18,FALSE),0) -> 42722 | Y92: 3788 | Z92: 0.08866626094 | AA92: 93 | AB92: 0 | AD92: 20404 | AE92: GOLDENDALE
A93: 13301 | B93: GRAND COULEE | C93: 0 | D93: 0 | E93: =IFERROR(VLOOKUP($A93,Census!$A$11:$I$344,7,FALSE),0) -> 646 | F93: =ROUND(E93/$E$5*Assumptions!$C$14*Assumptions!$C$29,0) -> 3518 | G93: =IFERROR(VLOOKUP($A93,Census!$A$11:$I$344,8,FALSE),0) -> 110 | H93: =ROUND(G93/$G$5*+Assumptions!$C$14*Assumptions!$C$30,0) -> 21851 | J93: 25369 | L93: 0 | M93: =IFERROR(VLOOKUP(A93,ENROLLMENT!$A$5:$B$349,2,FALSE),0)*0 -> 0 | N93: =IFERROR(GETPIVOTDATA("Total W/O Preschool",'Private 19-20'!$O$3,"District Code",A93),0)*0 -> 0 | P93: 25369 | Q93: 0 | R93: 25369 | T93: 0 | U93: 25369 | W93: =IFERROR(VLOOKUP($A93,'Allocation 2020-21 Final'!$A$7:$U$317,18,FALSE),0) -> 25676 | Y93: -307 | Z93: -0.01195669107 | AA93: 198 | AB93: 0 | AD93: 13301 | AE93: GRAND COULEE
A94: 39200 | B94: GRANDVIEW | C94: 0 | D94: 0 | E94: =IFERROR(VLOOKUP($A94,Census!$A$11:$I$344,7,FALSE),0) -> 3812 | F94: =ROUND(E94/$E$5*Assumptions!$C$14*Assumptions!$C$29,0) -> 20757 | G94: =IFERROR(VLOOKUP($A94,Census!$A$11:$I$344,8,FALSE),0) -> 745 | H94: =ROUND(G94/$G$5*+Assumptions!$C$14*Assumptions!$C$30,0) -> 147989 | J94: 168746 | L94: 0 | M94: =IFERROR(VLOOKUP(A94,ENROLLMENT!$A$5:$B$349,2,FALSE),0)*0 -> 0 | N94: =IFERROR(GETPIVOTDATA("Total W/O Preschool",'Private 19-20'!$O$3,"District Code",A94),0)*0 -> 0 | P94: 168746 | Q94: 0 | R94: 168746 | T94: 0 | U94: 168746 | W94: =IFERROR(VLOOKUP($A94,'Allocation 2020-21 Final'!$A$7:$U$317,18,FALSE),0) -> 142267 | Y94: 26479 | Z94: 0.1861218694 | AA94: 23 | AB94: 0 | AD94: 39200 | AE94: GRANDVIEW
A95: 39204 | B95: GRANGER | C95: 0 | D95: 0 | E95: =IFERROR(VLOOKUP($A95,Census!$A$11:$I$344,7,FALSE),0) -> 1625 | F95: =ROUND(E95/$E$5*Assumptions!$C$14*Assumptions!$C$29,0) -> 8848 | G95: =IFERROR(VLOOKUP($A95,Census!$A$11:$I$344,8,FALSE),0) -> 475 | H95: =ROUND(G95/$G$5*+Assumptions!$C$14*Assumptions!$C$30,0) -> 94356 | J95: 103204 | L95: 0 | M95: =IFERROR(VLOOKUP(A95,ENROLLMENT!$A$5:$B$349,2,FALSE),0)*0 -> 0 | N95: =IFERROR(GETPIVOTDATA("Total W/O Preschool",'Private 19-20'!$O$3,"District Code",A95),0)*0 -> 0 | P95: 103204 | Q95: 0 | R95: 103204 | T95: 0 | U95: 103204 | W95: =IFERROR(VLOOKUP($A95,'Allocation 2020-21 Final'!$A$7:$U$317,18,FALSE),0) -> 90360 | Y95: 12844 | Z95: 0.1421425409 | AA95: 41 | AB95: 0 | AD95: 39204 | AE95: GRANGER
A96: 31332 | B96: GRANITE FALLS | C96: 0 | D96: 0 | E96: =IFERROR(VLOOKUP($A96,Census!$A$11:$I$344,7,FALSE),0) -> 2678 | F96: =ROUND(E96/$E$5*Assumptions!$C$14*Assumptions!$C$29,0) -> 14582 | G96: =IFERROR(VLOOKUP($A96,Census!$A$11:$I$344,8,FALSE),0) -> 172 | H96: =ROUND(G96/$G$5*+Assumptions!$C$14*Assumptions!$C$30,0) -> 34167 | J96: 48749 | L96: 0 | M96: =IFERROR(VLOOKUP(A96,ENROLLMENT!$A$5:$B$349,2,FALSE),0)*0 -> 0 | N96: =IFERROR(GETPIVOTDATA("Total W/O Preschool",'Private 19-20'!$O$3,"District Code",A96),0)*0 -> 0 | P96: 48749 | Q96: 0 | R96: 48749 | T96: 0 | U96: 48749 | W96: =IFERROR(VLOOKUP($A96,'Allocation 2020-21 Final'!$A$7:$U$317,18,FALSE),0) -> 44321 | Y96: 4428 | Z96: 0.09990749306 | AA96: 84 | AB96: 0 | AD96: 31332 | AE96: GRANITE FALLS
A97: 23054 | B97: GRAPEVIEW | C97: 0 | D97: 0 | E97: =IFERROR(VLOOKUP($A97,Census!$A$11:$I$344,7,FALSE),0) -> 309 | F97: =ROUND(E97/$E$5*Assumptions!$C$14*Assumptions!$C$29,0) -> 1683 | G97: =IFERROR(VLOOKUP($A97,Census!$A$11:$I$344,8,FALSE),0) -> 50 | H97: =ROUND(G97/$G$5*+Assumptions!$C$14*Assumptions!$C$30,0) -> 9932 | J97: 11615 | L97: =IF((M97+N97=0),0,+J97/(+M97+N97)) -> 0 | M97: =IFERROR(VLOOKUP(A97,ENROLLMENT!$A$5:$B$349,2,FALSE),0)*0 -> 0 | N97: =IFERROR(GETPIVOTDATA("Total W/O Preschool",'Private 19-20'!$O$3,"District Code",A97),0)*0 -> 0 | P97: =J97 -> 11615 | Q97: =-ROUND(P97/$P$5*$O$5,0) -> 0 | R97: =+J97+Q97+O97 -> 11615 | T97: =IF(S97>0,-ROUND((R97*(0.9-S97)),0),0) -> 0 | U97: =+R97+T97 -> 11615 | W97: =IFERROR(VLOOKUP($A97,'Allocation 2020-21 Final'!$A$7:$U$317,18,FALSE),0) -> 7229 | Y97: =+U97-W97 -> 4386 | Z97: =IF(W97>0,Y97/W97,0) -> 0.6067229216 | AA97: 85 | AB97: 0 | AD97: 23054 | AE97: GRAPEVIEW
A98: 32312 | B98: GREAT NORTHERN | C98: 0 | D98: 0 | E98: =IFERROR(VLOOKUP($A98,Census!$A$11:$I$344,7,FALSE),0) -> 135 | F98: =ROUND(E98/$E$5*Assumptions!$C$14*Assumptions!$C$29,0) -> 735 | G98: =IFERROR(VLOOKUP($A98,Census!$A$11:$I$344,8,FALSE),0) -> 16 | H98: =ROUND(G98/$G$5*+Assumptions!$C$14*Assumptions!$C$30,0) -> 3178 | J98: 3913 | L98: =IF((M98+N98=0),0,+J98/(+M98+N98)) -> 0 | M98: =IFERROR(VLOOKUP(A98,ENROLLMENT!$A$5:$B$349,2,FALSE),0)*0 -> 0 | N98: =IFERROR(GETPIVOTDATA("Total W/O Preschool",'Private 19-20'!$O$3,"District Code",A98),0)*0 -> 0 | P98: =J98 -> 3913 | Q98: =-ROUND(P98/$P$5*$O$5,0) -> 0 | R98: =+J98+Q98+O98 -> 3913 | T98: =IF(S98>0,-ROUND((R98*(0.9-S98)),0),0) -> 0 | U98: =+R98+T98 -> 3913 | W98: =IFERROR(VLOOKUP($A98,'Allocation 2020-21 Final'!$A$7:$U$317,18,FALSE),0) -> 2771 | Y98: =+U98-W98 -> 1142 | Z98: =IF(W98>0,Y98/W98,0) -> 0.4121255864 | AA98: 132 | AB98: 0 | AD98: 32312 | AE98: GREAT NORTHERN
A99: 17910 | B99: RAINIER VALLEY CHARTER | C99: 0 | D99: 0 | E99: =IFERROR(VLOOKUP($A99,Census!$A$11:$I$344,7,FALSE),0) -> 429.4651441 | F99: =ROUND(E99/$E$5*Assumptions!$C$14*Assumptions!$C$29,0) -> 2339 | G99: =IFERROR(VLOOKUP($A99,Census!$A$11:$I$344,8,FALSE),0) -> 31.15046108 | H99: =ROUND(G99/$G$5*+Assumptions!$C$14*Assumptions!$C$30,0) -> 6188 | J99: 8527 | L99: 0 | M99: =IFERROR(VLOOKUP(A99,ENROLLMENT!$A$5:$B$349,2,FALSE),0)*0 -> 0 | N99: =IFERROR(GETPIVOTDATA("Total W/O Preschool",'Private 19-20'!$O$3,"District Code",A99),0)*0 -> 0 | P99: 8527 | Q99: 0 | R99: 8527 | T99: 0 | U99: 8527 | W99: =IFERROR(VLOOKUP($A99,'Allocation 2020-21 Final'!$A$7:$U$317,18,FALSE),0) -> 16745 | Y99: -8218 | Z99: -0.4907733652 | AA99: 277 | AB99: 0 | AD99: 17910 | AE99: RAINIER VALLEY CHARTER
A100: 06103 | B100: GREEN MOUNTAIN | C100: 0 | D100: 0 | E100: =IFERROR(VLOOKUP($A100,Census!$A$11:$I$344,7,FALSE),0) -> 179 | F100: =ROUND(E100/$E$5*Assumptions!$C$14*Assumptions!$C$29,0) -> 975 | G100: =IFERROR(VLOOKUP($A100,Census!$A$11:$I$344,8,FALSE),0) -> 14 | H100: =ROUND(G100/$G$5*+Assumptions!$C$14*Assumptions!$C$30,0) -> 2781 | J100: 3756 | L100: 0 | M100: =IFERROR(VLOOKUP(A100,ENROLLMENT!$A$5:$B$349,2,FALSE),0)*0 -> 0 | N100: =IFERROR(GETPIVOTDATA("Total W/O Preschool",'Private 19-20'!$O$3,"District Code",A100),0)*0 -> 0 | P100: 3756 | Q100: 0 | R100: 3756 | T100: 0 | U100: 3756 | W100: =IFERROR(VLOOKUP($A100,'Allocation 2020-21 Final'!$A$7:$U$317,18,FALSE),0) -> 3023 | Y100: 733 | Z100: 0.2424743632 | AA100: 143 | AB100: 0 | AD100: 06103 | AE100: GREEN MOUNTAIN
A101: 34324 | B101: GRIFFIN | C101: 0 | D101: 0 | E101: =IFERROR(VLOOKUP($A101,Census!$A$11:$I$344,7,FALSE),0) -> 943 | F101: =ROUND(E101/$E$5*Assumptions!$C$14*Assumptions!$C$29,0) -> 5135 | G101: =IFERROR(VLOOKUP($A101,Census!$A$11:$I$344,8,FALSE),0) -> 44 | H101: =ROUND(G101/$G$5*+Assumptions!$C$14*Assumptions!$C$30,0) -> 8740 | J101: 13875 | L101: 0 | M101: =IFERROR(VLOOKUP(A101,ENROLLMENT!$A$5:$B$349,2,FALSE),0)*0 -> 0 | N101: =IFERROR(GETPIVOTDATA("Total W/O Preschool",'Private 19-20'!$O$3,"District Code",A101),0)*0 -> 0 | P101: 13875 | Q101: 0 | R101: 13875 | T101: 0 | U101: 13875 | W101: =IFERROR(VLOOKUP($A101,'Allocation 2020-21 Final'!$A$7:$U$317,18,FALSE),0) -> 12318 | Y101: 1557 | Z101: 0.1264003897 | AA101: 121 | AB101: 0 | AD101: 34324 | AE101: GRIFFIN
A102: 22204 | B102: HARRINGTON | C102: 0 | D102: 0 | E102: =IFERROR(VLOOKUP($A102,Census!$A$11:$I$344,7,FALSE),0) -> 127 | F102: =ROUND(E102/$E$5*Assumptions!$C$14*Assumptions!$C$29,0) -> 692 | G102: =IFERROR(VLOOKUP($A102,Census!$A$11:$I$344,8,FALSE),0) -> 30 | H102: =ROUND(G102/$G$5*+Assumptions!$C$14*Assumptions!$C$30,0) -> 5959 | J102: 6651 | L102: 0 | M102: =IFERROR(VLOOKUP(A102,ENROLLMENT!$A$5:$B$349,2,FALSE),0)*0 -> 0 | N102: =IFERROR(GETPIVOTDATA("Total W/O Preschool",'Private 19-20'!$O$3,"District Code",A102),0)*0 -> 0 | P102: 6651 | Q102: 0 | R102: 6651 | T102: 0 | U102: 6651 | W102: =IFERROR(VLOOKUP($A102,'Allocation 2020-21 Final'!$A$7:$U$317,18,FALSE),0) -> 5354 | Y102: 1297 | Z102: 0.242248786 | AA102: 128 | AB102: 0 | AD102: 22204 | AE102: HARRINGTON
A103: 39203 | B103: HIGHLAND | C103: 0 | D103: 0 | E103: =IFERROR(VLOOKUP($A103,Census!$A$11:$I$344,7,FALSE),0) -> 1327 | F103: =ROUND(E103/$E$5*Assumptions!$C$14*Assumptions!$C$29,0) -> 7226 | G103: =IFERROR(VLOOKUP($A103,Census!$A$11:$I$344,8,FALSE),0) -> 192 | H103: =ROUND(G103/$G$5*+Assumptions!$C$14*Assumptions!$C$30,0) -> 38140 | J103: 45366 | L103: 0 | M103: =IFERROR(VLOOKUP(A103,ENROLLMENT!$A$5:$B$349,2,FALSE),0)*0 -> 0 | N103: =IFERROR(GETPIVOTDATA("Total W/O Preschool",'Private 19-20'!$O$3,"District Code",A103),0)*0 -> 0 | P103: 45366 | Q103: 0 | R103: 45366 | T103: 0 | U103: 45366 | W103: =IFERROR(VLOOKUP($A103,'Allocation 2020-21 Final'!$A$7:$U$317,18,FALSE),0) -> 38321 | Y103: 7045 | Z103: 0.1838417578 | AA103: 65 | AB103: 0 | AD103: 39203 | AE103: HIGHLAND
A104: 17401 | B104: HIGHLINE | C104: 0 | D104: 0 | E104: =IFERROR(VLOOKUP($A104,Census!$A$11:$I$344,7,FALSE),0) -> 21602.12724 | F104: =ROUND(E104/$E$5*Assumptions!$C$14*Assumptions!$C$29,0) -> 117628 | G104: =IFERROR(VLOOKUP($A104,Census!$A$11:$I$344,8,FALSE),0) -> 2898.144441 | H104: =ROUND(G104/$G$5*+Assumptions!$C$14*Assumptions!$C$30,0) -> 575698 | J104: 693326 | L104: 0 | M104: =IFERROR(VLOOKUP(A104,ENROLLMENT!$A$5:$B$349,2,FALSE),0)*0 -> 0 | N104: =IFERROR(GETPIVOTDATA("Total W/O Preschool",'Private 19-20'!$O$3,"District Code",A104),0)*0 -> 0 | P104: 693326 | Q104: 0 | R104: 693326 | T104: 0 | U104: 693326 | W104: =IFERROR(VLOOKUP($A104,'Allocation 2020-21 Final'!$A$7:$U$317,18,FALSE),0) -> 822817 | Y104: -129491 | Z104: -0.1573752122 | AA104: 312 | AB104: 0 | AD104: 17401 | AE104: HIGHLINE
A105: 06098 | B105: HOCKINSON | C105: 0 | D105: 0 | E105: =IFERROR(VLOOKUP($A105,Census!$A$11:$I$344,7,FALSE),0) -> 2082 | F105: =ROUND(E105/$E$5*Assumptions!$C$14*Assumptions!$C$29,0) -> 11337 | G105: =IFERROR(VLOOKUP($A105,Census!$A$11:$I$344,8,FALSE),0) -> 118 | H105: =ROUND(G105/$G$5*+Assumptions!$C$14*Assumptions!$C$30,0) -> 23440 | J105: 34777 | L105: 0 | M105: =IFERROR(VLOOKUP(A105,ENROLLMENT!$A$5:$B$349,2,FALSE),0)*0 -> 0 | N105: =IFERROR(GETPIVOTDATA("Total W/O Preschool",'Private 19-20'!$O$3,"District Code",A105),0)*0 -> 0 | P105: 34777 | Q105: 0 | R105: 34777 | T105: 0 | U105: 34777 | W105: =IFERROR(VLOOKUP($A105,'Allocation 2020-21 Final'!$A$7:$U$317,18,FALSE),0) -> 28429 | Y105: 6348 | Z105: 0.2232931162 | AA105: 69 | AB105: 0 | AD105: 06098 | AE105: HOCKINSON
A106: 23404 | B106: HOOD CANAL | C106: 0 | D106: 0 | E106: =IFERROR(VLOOKUP($A106,Census!$A$11:$I$344,7,FALSE),0) -> 706 | F106: =ROUND(E106/$E$5*Assumptions!$C$14*Assumptions!$C$29,0) -> 3844 | G106: =IFERROR(VLOOKUP($A106,Census!$A$11:$I$344,8,FALSE),0) -> 125 | H106: =ROUND(G106/$G$5*+Assumptions!$C$14*Assumptions!$C$30,0) -> 24830 | J106: 28674 | L106: 0 | M106: =IFERROR(VLOOKUP(A106,ENROLLMENT!$A$5:$B$349,2,FALSE),0)*0 -> 0 | N106: =IFERROR(GETPIVOTDATA("Total W/O Preschool",'Private 19-20'!$O$3,"District Code",A106),0)*0 -> 0 | P106: 28674 | Q106: 0 | R106: 28674 | T106: 0 | U106: 28674 | W106: =IFERROR(VLOOKUP($A106,'Allocation 2020-21 Final'!$A$7:$U$317,18,FALSE),0) -> 22213 | Y106: 6461 | Z106: 0.2908657093 | AA106: 68 | AB106: 0 | AD106: 23404 | AE106: HOOD CANAL
A107: 14028 | B107: HOQUIAM | C107: 0 | D107: 0 | E107: =IFERROR(VLOOKUP($A107,Census!$A$11:$I$344,7,FALSE),0) -> 1827 | F107: =ROUND(E107/$E$5*Assumptions!$C$14*Assumptions!$C$29,0) -> 9948 | G107: =IFERROR(VLOOKUP($A107,Census!$A$11:$I$344,8,FALSE),0) -> 349 | H107: =ROUND(G107/$G$5*+Assumptions!$C$14*Assumptions!$C$30,0) -> 69327 | J107: 79275 | L107: 0 | M107: =IFERROR(VLOOKUP(A107,ENROLLMENT!$A$5:$B$349,2,FALSE),0)*0 -> 0 | N107: =IFERROR(GETPIVOTDATA("Total W/O Preschool",'Private 19-20'!$O$3,"District Code",A107),0)*0 -> 0 | P107: 79275 | Q107: 0 | R107: 79275 | T107: 0 | U107: 79275 | W107: =IFERROR(VLOOKUP($A107,'Allocation 2020-21 Final'!$A$7:$U$317,18,FALSE),0) -> 90601 | Y107: -11326 | Z107: -0.1250096577 | AA107: 281 | AB107: 0 | AD107: 14028 | AE107: HOQUIAM
A108: 27902 | B108: IMPACT COMMENCEMENT BAY CHARTER | C108: 0 | D108: 0 | E108: =IFERROR(VLOOKUP($A108,Census!$A$11:$I$344,7,FALSE),0) -> 315.7868463 | F108: =ROUND(E108/$E$5*Assumptions!$C$14*Assumptions!$C$29,0) -> 1720 | G108: =IFERROR(VLOOKUP($A108,Census!$A$11:$I$344,8,FALSE),0) -> 45.7988362 | H108: =ROUND(G108/$G$5*+Assumptions!$C$14*Assumptions!$C$30,0) -> 9098 | J108: 10818 | L108: 0 | M108: =IFERROR(VLOOKUP(A108,ENROLLMENT!$A$5:$B$349,2,FALSE),0)*0 -> 0 | N108: =IFERROR(GETPIVOTDATA("Total W/O Preschool",'Private 19-20'!$O$3,"District Code",A108),0)*0 -> 0 | P108: 10818 | Q108: 0 | R108: 10818 | T108: 0 | U108: 10818 | W108: =IFERROR(VLOOKUP($A108,'Allocation 2020-21 Final'!$A$7:$U$317,18,FALSE),0) -> 0 | Y108: 10818 | Z108: 0 | AA108: 43 | AB108: 0 | AD108: 27902 | AE108: IMPACT COMMENCEMENT BAY CHARTER
A109: 17911 | B109: IMPACT PUGET SOUND CHARTER | C109: 0 | D109: 0 | E109: =IFERROR(VLOOKUP($A109,Census!$A$11:$I$344,7,FALSE),0) -> 385.6724368 | F109: =ROUND(E109/$E$5*Assumptions!$C$14*Assumptions!$C$29,0) -> 2100 | G109: =IFERROR(VLOOKUP($A109,Census!$A$11:$I$344,8,FALSE),0) -> 80.3195739 | H109: =ROUND(G109/$G$5*+Assumptions!$C$14*Assumptions!$C$30,0) -> 15955 | J109: 18055 | L109: 0 | M109: =IFERROR(VLOOKUP(A109,ENROLLMENT!$A$5:$B$349,2,FALSE),0)*0 -> 0 | N109: =IFERROR(GETPIVOTDATA("Total W/O Preschool",'Private 19-20'!$O$3,"District Code",A109),0)*0 -> 0 | P109: 18055 | Q109: 0 | R109: 18055 | T109: 0 | U109: 18055 | W109: =IFERROR(VLOOKUP($A109,'Allocation 2020-21 Final'!$A$7:$U$317,18,FALSE),0) -> 9511 | Y109: 8544 | Z109: 0.8983282515 | AA109: 55 | AB109: 0 | AD109: 17911 | AE109: IMPACT PUGET SOUND CHARTER
A110: 17916 | B110: IMPACT SALISH SEA CHARTER | C110: 0 | D110: 0 | E110: =IFERROR(VLOOKUP($A110,Census!$A$11:$I$344,7,FALSE),0) -> 77.13448735 | F110: =ROUND(E110/$E$5*Assumptions!$C$14*Assumptions!$C$29,0) -> 420 | G110: =IFERROR(VLOOKUP($A110,Census!$A$11:$I$344,8,FALSE),0) -> 16.06391478 | H110: =ROUND(G110/$G$5*+Assumptions!$C$14*Assumptions!$C$30,0) -> 3191 | J110: 3611 | L110: 0 | M110: =IFERROR(VLOOKUP(A110,ENROLLMENT!$A$5:$B$349,2,FALSE),0)*0 -> 0 | N110: =IFERROR(GETPIVOTDATA("Total W/O Preschool",'Private 19-20'!$O$3,"District Code",A110),0)*0 -> 0 | P110: 3611 | Q110: 0 | R110: 3611 | T110: 0 | U110: 3611 | W110: =IFERROR(VLOOKUP($A110,'Allocation 2020-21 Final'!$A$7:$U$317,18,FALSE),0) -> 9827 | Y110: -6216 | Z110: -0.6325429938 | AA110: 271 | AB110: 0 | AD110: 17916 | AE110: IMPACT SALISH SEA CHARTER
A111: 10070 | B111: INCHELIUM | C111: 0 | D111: 0 | E111: =IFERROR(VLOOKUP($A111,Census!$A$11:$I$344,7,FALSE),0) -> 188 | F111: =ROUND(E111/$E$5*Assumptions!$C$14*Assumptions!$C$29,0) -> 1024 | G111: =IFERROR(VLOOKUP($A111,Census!$A$11:$I$344,8,FALSE),0) -> 59 | H111: =ROUND(G111/$G$5*+Assumptions!$C$14*Assumptions!$C$30,0) -> 11720 | J111: 12744 | L111: 0 | M111: =IFERROR(VLOOKUP(A111,ENROLLMENT!$A$5:$B$349,2,FALSE),0)*0 -> 0 | N111: =IFERROR(GETPIVOTDATA("Total W/O Preschool",'Private 19-20'!$O$3,"District Code",A111),0)*0 -> 0 | P111: 12744 | Q111: 0 | R111: 12744 | T111: 0 | U111: 12744 | W111: =IFERROR(VLOOKUP($A111,'Allocation 2020-21 Final'!$A$7:$U$317,18,FALSE),0) -> 10781 | Y111: 1963 | Z111: 0.1820795845 | AA111: 115 | AB111: 0 | AD111: 10070 | AE111: INCHELIUM
A112: 31063 | B112: INDEX | C112: 0 | D112: 0 | E112: =IFERROR(VLOOKUP($A112,Census!$A$11:$I$344,7,FALSE),0) -> 43 | F112: =ROUND(E112/$E$5*Assumptions!$C$14*Assumptions!$C$29,0) -> 234 | G112: =IFERROR(VLOOKUP($A112,Census!$A$11:$I$344,8,FALSE),0) -> 12 | H112: =ROUND(G112/$G$5*+Assumptions!$C$14*Assumptions!$C$30,0) -> 2384 | J112: 2618 | L112: 0 | M112: =IFERROR(VLOOKUP(A112,ENROLLMENT!$A$5:$B$349,2,FALSE),0)*0 -> 0 | N112: =IFERROR(GETPIVOTDATA("Total W/O Preschool",'Private 19-20'!$O$3,"District Code",A112),0)*0 -> 0 | P112: 2618 | Q112: 0 | R112: 2618 | T112: 0 | U112: 2618 | W112: =IFERROR(VLOOKUP($A112,'Allocation 2020-21 Final'!$A$7:$U$317,18,FALSE),0) -> 418 | Y112: 2200 | Z112: 5.263157895 | AA112: 110 | AB112: 0 | AD112: 31063 | AE112: INDEX
A113: 17411 | B113: ISSAQUAH | C113: 0 | D113: 0 | E113: =IFERROR(VLOOKUP($A113,Census!$A$11:$I$344,7,FALSE),0) -> 22110 | F113: =ROUND(E113/$E$5*Assumptions!$C$14*Assumptions!$C$29,0) -> 120394 | G113: =IFERROR(VLOOKUP($A113,Census!$A$11:$I$344,8,FALSE),0) -> 738 | H113: =ROUND(G113/$G$5*+Assumptions!$C$14*Assumptions!$C$30,0) -> 146599 | J113: 266993 | L113: 0 | M113: =IFERROR(VLOOKUP(A113,ENROLLMENT!$A$5:$B$349,2,FALSE),0)*0 -> 0 | N113: =IFERROR(GETPIVOTDATA("Total W/O Preschool",'Private 19-20'!$O$3,"District Code",A113),0)*0 -> 0 | P113: 266993 | Q113: 0 | R113: 266993 | T113: 0 | U113: 266993 | W113: =IFERROR(VLOOKUP($A113,'Allocation 2020-21 Final'!$A$7:$U$317,18,FALSE),0) -> 290260 | Y113: -23267 | Z113: -0.08015916764 | AA113: 297 | AB113: 0 | AD113: 17411 | AE113: ISSAQUAH
A114: 11056 | B114: KAHLOTUS | C114: 0 | D114: 0 | E114: =IFERROR(VLOOKUP($A114,Census!$A$11:$I$344,7,FALSE),0) -> 88 | F114: =ROUND(E114/$E$5*Assumptions!$C$14*Assumptions!$C$29,0) -> 479 | G114: =IFERROR(VLOOKUP($A114,Census!$A$11:$I$344,8,FALSE),0) -> 9 | H114: =ROUND(G114/$G$5*+Assumptions!$C$14*Assumptions!$C$30,0) -> 1788 | J114: 2267 | L114: 0 | M114: =IFERROR(VLOOKUP(A114,ENROLLMENT!$A$5:$B$349,2,FALSE),0)*0 -> 0 | N114: =IFERROR(GETPIVOTDATA("Total W/O Preschool",'Private 19-20'!$O$3,"District Code",A114),0)*0 -> 0 | P114: 2267 | Q114: 0 | R114: 2267 | T114: 0 | U114: 2267 | W114: =IFERROR(VLOOKUP($A114,'Allocation 2020-21 Final'!$A$7:$U$317,18,FALSE),0) -> 1963 | Y114: 304 | Z114: 0.1548650025 | AA114: 162 | AB114: 0 | AD114: 11056 | AE114: KAHLOTUS
A115: 08402 | B115: KALAMA | C115: 0 | D115: 0 | E115: =IFERROR(VLOOKUP($A115,Census!$A$11:$I$344,7,FALSE),0) -> 1158 | F115: =ROUND(E115/$E$5*Assumptions!$C$14*Assumptions!$C$29,0) -> 6306 | G115: =IFERROR(VLOOKUP($A115,Census!$A$11:$I$344,8,FALSE),0) -> 79 | H115: =ROUND(G115/$G$5*+Assumptions!$C$14*Assumptions!$C$30,0) -> 15693 | J115: 21999 | L115: 0 | M115: =IFERROR(VLOOKUP(A115,ENROLLMENT!$A$5:$B$349,2,FALSE),0)*0 -> 0 | N115: =IFERROR(GETPIVOTDATA("Total W/O Preschool",'Private 19-20'!$O$3,"District Code",A115),0)*0 -> 0 | P115: 21999 | Q115: 0 | R115: 21999 | T115: 0 | U115: 21999 | W115: =IFERROR(VLOOKUP($A115,'Allocation 2020-21 Final'!$A$7:$U$317,18,FALSE),0) -> 27477 | Y115: -5478 | Z115: -0.1993667431 | AA115: 267 | AB115: 0 | AD115: 08402 | AE115: KALAMA
A116: 10003 | B116: KELLER | C116: 0 | D116: 0 | E116: =IFERROR(VLOOKUP($A116,Census!$A$11:$I$344,7,FALSE),0) -> 72 | F116: =ROUND(E116/$E$5*Assumptions!$C$14*Assumptions!$C$29,0) -> 392 | G116: =IFERROR(VLOOKUP($A116,Census!$A$11:$I$344,8,FALSE),0) -> 30 | H116: =ROUND(G116/$G$5*+Assumptions!$C$14*Assumptions!$C$30,0) -> 5959 | J116: 6351 | L116: 0 | M116: =IFERROR(VLOOKUP(A116,ENROLLMENT!$A$5:$B$349,2,FALSE),0)*0 -> 0 | N116: =IFERROR(GETPIVOTDATA("Total W/O Preschool",'Private 19-20'!$O$3,"District Code",A116),0)*0 -> 0 | P116: 6351 | Q116: 0 | R116: 6351 | T116: 0 | U116: 6351 | W116: =IFERROR(VLOOKUP($A116,'Allocation 2020-21 Final'!$A$7:$U$317,18,FALSE),0) -> 4519 | Y116: 1832 | Z116: 0.4053994247 | AA116: 116 | AB116: 0 | AD116: 10003 | AE116: KELLER
A117: 08458 | B117: KELSO | C117: 0 | D117: 0 | E117: =IFERROR(VLOOKUP($A117,Census!$A$11:$I$344,7,FALSE),0) -> 5505 | F117: =ROUND(E117/$E$5*Assumptions!$C$14*Assumptions!$C$29,0) -> 29976 | G117: =IFERROR(VLOOKUP($A117,Census!$A$11:$I$344,8,FALSE),0) -> 848 | H117: =ROUND(G117/$G$5*+Assumptions!$C$14*Assumptions!$C$30,0) -> 168450 | J117: 198426 | L117: 0 | M117: =IFERROR(VLOOKUP(A117,ENROLLMENT!$A$5:$B$349,2,FALSE),0)*0 -> 0 | N117: =IFERROR(GETPIVOTDATA("Total W/O Preschool",'Private 19-20'!$O$3,"District Code",A117),0)*0 -> 0 | P117: 198426 | Q117: 0 | R117: 198426 | T117: 0 | U117: 198426 | W117: =IFERROR(VLOOKUP($A117,'Allocation 2020-21 Final'!$A$7:$U$317,18,FALSE),0) -> 190801 | Y117: 7625 | Z117: 0.03996310292 | AA117: 62 | AB117: 0 | AD117: 08458 | AE117: KELSO
A118: 03017 | B118: KENNEWICK | C118: 0 | D118: 0 | E118: =IFERROR(VLOOKUP($A118,Census!$A$11:$I$344,7,FALSE),0) -> 19653 | F118: =ROUND(E118/$E$5*Assumptions!$C$14*Assumptions!$C$29,0) -> 107015 | G118: =IFERROR(VLOOKUP($A118,Census!$A$11:$I$344,8,FALSE),0) -> 3452 | H118: =ROUND(G118/$G$5*+Assumptions!$C$14*Assumptions!$C$30,0) -> 685718 | J118: 792733 | L118: 0 | M118: =IFERROR(VLOOKUP(A118,ENROLLMENT!$A$5:$B$349,2,FALSE),0)*0 -> 0 | N118: =IFERROR(GETPIVOTDATA("Total W/O Preschool",'Private 19-20'!$O$3,"District Code",A118),0)*0 -> 0 | P118: 792733 | Q118: 0 | R118: 792733 | T118: 0 | U118: 792733 | W118: =IFERROR(VLOOKUP($A118,'Allocation 2020-21 Final'!$A$7:$U$317,18,FALSE),0) -> 650548 | Y118: 142185 | Z118: 0.2185618894 | AA118: 3 | AB118: 0 | AD118: 03017 | AE118: KENNEWICK
A119: 17415 | B119: KENT | C119: 0 | D119: 0 | E119: =IFERROR(VLOOKUP($A119,Census!$A$11:$I$344,7,FALSE),0) -> 32956 | F119: =ROUND(E119/$E$5*Assumptions!$C$14*Assumptions!$C$29,0) -> 179453 | G119: =IFERROR(VLOOKUP($A119,Census!$A$11:$I$344,8,FALSE),0) -> 3583 | H119: =ROUND(G119/$G$5*+Assumptions!$C$14*Assumptions!$C$30,0) -> 711740 | J119: 891193 | L119: 0 | M119: =IFERROR(VLOOKUP(A119,ENROLLMENT!$A$5:$B$349,2,FALSE),0)*0 -> 0 | N119: =IFERROR(GETPIVOTDATA("Total W/O Preschool",'Private 19-20'!$O$3,"District Code",A119),0)*0 -> 0 | P119: 891193 | Q119: 0 | R119: 891193 | T119: 0 | U119: 891193 | W119: =IFERROR(VLOOKUP($A119,'Allocation 2020-21 Final'!$A$7:$U$317,18,FALSE),0) -> 1065665 | Y119: -174472 | Z119: -0.1637212445 | AA119: 314 | AB119: 0 | AD119: 17415 | AE119: KENT
A120: 33212 | B120: KETTLE FALLS | C120: 0 | D120: 0 | E120: =IFERROR(VLOOKUP($A120,Census!$A$11:$I$344,7,FALSE),0) -> 776 | F120: =ROUND(E120/$E$5*Assumptions!$C$14*Assumptions!$C$29,0) -> 4225 | G120: =IFERROR(VLOOKUP($A120,Census!$A$11:$I$344,8,FALSE),0) -> 129 | H120: =ROUND(G120/$G$5*+Assumptions!$C$14*Assumptions!$C$30,0) -> 25625 | J120: 29850 | L120: 0 | M120: =IFERROR(VLOOKUP(A120,ENROLLMENT!$A$5:$B$349,2,FALSE),0)*0 -> 0 | N120: =IFERROR(GETPIVOTDATA("Total W/O Preschool",'Private 19-20'!$O$3,"District Code",A120),0)*0 -> 0 | P120: 29850 | Q120: 0 | R120: 29850 | T120: 0 | U120: 29850 | W120: =IFERROR(VLOOKUP($A120,'Allocation 2020-21 Final'!$A$7:$U$317,18,FALSE),0) -> 29237 | Y120: 613 | Z120: 0.02096658344 | AA120: 147 | AB120: 0 | AD120: 33212 | AE120: KETTLE FALLS
A121: 03052 | B121: KIONA-BENTON | C121: 0 | D121: 0 | E121: =IFERROR(VLOOKUP($A121,Census!$A$11:$I$344,7,FALSE),0) -> 1938 | F121: =ROUND(E121/$E$5*Assumptions!$C$14*Assumptions!$C$29,0) -> 10553 | G121: =IFERROR(VLOOKUP($A121,Census!$A$11:$I$344,8,FALSE),0) -> 229 | H121: =ROUND(G121/$G$5*+Assumptions!$C$14*Assumptions!$C$30,0) -> 45489 | J121: 56042 | L121: 0 | M121: =IFERROR(VLOOKUP(A121,ENROLLMENT!$A$5:$B$349,2,FALSE),0)*0 -> 0 | N121: =IFERROR(GETPIVOTDATA("Total W/O Preschool",'Private 19-20'!$O$3,"District Code",A121),0)*0 -> 0 | P121: 56042 | Q121: 0 | R121: 56042 | T121: 0 | U121: 56042 | W121: =IFERROR(VLOOKUP($A121,'Allocation 2020-21 Final'!$A$7:$U$317,18,FALSE),0) -> 51748 | Y121: 4294 | Z121: 0.08297905233 | AA121: 86 | AB121: 0 | AD121: 03052 | AE121: KIONA-BENTON
A122: 19403 | B122: KITTITAS | C122: 0 | D122: 0 | E122: =IFERROR(VLOOKUP($A122,Census!$A$11:$I$344,7,FALSE),0) -> 783 | F122: =ROUND(E122/$E$5*Assumptions!$C$14*Assumptions!$C$29,0) -> 4264 | G122: =IFERROR(VLOOKUP($A122,Census!$A$11:$I$344,8,FALSE),0) -> 60 | H122: =ROUND(G122/$G$5*+Assumptions!$C$14*Assumptions!$C$30,0) -> 11919 | J122: 16183 | L122: 0 | M122: =IFERROR(VLOOKUP(A122,ENROLLMENT!$A$5:$B$349,2,FALSE),0)*0 -> 0 | N122: =IFERROR(GETPIVOTDATA("Total W/O Preschool",'Private 19-20'!$O$3,"District Code",A122),0)*0 -> 0 | P122: 16183 | Q122: 0 | R122: 16183 | T122: 0 | U122: 16183 | W122: =IFERROR(VLOOKUP($A122,'Allocation 2020-21 Final'!$A$7:$U$317,18,FALSE),0) -> 18624 | Y122: -2441 | Z122: -0.1310674399 | AA122: 240 | AB122: 0 | AD122: 19403 | AE122: KITTITAS
A123: 20402 | B123: KLICKITAT | C123: 0 | D123: 0 | E123: =IFERROR(VLOOKUP($A123,Census!$A$11:$I$344,7,FALSE),0) -> 78 | F123: =ROUND(E123/$E$5*Assumptions!$C$14*Assumptions!$C$29,0) -> 425 | G123: =IFERROR(VLOOKUP($A123,Census!$A$11:$I$344,8,FALSE),0) -> 16 | H123: =ROUND(G123/$G$5*+Assumptions!$C$14*Assumptions!$C$30,0) -> 3178 | J123: 3603 | L123: 0 | M123: =IFERROR(VLOOKUP(A123,ENROLLMENT!$A$5:$B$349,2,FALSE),0)*0 -> 0 | N123: =IFERROR(GETPIVOTDATA("Total W/O Preschool",'Private 19-20'!$O$3,"District Code",A123),0)*0 -> 0 | P123: 3603 | Q123: 0 | R123: 3603 | T123: 0 | U123: 3603 | W123: =IFERROR(VLOOKUP($A123,'Allocation 2020-21 Final'!$A$7:$U$317,18,FALSE),0) -> 2101 | Y123: 1502 | Z123: 0.7148976678 | AA123: 123 | AB123: 0 | AD123: 20402 | AE123: KLICKITAT
A124: 06101 | B124: LA CENTER | C124: 0 | D124: 0 | E124: =IFERROR(VLOOKUP($A124,Census!$A$11:$I$344,7,FALSE),0) -> 1834 | F124: =ROUND(E124/$E$5*Assumptions!$C$14*Assumptions!$C$29,0) -> 9987 | G124: =IFERROR(VLOOKUP($A124,Census!$A$11:$I$344,8,FALSE),0) -> 82 | H124: =ROUND(G124/$G$5*+Assumptions!$C$14*Assumptions!$C$30,0) -> 16289 | J124: 26276 | L124: 0 | M124: =IFERROR(VLOOKUP(A124,ENROLLMENT!$A$5:$B$349,2,FALSE),0)*0 -> 0 | N124: =IFERROR(GETPIVOTDATA("Total W/O Preschool",'Private 19-20'!$O$3,"District Code",A124),0)*0 -> 0 | P124: 26276 | Q124: 0 | R124: 26276 | T124: 0 | U124: 26276 | W124: =IFERROR(VLOOKUP($A124,'Allocation 2020-21 Final'!$A$7:$U$317,18,FALSE),0) -> 24287 | Y124: 1989 | Z124: 0.08189566435 | AA124: 114 | AB124: 0 | AD124: 06101 | AE124: LA CENTER
A125: 29311 | B125: LA CONNER | C125: 0 | D125: 0 | E125: =IFERROR(VLOOKUP($A125,Census!$A$11:$I$344,7,FALSE),0) -> 615 | F125: =ROUND(E125/$E$5*Assumptions!$C$14*Assumptions!$C$29,0) -> 3349 | G125: =IFERROR(VLOOKUP($A125,Census!$A$11:$I$344,8,FALSE),0) -> 86 | H125: =ROUND(G125/$G$5*+Assumptions!$C$14*Assumptions!$C$30,0) -> 17083 | J125: 20432 | L125: 0 | M125: =IFERROR(VLOOKUP(A125,ENROLLMENT!$A$5:$B$349,2,FALSE),0)*0 -> 0 | N125: =IFERROR(GETPIVOTDATA("Total W/O Preschool",'Private 19-20'!$O$3,"District Code",A125),0)*0 -> 0 | P125: 20432 | Q125: 0 | R125: 20432 | T125: 0 | U125: 20432 | W125: =IFERROR(VLOOKUP($A125,'Allocation 2020-21 Final'!$A$7:$U$317,18,FALSE),0) -> 14319 | Y125: 6113 | Z125: 0.4269152874 | AA125: 70 | AB125: 0 | AD125: 29311 | AE125: LA CONNER
A126: 38126 | B126: LACROSSE | C126: 0 | D126: 0 | E126: =IFERROR(VLOOKUP($A126,Census!$A$11:$I$344,7,FALSE),0) -> 113 | F126: =ROUND(E126/$E$5*Assumptions!$C$14*Assumptions!$C$29,0) -> 615 | G126: =IFERROR(VLOOKUP($A126,Census!$A$11:$I$344,8,FALSE),0) -> 26 | H126: =ROUND(G126/$G$5*+Assumptions!$C$14*Assumptions!$C$30,0) -> 5165 | J126: 5780 | L126: 0 | M126: =IFERROR(VLOOKUP(A126,ENROLLMENT!$A$5:$B$349,2,FALSE),0)*0 -> 0 | N126: =IFERROR(GETPIVOTDATA("Total W/O Preschool",'Private 19-20'!$O$3,"District Code",A126),0)*0 -> 0 | P126: 5780 | Q126: 0 | R126: 5780 | T126: 0 | U126: 5780 | W126: =IFERROR(VLOOKUP($A126,'Allocation 2020-21 Final'!$A$7:$U$317,18,FALSE),0) -> 3586 | Y126: 2194 | Z126: 0.6118237591 | AA126: 111 | AB126: 0 | AD126: 38126 | AE126: LACROSSE
A127: 04129 | B127: LAKE CHELAN | C127: 0 | D127: 0 | E127: =IFERROR(VLOOKUP($A127,Census!$A$11:$I$344,7,FALSE),0) -> 1244 | F127: =ROUND(E127/$E$5*Assumptions!$C$14*Assumptions!$C$29,0) -> 6774 | G127: =IFERROR(VLOOKUP($A127,Census!$A$11:$I$344,8,FALSE),0) -> 127 | H127: =ROUND(G127/$G$5*+Assumptions!$C$14*Assumptions!$C$30,0) -> 25228 | J127: 32002 | L127: 0 | M127: =IFERROR(VLOOKUP(A127,ENROLLMENT!$A$5:$B$349,2,FALSE),0)*0 -> 0 | N127: =IFERROR(GETPIVOTDATA("Total W/O Preschool",'Private 19-20'!$O$3,"District Code",A127),0)*0 -> 0 | P127: 32002 | Q127: 0 | R127: 32002 | T127: 0 | U127: 32002 | W127: =IFERROR(VLOOKUP($A127,'Allocation 2020-21 Final'!$A$7:$U$317,18,FALSE),0) -> 23695 | Y127: 8307 | Z127: 0.3505802912 | AA127: 58 | AB127: 0 | AD127: 04129 | AE127: LAKE CHELAN
A128: 14097 | B128: QUINAULT | C128: 0 | D128: 0 | E128: =IFERROR(VLOOKUP($A128,Census!$A$11:$I$344,7,FALSE),0) -> 203 | F128: =ROUND(E128/$E$5*Assumptions!$C$14*Assumptions!$C$29,0) -> 1105 | G128: =IFERROR(VLOOKUP($A128,Census!$A$11:$I$344,8,FALSE),0) -> 35 | H128: =ROUND(G128/$G$5*+Assumptions!$C$14*Assumptions!$C$30,0) -> 6953 | J128: 8058 | L128: 0 | M128: =IFERROR(VLOOKUP(A128,ENROLLMENT!$A$5:$B$349,2,FALSE),0)*0 -> 0 | N128: =IFERROR(GETPIVOTDATA("Total W/O Preschool",'Private 19-20'!$O$3,"District Code",A128),0)*0 -> 0 | P128: 8058 | Q128: 0 | R128: 8058 | T128: 0 | U128: 8058 | W128: =IFERROR(VLOOKUP($A128,'Allocation 2020-21 Final'!$A$7:$U$317,18,FALSE),0) -> 9484 | Y128: -1426 | Z128: -0.1503584985 | AA128: 224 | AB128: 0 | AD128: 14097 | AE128: QUINAULT
A129: 31004 | B129: LAKE STEVENS | C129: 0 | D129: 0 | E129: =IFERROR(VLOOKUP($A129,Census!$A$11:$I$344,7,FALSE),0) -> 9044 | F129: =ROUND(E129/$E$5*Assumptions!$C$14*Assumptions!$C$29,0) -> 49247 | G129: =IFERROR(VLOOKUP($A129,Census!$A$11:$I$344,8,FALSE),0) -> 495 | H129: =ROUND(G129/$G$5*+Assumptions!$C$14*Assumptions!$C$30,0) -> 98329 | J129: 147576 | L129: 0 | M129: =IFERROR(VLOOKUP(A129,ENROLLMENT!$A$5:$B$349,2,FALSE),0)*0 -> 0 | N129: =IFERROR(GETPIVOTDATA("Total W/O Preschool",'Private 19-20'!$O$3,"District Code",A129),0)*0 -> 0 | P129: 147576 | Q129: 0 | R129: 147576 | T129: 0 | U129: 147576 | W129: =IFERROR(VLOOKUP($A129,'Allocation 2020-21 Final'!$A$7:$U$317,18,FALSE),0) -> 164344 | Y129: -16768 | Z129: -0.1020298885 | AA129: 290 | AB129: 0 | AD129: 31004 | AE129: LAKE STEVENS
A130: 17414 | B130: LAKE WASHINGTON | C130: 0 | D130: 0 | E130: =IFERROR(VLOOKUP($A130,Census!$A$11:$I$344,7,FALSE),0) -> 32317 | F130: =ROUND(E130/$E$5*Assumptions!$C$14*Assumptions!$C$29,0) -> 175973 | G130: =IFERROR(VLOOKUP($A130,Census!$A$11:$I$344,8,FALSE),0) -> 1043 | H130: =ROUND(G130/$G$5*+Assumptions!$C$14*Assumptions!$C$30,0) -> 207185 | J130: 383158 | L130: 0 | M130: =IFERROR(VLOOKUP(A130,ENROLLMENT!$A$5:$B$349,2,FALSE),0)*0 -> 0 | N130: =IFERROR(GETPIVOTDATA("Total W/O Preschool",'Private 19-20'!$O$3,"District Code",A130),0)*0 -> 0 | P130: 383158 | Q130: 0 | R130: 383158 | T130: 0 | U130: 383158 | W130: =IFERROR(VLOOKUP($A130,'Allocation 2020-21 Final'!$A$7:$U$317,18,FALSE),0) -> 432065 | Y130: -48907 | Z130: -0.1131936167 | AA130: 307 | AB130: 0 | AD130: 17414 | AE130: LAKE WASHINGTON
A131: 31306 | B131: LAKEWOOD | C131: 0 | D131: 0 | E131: =IFERROR(VLOOKUP($A131,Census!$A$11:$I$344,7,FALSE),0) -> 2707 | F131: =ROUND(E131/$E$5*Assumptions!$C$14*Assumptions!$C$29,0) -> 14740 | G131: =IFERROR(VLOOKUP($A131,Census!$A$11:$I$344,8,FALSE),0) -> 221 | H131: =ROUND(G131/$G$5*+Assumptions!$C$14*Assumptions!$C$30,0) -> 43900 | J131: 58640 | L131: 0 | M131: =IFERROR(VLOOKUP(A131,ENROLLMENT!$A$5:$B$349,2,FALSE),0)*0 -> 0 | N131: =IFERROR(GETPIVOTDATA("Total W/O Preschool",'Private 19-20'!$O$3,"District Code",A131),0)*0 -> 0 | P131: 58640 | Q131: 0 | R131: 58640 | T131: 0 | U131: 58640 | W131: =IFERROR(VLOOKUP($A131,'Allocation 2020-21 Final'!$A$7:$U$317,18,FALSE),0) -> 57002 | Y131: 1638 | Z131: 0.02873583383 | AA131: 119 | AB131: 0 | AD131: 31306 | AE131: LAKEWOOD
A132: 38264 | B132: LAMONT | C132: 0 | D132: 0 | E132: =IFERROR(VLOOKUP($A132,Census!$A$11:$I$344,7,FALSE),0) -> 32 | F132: =ROUND(E132/$E$5*Assumptions!$C$14*Assumptions!$C$29,0) -> 174 | G132: =IFERROR(VLOOKUP($A132,Census!$A$11:$I$344,8,FALSE),0) -> 8 | H132: =ROUND(G132/$G$5*+Assumptions!$C$14*Assumptions!$C$30,0) -> 1589 | J132: 1763 | L132: 0 | M132: =IFERROR(VLOOKUP(A132,ENROLLMENT!$A$5:$B$349,2,FALSE),0)*0 -> 0 | N132: =IFERROR(GETPIVOTDATA("Total W/O Preschool",'Private 19-20'!$O$3,"District Code",A132),0)*0 -> 0 | P132: 1763 | Q132: 0 | R132: 1763 | T132: 0 | U132: 1763 | W132: =IFERROR(VLOOKUP($A132,'Allocation 2020-21 Final'!$A$7:$U$317,18,FALSE),0) -> 1849 | Y132: -86 | Z132: -0.04651162791 | AA132: 183 | AB132: 0 | AD132: 38264 | AE132: LAMONT
A133: 32362 | B133: LIBERTY | C133: 0 | D133: 0 | E133: =IFERROR(VLOOKUP($A133,Census!$A$11:$I$344,7,FALSE),0) -> 805 | F133: =ROUND(E133/$E$5*Assumptions!$C$14*Assumptions!$C$29,0) -> 4383 | G133: =IFERROR(VLOOKUP($A133,Census!$A$11:$I$344,8,FALSE),0) -> 56 | H133: =ROUND(G133/$G$5*+Assumptions!$C$14*Assumptions!$C$30,0) -> 11124 | J133: 15507 | L133: 0 | M133: =IFERROR(VLOOKUP(A133,ENROLLMENT!$A$5:$B$349,2,FALSE),0)*0 -> 0 | N133: =IFERROR(GETPIVOTDATA("Total W/O Preschool",'Private 19-20'!$O$3,"District Code",A133),0)*0 -> 0 | P133: 15507 | Q133: 0 | R133: 15507 | T133: 0 | U133: 15507 | W133: =IFERROR(VLOOKUP($A133,'Allocation 2020-21 Final'!$A$7:$U$317,18,FALSE),0) -> 18672 | Y133: -3165 | Z133: -0.1695051414 | AA133: 249 | AB133: 0 | AD133: =+A133 -> 32362 | AE133: LIBERTY
A134: 01158 | B134: LIND | C134: 0 | D134: 0 | E134: =IFERROR(VLOOKUP($A134,Census!$A$11:$I$344,7,FALSE),0) -> 293 | F134: =ROUND(E134/$E$5*Assumptions!$C$14*Assumptions!$C$29,0) -> 1595 | G134: =IFERROR(VLOOKUP($A134,Census!$A$11:$I$344,8,FALSE),0) -> 41 | H134: =ROUND(G134/$G$5*+Assumptions!$C$14*Assumptions!$C$30,0) -> 8144 | J134: 9739 | L134: 0 | M134: =IFERROR(VLOOKUP(A134,ENROLLMENT!$A$5:$B$349,2,FALSE),0)*0 -> 0 | N134: =IFERROR(GETPIVOTDATA("Total W/O Preschool",'Private 19-20'!$O$3,"District Code",A134),0)*0 -> 0 | P134: 9739 | Q134: 0 | R134: 9739 | T134: 0 | U134: 9739 | W134: =IFERROR(VLOOKUP($A134,'Allocation 2020-21 Final'!$A$7:$U$317,18,FALSE),0) -> 8253 | Y134: 1486 | Z134: 0.1800557373 | AA134: 124 | AB134: 0 | AD134: 01158 | AE134: LIND
A135: 08122 | B135: LONGVIEW | C135: 0 | D135: 0 | E135: =IFERROR(VLOOKUP($A135,Census!$A$11:$I$344,7,FALSE),0) -> 7648 | F135: =ROUND(E135/$E$5*Assumptions!$C$14*Assumptions!$C$29,0) -> 41645 | G135: =IFERROR(VLOOKUP($A135,Census!$A$11:$I$344,8,FALSE),0) -> 1324 | H135: =ROUND(G135/$G$5*+Assumptions!$C$14*Assumptions!$C$30,0) -> 263004 | J135: =ROUNDDOWN(+H135+F135+D135+C135+I135,0) -> 304649 | L135: 0 | M135: =IFERROR(VLOOKUP(A135,ENROLLMENT!$A$5:$B$349,2,FALSE),0)*0 -> 0 | N135: =IFERROR(GETPIVOTDATA("Total W/O Preschool",'Private 19-20'!$O$3,"District Code",A135),0)*0 -> 0 | P135: 304649 | Q135: 0 | R135: 304649 | T135: 0 | U135: 304649 | W135: =IFERROR(VLOOKUP($A135,'Allocation 2020-21 Final'!$A$7:$U$317,18,FALSE),0) -> 290075 | Y135: 14574 | Z135: 0.05024217875 | AA135: 36 | AB135: =(SUM(C135:D135)/U135) -> 0 | AD135: 08122 | AE135: LONGVIEW
A136: 33183 | B136: LOON LAKE | C136: 0 | D136: 0 | E136: =IFERROR(VLOOKUP($A136,Census!$A$11:$I$344,7,FALSE),0) -> 241 | F136: =ROUND(E136/$E$5*Assumptions!$C$14*Assumptions!$C$29,0) -> 1312 | G136: =IFERROR(VLOOKUP($A136,Census!$A$11:$I$344,8,FALSE),0) -> 45 | H136: =ROUND(G136/$G$5*+Assumptions!$C$14*Assumptions!$C$30,0) -> 8939 | J136: 10251 | L136: 0 | M136: =IFERROR(VLOOKUP(A136,ENROLLMENT!$A$5:$B$349,2,FALSE),0)*0 -> 0 | N136: =IFERROR(GETPIVOTDATA("Total W/O Preschool",'Private 19-20'!$O$3,"District Code",A136),0)*0 -> 0 | P136: 10251 | Q136: 0 | R136: 10251 | T136: 0 | U136: 10251 | W136: =IFERROR(VLOOKUP($A136,'Allocation 2020-21 Final'!$A$7:$U$317,18,FALSE),0) -> 9148 | Y136: 1103 | Z136: 0.1205728028 | AA136: =RANK(Y136,$Y$7:$Y$321,0) -> 135 | AB136: 0 | AD136: 33183 | AE136: LOON LAKE
A137: 28144 | B137: LOPEZ | C137: 0 | D137: 0 | E137: =IFERROR(VLOOKUP($A137,Census!$A$11:$I$344,7,FALSE),0) -> 218 | F137: =ROUND(E137/$E$5*Assumptions!$C$14*Assumptions!$C$29,0) -> 1187 | G137: =IFERROR(VLOOKUP($A137,Census!$A$11:$I$344,8,FALSE),0) -> 39 | H137: =ROUND(G137/$G$5*+Assumptions!$C$14*Assumptions!$C$30,0) -> 7747 | J137: 8934 | L137: =IF((M137+N137=0),0,+J137/(+M137+N137)) -> 0 | M137: =IFERROR(VLOOKUP(A137,ENROLLMENT!$A$5:$B$349,2,FALSE),0)*0 -> 0 | N137: =IFERROR(GETPIVOTDATA("Total W/O Preschool",'Private 19-20'!$O$3,"District Code",A137),0)*0 -> 0 | P137: 8934 | Q137: 0 | R137: 8934 | T137: 0 | U137: 8934 | W137: =IFERROR(VLOOKUP($A137,'Allocation 2020-21 Final'!$A$7:$U$317,18,FALSE),0) -> 11449 | Y137: =+U137-W137 -> -2515 | Z137: =IF(W137>0,Y137/W137,0) -> -0.2196698402 | AA137: 242 | AB137: 0 | AD137: 28144 | AE137: LOPEZ
A138: 32903 | B138: LUMEN CHARTER | C138: 0 | D138: 0 | E138: =IFERROR(VLOOKUP($A138,Census!$A$11:$I$344,7,FALSE),0) -> 57.19862938 | F138: =ROUND(E138/$E$5*Assumptions!$C$14*Assumptions!$C$29,0) -> 311 | G138: =IFERROR(VLOOKUP($A138,Census!$A$11:$I$344,8,FALSE),0) -> 8.481706643 | H138: =ROUND(G138/$G$5*+Assumptions!$C$14*Assumptions!$C$30,0) -> 1685 | J138: 1996 | L138: 0 | M138: =IFERROR(VLOOKUP(A138,ENROLLMENT!$A$5:$B$349,2,FALSE),0)*0 -> 0 | N138: =IFERROR(GETPIVOTDATA("Total W/O Preschool",'Private 19-20'!$O$3,"District Code",A138),0)*0 -> 0 | P138: =J138 -> 1996 | Q138: =-ROUND(P138/$P$5*$O$5,0) -> 0 | R138: =+J138+Q138+O138 -> 1996 | T138: =IF(S138>0,-ROUND((R138*(0.9-S138)),0),0) -> 0 | U138: =+R138+T138 -> 1996 | W138: =IFERROR(VLOOKUP($A138,'Allocation 2020-21 Final'!$A$7:$U$317,18,FALSE),0) -> 2397 | Y138: -401 | Z138: -0.1672924489 | AA138: 201 | AB138: 0 | AD138: 32903 | AE138: LUMEN CHARTER
A139: 20406 | B139: LYLE | C139: 0 | D139: 0 | E139: =IFERROR(VLOOKUP($A139,Census!$A$11:$I$344,7,FALSE),0) -> 397 | F139: =ROUND(E139/$E$5*Assumptions!$C$14*Assumptions!$C$29,0) -> 2162 | G139: =IFERROR(VLOOKUP($A139,Census!$A$11:$I$344,8,FALSE),0) -> 115 | H139: =ROUND(G139/$G$5*+Assumptions!$C$14*Assumptions!$C$30,0) -> 22844 | J139: 25006 | L139: 0 | M139: =IFERROR(VLOOKUP(A139,ENROLLMENT!$A$5:$B$349,2,FALSE),0)*0 -> 0 | N139: =IFERROR(GETPIVOTDATA("Total W/O Preschool",'Private 19-20'!$O$3,"District Code",A139),0)*0 -> 0 | P139: 25006 | Q139: 0 | R139: 25006 | T139: 0 | U139: 25006 | W139: =IFERROR(VLOOKUP($A139,'Allocation 2020-21 Final'!$A$7:$U$317,18,FALSE),0) -> 21947 | Y139: 3059 | Z139: 0.1393812366 | AA139: 100 | AB139: 0 | AD139: 20406 | AE139: LYLE
A140: 37504 | B140: LYNDEN | C140: 0 | D140: 0 | E140: =IFERROR(VLOOKUP($A140,Census!$A$11:$I$344,7,FALSE),0) -> 3821 | F140: =ROUND(E140/$E$5*Assumptions!$C$14*Assumptions!$C$29,0) -> 20806 | G140: =IFERROR(VLOOKUP($A140,Census!$A$11:$I$344,8,FALSE),0) -> 267 | H140: =ROUND(G140/$G$5*+Assumptions!$C$14*Assumptions!$C$30,0) -> 53038 | J140: 73844 | L140: 0 | M140: =IFERROR(VLOOKUP(A140,ENROLLMENT!$A$5:$B$349,2,FALSE),0)*0 -> 0 | N140: =IFERROR(GETPIVOTDATA("Total W/O Preschool",'Private 19-20'!$O$3,"District Code",A140),0)*0 -> 0 | P140: 73844 | Q140: 0 | R140: 73844 | T140: 0 | U140: 73844 | W140: =IFERROR(VLOOKUP($A140,'Allocation 2020-21 Final'!$A$7:$U$317,18,FALSE),0) -> 76751 | Y140: -2907 | Z140: -0.037875728 | AA140: 246 | AB140: 0 | AD140: 37504 | AE140: LYNDEN
A141: 39120 | B141: MABTON | C141: 0 | D141: 0 | E141: =IFERROR(VLOOKUP($A141,Census!$A$11:$I$344,7,FALSE),0) -> 976 | F141: =ROUND(E141/$E$5*Assumptions!$C$14*Assumptions!$C$29,0) -> 5315 | G141: =IFERROR(VLOOKUP($A141,Census!$A$11:$I$344,8,FALSE),0) -> 199 | H141: =ROUND(G141/$G$5*+Assumptions!$C$14*Assumptions!$C$30,0) -> 39530 | J141: 44845 | L141: 0 | M141: =IFERROR(VLOOKUP(A141,ENROLLMENT!$A$5:$B$349,2,FALSE),0)*0 -> 0 | N141: =IFERROR(GETPIVOTDATA("Total W/O Preschool",'Private 19-20'!$O$3,"District Code",A141),0)*0 -> 0 | P141: 44845 | Q141: 0 | R141: 44845 | T141: 0 | U141: 44845 | W141: =IFERROR(VLOOKUP($A141,'Allocation 2020-21 Final'!$A$7:$U$317,18,FALSE),0) -> 45036 | Y141: -191 | Z141: -0.004241051603 | AA141: 191 | AB141: 0 | AD141: 39120 | AE141: MABTON
A142: 09207 | B142: MANSFIELD | C142: 0 | D142: 0 | E142: =IFERROR(VLOOKUP($A142,Census!$A$11:$I$344,7,FALSE),0) -> 77 | F142: =ROUND(E142/$E$5*Assumptions!$C$14*Assumptions!$C$29,0) -> 419 | G142: =IFERROR(VLOOKUP($A142,Census!$A$11:$I$344,8,FALSE),0) -> 23 | H142: =ROUND(G142/$G$5*+Assumptions!$C$14*Assumptions!$C$30,0) -> 4569 | J142: 4988 | L142: 0 | M142: =IFERROR(VLOOKUP(A142,ENROLLMENT!$A$5:$B$349,2,FALSE),0)*0 -> 0 | N142: =IFERROR(GETPIVOTDATA("Total W/O Preschool",'Private 19-20'!$O$3,"District Code",A142),0)*0 -> 0 | P142: 4988 | Q142: 0 | R142: 4988 | T142: 0 | U142: 4988 | W142: =IFERROR(VLOOKUP($A142,'Allocation 2020-21 Final'!$A$7:$U$317,18,FALSE),0) -> 3585 | Y142: 1403 | Z142: 0.3913528591 | AA142: 125 | AB142: 0 | AD142: 09207 | AE142: MANSFIELD
A143: 04019 | B143: MANSON | C143: 0 | D143: 0 | E143: =IFERROR(VLOOKUP($A143,Census!$A$11:$I$344,7,FALSE),0) -> 730 | F143: =ROUND(E143/$E$5*Assumptions!$C$14*Assumptions!$C$29,0) -> 3975 | G143: =IFERROR(VLOOKUP($A143,Census!$A$11:$I$344,8,FALSE),0) -> 46 | H143: =ROUND(G143/$G$5*+Assumptions!$C$14*Assumptions!$C$30,0) -> 9138 | J143: 13113 | L143: 0 | M143: =IFERROR(VLOOKUP(A143,ENROLLMENT!$A$5:$B$349,2,FALSE),0)*0 -> 0 | N143: =IFERROR(GETPIVOTDATA("Total W/O Preschool",'Private 19-20'!$O$3,"District Code",A143),0)*0 -> 0 | P143: 13113 | Q143: 0 | R143: 13113 | T143: 0 | U143: 13113 | W143: =IFERROR(VLOOKUP($A143,'Allocation 2020-21 Final'!$A$7:$U$317,18,FALSE),0) -> 12717 | Y143: 396 | Z143: 0.03113941967 | AA143: 156 | AB143: 0 | AD143: 04019 | AE143: MANSON
A144: 23311 | B144: MARY M KNIGHT | C144: 0 | D144: 0 | E144: =IFERROR(VLOOKUP($A144,Census!$A$11:$I$344,7,FALSE),0) -> 266 | F144: =ROUND(E144/$E$5*Assumptions!$C$14*Assumptions!$C$29,0) -> 1448 | G144: =IFERROR(VLOOKUP($A144,Census!$A$11:$I$344,8,FALSE),0) -> 67 | H144: =ROUND(G144/$G$5*+Assumptions!$C$14*Assumptions!$C$30,0) -> 13309 | J144: 14757 | L144: 0 | M144: =IFERROR(VLOOKUP(A144,ENROLLMENT!$A$5:$B$349,2,FALSE),0)*0 -> 0 | N144: =IFERROR(GETPIVOTDATA("Total W/O Preschool",'Private 19-20'!$O$3,"District Code",A144),0)*0 -> 0 | P144: 14757 | Q144: 0 | R144: 14757 | T144: 0 | U144: 14757 | W144: =IFERROR(VLOOKUP($A144,'Allocation 2020-21 Final'!$A$7:$U$317,18,FALSE),0) -> 12235 | Y144: 2522 | Z144: 0.206129955 | AA144: 106 | AB144: 0 | AD144: 23311 | AE144: MARY M KNIGHT
A145: 33207 | B145: MARY WALKER | C145: 0 | D145: 0 | E145: =IFERROR(VLOOKUP($A145,Census!$A$11:$I$344,7,FALSE),0) -> 579 | F145: =ROUND(E145/$E$5*Assumptions!$C$14*Assumptions!$C$29,0) -> 3153 | G145: =IFERROR(VLOOKUP($A145,Census!$A$11:$I$344,8,FALSE),0) -> 151 | H145: =ROUND(G145/$G$5*+Assumptions!$C$14*Assumptions!$C$30,0) -> 29995 | J145: 33148 | L145: 0 | M145: =IFERROR(VLOOKUP(A145,ENROLLMENT!$A$5:$B$349,2,FALSE),0)*0 -> 0 | N145: =IFERROR(GETPIVOTDATA("Total W/O Preschool",'Private 19-20'!$O$3,"District Code",A145),0)*0 -> 0 | P145: 33148 | Q145: 0 | R145: 33148 | T145: 0 | U145: 33148 | W145: =IFERROR(VLOOKUP($A145,'Allocation 2020-21 Final'!$A$7:$U$317,18,FALSE),0) -> 25365 | Y145: 7783 | Z145: 0.306840134 | AA145: 60 | AB145: 0 | AD145: 33207 | AE145: MARY WALKER
A146: 31025 | B146: MARYSVILLE | C146: 0 | D146: 0 | E146: =IFERROR(VLOOKUP($A146,Census!$A$11:$I$344,7,FALSE),0) -> 13832 | F146: =ROUND(E146/$E$5*Assumptions!$C$14*Assumptions!$C$29,0) -> 75318 | G146: =IFERROR(VLOOKUP($A146,Census!$A$11:$I$344,8,FALSE),0) -> 1184 | H146: =ROUND(G146/$G$5*+Assumptions!$C$14*Assumptions!$C$30,0) -> 235194 | J146: 310512 | L146: 0 | M146: =IFERROR(VLOOKUP(A146,ENROLLMENT!$A$5:$B$349,2,FALSE),0)*0 -> 0 | N146: =IFERROR(GETPIVOTDATA("Total W/O Preschool",'Private 19-20'!$O$3,"District Code",A146),0)*0 -> 0 | P146: 310512 | Q146: 0 | R146: 310512 | T146: 0 | U146: 310512 | W146: =IFERROR(VLOOKUP($A146,'Allocation 2020-21 Final'!$A$7:$U$317,18,FALSE),0) -> 284057 | Y146: 26455 | Z146: 0.09313271632 | AA146: 25 | AB146: 0 | AD146: 31025 | AE146: MARYSVILLE
A147: 14065 | B147: MCCLEARY | C147: 0 | D147: 0 | E147: =IFERROR(VLOOKUP($A147,Census!$A$11:$I$344,7,FALSE),0) -> 513 | F147: =ROUND(E147/$E$5*Assumptions!$C$14*Assumptions!$C$29,0) -> 2793 | G147: =IFERROR(VLOOKUP($A147,Census!$A$11:$I$344,8,FALSE),0) -> 50 | H147: =ROUND(G147/$G$5*+Assumptions!$C$14*Assumptions!$C$30,0) -> 9932 | J147: 12725 | L147: 0 | M147: =IFERROR(VLOOKUP(A147,ENROLLMENT!$A$5:$B$349,2,FALSE),0)*0 -> 0 | N147: =IFERROR(GETPIVOTDATA("Total W/O Preschool",'Private 19-20'!$O$3,"District Code",A147),0)*0 -> 0 | P147: 12725 | Q147: 0 | R147: 12725 | T147: 0 | U147: 12725 | W147: =IFERROR(VLOOKUP($A147,'Allocation 2020-21 Final'!$A$7:$U$317,18,FALSE),0) -> 15800 | Y147: -3075 | Z147: -0.1946202532 | AA147: 248 | AB147: 0 | AD147: 14065 | AE147: MCCLEARY
A148: 32354 | B148: MEAD | C148: 0 | D148: 0 | E148: =IFERROR(VLOOKUP($A148,Census!$A$11:$I$344,7,FALSE),0) -> 11042 | F148: =ROUND(E148/$E$5*Assumptions!$C$14*Assumptions!$C$29,0) -> 60126 | G148: =IFERROR(VLOOKUP($A148,Census!$A$11:$I$344,8,FALSE),0) -> 848 | H148: =ROUND(G148/$G$5*+Assumptions!$C$14*Assumptions!$C$30,0) -> 168450 | J148: 228576 | L148: 0 | M148: =IFERROR(VLOOKUP(A148,ENROLLMENT!$A$5:$B$349,2,FALSE),0)*0 -> 0 | N148: =IFERROR(GETPIVOTDATA("Total W/O Preschool",'Private 19-20'!$O$3,"District Code",A148),0)*0 -> 0 | P148: 228576 | Q148: 0 | R148: 228576 | T148: 0 | U148: 228576 | W148: =IFERROR(VLOOKUP($A148,'Allocation 2020-21 Final'!$A$7:$U$317,18,FALSE),0) -> 222705 | Y148: 5871 | Z148: 0.02636222806 | AA148: 72 | AB148: 0 | AD148: 32354 | AE148: MEAD
A149: 32326 | B149: MEDICAL LAKE | C149: 0 | D149: 0 | E149: =IFERROR(VLOOKUP($A149,Census!$A$11:$I$344,7,FALSE),0) -> 2099 | F149: =ROUND(E149/$E$5*Assumptions!$C$14*Assumptions!$C$29,0) -> 11430 | G149: =IFERROR(VLOOKUP($A149,Census!$A$11:$I$344,8,FALSE),0) -> 180 | H149: =ROUND(G149/$G$5*+Assumptions!$C$14*Assumptions!$C$30,0) -> 35756 | J149: 47186 | L149: 0 | M149: =IFERROR(VLOOKUP(A149,ENROLLMENT!$A$5:$B$349,2,FALSE),0)*0 -> 0 | N149: =IFERROR(GETPIVOTDATA("Total W/O Preschool",'Private 19-20'!$O$3,"District Code",A149),0)*0 -> 0 | P149: 47186 | Q149: 0 | R149: 47186 | T149: 0 | U149: 47186 | W149: =IFERROR(VLOOKUP($A149,'Allocation 2020-21 Final'!$A$7:$U$317,18,FALSE),0) -> 41417 | Y149: 5769 | Z149: 0.1392906295 | AA149: 74 | AB149: 0 | AD149: 32326 | AE149: MEDICAL LAKE
A150: 17400 | B150: MERCER ISLAND | C150: 0 | D150: 0 | E150: =IFERROR(VLOOKUP($A150,Census!$A$11:$I$344,7,FALSE),0) -> 5047 | F150: =ROUND(E150/$E$5*Assumptions!$C$14*Assumptions!$C$29,0) -> 27482 | G150: =IFERROR(VLOOKUP($A150,Census!$A$11:$I$344,8,FALSE),0) -> 153 | H150: =ROUND(G150/$G$5*+Assumptions!$C$14*Assumptions!$C$30,0) -> 30392 | J150: 57874 | L150: 0 | M150: =IFERROR(VLOOKUP(A150,ENROLLMENT!$A$5:$B$349,2,FALSE),0)*0 -> 0 | N150: =IFERROR(GETPIVOTDATA("Total W/O Preschool",'Private 19-20'!$O$3,"District Code",A150),0)*0 -> 0 | P150: 57874 | Q150: 0 | R150: 57874 | T150: 0 | U150: 57874 | W150: =IFERROR(VLOOKUP($A150,'Allocation 2020-21 Final'!$A$7:$U$317,18,FALSE),0) -> 51284 | Y150: 6590 | Z150: 0.128500117 | AA150: 67 | AB150: 0 | AD150: 17400 | AE150: MERCER ISLAND
A151: 37505 | B151: MERIDIAN | C151: 0 | D151: 0 | E151: =IFERROR(VLOOKUP($A151,Census!$A$11:$I$344,7,FALSE),0) -> 1725 | F151: =ROUND(E151/$E$5*Assumptions!$C$14*Assumptions!$C$29,0) -> 9393 | G151: =IFERROR(VLOOKUP($A151,Census!$A$11:$I$344,8,FALSE),0) -> 191 | H151: =ROUND(G151/$G$5*+Assumptions!$C$14*Assumptions!$C$30,0) -> 37941 | J151: 47334 | L151: 0 | M151: =IFERROR(VLOOKUP(A151,ENROLLMENT!$A$5:$B$349,2,FALSE),0)*0 -> 0 | N151: =IFERROR(GETPIVOTDATA("Total W/O Preschool",'Private 19-20'!$O$3,"District Code",A151),0)*0 -> 0 | P151: 47334 | Q151: 0 | R151: 47334 | T151: 0 | U151: 47334 | W151: =IFERROR(VLOOKUP($A151,'Allocation 2020-21 Final'!$A$7:$U$317,18,FALSE),0) -> 53081 | Y151: -5747 | Z151: -0.1082684953 | AA151: 269 | AB151: 0 | AD151: 37505 | AE151: MERIDIAN
A152: 24350 | B152: METHOW VALLEY | C152: 0 | D152: 0 | E152: =IFERROR(VLOOKUP($A152,Census!$A$11:$I$344,7,FALSE),0) -> 656 | F152: =ROUND(E152/$E$5*Assumptions!$C$14*Assumptions!$C$29,0) -> 3572 | G152: =IFERROR(VLOOKUP($A152,Census!$A$11:$I$344,8,FALSE),0) -> 104 | H152: =ROUND(G152/$G$5*+Assumptions!$C$14*Assumptions!$C$30,0) -> 20659 | J152: 24231 | L152: 0 | M152: =IFERROR(VLOOKUP(A152,ENROLLMENT!$A$5:$B$349,2,FALSE),0)*0 -> 0 | N152: =IFERROR(GETPIVOTDATA("Total W/O Preschool",'Private 19-20'!$O$3,"District Code",A152),0)*0 -> 0 | P152: 24231 | Q152: 0 | R152: 24231 | T152: 0 | U152: 24231 | W152: =IFERROR(VLOOKUP($A152,'Allocation 2020-21 Final'!$A$7:$U$317,18,FALSE),0) -> 29803 | Y152: -5572 | Z152: -0.1869610442 | AA152: 268 | AB152: 0 | AD152: 24350 | AE152: METHOW VALLEY
A153: 30031 | B153: MILL A | C153: 0 | D153: 0 | E153: =IFERROR(VLOOKUP($A153,Census!$A$11:$I$344,7,FALSE),0) -> 59 | F153: =ROUND(E153/$E$5*Assumptions!$C$14*Assumptions!$C$29,0) -> 321 | G153: =IFERROR(VLOOKUP($A153,Census!$A$11:$I$344,8,FALSE),0) -> 7 | H153: =ROUND(G153/$G$5*+Assumptions!$C$14*Assumptions!$C$30,0) -> 1391 | J153: 1712 | L153: 0 | M153: =IFERROR(VLOOKUP(A153,ENROLLMENT!$A$5:$B$349,2,FALSE),0)*0 -> 0 | N153: =IFERROR(GETPIVOTDATA("Total W/O Preschool",'Private 19-20'!$O$3,"District Code",A153),0)*0 -> 0 | P153: 1712 | Q153: 0 | R153: 1712 | T153: 0 | U153: 1712 | W153: =IFERROR(VLOOKUP($A153,'Allocation 2020-21 Final'!$A$7:$U$317,18,FALSE),0) -> 2186 | Y153: -474 | Z153: -0.2168344007 | AA153: 203 | AB153: 0 | AD153: 30031 | AE153: MILL A
A154: 31103 | B154: MONROE | C154: 0 | D154: 0 | E154: =IFERROR(VLOOKUP($A154,Census!$A$11:$I$344,7,FALSE),0) -> 7445 | F154: =ROUND(E154/$E$5*Assumptions!$C$14*Assumptions!$C$29,0) -> 40540 | G154: =IFERROR(VLOOKUP($A154,Census!$A$11:$I$344,8,FALSE),0) -> 362 | H154: =ROUND(G154/$G$5*+Assumptions!$C$14*Assumptions!$C$30,0) -> 71909 | J154: 112449 | L154: 0 | M154: =IFERROR(VLOOKUP(A154,ENROLLMENT!$A$5:$B$349,2,FALSE),0)*0 -> 0 | N154: =IFERROR(GETPIVOTDATA("Total W/O Preschool",'Private 19-20'!$O$3,"District Code",A154),0)*0 -> 0 | P154: 112449 | Q154: 0 | R154: 112449 | T154: 0 | U154: 112449 | W154: =IFERROR(VLOOKUP($A154,'Allocation 2020-21 Final'!$A$7:$U$317,18,FALSE),0) -> 114219 | Y154: -1770 | Z154: -0.01549654611 | AA154: 229 | AB154: 0 | AD154: 31103 | AE154: MONROE
A155: 14066 | B155: MONTESANO | C155: 0 | D155: 0 | E155: =IFERROR(VLOOKUP($A155,Census!$A$11:$I$344,7,FALSE),0) -> 1305 | F155: =ROUND(E155/$E$5*Assumptions!$C$14*Assumptions!$C$29,0) -> 7106 | G155: =IFERROR(VLOOKUP($A155,Census!$A$11:$I$344,8,FALSE),0) -> 193 | H155: =ROUND(G155/$G$5*+Assumptions!$C$14*Assumptions!$C$30,0) -> 38338 | J155: 45444 | L155: 0 | M155: =IFERROR(VLOOKUP(A155,ENROLLMENT!$A$5:$B$349,2,FALSE),0)*0 -> 0 | N155: =IFERROR(GETPIVOTDATA("Total W/O Preschool",'Private 19-20'!$O$3,"District Code",A155),0)*0 -> 0 | P155: 45444 | Q155: 0 | R155: 45444 | T155: 0 | U155: 45444 | W155: =IFERROR(VLOOKUP($A155,'Allocation 2020-21 Final'!$A$7:$U$317,18,FALSE),0) -> 52148 | Y155: -6704 | Z155: -0.1285571834 | AA155: 273 | AB155: 0 | AD155: 14066 | AE155: MONTESANO
A156: 21214 | B156: MORTON | C156: 0 | D156: 0 | E156: =IFERROR(VLOOKUP($A156,Census!$A$11:$I$344,7,FALSE),0) -> 333 | F156: =ROUND(E156/$E$5*Assumptions!$C$14*Assumptions!$C$29,0) -> 1813 | G156: =IFERROR(VLOOKUP($A156,Census!$A$11:$I$344,8,FALSE),0) -> 47 | H156: =ROUND(G156/$G$5*+Assumptions!$C$14*Assumptions!$C$30,0) -> 9336 | J156: 11149 | L156: 0 | M156: =IFERROR(VLOOKUP(A156,ENROLLMENT!$A$5:$B$349,2,FALSE),0)*0 -> 0 | N156: =IFERROR(GETPIVOTDATA("Total W/O Preschool",'Private 19-20'!$O$3,"District Code",A156),0)*0 -> 0 | P156: 11149 | Q156: 0 | R156: 11149 | T156: 0 | U156: 11149 | W156: =IFERROR(VLOOKUP($A156,'Allocation 2020-21 Final'!$A$7:$U$317,18,FALSE),0) -> 11111 | Y156: 38 | Z156: 0.0034200342 | AA156: 175 | AB156: 0 | AD156: 21214 | AE156: MORTON
A157: 13161 | B157: MOSES LAKE | C157: 0 | D157: 0 | E157: =IFERROR(VLOOKUP($A157,Census!$A$11:$I$344,7,FALSE),0) -> 9142 | F157: =ROUND(E157/$E$5*Assumptions!$C$14*Assumptions!$C$29,0) -> 49780 | G157: =IFERROR(VLOOKUP($A157,Census!$A$11:$I$344,8,FALSE),0) -> 1384 | H157: =ROUND(G157/$G$5*+Assumptions!$C$14*Assumptions!$C$30,0) -> 274923 | J157: 324703 | L157: 0 | M157: =IFERROR(VLOOKUP(A157,ENROLLMENT!$A$5:$B$349,2,FALSE),0)*0 -> 0 | N157: =IFERROR(GETPIVOTDATA("Total W/O Preschool",'Private 19-20'!$O$3,"District Code",A157),0)*0 -> 0 | P157: 324703 | Q157: 0 | R157: 324703 | T157: 0 | U157: 324703 | W157: =IFERROR(VLOOKUP($A157,'Allocation 2020-21 Final'!$A$7:$U$317,18,FALSE),0) -> 271122 | Y157: 53581 | Z157: 0.1976268986 | AA157: 11 | AB157: 0 | AD157: 13161 | AE157: MOSES LAKE
A158: 21206 | B158: MOSSYROCK | C158: 0 | D158: 0 | E158: =IFERROR(VLOOKUP($A158,Census!$A$11:$I$344,7,FALSE),0) -> 617 | F158: =ROUND(E158/$E$5*Assumptions!$C$14*Assumptions!$C$29,0) -> 3360 | G158: =IFERROR(VLOOKUP($A158,Census!$A$11:$I$344,8,FALSE),0) -> 103 | H158: =ROUND(G158/$G$5*+Assumptions!$C$14*Assumptions!$C$30,0) -> 20460 | J158: 23820 | L158: 0 | M158: =IFERROR(VLOOKUP(A158,ENROLLMENT!$A$5:$B$349,2,FALSE),0)*0 -> 0 | N158: =IFERROR(GETPIVOTDATA("Total W/O Preschool",'Private 19-20'!$O$3,"District Code",A158),0)*0 -> 0 | P158: 23820 | Q158: 0 | R158: 23820 | T158: 0 | U158: 23820 | W158: =IFERROR(VLOOKUP($A158,'Allocation 2020-21 Final'!$A$7:$U$317,18,FALSE),0) -> 18959 | Y158: 4861 | Z158: 0.2563953795 | AA158: 83 | AB158: 0 | AD158: 21206 | AE158: MOSSYROCK
A159: 39209 | B159: MOUNT ADAMS | C159: 0 | D159: 0 | E159: =IFERROR(VLOOKUP($A159,Census!$A$11:$I$344,7,FALSE),0) -> 1155 | F159: =ROUND(E159/$E$5*Assumptions!$C$14*Assumptions!$C$29,0) -> 6289 | G159: =IFERROR(VLOOKUP($A159,Census!$A$11:$I$344,8,FALSE),0) -> 223 | H159: =ROUND(G159/$G$5*+Assumptions!$C$14*Assumptions!$C$30,0) -> 44298 | J159: 50587 | L159: 0 | M159: =IFERROR(VLOOKUP(A159,ENROLLMENT!$A$5:$B$349,2,FALSE),0)*0 -> 0 | N159: =IFERROR(GETPIVOTDATA("Total W/O Preschool",'Private 19-20'!$O$3,"District Code",A159),0)*0 -> 0 | P159: 50587 | Q159: 0 | R159: 50587 | T159: 0 | U159: 50587 | W159: =IFERROR(VLOOKUP($A159,'Allocation 2020-21 Final'!$A$7:$U$317,18,FALSE),0) -> 53846 | Y159: -3259 | Z159: -0.06052445864 | AA159: 252 | AB159: 0 | AD159: 39209 | AE159: MOUNT ADAMS
A160: 37507 | B160: MOUNT BAKER | C160: 0 | D160: 0 | E160: =IFERROR(VLOOKUP($A160,Census!$A$11:$I$344,7,FALSE),0) -> 2721 | F160: =ROUND(E160/$E$5*Assumptions!$C$14*Assumptions!$C$29,0) -> 14816 | G160: =IFERROR(VLOOKUP($A160,Census!$A$11:$I$344,8,FALSE),0) -> 388 | H160: =ROUND(G160/$G$5*+Assumptions!$C$14*Assumptions!$C$30,0) -> 77074 | J160: 91890 | L160: 0 | M160: =IFERROR(VLOOKUP(A160,ENROLLMENT!$A$5:$B$349,2,FALSE),0)*0 -> 0 | N160: =IFERROR(GETPIVOTDATA("Total W/O Preschool",'Private 19-20'!$O$3,"District Code",A160),0)*0 -> 0 | P160: 91890 | Q160: 0 | R160: 91890 | T160: 0 | U160: 91890 | W160: =IFERROR(VLOOKUP($A160,'Allocation 2020-21 Final'!$A$7:$U$317,18,FALSE),0) -> 110888 | Y160: -18998 | Z160: -0.1713260227 | AA160: 294 | AB160: 0 | AD160: 37507 | AE160: MOUNT BAKER
A161: 30029 | B161: MOUNT PLEASANT | C161: 0 | D161: 0 | E161: =IFERROR(VLOOKUP($A161,Census!$A$11:$I$344,7,FALSE),0) -> 50 | F161: =ROUND(E161/$E$5*Assumptions!$C$14*Assumptions!$C$29,0) -> 272 | G161: =IFERROR(VLOOKUP($A161,Census!$A$11:$I$344,8,FALSE),0) -> 6 | H161: =ROUND(G161/$G$5*+Assumptions!$C$14*Assumptions!$C$30,0) -> 1192 | J161: 1464 | L161: 0 | M161: =IFERROR(VLOOKUP(A161,ENROLLMENT!$A$5:$B$349,2,FALSE),0)*0 -> 0 | N161: =IFERROR(GETPIVOTDATA("Total W/O Preschool",'Private 19-20'!$O$3,"District Code",A161),0)*0 -> 0 | P161: 1464 | Q161: 0 | R161: 1464 | T161: 0 | U161: 1464 | W161: =IFERROR(VLOOKUP($A161,'Allocation 2020-21 Final'!$A$7:$U$317,18,FALSE),0) -> 1758 | Y161: -294 | Z161: -0.1672354949 | AA161: 196 | AB161: 0 | AD161: 30029 | AE161: MOUNT PLEASANT
A162: 29320 | B162: MOUNT VERNON | C162: 0 | D162: 0 | E162: =IFERROR(VLOOKUP($A162,Census!$A$11:$I$344,7,FALSE),0) -> 6965 | F162: =ROUND(E162/$E$5*Assumptions!$C$14*Assumptions!$C$29,0) -> 37926 | G162: =IFERROR(VLOOKUP($A162,Census!$A$11:$I$344,8,FALSE),0) -> 1158 | H162: =ROUND(G162/$G$5*+Assumptions!$C$14*Assumptions!$C$30,0) -> 230029 | J162: 267955 | L162: 0 | M162: =IFERROR(VLOOKUP(A162,ENROLLMENT!$A$5:$B$349,2,FALSE),0)*0 -> 0 | N162: =IFERROR(GETPIVOTDATA("Total W/O Preschool",'Private 19-20'!$O$3,"District Code",A162),0)*0 -> 0 | P162: 267955 | Q162: 0 | R162: 267955 | T162: 0 | U162: 267955 | W162: =IFERROR(VLOOKUP($A162,'Allocation 2020-21 Final'!$A$7:$U$317,18,FALSE),0) -> 185765 | Y162: 82190 | Z162: 0.4424407181 | AA162: 8 | AB162: 0 | AD162: 29320 | AE162: MOUNT VERNON
A163: 31006 | B163: MUKILTEO | C163: 0 | D163: 0 | E163: =IFERROR(VLOOKUP($A163,Census!$A$11:$I$344,7,FALSE),0) -> 16654 | F163: =ROUND(E163/$E$5*Assumptions!$C$14*Assumptions!$C$29,0) -> 90685 | G163: =IFERROR(VLOOKUP($A163,Census!$A$11:$I$344,8,FALSE),0) -> 1920 | H163: =ROUND(G163/$G$5*+Assumptions!$C$14*Assumptions!$C$30,0) -> 381396 | J163: 472081 | L163: 0 | M163: =IFERROR(VLOOKUP(A163,ENROLLMENT!$A$5:$B$349,2,FALSE),0)*0 -> 0 | N163: =IFERROR(GETPIVOTDATA("Total W/O Preschool",'Private 19-20'!$O$3,"District Code",A163),0)*0 -> 0 | P163: 472081 | Q163: 0 | R163: 472081 | T163: 0 | U163: 472081 | W163: =IFERROR(VLOOKUP($A163,'Allocation 2020-21 Final'!$A$7:$U$317,18,FALSE),0) -> 491964 | Y163: -19883 | Z163: -0.04041555886 | AA163: 295 | AB163: 0 | AD163: 31006 | AE163: MUKILTEO
A164: 39003 | B164: NACHES VALLEY | C164: 0 | D164: 0 | E164: =IFERROR(VLOOKUP($A164,Census!$A$11:$I$344,7,FALSE),0) -> 1514 | F164: =ROUND(E164/$E$5*Assumptions!$C$14*Assumptions!$C$29,0) -> 8244 | G164: =IFERROR(VLOOKUP($A164,Census!$A$11:$I$344,8,FALSE),0) -> 185 | H164: =ROUND(G164/$G$5*+Assumptions!$C$14*Assumptions!$C$30,0) -> 36749 | J164: 44993 | L164: 0 | M164: =IFERROR(VLOOKUP(A164,ENROLLMENT!$A$5:$B$349,2,FALSE),0)*0 -> 0 | N164: =IFERROR(GETPIVOTDATA("Total W/O Preschool",'Private 19-20'!$O$3,"District Code",A164),0)*0 -> 0 | P164: 44993 | Q164: 0 | R164: 44993 | T164: 0 | U164: 44993 | W164: =IFERROR(VLOOKUP($A164,'Allocation 2020-21 Final'!$A$7:$U$317,18,FALSE),0) -> 43251 | Y164: 1742 | Z164: 0.0402765254 | AA164: 117 | AB164: 0 | AD164: 39003 | AE164: NACHES VALLEY
A165: 21014 | B165: NAPAVINE | C165: 0 | D165: 0 | E165: =IFERROR(VLOOKUP($A165,Census!$A$11:$I$344,7,FALSE),0) -> 742 | F165: =ROUND(E165/$E$5*Assumptions!$C$14*Assumptions!$C$29,0) -> 4040 | G165: =IFERROR(VLOOKUP($A165,Census!$A$11:$I$344,8,FALSE),0) -> 126 | H165: =ROUND(G165/$G$5*+Assumptions!$C$14*Assumptions!$C$30,0) -> 25029 | J165: 29069 | L165: 0 | M165: =IFERROR(VLOOKUP(A165,ENROLLMENT!$A$5:$B$349,2,FALSE),0)*0 -> 0 | N165: =IFERROR(GETPIVOTDATA("Total W/O Preschool",'Private 19-20'!$O$3,"District Code",A165),0)*0 -> 0 | P165: 29069 | Q165: 0 | R165: 29069 | T165: 0 | U165: 29069 | W165: =IFERROR(VLOOKUP($A165,'Allocation 2020-21 Final'!$A$7:$U$317,18,FALSE),0) -> 19460 | Y165: 9609 | Z165: 0.4937821172 | AA165: 49 | AB165: 0 | AD165: 21014 | AE165: NAPAVINE
A166: 25155 | B166: NASELLE-GRAYS | C166: 0 | D166: 0 | E166: =IFERROR(VLOOKUP($A166,Census!$A$11:$I$344,7,FALSE),0) -> 369 | F166: =ROUND(E166/$E$5*Assumptions!$C$14*Assumptions!$C$29,0) -> 2009 | G166: =IFERROR(VLOOKUP($A166,Census!$A$11:$I$344,8,FALSE),0) -> 48 | H166: =ROUND(G166/$G$5*+Assumptions!$C$14*Assumptions!$C$30,0) -> 9535 | J166: 11544 | L166: 0 | M166: =IFERROR(VLOOKUP(A166,ENROLLMENT!$A$5:$B$349,2,FALSE),0)*0 -> 0 | N166: =IFERROR(GETPIVOTDATA("Total W/O Preschool",'Private 19-20'!$O$3,"District Code",A166),0)*0 -> 0 | P166: 11544 | Q166: 0 | R166: 11544 | T166: 0 | U166: 11544 | W166: =IFERROR(VLOOKUP($A166,'Allocation 2020-21 Final'!$A$7:$U$317,18,FALSE),0) -> 13040 | Y166: -1496 | Z166: -0.1147239264 | AA166: 225 | AB166: 0 | AD166: 25155 | AE166: NASELLE-GRAYS
A167: 24014 | B167: NESPELEM | C167: 0 | D167: 0 | E167: =IFERROR(VLOOKUP($A167,Census!$A$11:$I$344,7,FALSE),0) -> 302 | F167: =ROUND(E167/$E$5*Assumptions!$C$14*Assumptions!$C$29,0) -> 1644 | G167: =IFERROR(VLOOKUP($A167,Census!$A$11:$I$344,8,FALSE),0) -> 63 | H167: =ROUND(G167/$G$5*+Assumptions!$C$14*Assumptions!$C$30,0) -> 12515 | J167: 14159 | L167: 0 | M167: =IFERROR(VLOOKUP(A167,ENROLLMENT!$A$5:$B$349,2,FALSE),0)*0 -> 0 | N167: =IFERROR(GETPIVOTDATA("Total W/O Preschool",'Private 19-20'!$O$3,"District Code",A167),0)*0 -> 0 | P167: 14159 | Q167: 0 | R167: 14159 | T167: 0 | U167: 14159 | W167: =IFERROR(VLOOKUP($A167,'Allocation 2020-21 Final'!$A$7:$U$317,18,FALSE),0) -> 15045 | Y167: -886 | Z167: -0.05888999668 | AA167: 214 | AB167: 0 | AD167: 24014 | AE167: NESPELEM
A168: 26056 | B168: NEWPORT | C168: 0 | D168: 0 | E168: =IFERROR(VLOOKUP($A168,Census!$A$11:$I$344,7,FALSE),0) -> 1245 | F168: =ROUND(E168/$E$5*Assumptions!$C$14*Assumptions!$C$29,0) -> 6779 | G168: =IFERROR(VLOOKUP($A168,Census!$A$11:$I$344,8,FALSE),0) -> 266 | H168: =ROUND(G168/$G$5*+Assumptions!$C$14*Assumptions!$C$30,0) -> 52839 | J168: 59618 | L168: 0 | M168: =IFERROR(VLOOKUP(A168,ENROLLMENT!$A$5:$B$349,2,FALSE),0)*0 -> 0 | N168: =IFERROR(GETPIVOTDATA("Total W/O Preschool",'Private 19-20'!$O$3,"District Code",A168),0)*0 -> 0 | P168: 59618 | Q168: 0 | R168: 59618 | T168: 0 | U168: 59618 | W168: =IFERROR(VLOOKUP($A168,'Allocation 2020-21 Final'!$A$7:$U$317,18,FALSE),0) -> 57116 | Y168: 2502 | Z168: 0.04380558863 | AA168: 107 | AB168: 0 | AD168: 26056 | AE168: NEWPORT
A169: 32325 | B169: NINE MILE FALLS | C169: 0 | D169: 0 | E169: =IFERROR(VLOOKUP($A169,Census!$A$11:$I$344,7,FALSE),0) -> 1714 | F169: =ROUND(E169/$E$5*Assumptions!$C$14*Assumptions!$C$29,0) -> 9333 | G169: =IFERROR(VLOOKUP($A169,Census!$A$11:$I$344,8,FALSE),0) -> 276 | H169: =ROUND(G169/$G$5*+Assumptions!$C$14*Assumptions!$C$30,0) -> 54826 | J169: 64159 | L169: 0 | M169: =IFERROR(VLOOKUP(A169,ENROLLMENT!$A$5:$B$349,2,FALSE),0)*0 -> 0 | N169: =IFERROR(GETPIVOTDATA("Total W/O Preschool",'Private 19-20'!$O$3,"District Code",A169),0)*0 -> 0 | P169: 64159 | Q169: 0 | R169: 64159 | T169: 0 | U169: 64159 | W169: =IFERROR(VLOOKUP($A169,'Allocation 2020-21 Final'!$A$7:$U$317,18,FALSE),0) -> 65980 | Y169: -1821 | Z169: -0.02759927251 | AA169: 230 | AB169: 0 | AD169: 32325 | AE169: NINE MILE FALLS
A170: 37506 | B170: NOOKSACK VALLEY | C170: 0 | D170: 0 | E170: =IFERROR(VLOOKUP($A170,Census!$A$11:$I$344,7,FALSE),0) -> 2111 | F170: =ROUND(E170/$E$5*Assumptions!$C$14*Assumptions!$C$29,0) -> 11495 | G170: =IFERROR(VLOOKUP($A170,Census!$A$11:$I$344,8,FALSE),0) -> 207 | H170: =ROUND(G170/$G$5*+Assumptions!$C$14*Assumptions!$C$30,0) -> 41119 | J170: 52614 | L170: 0 | M170: =IFERROR(VLOOKUP(A170,ENROLLMENT!$A$5:$B$349,2,FALSE),0)*0 -> 0 | N170: =IFERROR(GETPIVOTDATA("Total W/O Preschool",'Private 19-20'!$O$3,"District Code",A170),0)*0 -> 0 | P170: 52614 | Q170: 0 | R170: 52614 | T170: 0 | U170: 52614 | W170: =IFERROR(VLOOKUP($A170,'Allocation 2020-21 Final'!$A$7:$U$317,18,FALSE),0) -> 64109 | Y170: -11495 | Z170: -0.1793039979 | AA170: 282 | AB170: 0 | AD170: 37506 | AE170: NOOKSACK VALLEY
A171: 14064 | B171: NORTH BEACH | C171: 0 | D171: 0 | E171: =IFERROR(VLOOKUP($A171,Census!$A$11:$I$344,7,FALSE),0) -> 765 | F171: =ROUND(E171/$E$5*Assumptions!$C$14*Assumptions!$C$29,0) -> 4166 | G171: =IFERROR(VLOOKUP($A171,Census!$A$11:$I$344,8,FALSE),0) -> 91 | H171: =ROUND(G171/$G$5*+Assumptions!$C$14*Assumptions!$C$30,0) -> 18077 | J171: 22243 | L171: 0 | M171: =IFERROR(VLOOKUP(A171,ENROLLMENT!$A$5:$B$349,2,FALSE),0)*0 -> 0 | N171: =IFERROR(GETPIVOTDATA("Total W/O Preschool",'Private 19-20'!$O$3,"District Code",A171),0)*0 -> 0 | P171: 22243 | Q171: 0 | R171: 22243 | T171: 0 | U171: 22243 | W171: =IFERROR(VLOOKUP($A171,'Allocation 2020-21 Final'!$A$7:$U$317,18,FALSE),0) -> 27602 | Y171: -5359 | Z171: -0.1941525976 | AA171: 266 | AB171: 0 | AD171: 14064 | AE171: NORTH BEACH
A172: 11051 | B172: NORTH FRANKLIN | C172: 0 | D172: 0 | E172: =IFERROR(VLOOKUP($A172,Census!$A$11:$I$344,7,FALSE),0) -> 2480 | F172: =ROUND(E172/$E$5*Assumptions!$C$14*Assumptions!$C$29,0) -> 13504 | G172: =IFERROR(VLOOKUP($A172,Census!$A$11:$I$344,8,FALSE),0) -> 485 | H172: =ROUND(G172/$G$5*+Assumptions!$C$14*Assumptions!$C$30,0) -> 96342 | J172: 109846 | L172: 0 | M172: =IFERROR(VLOOKUP(A172,ENROLLMENT!$A$5:$B$349,2,FALSE),0)*0 -> 0 | N172: =IFERROR(GETPIVOTDATA("Total W/O Preschool",'Private 19-20'!$O$3,"District Code",A172),0)*0 -> 0 | P172: 109846 | Q172: 0 | R172: 109846 | T172: 0 | U172: 109846 | W172: =IFERROR(VLOOKUP($A172,'Allocation 2020-21 Final'!$A$7:$U$317,18,FALSE),0) -> 94906 | Y172: 14940 | Z172: 0.1574189198 | AA172: 35 | AB172: 0 | AD172: 11051 | AE172: NORTH FRANKLIN
A173: 18400 | B173: NORTH KITSAP | C173: 0 | D173: 0 | E173: =IFERROR(VLOOKUP($A173,Census!$A$11:$I$344,7,FALSE),0) -> 7542 | F173: =ROUND(E173/$E$5*Assumptions!$C$14*Assumptions!$C$29,0) -> 41068 | G173: =IFERROR(VLOOKUP($A173,Census!$A$11:$I$344,8,FALSE),0) -> 502 | H173: =ROUND(G173/$G$5*+Assumptions!$C$14*Assumptions!$C$30,0) -> 99719 | J173: 140787 | L173: 0 | M173: =IFERROR(VLOOKUP(A173,ENROLLMENT!$A$5:$B$349,2,FALSE),0)*0 -> 0 | N173: =IFERROR(GETPIVOTDATA("Total W/O Preschool",'Private 19-20'!$O$3,"District Code",A173),0)*0 -> 0 | P173: 140787 | Q173: 0 | R173: 140787 | T173: 0 | U173: 140787 | W173: =IFERROR(VLOOKUP($A173,'Allocation 2020-21 Final'!$A$7:$U$317,18,FALSE),0) -> 142781 | Y173: -1994 | Z173: -0.01396544358 | AA173: 233 | AB173: 0 | AD173: 18400 | AE173: NORTH KITSAP
A174: 23403 | B174: NORTH MASON | C174: 0 | D174: 0 | E174: =IFERROR(VLOOKUP($A174,Census!$A$11:$I$344,7,FALSE),0) -> 2350 | F174: =ROUND(E174/$E$5*Assumptions!$C$14*Assumptions!$C$29,0) -> 12796 | G174: =IFERROR(VLOOKUP($A174,Census!$A$11:$I$344,8,FALSE),0) -> 327 | H174: =ROUND(G174/$G$5*+Assumptions!$C$14*Assumptions!$C$30,0) -> 64956 | J174: 77752 | L174: 0 | M174: =IFERROR(VLOOKUP(A174,ENROLLMENT!$A$5:$B$349,2,FALSE),0)*0 -> 0 | N174: =IFERROR(GETPIVOTDATA("Total W/O Preschool",'Private 19-20'!$O$3,"District Code",A174),0)*0 -> 0 | P174: 77752 | Q174: 0 | R174: 77752 | T174: 0 | U174: 77752 | W174: =IFERROR(VLOOKUP($A174,'Allocation 2020-21 Final'!$A$7:$U$317,18,FALSE),0) -> 95898 | Y174: -18146 | Z174: -0.1892218816 | AA174: 293 | AB174: 0 | AD174: 23403 | AE174: NORTH MASON
A175: 25200 | B175: NORTH RIVER | C175: 0 | D175: 0 | E175: =IFERROR(VLOOKUP($A175,Census!$A$11:$I$344,7,FALSE),0) -> 35 | F175: =ROUND(E175/$E$5*Assumptions!$C$14*Assumptions!$C$29,0) -> 191 | G175: =IFERROR(VLOOKUP($A175,Census!$A$11:$I$344,8,FALSE),0) -> 9 | H175: =ROUND(G175/$G$5*+Assumptions!$C$14*Assumptions!$C$30,0) -> 1788 | J175: 1979 | L175: 0 | M175: =IFERROR(VLOOKUP(A175,ENROLLMENT!$A$5:$B$349,2,FALSE),0)*0 -> 0 | N175: =IFERROR(GETPIVOTDATA("Total W/O Preschool",'Private 19-20'!$O$3,"District Code",A175),0)*0 -> 0 | P175: 1979 | Q175: 0 | R175: 1979 | T175: 0 | U175: 1979 | W175: =IFERROR(VLOOKUP($A175,'Allocation 2020-21 Final'!$A$7:$U$317,18,FALSE),0) -> 1870 | Y175: 109 | Z175: 0.05828877005 | AA175: 171 | AB175: 0 | AD175: 25200 | AE175: NORTH RIVER
A176: 34003 | B176: NORTH THURSTON | C176: 0 | D176: 0 | E176: =IFERROR(VLOOKUP($A176,Census!$A$11:$I$344,7,FALSE),0) -> 16682 | F176: =ROUND(E176/$E$5*Assumptions!$C$14*Assumptions!$C$29,0) -> 90837 | G176: =IFERROR(VLOOKUP($A176,Census!$A$11:$I$344,8,FALSE),0) -> 1591 | H176: =ROUND(G176/$G$5*+Assumptions!$C$14*Assumptions!$C$30,0) -> 316042 | J176: 406879 | L176: 0 | M176: =IFERROR(VLOOKUP(A176,ENROLLMENT!$A$5:$B$349,2,FALSE),0)*0 -> 0 | N176: =IFERROR(GETPIVOTDATA("Total W/O Preschool",'Private 19-20'!$O$3,"District Code",A176),0)*0 -> 0 | P176: 406879 | Q176: 0 | R176: 406879 | T176: 0 | U176: 406879 | W176: =IFERROR(VLOOKUP($A176,'Allocation 2020-21 Final'!$A$7:$U$317,18,FALSE),0) -> 355761 | Y176: 51118 | Z176: 0.1436863512 | AA176: 14 | AB176: 0 | AD176: 34003 | AE176: NORTH THURSTON
A177: 33211 | B177: NORTHPORT | C177: 0 | D177: 0 | E177: =IFERROR(VLOOKUP($A177,Census!$A$11:$I$344,7,FALSE),0) -> 194 | F177: =ROUND(E177/$E$5*Assumptions!$C$14*Assumptions!$C$29,0) -> 1056 | G177: =IFERROR(VLOOKUP($A177,Census!$A$11:$I$344,8,FALSE),0) -> 50 | H177: =ROUND(G177/$G$5*+Assumptions!$C$14*Assumptions!$C$30,0) -> 9932 | J177: 10988 | L177: 0 | M177: =IFERROR(VLOOKUP(A177,ENROLLMENT!$A$5:$B$349,2,FALSE),0)*0 -> 0 | N177: =IFERROR(GETPIVOTDATA("Total W/O Preschool",'Private 19-20'!$O$3,"District Code",A177),0)*0 -> 0 | P177: 10988 | Q177: 0 | R177: 10988 | T177: 0 | U177: 10988 | W177: =IFERROR(VLOOKUP($A177,'Allocation 2020-21 Final'!$A$7:$U$317,18,FALSE),0) -> 10386 | Y177: 602 | Z177: 0.05796264202 | AA177: 148 | AB177: 0 | AD177: 33211 | AE177: NORTHPORT
A178: 17417 | B178: NORTHSHORE | C178: 0 | D178: 0 | E178: =IFERROR(VLOOKUP($A178,Census!$A$11:$I$344,7,FALSE),0) -> 23576 | F178: =ROUND(E178/$E$5*Assumptions!$C$14*Assumptions!$C$29,0) -> 128376 | G178: =IFERROR(VLOOKUP($A178,Census!$A$11:$I$344,8,FALSE),0) -> 777 | H178: =ROUND(G178/$G$5*+Assumptions!$C$14*Assumptions!$C$30,0) -> 154346 | J178: 282722 | L178: 0 | M178: =IFERROR(VLOOKUP(A178,ENROLLMENT!$A$5:$B$349,2,FALSE),0)*0 -> 0 | N178: =IFERROR(GETPIVOTDATA("Total W/O Preschool",'Private 19-20'!$O$3,"District Code",A178),0)*0 -> 0 | P178: 282722 | Q178: 0 | R178: 282722 | T178: 0 | U178: 282722 | W178: =IFERROR(VLOOKUP($A178,'Allocation 2020-21 Final'!$A$7:$U$317,18,FALSE),0) -> 303016 | Y178: -20294 | Z178: -0.06697336114 | AA178: 296 | AB178: 0 | AD178: 17417 | AE178: NORTHSHORE
A179: 15201 | B179: OAK HARBOR | C179: 0 | D179: 0 | E179: =IFERROR(VLOOKUP($A179,Census!$A$11:$I$344,7,FALSE),0) -> 5606 | F179: =ROUND(E179/$E$5*Assumptions!$C$14*Assumptions!$C$29,0) -> 30526 | G179: =IFERROR(VLOOKUP($A179,Census!$A$11:$I$344,8,FALSE),0) -> 545 | H179: =ROUND(G179/$G$5*+Assumptions!$C$14*Assumptions!$C$30,0) -> 108261 | J179: 138787 | L179: 0 | M179: =IFERROR(VLOOKUP(A179,ENROLLMENT!$A$5:$B$349,2,FALSE),0)*0 -> 0 | N179: =IFERROR(GETPIVOTDATA("Total W/O Preschool",'Private 19-20'!$O$3,"District Code",A179),0)*0 -> 0 | P179: 138787 | Q179: 0 | R179: 138787 | T179: 0 | U179: 138787 | W179: =IFERROR(VLOOKUP($A179,'Allocation 2020-21 Final'!$A$7:$U$317,18,FALSE),0) -> 142647 | Y179: -3860 | Z179: -0.02705980497 | AA179: 257 | AB179: 0 | AD179: 15201 | AE179: OAK HARBOR
A180: 38324 | B180: OAKESDALE | C180: 0 | D180: 0 | E180: =IFERROR(VLOOKUP($A180,Census!$A$11:$I$344,7,FALSE),0) -> 171 | F180: =ROUND(E180/$E$5*Assumptions!$C$14*Assumptions!$C$29,0) -> 931 | G180: =IFERROR(VLOOKUP($A180,Census!$A$11:$I$344,8,FALSE),0) -> 10 | H180: =ROUND(G180/$G$5*+Assumptions!$C$14*Assumptions!$C$30,0) -> 1986 | J180: 2917 | L180: 0 | M180: =IFERROR(VLOOKUP(A180,ENROLLMENT!$A$5:$B$349,2,FALSE),0)*0 -> 0 | N180: =IFERROR(GETPIVOTDATA("Total W/O Preschool",'Private 19-20'!$O$3,"District Code",A180),0)*0 -> 0 | P180: 2917 | Q180: 0 | R180: 2917 | T180: 0 | U180: 2917 | W180: =IFERROR(VLOOKUP($A180,'Allocation 2020-21 Final'!$A$7:$U$317,18,FALSE),0) -> 2211 | Y180: 706 | Z180: 0.3193125283 | AA180: 144 | AB180: 0 | AD180: 38324 | AE180: OAKESDALE
A181: 14400 | B181: OAKVILLE | C181: 0 | D181: 0 | E181: =IFERROR(VLOOKUP($A181,Census!$A$11:$I$344,7,FALSE),0) -> 384 | F181: =ROUND(E181/$E$5*Assumptions!$C$14*Assumptions!$C$29,0) -> 2091 | G181: =IFERROR(VLOOKUP($A181,Census!$A$11:$I$344,8,FALSE),0) -> 89 | H181: =ROUND(G181/$G$5*+Assumptions!$C$14*Assumptions!$C$30,0) -> 17679 | J181: 19770 | L181: 0 | M181: =IFERROR(VLOOKUP(A181,ENROLLMENT!$A$5:$B$349,2,FALSE),0)*0 -> 0 | N181: =IFERROR(GETPIVOTDATA("Total W/O Preschool",'Private 19-20'!$O$3,"District Code",A181),0)*0 -> 0 | P181: 19770 | Q181: 0 | R181: 19770 | T181: 0 | U181: 19770 | W181: =IFERROR(VLOOKUP($A181,'Allocation 2020-21 Final'!$A$7:$U$317,18,FALSE),0) -> 19970 | Y181: -200 | Z181: -0.01001502253 | AA181: 192 | AB181: 0 | AD181: 14400 | AE181: OAKVILLE
A182: 25101 | B182: OCEAN BEACH | C182: 0 | D182: 0 | E182: =IFERROR(VLOOKUP($A182,Census!$A$11:$I$344,7,FALSE),0) -> 884 | F182: =ROUND(E182/$E$5*Assumptions!$C$14*Assumptions!$C$29,0) -> 4814 | G182: =IFERROR(VLOOKUP($A182,Census!$A$11:$I$344,8,FALSE),0) -> 186 | H182: =ROUND(G182/$G$5*+Assumptions!$C$14*Assumptions!$C$30,0) -> 36948 | J182: 41762 | L182: 0 | M182: =IFERROR(VLOOKUP(A182,ENROLLMENT!$A$5:$B$349,2,FALSE),0)*0 -> 0 | N182: =IFERROR(GETPIVOTDATA("Total W/O Preschool",'Private 19-20'!$O$3,"District Code",A182),0)*0 -> 0 | P182: 41762 | Q182: 0 | R182: 41762 | T182: 0 | U182: 41762 | W182: =IFERROR(VLOOKUP($A182,'Allocation 2020-21 Final'!$A$7:$U$317,18,FALSE),0) -> 36037 | Y182: 5725 | Z182: 0.1588645004 | AA182: 75 | AB182: 0 | AD182: 25101 | AE182: OCEAN BEACH
A183: 14172 | B183: OCOSTA | C183: 0 | D183: 0 | E183: =IFERROR(VLOOKUP($A183,Census!$A$11:$I$344,7,FALSE),0) -> 707 | F183: =ROUND(E183/$E$5*Assumptions!$C$14*Assumptions!$C$29,0) -> 3850 | G183: =IFERROR(VLOOKUP($A183,Census!$A$11:$I$344,8,FALSE),0) -> 123 | H183: =ROUND(G183/$G$5*+Assumptions!$C$14*Assumptions!$C$30,0) -> 24433 | J183: 28283 | L183: 0 | M183: =IFERROR(VLOOKUP(A183,ENROLLMENT!$A$5:$B$349,2,FALSE),0)*0 -> 0 | N183: =IFERROR(GETPIVOTDATA("Total W/O Preschool",'Private 19-20'!$O$3,"District Code",A183),0)*0 -> 0 | P183: 28283 | Q183: 0 | R183: 28283 | T183: 0 | U183: 28283 | W183: =IFERROR(VLOOKUP($A183,'Allocation 2020-21 Final'!$A$7:$U$317,18,FALSE),0) -> 33110 | Y183: -4827 | Z183: -0.1457867714 | AA183: 262 | AB183: 0 | AD183: 14172 | AE183: OCOSTA
A184: 22105 | B184: ODESSA | C184: 0 | D184: 0 | E184: =IFERROR(VLOOKUP($A184,Census!$A$11:$I$344,7,FALSE),0) -> 279 | F184: =ROUND(E184/$E$5*Assumptions!$C$14*Assumptions!$C$29,0) -> 1519 | G184: =IFERROR(VLOOKUP($A184,Census!$A$11:$I$344,8,FALSE),0) -> 38 | H184: =ROUND(G184/$G$5*+Assumptions!$C$14*Assumptions!$C$30,0) -> 7548 | J184: 9067 | L184: 0 | M184: =IFERROR(VLOOKUP(A184,ENROLLMENT!$A$5:$B$349,2,FALSE),0)*0 -> 0 | N184: =IFERROR(GETPIVOTDATA("Total W/O Preschool",'Private 19-20'!$O$3,"District Code",A184),0)*0 -> 0 | P184: 9067 | Q184: 0 | R184: 9067 | T184: 0 | U184: 9067 | W184: =IFERROR(VLOOKUP($A184,'Allocation 2020-21 Final'!$A$7:$U$317,18,FALSE),0) -> 8023 | Y184: 1044 | Z184: 0.1301258881 | AA184: 137 | AB184: 0 | AD184: 22105 | AE184: ODESSA
A185: 24105 | B185: OKANOGAN | C185: 0 | D185: 0 | E185: =IFERROR(VLOOKUP($A185,Census!$A$11:$I$344,7,FALSE),0) -> 1031 | F185: =ROUND(E185/$E$5*Assumptions!$C$14*Assumptions!$C$29,0) -> 5614 | G185: =IFERROR(VLOOKUP($A185,Census!$A$11:$I$344,8,FALSE),0) -> 219 | H185: =ROUND(G185/$G$5*+Assumptions!$C$14*Assumptions!$C$30,0) -> 43503 | J185: 49117 | L185: 0 | M185: =IFERROR(VLOOKUP(A185,ENROLLMENT!$A$5:$B$349,2,FALSE),0)*0 -> 0 | N185: =IFERROR(GETPIVOTDATA("Total W/O Preschool",'Private 19-20'!$O$3,"District Code",A185),0)*0 -> 0 | P185: 49117 | Q185: 0 | R185: 49117 | T185: 0 | U185: 49117 | W185: =IFERROR(VLOOKUP($A185,'Allocation 2020-21 Final'!$A$7:$U$317,18,FALSE),0) -> 66569 | Y185: -17452 | Z185: -0.2621640704 | AA185: 291 | AB185: 0 | AD185: 24105 | AE185: OKANOGAN
A186: 34111 | B186: OLYMPIA | C186: 0 | D186: 0 | E186: =IFERROR(VLOOKUP($A186,Census!$A$11:$I$344,7,FALSE),0) -> 10102 | F186: =ROUND(E186/$E$5*Assumptions!$C$14*Assumptions!$C$29,0) -> 55008 | G186: =IFERROR(VLOOKUP($A186,Census!$A$11:$I$344,8,FALSE),0) -> 1022 | H186: =ROUND(G186/$G$5*+Assumptions!$C$14*Assumptions!$C$30,0) -> 203014 | J186: 258022 | L186: 0 | M186: =IFERROR(VLOOKUP(A186,ENROLLMENT!$A$5:$B$349,2,FALSE),0)*0 -> 0 | N186: =IFERROR(GETPIVOTDATA("Total W/O Preschool",'Private 19-20'!$O$3,"District Code",A186),0)*0 -> 0 | P186: 258022 | Q186: 0 | R186: 258022 | T186: 0 | U186: 258022 | W186: =IFERROR(VLOOKUP($A186,'Allocation 2020-21 Final'!$A$7:$U$317,18,FALSE),0) -> 230416 | Y186: 27606 | Z186: 0.1198093882 | AA186: 22 | AB186: 0 | AD186: 34111 | AE186: OLYMPIA
A187: 24019 | B187: OMAK | C187: 0 | D187: 0 | E187: =IFERROR(VLOOKUP($A187,Census!$A$11:$I$344,7,FALSE),0) -> 1904 | F187: =ROUND(E187/$E$5*Assumptions!$C$14*Assumptions!$C$29,0) -> 10368 | G187: =IFERROR(VLOOKUP($A187,Census!$A$11:$I$344,8,FALSE),0) -> 362 | H187: =ROUND(G187/$G$5*+Assumptions!$C$14*Assumptions!$C$30,0) -> 71909 | J187: 82277 | L187: 0 | M187: =IFERROR(VLOOKUP(A187,ENROLLMENT!$A$5:$B$349,2,FALSE),0)*0 -> 0 | N187: =IFERROR(GETPIVOTDATA("Total W/O Preschool",'Private 19-20'!$O$3,"District Code",A187),0)*0 -> 0 | P187: 82277 | Q187: 0 | R187: 82277 | T187: 0 | U187: 82277 | W187: =IFERROR(VLOOKUP($A187,'Allocation 2020-21 Final'!$A$7:$U$317,18,FALSE),0) -> 82899 | Y187: -622 | Z187: -0.007503106189 | AA187: 207 | AB187: 0 | AD187: 24019 | AE187: OMAK
A188: 21300 | B188: ONALASKA | C188: 0 | D188: 0 | E188: =IFERROR(VLOOKUP($A188,Census!$A$11:$I$344,7,FALSE),0) -> 864 | F188: =ROUND(E188/$E$5*Assumptions!$C$14*Assumptions!$C$29,0) -> 4705 | G188: =IFERROR(VLOOKUP($A188,Census!$A$11:$I$344,8,FALSE),0) -> 83 | H188: =ROUND(G188/$G$5*+Assumptions!$C$14*Assumptions!$C$30,0) -> 16487 | J188: 21192 | L188: 0 | M188: =IFERROR(VLOOKUP(A188,ENROLLMENT!$A$5:$B$349,2,FALSE),0)*0 -> 0 | N188: =IFERROR(GETPIVOTDATA("Total W/O Preschool",'Private 19-20'!$O$3,"District Code",A188),0)*0 -> 0 | P188: 21192 | Q188: 0 | R188: 21192 | T188: 0 | U188: 21192 | W188: =IFERROR(VLOOKUP($A188,'Allocation 2020-21 Final'!$A$7:$U$317,18,FALSE),0) -> 20857 | Y188: 335 | Z188: 0.01606175385 | AA188: 159 | AB188: 0 | AD188: 21300 | AE188: ONALASKA
A189: 33030 | B189: ONION CREEK | C189: 0 | D189: 0 | E189: =IFERROR(VLOOKUP($A189,Census!$A$11:$I$344,7,FALSE),0) -> 52 | F189: =ROUND(E189/$E$5*Assumptions!$C$14*Assumptions!$C$29,0) -> 283 | G189: =IFERROR(VLOOKUP($A189,Census!$A$11:$I$344,8,FALSE),0) -> 17 | H189: =ROUND(G189/$G$5*+Assumptions!$C$14*Assumptions!$C$30,0) -> 3377 | J189: 3660 | L189: 0 | M189: =IFERROR(VLOOKUP(A189,ENROLLMENT!$A$5:$B$349,2,FALSE),0)*0 -> 0 | N189: =IFERROR(GETPIVOTDATA("Total W/O Preschool",'Private 19-20'!$O$3,"District Code",A189),0)*0 -> 0 | P189: 3660 | Q189: 0 | R189: 3660 | T189: 0 | U189: 3660 | W189: =IFERROR(VLOOKUP($A189,'Allocation 2020-21 Final'!$A$7:$U$317,18,FALSE),0) -> 2148 | Y189: 1512 | Z189: 0.7039106145 | AA189: 122 | AB189: 0 | AD189: 33030 | AE189: ONION CREEK
A190: 28137 | B190: ORCAS ISLAND | C190: 0 | D190: 0 | E190: =IFERROR(VLOOKUP($A190,Census!$A$11:$I$344,7,FALSE),0) -> 576 | F190: =ROUND(E190/$E$5*Assumptions!$C$14*Assumptions!$C$29,0) -> 3136 | G190: =IFERROR(VLOOKUP($A190,Census!$A$11:$I$344,8,FALSE),0) -> 58 | H190: =ROUND(G190/$G$5*+Assumptions!$C$14*Assumptions!$C$30,0) -> 11521 | J190: 14657 | L190: 0 | M190: =IFERROR(VLOOKUP(A190,ENROLLMENT!$A$5:$B$349,2,FALSE),0)*0 -> 0 | N190: =IFERROR(GETPIVOTDATA("Total W/O Preschool",'Private 19-20'!$O$3,"District Code",A190),0)*0 -> 0 | P190: 14657 | Q190: 0 | R190: 14657 | T190: 0 | U190: 14657 | W190: =IFERROR(VLOOKUP($A190,'Allocation 2020-21 Final'!$A$7:$U$317,18,FALSE),0) -> 14120 | Y190: 537 | Z190: 0.03803116147 | AA190: 151 | AB190: 0 | AD190: 28137 | AE190: ORCAS ISLAND
A191: 32123 | B191: ORCHARD PRAIRIE | C191: 0 | D191: 0 | E191: =IFERROR(VLOOKUP($A191,Census!$A$11:$I$344,7,FALSE),0) -> 138 | F191: =ROUND(E191/$E$5*Assumptions!$C$14*Assumptions!$C$29,0) -> 751 | G191: =IFERROR(VLOOKUP($A191,Census!$A$11:$I$344,8,FALSE),0) -> 13 | H191: =ROUND(G191/$G$5*+Assumptions!$C$14*Assumptions!$C$30,0) -> 2582 | J191: 3333 | L191: 0 | M191: =IFERROR(VLOOKUP(A191,ENROLLMENT!$A$5:$B$349,2,FALSE),0)*0 -> 0 | N191: =IFERROR(GETPIVOTDATA("Total W/O Preschool",'Private 19-20'!$O$3,"District Code",A191),0)*0 -> 0 | P191: 3333 | Q191: 0 | R191: 3333 | T191: 0 | U191: 3333 | W191: =IFERROR(VLOOKUP($A191,'Allocation 2020-21 Final'!$A$7:$U$317,18,FALSE),0) -> 3913 | Y191: -580 | Z191: -0.1482238692 | AA191: 206 | AB191: 0 | AD191: 32123 | AE191: ORCHARD PRAIRIE
A192: 10065 | B192: ORIENT | C192: 0 | D192: 0 | E192: =IFERROR(VLOOKUP($A192,Census!$A$11:$I$344,7,FALSE),0) -> 95 | F192: =ROUND(E192/$E$5*Assumptions!$C$14*Assumptions!$C$29,0) -> 517 | G192: =IFERROR(VLOOKUP($A192,Census!$A$11:$I$344,8,FALSE),0) -> 16 | H192: =ROUND(G192/$G$5*+Assumptions!$C$14*Assumptions!$C$30,0) -> 3178 | J192: 3695 | L192: 0 | M192: =IFERROR(VLOOKUP(A192,ENROLLMENT!$A$5:$B$349,2,FALSE),0)*0 -> 0 | N192: =IFERROR(GETPIVOTDATA("Total W/O Preschool",'Private 19-20'!$O$3,"District Code",A192),0)*0 -> 0 | P192: 3695 | Q192: 0 | R192: 3695 | T192: 0 | U192: 3695 | W192: =IFERROR(VLOOKUP($A192,'Allocation 2020-21 Final'!$A$7:$U$317,18,FALSE),0) -> 4814 | Y192: -1119 | Z192: -0.2324470295 | AA192: 218 | AB192: 0 | AD192: 10065 | AE192: ORIENT
A193: 09013 | B193: ORONDO | C193: 0 | D193: 0 | E193: =IFERROR(VLOOKUP($A193,Census!$A$11:$I$344,7,FALSE),0) -> 411 | F193: =ROUND(E193/$E$5*Assumptions!$C$14*Assumptions!$C$29,0) -> 2238 | G193: =IFERROR(VLOOKUP($A193,Census!$A$11:$I$344,8,FALSE),0) -> 77 | H193: =ROUND(G193/$G$5*+Assumptions!$C$14*Assumptions!$C$30,0) -> 15296 | J193: 17534 | L193: 0 | M193: =IFERROR(VLOOKUP(A193,ENROLLMENT!$A$5:$B$349,2,FALSE),0)*0 -> 0 | N193: =IFERROR(GETPIVOTDATA("Total W/O Preschool",'Private 19-20'!$O$3,"District Code",A193),0)*0 -> 0 | P193: 17534 | Q193: 0 | R193: 17534 | T193: 0 | U193: 17534 | W193: =IFERROR(VLOOKUP($A193,'Allocation 2020-21 Final'!$A$7:$U$317,18,FALSE),0) -> 13959 | Y193: 3575 | Z193: 0.256107171 | AA193: 95 | AB193: 0 | AD193: 09013 | AE193: ORONDO
A194: 24410 | B194: OROVILLE | C194: 0 | D194: 0 | E194: =IFERROR(VLOOKUP($A194,Census!$A$11:$I$344,7,FALSE),0) -> 753 | F194: =ROUND(E194/$E$5*Assumptions!$C$14*Assumptions!$C$29,0) -> 4100 | G194: =IFERROR(VLOOKUP($A194,Census!$A$11:$I$344,8,FALSE),0) -> 241 | H194: =ROUND(G194/$G$5*+Assumptions!$C$14*Assumptions!$C$30,0) -> 47873 | J194: 51973 | L194: 0 | M194: =IFERROR(VLOOKUP(A194,ENROLLMENT!$A$5:$B$349,2,FALSE),0)*0 -> 0 | N194: =IFERROR(GETPIVOTDATA("Total W/O Preschool",'Private 19-20'!$O$3,"District Code",A194),0)*0 -> 0 | P194: 51973 | Q194: 0 | R194: 51973 | T194: 0 | U194: 51973 | W194: =IFERROR(VLOOKUP($A194,'Allocation 2020-21 Final'!$A$7:$U$317,18,FALSE),0) -> 53298 | Y194: -1325 | Z194: -0.0248602199 | AA194: 221 | AB194: 0 | AD194: 24410 | AE194: OROVILLE
A195: 27344 | B195: ORTING | C195: 0 | D195: 0 | E195: =IFERROR(VLOOKUP($A195,Census!$A$11:$I$344,7,FALSE),0) -> 2843 | F195: =ROUND(E195/$E$5*Assumptions!$C$14*Assumptions!$C$29,0) -> 15481 | G195: =IFERROR(VLOOKUP($A195,Census!$A$11:$I$344,8,FALSE),0) -> 207 | H195: =ROUND(G195/$G$5*+Assumptions!$C$14*Assumptions!$C$30,0) -> 41119 | J195: 56600 | L195: 0 | M195: =IFERROR(VLOOKUP(A195,ENROLLMENT!$A$5:$B$349,2,FALSE),0)*0 -> 0 | N195: =IFERROR(GETPIVOTDATA("Total W/O Preschool",'Private 19-20'!$O$3,"District Code",A195),0)*0 -> 0 | P195: 56600 | Q195: 0 | R195: 56600 | T195: 0 | U195: 56600 | W195: =IFERROR(VLOOKUP($A195,'Allocation 2020-21 Final'!$A$7:$U$317,18,FALSE),0) -> 55474 | Y195: 1126 | Z195: 0.02029779717 | AA195: 133 | AB195: 0 | AD195: 27344 | AE195: ORTING
A196: 01147 | B196: OTHELLO | C196: 0 | D196: 0 | E196: =IFERROR(VLOOKUP($A196,Census!$A$11:$I$344,7,FALSE),0) -> 4496 | F196: =ROUND(E196/$E$5*Assumptions!$C$14*Assumptions!$C$29,0) -> 24482 | G196: =IFERROR(VLOOKUP($A196,Census!$A$11:$I$344,8,FALSE),0) -> 1020 | H196: =ROUND(G196/$G$5*+Assumptions!$C$14*Assumptions!$C$30,0) -> 202616 | J196: 227098 | L196: 0 | M196: =IFERROR(VLOOKUP(A196,ENROLLMENT!$A$5:$B$349,2,FALSE),0)*0 -> 0 | N196: =IFERROR(GETPIVOTDATA("Total W/O Preschool",'Private 19-20'!$O$3,"District Code",A196),0)*0 -> 0 | P196: 227098 | Q196: 0 | R196: 227098 | T196: 0 | U196: 227098 | W196: =IFERROR(VLOOKUP($A196,'Allocation 2020-21 Final'!$A$7:$U$317,18,FALSE),0) -> 182675 | Y196: 44423 | Z196: 0.2431805118 | AA196: 17 | AB196: 0 | AD196: 01147 | AE196: OTHELLO
A197: 09102 | B197: PALISADES | C197: 0 | D197: 0 | E197: =IFERROR(VLOOKUP($A197,Census!$A$11:$I$344,7,FALSE),0) -> 64 | F197: =ROUND(E197/$E$5*Assumptions!$C$14*Assumptions!$C$29,0) -> 348 | G197: =IFERROR(VLOOKUP($A197,Census!$A$11:$I$344,8,FALSE),0) -> 11 | H197: =ROUND(G197/$G$5*+Assumptions!$C$14*Assumptions!$C$30,0) -> 2185 | J197: 2533 | L197: 0 | M197: =IFERROR(VLOOKUP(A197,ENROLLMENT!$A$5:$B$349,2,FALSE),0)*0 -> 0 | N197: =IFERROR(GETPIVOTDATA("Total W/O Preschool",'Private 19-20'!$O$3,"District Code",A197),0)*0 -> 0 | P197: 2533 | Q197: 0 | R197: 2533 | T197: 0 | U197: 2533 | W197: =IFERROR(VLOOKUP($A197,'Allocation 2020-21 Final'!$A$7:$U$317,18,FALSE),0) -> 2026 | Y197: 507 | Z197: 0.2502467917 | AA197: 153 | AB197: 0 | AD197: =+A197 -> 09102 | AE197: PALISADES
A198: 38301 | B198: PALOUSE | C198: 0 | D198: 0 | E198: =IFERROR(VLOOKUP($A198,Census!$A$11:$I$344,7,FALSE),0) -> 265 | F198: =ROUND(E198/$E$5*Assumptions!$C$14*Assumptions!$C$29,0) -> 1443 | G198: =IFERROR(VLOOKUP($A198,Census!$A$11:$I$344,8,FALSE),0) -> 12 | H198: =ROUND(G198/$G$5*+Assumptions!$C$14*Assumptions!$C$30,0) -> 2384 | J198: 3827 | L198: 0 | M198: =IFERROR(VLOOKUP(A198,ENROLLMENT!$A$5:$B$349,2,FALSE),0)*0 -> 0 | N198: =IFERROR(GETPIVOTDATA("Total W/O Preschool",'Private 19-20'!$O$3,"District Code",A198),0)*0 -> 0 | P198: 3827 | Q198: 0 | R198: 3827 | T198: 0 | U198: 3827 | W198: =IFERROR(VLOOKUP($A198,'Allocation 2020-21 Final'!$A$7:$U$317,18,FALSE),0) -> 3453 | Y198: 374 | Z198: 0.1083116131 | AA198: 157 | AB198: 0 | AD198: 38301 | AE198: PALOUSE
A199: 11001 | B199: PASCO | C199: 0 | D199: 0 | E199: =IFERROR(VLOOKUP($A199,Census!$A$11:$I$344,7,FALSE),0) -> 19504 | F199: =ROUND(E199/$E$5*Assumptions!$C$14*Assumptions!$C$29,0) -> 106204 | G199: =IFERROR(VLOOKUP($A199,Census!$A$11:$I$344,8,FALSE),0) -> 3226 | H199: =ROUND(G199/$G$5*+Assumptions!$C$14*Assumptions!$C$30,0) -> 640824 | J199: =ROUNDDOWN(+H199+F199+D199+C199+I199,0) -> 747028 | L199: 0 | M199: =IFERROR(VLOOKUP(A199,ENROLLMENT!$A$5:$B$349,2,FALSE),0)*0 -> 0 | N199: =IFERROR(GETPIVOTDATA("Total W/O Preschool",'Private 19-20'!$O$3,"District Code",A199),0)*0 -> 0 | P199: 747028 | Q199: 0 | R199: 747028 | T199: 0 | U199: 747028 | W199: =IFERROR(VLOOKUP($A199,'Allocation 2020-21 Final'!$A$7:$U$317,18,FALSE),0) -> 661608 | Y199: 85420 | Z199: 0.1291096843 | AA199: 7 | AB199: =(SUM(C199:D199)/U199) -> 0 | AD199: 11001 | AE199: PASCO
A200: 24122 | B200: PATEROS | C200: 0 | D200: 0 | E200: =IFERROR(VLOOKUP($A200,Census!$A$11:$I$344,7,FALSE),0) -> 271 | F200: =ROUND(E200/$E$5*Assumptions!$C$14*Assumptions!$C$29,0) -> 1476 | G200: =IFERROR(VLOOKUP($A200,Census!$A$11:$I$344,8,FALSE),0) -> 33 | H200: =ROUND(G200/$G$5*+Assumptions!$C$14*Assumptions!$C$30,0) -> 6555 | J200: 8031 | L200: 0 | M200: =IFERROR(VLOOKUP(A200,ENROLLMENT!$A$5:$B$349,2,FALSE),0)*0 -> 0 | N200: =IFERROR(GETPIVOTDATA("Total W/O Preschool",'Private 19-20'!$O$3,"District Code",A200),0)*0 -> 0 | P200: 8031 | Q200: 0 | R200: 8031 | T200: 0 | U200: 8031 | W200: =IFERROR(VLOOKUP($A200,'Allocation 2020-21 Final'!$A$7:$U$317,18,FALSE),0) -> 10959 | Y200: -2928 | Z200: -0.2671776622 | AA200: =RANK(Y200,$Y$7:$Y$321,0) -> 247 | AB200: 0 | AD200: 24122 | AE200: PATEROS
... 122 more rows

Sheet Allocation 2021-22 Preliminary (hidden)
A1: 2021-22 | J1: Rounding Error = 1.0 | T1: 0 | U1: Rounding Error = 1.0
A2: ESEA -- Title 2 Distributions | J2: Allocation including private participation | U2: \
A3: 1 | B3: 2 | C3: 3 | D3: 4 | E3: 5 | F3: 6 | G3: 7 | H3: 8 | I3: 9 | J3: 10 | K3: 11 | L3: 12 | M3: 13 | N3: 14 | U3: \ | W3: 18
A4: ccddd | B4: District Name | C4: Eisenhower 2001-02 Allocations | D4: Class Size Reduction Allocations 2001-02 | E4: Census Population Ages 5-17 | F4: 20% based on Total Pop | G4: Census Poverty Ages 5-17 | H4: 80% based on Low Inc Pop | I4: MOE | J4: Total Final Allocation | L4: Per Student Allocation | M4: P-105A District Enrollment WO PK | N4: Private School Partcipation Enroll | O4: Alloc to non-Census LEA | P4: Realloc Pool | Q4: Realloc | R4: Final Alloc Before MOE | S4: MOE | T4: MOE Reduction | U4: Final Alloc | W4: Prior Year Allocation | Y4: Change | AA4: Rank Order | AD4: do not delete Y & Z
B5: State Totals | C5: 0 | D5: 0 | E5: 1205149 | F5: 6558038 | G5: 132232 | H5: 26232170 | J5: 32790209 | L5: 0 | M5: 0 | N5: 0 | O5: 0 | P5: 32790209 | Q5: 0 | R5: 32790209 | T5: 0 | U5: 32790209 | W5: 32219625 | Y5: 570584 | Z5: -0.6334588379 | AA5: Lose = Impact Salish Sea Charter | AD5: 0 | AE5: State Totals
Z6: 5.255980861 | AA6: Win = Index
A7: 14005 | B7: ABERDEEN | C7: 0 | D7: 0 | E7: 3384 | F7: 18415 | G7: 736 | H7: 146008 | J7: 164423 | L7: 0 | M7: 0 | N7: 0 | P7: 164423 | Q7: 0 | R7: 164423 | T7: 0 | U7: 164423 | W7: 180723 | Y7: -16300 | Z7: -0.09019327922 | AA7: 289 | AB7: 0 | AD7: 14005 | AE7: ABERDEEN
A8: 21226 | B8: ADNA | C8: 0 | D8: 0 | E8: 772 | F8: 4201 | G8: 38 | H8: 7538 | J8: 11739 | L8: 0 | M8: 0 | N8: 0 | P8: 11739 | Q8: 0 | R8: 11739 | T8: 0 | U8: 11739 | W8: 16433 | Y8: -4694 | Z8: -0.2856447392 | AA8: 261 | AB8: 0 | AD8: 21226 | AE8: ADNA
A9: 22017 | B9: ALMIRA | C9: 0 | D9: 0 | E9: 90 | F9: 490 | G9: 9 | H9: 1785 | J9: 2275 | L9: 0 | M9: 0 | N9: 0 | P9: 2275 | Q9: 0 | R9: 2275 | T9: 0 | U9: 2275 | W9: 2166 | Y9: 109 | Z9: 0.05032317636 | AA9: 170 | AB9: 0 | AD9: 22017 | AE9: ALMIRA
A10: 29103 | B10: ANACORTES | C10: 0 | D10: 0 | E10: 2778 | F10: 15117 | G10: 307 | H10: 60903 | J10: 76020 | L10: 0 | M10: 0 | N10: 0 | P10: 76020 | Q10: 0 | R10: 76020 | T10: 0 | U10: 76020 | W10: 56722 | Y10: 19298 | Z10: 0.3402207256 | AA10: 30 | AB10: 0 | AD10: 29103 | AE10: ANACORTES
A11: 31016 | B11: ARLINGTON | C11: 0 | D11: 0 | E11: 5966 | F11: 32465 | G11: 369 | H11: 73202 | J11: 105667 | L11: 0 | M11: 0 | N11: 0 | P11: 105667 | Q11: 0 | R11: 105667 | T11: 0 | U11: 105667 | W11: 96619 | Y11: 9048 | Z11: 0.09364617725 | AA11: 51 | AB11: 0 | AD11: 31016 | AE11: ARLINGTON
A12: 02420 | B12: ASOTIN-ANATONE | C12: 0 | D12: 0 | E12: 558 | F12: 3036 | G12: 55 | H12: 10911 | J12: 13947 | L12: 0 | M12: 0 | N12: 0 | P12: 13947 | Q12: 0 | R12: 13947 | T12: 0 | U12: 13947 | W12: 15572 | Y12: -1625 | Z12: -0.1043539687 | AA12: 230 | AB12: 0 | AD12: 02420 | AE12: ASOTIN-ANATONE
A13: 17408 | B13: AUBURN | C13: 0 | D13: 0 | E13: 17308 | F13: 94185 | G13: 1951 | H13: 387039 | J13: 481224 | L13: 0 | M13: 0 | N13: 0 | P13: 481224 | Q13: 0 | R13: 481224 | T13: 0 | U13: 481224 | W13: 556889 | Y13: -75665 | Z13: -0.1358708827 | AA13: 310 | AB13: 0 | AD13: 17408 | AE13: AUBURN
A14: 18303 | B14: BAINBRIDGE ISLAND | C14: 0 | D14: 0 | E14: 4286 | F14: 23323 | G14: 128 | H14: 25393 | J14: 48716 | L14: 0 | M14: 0 | N14: 0 | P14: 48716 | Q14: 0 | R14: 48716 | T14: 0 | U14: 48716 | W14: 52951 | Y14: -4235 | Z14: -0.07997960378 | AA14: 259 | AB14: 0 | AD14: 18303 | AE14: BAINBRIDGE ISLAND
A15: 06119 | B15: BATTLE GROUND | C15: 0 | D15: 0 | E15: 15079 | F15: 82055 | G15: 1091 | H15: 216432 | J15: 298487 | L15: 0 | M15: 0 | N15: 0 | P15: 298487 | Q15: 0 | R15: 298487 | T15: 0 | U15: 298487 | W15: 272355 | Y15: 26132 | Z15: 0.09594830277 | AA15: 24 | AB15: 0 | AD15: 06119 | AE15: BATTLE GROUND
A16: 17405 | B16: BELLEVUE | C16: 0 | D16: 0 | E16: 21599 | F16: 117535 | G16: 1042 | H16: 206712 | J16: 324247 | L16: 0 | M16: 0 | N16: 0 | P16: 324247 | Q16: 0 | R16: 324247 | T16: 0 | U16: 324247 | W16: 375091 | Y16: -50844 | Z16: -0.1355511063 | AA16: 308 | AB16: 0 | AD16: 17405 | AE16: BELLEVUE
A17: 37501 | B17: BELLINGHAM | C17: 0 | D17: 0 | E17: 12941.32761 | F17: 70423 | G17: 1290.556162 | H17: 256020 | J17: 326443 | L17: 0 | M17: 0 | N17: 0 | P17: 326443 | Q17: 0 | R17: 326443 | T17: 0 | U17: 326443 | W17: 361689 | Y17: -35246 | Z17: -0.09744836033 | AA17: 301 | AB17: 0 | AD17: 37501 | AE17: BELLINGHAM
A18: 01122 | B18: BENGE | C18: 0 | D18: 0 | E18: 6 | F18: 33 | G18: 1 | H18: 198 | J18: 231 | L18: 0 | M18: 0 | N18: 0 | P18: 231 | Q18: 0 | R18: 231 | T18: 0 | U18: 231 | W18: 406 | Y18: -175 | Z18: -0.4310344828 | AA18: 189 | AB18: 0 | AD18: 01122 | AE18: BENGE
A19: 27403 | B19: BETHEL | C19: 0 | D19: 0 | E19: 21306 | F19: 115941 | G19: 2276 | H19: 451513 | J19: 567454 | L19: 0 | M19: 0 | N19: 0 | P19: 567454 | Q19: 0 | R19: 567454 | T19: 0 | U19: 567454 | W19: 497605 | Y19: 69849 | Z19: 0.1403703741 | AA19: 10 | AB19: 0 | AD19: 27403 | AE19: BETHEL
A20: 20203 | B20: BICKLETON | C20: 0 | D20: 0 | E20: 62 | F20: 337 | G20: 7 | H20: 1389 | J20: 1726 | L20: 0 | M20: 0 | N20: 0 | P20: 1726 | Q20: 0 | R20: 1726 | T20: 0 | U20: 1726 | W20: 1828 | Y20: -102 | Z20: -0.05579868709 | AA20: 185 | AB20: 0 | AD20: 20203 | AE20: BICKLETON
A21: 37503 | B21: BLAINE | C21: 0 | D21: 0 | E21: 2518 | F21: 13702 | G21: 377 | H21: 74789 | J21: 88491 | L21: 0 | M21: 0 | N21: 0 | P21: 88491 | Q21: 0 | R21: 88491 | T21: 0 | U21: 88491 | W21: 89440 | Y21: -949 | Z21: -0.01061046512 | AA21: 216 | AB21: 0 | AD21: 37503 | AE21: BLAINE
A22: 21234 | B22: BOISTFORT | C22: 0 | D22: 0 | E22: 151 | F22: 822 | G22: 25 | H22: 4959 | J22: 5781 | L22: 0 | M22: 0 | N22: 0 | P22: 5781 | Q22: 0 | R22: 5781 | T22: 0 | U22: 5781 | W22: 5286 | Y22: 495 | Z22: 0.09364358683 | AA22: 154 | AB22: 0 | AD22: 21234 | AE22: BOISTFORT
A23: 18100 | B23: BREMERTON | C23: 0 | D23: 0 | E23: 5153.62387 | F23: 28044 | G23: 754.9649186 | H23: 149770 | J23: 177814 | L23: 0 | M23: 0 | N23: 0 | P23: 177814 | Q23: 0 | R23: 177814 | T23: 0 | U23: 177814 | W23: 205717 | Y23: -27903 | Z23: -0.1356377937 | AA23: 299 | AB23: 0 | AD23: 18100 | AE23: BREMERTON
A24: 24111 | B24: BREWSTER | C24: 0 | D24: 0 | E24: 1080 | F24: 5877 | G24: 157 | H24: 31146 | J24: 37023 | L24: 0 | M24: 0 | N24: 0 | P24: 37023 | Q24: 0 | R24: 37023 | T24: 0 | U24: 37023 | W24: 40266 | Y24: -3243 | Z24: -0.0805394129 | AA24: 252 | AB24: 0 | AD24: 24111 | AE24: BREWSTER
A25: 09075 | B25: BRIDGEPORT | C25: 0 | D25: 0 | E25: 878 | F25: 4778 | G25: 200 | H25: 39676 | J25: 44454 | L25: 0 | M25: 0 | N25: 0 | P25: 44454 | Q25: 0 | R25: 44454 | T25: 0 | U25: 44454 | W25: 36057 | Y25: 8397 | Z25: 0.2328812713 | AA25: 56 | AB25: 0 | AD25: 09075 | AE25: BRIDGEPORT
A26: 16046 | B26: BRINNON | C26: 0 | D26: 0 | E26: 86 | F26: 468 | G26: 27 | H26: 5356 | J26: 5824 | L26: 0 | M26: 0 | N26: 0 | P26: 5824 | Q26: 0 | R26: 5824 | T26: 0 | U26: 5824 | W26: 5496 | Y26: 328 | Z26: 0.0596797671 | AA26: 159 | AB26: 0 | AD26: 16046 | AE26: BRINNON
A27: 29100 | B27: BURLINGTON-EDISON | C27: 0 | D27: 0 | E27: 3855 | F27: 20978 | G27: 727 | H27: 144222 | J27: 165200 | L27: 0 | M27: 0 | N27: 0 | P27: 165200 | Q27: 0 | R27: 165200 | T27: 0 | U27: 165200 | W27: 112935 | Y27: 52265 | Z27: 0.4627883296 | AA27: 13 | AB27: 0 | AD27: 29100 | AE27: BURLINGTON-EDISON
A28: 06117 | B28: CAMAS | C28: 0 | D28: 0 | E28: 6713 | F28: 36530 | G28: 287 | H28: 56935 | J28: 93465 | L28: 0 | M28: 0 | N28: 0 | P28: 93465 | Q28: 0 | R28: 93465 | T28: 0 | U28: 93465 | W28: 83496 | Y28: 9969 | Z28: 0.1193949411 | AA28: 47 | AB28: 0 | AD28: 06117 | AE28: CAMAS
A29: 05401 | B29: CAPE FLATTERY | C29: 0 | D29: 0 | E29: 451 | F29: 2454 | G29: 60 | H29: 11903 | J29: 14357 | L29: 0 | M29: 0 | N29: 0 | P29: 14357 | Q29: 0 | R29: 14357 | T29: 0 | U29: 14357 | W29: 14179 | Y29: 178 | Z29: 0.01255377671 | AA29: 167 | AB29: 0 | AD29: 05401 | AE29: CAPE FLATTERY
A30: 27019 | B30: CARBONADO | C30: 0 | D30: 0 | E30: 192 | F30: 1045 | G30: 13 | H30: 2579 | J30: 3624 | L30: 0 | M30: 0 | N30: 0 | P30: 3624 | Q30: 0 | R30: 3624 | T30: 0 | U30: 3624 | W30: 3077 | Y30: 547 | Z30: 0.1777705557 | AA30: 150 | AB30: 0 | AD30: 27019 | AE30: CARBONADO
A31: 04228 | B31: CASCADE | C31: 0 | D31: 0 | E31: 1497 | F31: 8146 | G31: 198 | H31: 39279 | J31: 47425 | L31: 0 | M31: 0 | N31: 0 | P31: 47425 | Q31: 0 | R31: 47425 | T31: 0 | U31: 47425 | W31: 49550 | Y31: -2125 | Z31: -0.04288597376 | AA31: 235 | AB31: 0 | AD31: 04228 | AE31: CASCADE
A32: 04222 | B32: CASHMERE | C32: 0 | D32: 0 | E32: 1382 | F32: 7520 | G32: 232 | H32: 46024 | J32: 53544 | L32: 0 | M32: 0 | N32: 0 | P32: 53544 | Q32: 0 | R32: 53544 | T32: 0 | U32: 53544 | W32: 53599 | Y32: -55 | Z32: -0.001026138547 | AA32: 182 | AB32: 0 | AD32: 04222 | AE32: CASHMERE
A33: 08401 | B33: CASTLE ROCK | C33: 0 | D33: 0 | E33: 1564 | F33: 8511 | G33: 163 | H33: 32336 | J33: 40847 | L33: 0 | M33: 0 | N33: 0 | P33: 40847 | Q33: 0 | R33: 40847 | T33: 0 | U33: 40847 | W33: 38238 | Y33: 2609 | Z33: 0.06823055599 | AA33: 103 | AB33: 0 | AD33: 08401 | AE33: CASTLE ROCK
A34: 18901 | B34: CATALYST BREMERTON CHARTER | C34: 0 | D34: 0 | E34: 115.9855335 | F34: 631 | G34: 16.99095841 | H34: 3371 | J34: 4002 | L34: 0 | M34: 0 | N34: 0 | P34: 4002 | Q34: 0 | R34: 4002 | T34: 0 | U34: 4002 | W34: 9174 | Y34: -5172 | Z34: -0.5637671681 | AA34: 265 | AB34: 0 | AD34: 18901 | AE34: CATALYST BREMERTON CHARTER
A35: 20215 | B35: CENTERVILLE | C35: 0 | D35: 0 | E35: 77 | F35: 419 | G35: 12 | H35: 2381 | J35: 2800 | L35: 0 | M35: 0 | N35: 0 | P35: 2800 | Q35: 0 | R35: 2800 | T35: 0 | U35: 2800 | W35: 3217 | Y35: -417 | Z35: -0.1296238732 | AA35: 202 | AB35: 0 | AD35: 20215 | AE35: CENTERVILLE
A36: 18401 | B36: CENTRAL KITSAP | C36: 0 | D36: 0 | E36: 11149 | F36: 60669 | G36: 720 | H36: 142834 | J36: 203503 | L36: 0 | M36: 0 | N36: 0 | P36: 203503 | Q36: 0 | R36: 203503 | T36: 0 | U36: 203503 | W36: 249446 | Y36: -45943 | Z36: -0.1841801432 | AA36: 305 | AB36: 0 | AD36: 18401 | AE36: CENTRAL KITSAP
A37: 32356 | B37: CENTRAL VALLEY | C37: 0 | D37: 0 | E37: 15064 | F37: 81974 | G37: 1365 | H37: 270789 | J37: 352763 | L37: 0 | M37: 0 | N37: 0 | P37: 352763 | Q37: 0 | R37: 352763 | T37: 0 | U37: 352763 | W37: 397850 | Y37: -45087 | Z37: -0.1133266306 | AA37: 304 | AB37: 0 | AD37: 32356 | AE37: CENTRAL VALLEY
A38: 21401 | B38: CENTRALIA | C38: 0 | D38: 0 | E38: 3725 | F38: 20270 | G38: 607 | H38: 120417 | J38: 140687 | L38: 0 | M38: 0 | N38: 0 | P38: 140687 | Q38: 0 | R38: 140687 | T38: 0 | U38: 140687 | W38: 142022 | Y38: -1335 | Z38: -0.00939995212 | AA38: 223 | AB38: 0 | AD38: 21401 | AE38: CENTRALIA
A39: 21302 | B39: CHEHALIS | C39: 0 | D39: 0 | E39: 2553 | F39: 13893 | G39: 228 | H39: 45231 | J39: 59124 | L39: 0 | M39: 0 | N39: 0 | P39: 59124 | Q39: 0 | R39: 59124 | T39: 0 | U39: 59124 | W39: 75047 | Y39: -15923 | Z39: -0.2121737045 | AA39: 288 | AB39: 0 | AD39: 21302 | AE39: CHEHALIS
A40: 32360 | B40: CHENEY | C40: 0 | D40: 0 | E40: 4686 | F40: 25500 | G40: 574 | H40: 113870 | J40: 139370 | L40: 0 | M40: 0 | N40: 0 | P40: 139370 | Q40: 0 | R40: 139370 | T40: 0 | U40: 139370 | W40: 131766 | Y40: 7604 | Z40: 0.05770836179 | AA40: 61 | AB40: 0 | AD40: 32360 | AE40: CHENEY
A41: 33036 | B41: CHEWELAH | C41: 0 | D41: 0 | E41: 961 | F41: 5229 | G41: 247 | H41: 49000 | J41: 54229 | L41: 0 | M41: 0 | N41: 0 | P41: 54229 | Q41: 0 | R41: 54229 | T41: 0 | U41: 54229 | W41: 44038 | Y41: 10191 | Z41: 0.231413779 | AA41: 46 | AB41: 0 | AD41: 33036 | AE41: CHEWELAH
A42: 16049 | B42: CHIMACUM | C42: 0 | D42: 0 | E42: 1095 | F42: 5959 | G42: 153 | H42: 30352 | J42: 36311 | L42: 0 | M42: 0 | N42: 0 | P42: 36311 | Q42: 0 | R42: 36311 | T42: 0 | U42: 36311 | W42: 32312 | Y42: 3999 | Z42: 0.1237620698 | AA42: 89 | AB42: 0 | AD42: 16049 | AE42: CHIMACUM
A43: 02250 | B43: CLARKSTON | C43: 0 | D43: 0 | E43: 2817 | F43: 15329 | G43: 499 | H43: 98992 | J43: 114321 | L43: 0 | M43: 0 | N43: 0 | P43: 114321 | Q43: 0 | R43: 114321 | T43: 0 | U43: 114321 | W43: 118182 | Y43: -3861 | Z43: -0.03266994974 | AA43: 257 | AB43: 0 | AD43: 02250 | AE43: CLARKSTON
A44: 19404 | B44: CLE ELUM-ROSLYN | C44: 0 | D44: 0 | E44: 1125 | F44: 6122 | G44: 170 | H44: 33725 | J44: 39847 | L44: 0 | M44: 0 | N44: 0 | P44: 39847 | Q44: 0 | R44: 39847 | T44: 0 | U44: 39847 | W44: 36547 | Y44: 3300 | Z44: 0.09029468903 | AA44: 98 | AB44: 0 | AD44: 19404 | AE44: CLE ELUM-ROSLYN
A45: 27400 | B45: CLOVER PARK | C45: 0 | D45: 0 | E45: 13698 | F45: 74540 | G45: 2380 | H45: 472144 | J45: 546684 | L45: 0 | M45: 0 | N45: 0 | P45: 546684 | Q45: 0 | R45: 546684 | T45: 0 | U45: 546684 | W45: 471935 | Y45: 74749 | Z45: 0.1583883374 | AA45: 9 | AB45: 0 | AD45: 27400 | AE45: CLOVER PARK
A46: 38300 | B46: COLFAX | C46: 0 | D46: 0 | E46: 772 | F46: 4201 | G46: 70 | H46: 13887 | J46: 18088 | L46: 0 | M46: 0 | N46: 0 | P46: 18088 | Q46: 0 | R46: 18088 | T46: 0 | U46: 18088 | W46: 14346 | Y46: 3742 | Z46: 0.2608392583 | AA46: 93 | AB46: 0 | AD46: 38300 | AE46: COLFAX
A47: 36250 | B47: COLLEGE PLACE | C47: 0 | D47: 0 | E47: 1903 | F47: 10356 | G47: 221 | H47: 43842 | J47: 54198 | L47: 0 | M47: 0 | N47: 0 | P47: 54198 | Q47: 0 | R47: 54198 | T47: 0 | U47: 54198 | W47: 54984 | Y47: -786 | Z47: -0.01429506766 | AA47: 213 | AB47: 0 | AD47: 36250 | AE47: COLLEGE PLACE
A48: 38306 | B48: COLTON | C48: 0 | D48: 0 | E48: 250 | F48: 1360 | G48: 17 | H48: 3372 | J48: 4732 | L48: 0 | M48: 0 | N48: 0 | P48: 4732 | Q48: 0 | R48: 4732 | T48: 0 | U48: 4732 | W48: 4867 | Y48: -135 | Z48: -0.02773782618 | AA48: 187 | AB48: 0 | AD48: 38306 | AE48: COLTON
A49: 33206 | B49: COLUMBIA (STEV) | C49: 0 | D49: 0 | E49: 193 | F49: 1050 | G49: 43 | H49: 8530 | J49: 9580 | L49: 0 | M49: 0 | N49: 0 | P49: 9580 | Q49: 0 | R49: 9580 | T49: 0 | U49: 9580 | W49: 7951 | Y49: 1629 | Z49: 0.2048798893 | AA49: 118 | AB49: 0 | AD49: 33206 | AE49: COLUMBIA (STEV)
A50: 36400 | B50: COLUMBIA (WALLA) | C50: 0 | D50: 0 | E50: 766 | F50: 4168 | G50: 159 | H50: 31542 | J50: 35710 | L50: 0 | M50: 0 | N50: 0 | P50: 35710 | Q50: 0 | R50: 35710 | T50: 0 | U50: 35710 | W50: 29754 | Y50: 5956 | Z50: 0.2001747664 | AA50: 72 | AB50: 0 | AD50: 36400 | AE50: COLUMBIA (WALLA)
A51: 33115 | B51: COLVILLE | C51: 0 | D51: 0 | E51: 1821 | F51: 9909 | G51: 381 | H51: 75583 | J51: 85492 | L51: 0 | M51: 0 | N51: 0 | P51: 85492 | Q51: 0 | R51: 85492 | T51: 0 | U51: 85492 | W51: 71274 | Y51: 14218 | Z51: 0.1994836827 | AA51: 37 | AB51: 0 | AD51: 33115 | AE51: COLVILLE
A52: 29011 | B52: CONCRETE | C52: 0 | D52: 0 | E52: 744 | F52: 4049 | G52: 117 | H52: 23210 | J52: 27259 | L52: 0 | M52: 0 | N52: 0 | P52: 27259 | Q52: 0 | R52: 27259 | T52: 0 | U52: 27259 | W52: 16876 | Y52: 10383 | Z52: 0.6152524295 | AA52: 44 | AB52: 0 | AD52: 29011 | AE52: CONCRETE
A53: 29317 | B53: CONWAY | C53: 0 | D53: 0 | E53: 569 | F53: 3096 | G53: 40 | H53: 7935 | J53: 11031 | L53: 0 | M53: 0 | N53: 0 | P53: 11031 | Q53: 0 | R53: 11031 | T53: 0 | U53: 11031 | W53: 8653 | Y53: 2378 | Z53: 0.2748179822 | AA53: 108 | AB53: 0 | AD53: 29317 | AE53: CONWAY
A54: 14099 | B54: COSMOPOLIS | C54: 0 | D54: 0 | E54: 334 | F54: 1818 | G54: 22 | H54: 4364 | J54: 6182 | L54: 0 | M54: 0 | N54: 0 | P54: 6182 | Q54: 0 | R54: 6182 | T54: 0 | U54: 6182 | W54: 7011 | Y54: -829 | Z54: -0.1182427614 | AA54: 214 | AB54: 0 | AD54: 14099 | AE54: COSMOPOLIS
A55: 13151 | B55: COULEE-HARTLINE | C55: 0 | D55: 0 | E55: 210 | F55: 1143 | G55: 20 | H55: 3968 | J55: 5111 | L55: 0 | M55: 0 | N55: 0 | P55: 5111 | Q55: 0 | R55: 5111 | T55: 0 | U55: 5111 | W55: 8603 | Y55: -3492 | Z55: -0.4059049169 | AA55: 256 | AB55: 0 | AD55: 13151 | AE55: COULEE-HARTLINE
A56: 15204 | B56: COUPEVILLE | C56: 0 | D56: 0 | E56: 1052 | F56: 5725 | G56: 134 | H56: 26583 | J56: 32308 | L56: 0 | M56: 0 | N56: 0 | P56: 32308 | Q56: 0 | R56: 32308 | T56: 0 | U56: 32308 | W56: 28184 | Y56: 4124 | Z56: 0.1463241555 | AA56: 88 | AB56: 0 | AD56: 15204 | AE56: COUPEVILLE
A57: 05313 | B57: CRESCENT | C57: 0 | D57: 0 | E57: 362 | F57: 1970 | G57: 43 | H57: 8530 | J57: 10500 | L57: 0 | M57: 0 | N57: 0 | P57: 10500 | Q57: 0 | R57: 10500 | T57: 0 | U57: 10500 | W57: 10338 | Y57: 162 | Z57: 0.01567034243 | AA57: 168 | AB57: 0 | AD57: 05313 | AE57: CRESCENT
A58: 22073 | B58: CRESTON | C58: 0 | D58: 0 | E58: 95 | F58: 517 | G58: 15 | H58: 2976 | J58: 3493 | L58: 0 | M58: 0 | N58: 0 | P58: 3493 | Q58: 0 | R58: 3493 | T58: 0 | U58: 3493 | W58: 2374 | Y58: 1119 | Z58: 0.4713563606 | AA58: 133 | AB58: 0 | AD58: 22073 | AE58: CRESTON
A59: 10050 | B59: CURLEW | C59: 0 | D59: 0 | E59: 179 | F59: 974 | G59: 66 | H59: 13093 | J59: 14067 | L59: 0 | M59: 0 | N59: 0 | P59: 14067 | Q59: 0 | R59: 14067 | T59: 0 | U59: 14067 | W59: 8671 | Y59: 5396 | Z59: 0.6223042325 | AA59: 78 | AB59: 0 | AD59: 10050 | AE59: CURLEW
A60: 26059 | B60: CUSICK | C60: 0 | D60: 0 | E60: 307 | F60: 1671 | G60: 115 | H60: 22814 | J60: 24485 | L60: 0 | M60: 0 | N60: 0 | P60: 24485 | Q60: 0 | R60: 24485 | T60: 0 | U60: 24485 | W60: 17347 | Y60: 7138 | Z60: 0.4114832536 | AA60: 64 | AB60: 0 | AD60: 26059 | AE60: CUSICK
A61: 19007 | B61: DAMMAN | C61: 0 | D61: 0 | E61: 163 | F61: 887 | G61: 3 | H61: 595 | J61: 1482 | L61: 0 | M61: 0 | N61: 0 | P61: 1482 | Q61: 0 | R61: 1482 | T61: 0 | U61: 1482 | W61: 2002 | Y61: -520 | Z61: -0.2597402597 | AA61: 206 | AB61: 0 | AD61: 19007 | AE61: DAMMAN
A62: 31330 | B62: DARRINGTON | C62: 0 | D62: 0 | E62: 591 | F62: 3216 | G62: 47 | H62: 9324 | J62: 12540 | L62: 0 | M62: 0 | N62: 0 | P62: 12540 | Q62: 0 | R62: 12540 | T62: 0 | U62: 12540 | W62: 11398 | Y62: 1142 | Z62: 0.1001930163 | AA62: 131 | AB62: 0 | AD62: 31330 | AE62: DARRINGTON
A63: 22207 | B63: DAVENPORT | C63: 0 | D63: 0 | E63: 601 | F63: 3270 | G63: 89 | H63: 17656 | J63: 20926 | L63: 0 | M63: 0 | N63: 0 | P63: 20926 | Q63: 0 | R63: 20926 | T63: 0 | U63: 20926 | W63: 21345 | Y63: -419 | Z63: -0.0196298899 | AA63: 203 | AB63: 0 | AD63: 22207 | AE63: DAVENPORT
A64: 07002 | B64: DAYTON | C64: 0 | D64: 0 | E64: 499 | F64: 2715 | G64: 70 | H64: 13887 | J64: 16602 | L64: 0 | M64: 0 | N64: 0 | P64: 16602 | Q64: 0 | R64: 16602 | T64: 0 | U64: 16602 | W64: 18913 | Y64: -2311 | Z64: -0.1221910855 | AA64: 237 | AB64: 0 | AD64: 07002 | AE64: DAYTON
A65: 32414 | B65: DEER PARK | C65: 0 | D65: 0 | E65: 2223 | F65: 12097 | G65: 308 | H65: 61101 | J65: 73198 | L65: 0 | M65: 0 | N65: 0 | P65: 73198 | Q65: 0 | R65: 73198 | T65: 0 | U65: 73198 | W65: 68282 | Y65: 4916 | Z65: 0.07199554787 | AA65: 82 | AB65: 0 | AD65: 32414 | AE65: DEER PARK
A66: 27343 | B66: DIERINGER | C66: 0 | D66: 0 | E66: 1919 | F66: 10443 | G66: 78 | H66: 15474 | J66: 25917 | L66: 0 | M66: 0 | N66: 0 | P66: 25917 | Q66: 0 | R66: 25917 | T66: 0 | U66: 25917 | W66: 27017 | Y66: -1100 | Z66: -0.0407151053 | AA66: 219 | AB66: 0 | AD66: 27343 | AE66: DIERINGER
A67: 36101 | B67: DIXIE | C67: 0 | D67: 0 | E67: 65 | F67: 354 | G67: 11 | H67: 2182 | J67: 2536 | L67: 0 | M67: 0 | N67: 0 | P67: 2536 | Q67: 0 | R67: 2536 | T67: 0 | U67: 2536 | W67: 2597 | Y67: -61 | Z67: -0.02348864074 | AA67: 183 | AB67: 0 | AD67: 36101 | AE67: DIXIE
A68: 32361 | B68: EAST VALLEY (SPK) | C68: 0 | D68: 0 | E68: 4940 | F68: 26882 | G68: 572 | H68: 113473 | J68: 140355 | L68: 0 | M68: 0 | N68: 0 | P68: 140355 | Q68: 0 | R68: 140355 | T68: 0 | U68: 140355 | W68: 149939 | Y68: -9584 | Z68: -0.06391932719 | AA68: 279 | AB68: 0 | AD68: 32361 | AE68: EAST VALLEY (SPK)
A69: 39090 | B69: EAST VALLEY (YAK) | C69: 0 | D69: 0 | E69: 3128 | F69: 17022 | G69: 447 | H69: 88676 | J69: 105698 | L69: 0 | M69: 0 | N69: 0 | P69: 105698 | Q69: 0 | R69: 105698 | T69: 0 | U69: 105698 | W69: 98804 | Y69: 6894 | Z69: 0.06977450306 | AA69: 66 | AB69: 0 | AD69: 39090 | AE69: EAST VALLEY (YAK)
A70: 09206 | B70: EASTMONT | C70: 0 | D70: 0 | E70: 6368 | F70: 34653 | G70: 792 | H70: 157117 | J70: 191770 | L70: 0 | M70: 0 | N70: 0 | P70: 191770 | Q70: 0 | R70: 191770 | T70: 0 | U70: 191770 | W70: 186330 | Y70: 5440 | Z70: 0.02919551334 | AA70: 77 | AB70: 0 | AD70: 09206 | AE70: EASTMONT
A71: 19028 | B71: EASTON | C71: 0 | D71: 0 | E71: 150 | F71: 816 | G71: 9 | H71: 1785 | J71: 2601 | L71: 0 | M71: 0 | N71: 0 | P71: 2601 | Q71: 0 | R71: 2601 | T71: 0 | U71: 2601 | W71: 3614 | Y71: -1013 | Z71: -0.2802988379 | AA71: 217 | AB71: 0 | AD71: 19028 | AE71: EASTON
A72: 27404 | B72: EATONVILLE | C72: 0 | D72: 0 | E72: 2321 | F72: 12630 | G72: 207 | H72: 41065 | J72: 53695 | L72: 0 | M72: 0 | N72: 0 | P72: 53695 | Q72: 0 | R72: 53695 | T72: 0 | U72: 53695 | W72: 36246 | Y72: 17449 | Z72: 0.4814048447 | AA72: 31 | AB72: 0 | AD72: 27404 | AE72: EATONVILLE
A73: 31015 | B73: EDMONDS | C73: 0 | D73: 0 | E73: 24944 | F73: 135737 | G73: 1907 | H73: 378310 | J73: 514047 | L73: 0 | M73: 0 | N73: 0 | P73: 514047 | Q73: 0 | R73: 514047 | T73: 0 | U73: 514047 | W73: 500513 | Y73: 13534 | Z73: 0.0270402567 | AA73: 39 | AB73: 0 | AD73: 31015 | AE73: EDMONDS
A74: 19401 | B74: ELLENSBURG | C74: 0 | D74: 0 | E74: 3381 | F74: 18398 | G74: 349 | H74: 69235 | J74: 87633 | L74: 0 | M74: 0 | N74: 0 | P74: 87633 | Q74: 0 | R74: 87633 | T74: 0 | U74: 87633 | W74: 92670 | Y74: -5037 | Z74: -0.05435415992 | AA74: 263 | AB74: 0 | AD74: 19401 | AE74: ELLENSBURG
A75: 14068 | B75: ELMA | C75: 0 | D75: 0 | E75: 1569 | F75: 8538 | G75: 230 | H75: 45627 | J75: 54165 | L75: 0 | M75: 0 | N75: 0 | P75: 54165 | Q75: 0 | R75: 54165 | T75: 0 | U75: 54165 | W75: 53353 | Y75: 812 | Z75: 0.01521938785 | AA75: 141 | AB75: 0 | AD75: 14068 | AE75: ELMA
A76: 38308 | B76: ENDICOTT | C76: 0 | D76: 0 | E76: 79 | F76: 430 | G76: 22 | H76: 4364 | J76: 4794 | L76: 0 | M76: 0 | N76: 0 | P76: 4794 | Q76: 0 | R76: 4794 | T76: 0 | U76: 4794 | W76: 3404 | Y76: 1390 | Z76: 0.4083431257 | AA76: 126 | AB76: 0 | AD76: 38308 | AE76: ENDICOTT
A77: 04127 | B77: ENTIAT | C77: 0 | D77: 0 | E77: 387 | F77: 2106 | G77: 77 | H77: 15275 | J77: 17381 | L77: 0 | M77: 0 | N77: 0 | P77: 17381 | Q77: 0 | R77: 17381 | T77: 0 | U77: 17381 | W77: 18155 | Y77: -774 | Z77: -0.0426328835 | AA77: 211 | AB77: 0 | AD77: 04127 | AE77: ENTIAT
A78: 17216 | B78: ENUMCLAW | C78: 0 | D78: 0 | E78: 5045 | F78: 27453 | G78: 253 | H78: 50190 | J78: 77643 | L78: 0 | M78: 0 | N78: 0 | P78: 77643 | Q78: 0 | R78: 77643 | T78: 0 | U78: 77643 | W78: 89400 | Y78: -11757 | Z78: -0.1315100671 | AA78: 283 | AB78: 0 | AD78: 17216 | AE78: ENUMCLAW
A79: 13165 | B79: EPHRATA | C79: 0 | D79: 0 | E79: 2631 | F79: 14317 | G79: 327 | H79: 64870 | J79: 79187 | L79: 0 | M79: 0 | N79: 0 | P79: 79187 | Q79: 0 | R79: 79187 | T79: 0 | U79: 79187 | W79: 84586 | Y79: -5399 | Z79: -0.06382852954 | AA79: 267 | AB79: 0 | AD79: 13165 | AE79: EPHRATA
A80: 21036 | B80: EVALINE | C80: 0 | D80: 0 | E80: 143 | F80: 778 | G80: 47 | H80: 9324 | J80: 10102 | L80: 0 | M80: 0 | N80: 0 | P80: 10102 | Q80: 0 | R80: 10102 | T80: 0 | U80: 10102 | W80: 9172 | Y80: 930 | Z80: 0.1013955517 | AA80: 138 | AB80: 0 | AD80: 21036 | AE80: EVALINE
A81: 31002 | B81: EVERETT | C81: 0 | D81: 0 | E81: 22565 | F81: 122792 | G81: 1813 | H81: 359663 | J81: 482455 | L81: 0 | M81: 0 | N81: 0 | P81: 482455 | Q81: 0 | R81: 482455 | T81: 0 | U81: 482455 | W81: 538038 | Y81: -55583 | Z81: -0.1033068296 | AA81: 309 | AB81: 0 | AD81: 31002 | AE81: EVERETT
A82: 06114 | B82: EVERGREEN (CLARK) | C82: 0 | D82: 0 | E82: 28467 | F82: 154908 | G82: 3454 | H82: 685204 | J82: 840112 | L82: 0 | M82: 0 | N82: 0 | P82: 840112 | Q82: 0 | R82: 840112 | T82: 0 | U82: 840112 | W82: 698906 | Y82: 141206 | Z82: 0.2020386146 | AA82: 2 | AB82: 0 | AD82: 06114 | AE82: EVERGREEN (CLARK)
A83: 33205 | B83: EVERGREEN (STEV) | C83: 0 | D83: 0 | E83: 72 | F83: 392 | G83: 13 | H83: 2579 | J83: 2971 | L83: 0 | M83: 0 | N83: 0 | P83: 2971 | Q83: 0 | R83: 2971 | T83: 0 | U83: 2971 | W83: 1887 | Y83: 1084 | Z83: 0.5744568098 | AA83: 135 | AB83: 0 | AD83: 33205 | AE83: EVERGREEN (STEV)
